Workbook

Sheet Päävalinta
A1: eMulli2 v.1.0 2019 | E1: (C) Jyri Tuovinen, Luke, Savonia 2019
E2: eMulli2 Nautatilan taloussuunnitteluohjelma | G2: Suunnittelukauden pituuden ja laskelman tietojen määritys
H3: Suunnitelman perustiedot | M3: Tukialue*
H4: Tilan nimi* | I4: Testitila 1 | K4: Suunnittelukausi* | M4: 2019-01-01 | N4: - | O4: 2019-12-31
H5: Laskelman nimi* | I5: esimerkkilaskelma | K5: Laatimis pvm | O5: =IF(IFERROR(O4-M4+1,1)=1,"Virhe: pvm!",IFERROR(O4-M4+1,"Virhe: pvm!")) -> 365
H6: Laskelman laati
R7: ELÄINKOHTAISEN TILATARPEEN MÄÄRITYS | T7: =O8 -> 1280
I8: Eläinten kasvatuspainot | K8: 170 | M8: 600 | O8: 1280 | Q8: Päiväkasvu kg | R8: =K8 -> 170 | S8: =O9*O8/1000+K8 -> 600 | T8: =S8-K8 -> 430
I9: Eläinten kasvatusiät | K9: 160 | M9: =O9+K9 -> 495.9375 | O9: =(M8-K8)/(O8/1000) -> 335.9375 | Q9: =(S8-K8)/(M9-K9) -> 1.28 | R9: painoluokka | S9: ritilä (m2) | T9: kiinteä (m2)
I10: Kasvattamon koko | K10: 350 | M10: 1 | N10: 1 | O10: =IF(N10=1,S16,T16) -> 2.289997211 | R10: alle 300 kg | S10: 1.8 | T10: 2.5
I11: Karsinoiden koko yhteensä | K11: 850 | M11: =K11/O10 -> 371.1794913 | O11: =K10*O10 -> 801.4990239 | R11: =IF(K8<300,(299-K8)+1,"0")/Q9 -> 101.5625
I12: Eläinkierto vuodessa | K12: =365/O9 -> 1.086511628 | M12: =K10/(O9/365) -> 380.2790698 | R12: 300kg- alle 600kg | S12: 2.5 | T12: 4
H13: Huom! | I13: Tämä on esimerkkitilan versio, jossa on 23 eläinryhmää. Tätä laskelmaa voit käyttää mallina oman tilan laskelmaa laatiessa. | R13: =(MIN(S8,600-1)-300)/Q9 -> 233.59375
R14: 600kg -> | S14: 3 | T14: 5
H15: Tietoja voi syöttää kaikkialla vain valkeisiin kenttiin! *= pakollinen tieto | R15: =IF(R14>=60,(MAX(S8,R14)-600)/Q9+1,0) -> 1
H16: Huom! Mikäli olet jo suunnitellut kasvatusryhmiä, ja muutat suunnittelukauden päivämääriä, tulee jokainen | R16: =R11+R13+R15 -> 336.15625 | S16: =(R11*S10+R13*S12+R15*S14)/R16 -> 2.289997211 | T16: =(T10*R11+T12*R13+T14*R15)/R16 -> 3.549781538
H17: ryhmä käydä vielä erikseen läpi "Kasvatusryhmien suunnitelu"- osiossa (valita jokainen suunnitelturyhmä
H18: ja tallettaa niiden jokaisen tiedot), jotta laskenta tulee kohdistettua uudelle tarkastelujaksolle!

Sheet yhteenveto
A1: KOKO KARJA | B1: KAIKKI ARKIT | C1: 1 | D1: 2 | E1: 3 | F1: 4 | G1: 5 | H1: 6 | I1: 7 | J1: 8 | K1: 9 | L1: 10 | M1: 11 | N1: 12
A2: LASKELMAT | B2: Osatekijä | C2: =INDIRECT("Ryhma"& C1& "!D3") -> Ay r1 | D2: =INDIRECT("Ryhma"& D1& "!D3") -> Hol r2 | E2: Ay r3 | F2: Ay r4 | G2: Ay r5 | H2: Hol r6 | I2: Ay r7 | J2: Hol r8 | K2: Ay r9 | L2: Hf r10 | M2: Li r11 | N2: Ay 12 | O2: Yhteensä
A3: 1 | B3: karjan koko lopussa | C3: =INDIRECT("Ryhma"& C1& "!$K19") -> 28.41202402 | D3: 28.47597957 | E3: 28.41202402 | F3: 28.4599772 | G3: 28.47597957 | H3: 28.38010013 | I3: 28.44398382 | J3: 28.48798725 | K3: 28.44398382 | L3: 28.60834292 | M3: 28.76960848 | N3: 28.66065483 | O3: =SUM(C3:N3) -> 342.0306456
A4: 2 | B4: tarkastelupvt | C4: =INDIRECT("Ryhma"&C1& "!$Q20") -> 42 | D4: =INDIRECT("Ryhma"&D1& "!$Q20") -> 61 | E4: =INDIRECT("Ryhma"&E1& "!$q20") -> 109 | F4: =INDIRECT("Ryhma"&F1& "!$Q20") -> 132 | G4: 168 | H4: 223 | I4: 246 | J4: 256 | K4: 307 | L4: 297 | M4: 288 | N4: 325 | O4: =SUM(C4:N4) -> 2454
A5: 3 | B5: lasketaanko | C5: =IF(C3*C4<=0,0,1) -> 1 | D5: 1 | E5: 1 | F5: 1 | G5: 1 | H5: 1 | I5: 1 | J5: 1 | K5: 1 | L5: 1 | M5: 1 | N5: 1
A6: Myynti 4 | B6: Myynti todellinen | C6: =IF(ISERROR(INDIRECT("Ryhma"& C1& "!$I72")),0,INDIRECT("Ryhma"& C1& "!$I72")) -> 35584.47738 | D6: =IF(ISERROR(INDIRECT("Ryhma"& D1& "!$I72")),0,INDIRECT("Ryhma"& D1& "!$I72")) -> 35655.99956 | E6: 35584.47738 | F6: 35638.02827 | G6: 35655.99956 | H6: 35548.97535 | I6: 35620.06592 | J6: 35730.02459 | K6: 35620.06592 | L6: 45549.05778 | M6: 50116.71781 | N6: 0 | O6: =SUM(C6:N6) -> 416303.8895
A7: 5 | B7: Myynti laskennallinen | C7: =IF(ISERROR(INDIRECT("Ryhma"& C1& "!$I73")),0,INDIRECT("Ryhma"& C1& "!$I73")) -> 0 | D7: =IF(ISERROR(INDIRECT("Ryhma"& D1& "!$I73")),0,INDIRECT("Ryhma"& D1& "!$I73")) -> 0 | E7: 0 | F7: 0 | G7: 0 | H7: 0 | I7: 0 | J7: 0 | K7: 0 | L7: 0 | M7: 0 | N7: 32211.34675 | O7: 32211.34675
A8: 8 | B8: Myynti yhteensä | C8: =C6+C7 -> 35584.47738 | D8: =D6+D7 -> 35655.99956 | E8: 35584.47738 | F8: 35638.02827 | G8: 35655.99956 | H8: 35548.97535 | I8: 35620.06592 | J8: 35730.02459 | K8: 35620.06592 | L8: 45549.05778 | M8: 50116.71781 | N8: 32211.34675 | O8: 448515.2363
A9: Tuet | B9: Eu- nautatuet | C9: =IF(ISERROR(INDIRECT("Ryhma"&C1&"!$I74")),0,INDIRECT("Ryhma"&C1&"!$I74")) -> 550.7035789 | D9: =IF(ISERROR(INDIRECT("Ryhma"&D1&"!$I74")),0,INDIRECT("Ryhma"&D1&"!$I74")) -> 764.7175678 | E9: 1368.027186 | F9: 1662.1964 | G9: 2122.129843 | H9: 2818.410169 | I9: 3121.219872 | J9: 3255.450546 | K9: 3912.237791 | L9: 3803.942707 | M9: 3606.083408 | N9: 3952.023256 | O9: 30937.14233
B10: kotoiset | C10: =IF(ISERROR(INDIRECT("Ryhma"& C1& "!$I75")),0,INDIRECT("Ryhma"& C1& "!$I75")) -> 1198.812853 | D10: =IF(ISERROR(INDIRECT("Ryhma"& D1& "!$I75")),0,INDIRECT("Ryhma"& D1& "!$I75")) -> 1652.63615 | E10: 2935.453748 | F10: 3561.01968 | G10: 4539.036785 | H10: 5992.644622 | I10: 6636.493752 | J10: 6921.901723 | K10: 8318.395603 | L10: 8088.13318 | M10: 7658.819679 | N10: 8381.760676 | O10: 65885.10845
B11: ympäristötuet | C11: =IF(ISERROR(INDIRECT("Ryhma"& C1& "!$I76")),0,INDIRECT("Ryhma"& C1& "!$I76")) -> 22.71652263 | D11: =IF(ISERROR(INDIRECT("Ryhma"& D1& "!$I76")),0,INDIRECT("Ryhma"& D1& "!$I76")) -> 31.54459967 | E11: 56.43112144 | F11: 68.56560151 | G11: 87.53785603 | H11: 116.2594195 | I11: 128.7503197 | J11: 134.287335 | K11: 161.3798089 | L11: 156.9126366 | M11: 148.5838033 | N11: 162.6091136 | O11: 1275.578138
A12: 12 | B12: Tuet yhteensä | C12: =C9+C10+C11 -> 1772.232955 | D12: =D9+D10+D11 -> 2448.898318 | E12: 4359.912056 | F12: 5291.781681 | G12: 6748.704484 | H12: 8927.314211 | I12: 9886.463944 | J12: 10311.6396 | K12: 12392.0132 | L12: 12048.98852 | M12: 11413.48689 | N12: 12496.39305 | O12: =SUM(C12:N12) -> 98097.82892
A13: Karjaostot | B13: Karjaostot kaudella | C13: =INDIRECT("Ryhma"& C1& "!$I79") -> 0 | D13: =INDIRECT("Ryhma"& D1& "!$I79") -> 0 | E13: 0 | F13: 0 | G13: 0 | H13: 0 | I13: 0 | J13: 0 | K13: 0 | L13: 0 | M13: 0 | N13: 13500 | O13: 13500
B14: Karjaostot laskennalliset | C14: =IF(ISERROR(INDIRECT("Ryhma"& C1& "!$I80")),0,INDIRECT("Ryhma"& C1& "!$I80")) -> 33399.21398 | D14: 32505.53711 | E14: 29775.70249 | F14: 28526.50535 | G14: 26841.45081 | H14: 23246.51941 | I14: 22113.22972 | J14: 21955.39394 | K14: 18612.15541 | L14: 28038.7421 | M14: =IF(ISERROR(INDIRECT("Ryhma"& M1& "!$I80")),0,INDIRECT("Ryhma"& M1& "!$I80")) -> 28387.59786 | N14: =IF(ISERROR(INDIRECT("Ryhma"& N1& "!$I80")),0,INDIRECT("Ryhma"& N1& "!$I80")) -> 0 | O14: 293402.0482
A15: 15 | B15: Karjaostot yhteensä | C15: =C13+C14 -> 33399.21398 | D15: =D13+D14 -> 32505.53711 | E15: 29775.70249 | F15: 28526.50535 | G15: 26841.45081 | H15: 23246.51941 | I15: 22113.22972 | J15: 21955.39394 | K15: 18612.15541 | L15: 28038.7421 | M15: 28387.59786 | N15: 13500 | O15: 306902.0482
A16: Rehukustannukset | B16: Rehun käyttö kg ka | C16: =IF(ISERROR(INDIRECT("Ryhma"& C1& "!$G81")*C3),0,INDIRECT("Ryhma"& C1& "!$G81")*C3) -> 14103.77963 | D16: =IF(ISERROR(INDIRECT("Ryhma"& D1& "!$G81")*D3),0,INDIRECT("Ryhma"& D1& "!$G81")*D3) -> 20308.67975 | E16: 35211.55791 | F16: 42112.99496 | G16: 52417.3999 | H16: 66840.78674 | I16: 72685.11086 | J16: 75300.7863 | K16: 86591.00365 | L16: 96689.46061 | M16: 97879.4803 | N16: 81890.18661 | O16: 742031.2272
A17: =Tilatiedot!L19*Tilatiedot!G5/365 -> 8800 | B17: Rehukustannukset | C17: =IF(ISERROR(INDIRECT("Ryhma"&C1&"!$I81")),0,(INDIRECT("Ryhma"&C1&"!$I81"))) -> 2789.497464 | D17: 4022.11092 | E17: 6997.309598 | F17: 8382.426983 | G17: 10460.18259 | H17: 13390.80717 | I17: 14585.59273 | J17: 15121.28414 | K17: 17452.15298 | L17: 19473.48789 | M17: 19700.44235 | N17: 16526.06945 | O17: =SUM(C17:N17) -> 148901.3643 | P17: eläinkasvatuspvt su kaudella
A18: 18 | B18: Kuivikekustannukset | C18: =C25*C4/$P18*$A17 -> 147.7927314 | D18: 215.4229726 | E18: 385.3768967 | F18: 468.2451465 | G18: 597.8096206 | H18: 793.9536401 | I18: 879.2559387 | J18: 917.0690766 | K18: 1102.08779 | L18: 1071.580777 | M18: 1044.291919 | N18: 1177.113491 | O18: =SUM(C18:N18) -> 8800 | P18: =C25*C4+D25*D4+E25*E4+F25*F4+G25*G4+H25*H4+I25*I4+J25*J4+K25*K4+L25*L4+M25*M4+N25*N4 -> 71263.08299
A19: Kate I | B19: Katetuotto I | C19: =C8+C12-C17-C15-C18 -> 1020.206163 | D19: 1361.82687 | E19: 2786.000453 | F19: 3552.63247 | G19: 4505.261024 | H19: 7045.009342 | I19: 7928.451467 | J19: 8047.917039 | K19: 10845.68293 | L19: 9014.235529 | M19: 12397.87257 | N19: 13504.55685 | O19: 82009.65271
B20: eläinkasvatuspvt | C20: =C25*C4 -> 1196.83701 | D20: =D25*D4 -> 1744.511951 | E20: 3120.812019 | F20: 3791.885538 | G20: 4841.108705 | H20: 6429.498198 | I20: 7120.282833 | J20: 7426.496558 | K20: 8924.79246 | L20: 8677.7443 | M20: 8456.757007 | N20: 9532.356409 | O20: =SUM(C20:N20) -> 71263.08299
B21: rehukulutus/karja/pv | C21: =IF(C4=0,0,C16*C3/C4) -> 9540.879184 | D21: =IF(D4=0,0,D16*D3/D4) -> 9480.484422 | E21: 9178.271827 | F21: 9079.809669 | G21: 8884.742909 | H21: 8506.494264 | I21: 8404.28503 | J21: 8379.561876 | K21: 8022.77885 | L21: 9313.553016 | M21: 9777.619188 | N21: 7221.619606
B22: teuraskg jaksolla/eläin | C22: =IF(ISERROR(INDIRECT("Ryhma"& C1& "!$N16")),0,INDIRECT("Ryhma"& C1& "!$N16")) -> 0 | D22: =IF(ISERROR(INDIRECT("Ryhma"& D1& "!$N16")),0,INDIRECT("Ryhma"& D1& "!$N16")) -> 0 | E22: 0 | F22: 0 | G22: 0 | H22: 0 | I22: 0 | J22: 0 | K22: 0 | L22: 0 | M22: 0 | N22: 0
B23: eläinmäärä kauden lopussa | C23: =INDIRECT("Ryhma"& C1& "!I15") -> 0 | D23: =INDIRECT("Ryhma"& D1& "!I15") -> 0 | E23: 0 | F23: 0 | G23: 0 | H23: 0 | I23: 0 | J23: 0 | K23: 0 | L23: 0 | M23: 0 | N23: 0
B24: teuraskilot lopussa | C24: =C22*C23 -> 0 | D24: =D22*D23 -> 0 | E24: 0 | F24: 0 | G24: 0 | H24: 0 | I24: 0 | J24: 0 | K24: 0 | L24: 0 | M24: 0 | N24: 0 | O24: =SUM(C24:N24) -> 0
A25: =Päävalinta!O5 -> 365 | B25: karjan koko keskimäärin | C25: =INDIRECT("Ryhma"& C1& "!$K20") -> 28.49611928 | D25: =INDIRECT("Ryhma"& D1& "!$K20") -> 28.59855658 | E25: 28.63130293 | F25: 28.72640559 | G25: 28.81612324 | H25: 28.83183049 | I25: 28.94423916 | J25: 29.00975218 | K25: 29.07098521 | L25: 29.21799427 | M25: 29.36373961 | N25: 29.33032741 | O25: =SUM(C25:N25) -> 347.0373759
A26: EL PO LASKENTAAN | B26: El. KasvatuksessaSUkaudella | C26: =C4/$A$25*C25 -> 3.279005506 | D26: =D4/$A$25*D25 -> 4.779484798 | E26: 8.550169915 | F26: 10.3887275 | G26: 13.26331152 | H26: 17.61506356 | I26: 19.5076242 | J26: 20.34656591 | K26: 24.45148619 | L26: 23.77464192 | M26: 23.16919728 | N26: 26.11604496 | O26: =SUM(C26:N26) -> 195.2413233
B27: Karjaostot vasikat | C27: =INDIRECT("Ryhma"& C1& "!$K6")*INDIRECT("Ryhma"& C1& "!$O6") -> 14400 | D27: =INDIRECT("Ryhma"& D1& "!$K6")*INDIRECT("Ryhma"& D1& "!$O6") -> 15600 | E27: 14100 | F27: 14700 | G27: 15600 | H27: 13200 | I27: 14400 | J27: 15600 | K27: 14400 | L27: 25500 | M27: 27600 | N27: 13500 | O27: =SUM(C27:N27) -> 198600 | P27: karjaostot yhteensä
B28: Karjaostot arvonlisä | C28: =IF(C14>0,C14-C27,0) -> 18999.21398 | D28: =IF(D14>0,D14-D27,0) -> 16905.53711 | E28: 15675.70249 | F28: 13826.50535 | G28: 11241.45081 | H28: 10046.51941 | I28: 7713.229721 | J28: 6355.393942 | K28: 4212.155413 | L28: 2538.742102 | M28: 787.5978584 | N28: 0 | O28: 108302.0482 | P28: karjan arvonlisä
B29: eläimen keskihinta | C29: =IFERROR(C15/C3,0) -> 1175.530964 | D29: =IFERROR(D15/D3,0) -> 1141.507249 | E29: 1047.996527 | F29: 1002.337604 | G29: 942.5997355 | H29: 819.1133683 | I29: 777.4308219 | J29: 770.6895453 | K29: 654.344185 | L29: 980.0896955 | M29: 986.7217304 | N29: 471.0290146 | O29: =O27+O28 -> 306902.0482 | P29: karja arvonlisäneen
B30: kaudella päivät | C30: =C4 -> 42 | D30: =D4 -> 61 | E30: 109 | F30: 132 | G30: 168 | H30: 223 | I30: 246 | J30: 256 | K30: 307 | L30: 297 | M30: 288 | N30: 325 | O30: eläimen laskenn. ostohinta | P30: =O29/O25 -> 884.3486883
B31: arvo päivät kaudella | C31: =C30/$A$25*C25*C29 -> 3854.572502 | D31: =D30/$A$25*D25*D29 -> 5455.816546 | E31: 8960.548372 | F31: 10413.01223 | G31: 12501.99393 | H31: 14428.73404 | I31: 15165.82831 | J31: 15680.88563 | K31: 15999.68781 | L31: 23301.28156 | M31: 22861.55043 | N31: 12301.41492 | O31: =SUM(C31:N31) -> 160925.3263 | P31: koko jaksolla
P32: maxEY:T | Q32: KANSALLINEN TUKI
A33: eläinyksikkömäärät kaudella | C33: =Ryhma1!D111 -> 2.114308383 | D33: =Ryhma2!D111 -> 2.914702205 | E33: =Ryhma3!D111 -> 5.177167105 | F33: =Ryhma4!D111 -> 6.280457989 | G33: =Ryhma5!D111 -> 8.005355882 | H33: =Ryhma6!D111 -> 10.56903813 | I33: =Ryhma7!D111 -> 11.70457452 | J33: =Ryhma8!D111 -> 12.20793955 | K33: =Ryhma9!D111 -> 14.67089172 | L33: =Ryhma10!D111 -> 14.26478515 | M33: =Ryhma11!D111 -> 13.50761848 | N33: =Ryhma12!D111 -> 14.7826467 | O33: =SUM(C33:N33) -> 116.1994858 | P33: =Ryhma1!D110 -> 700 | Q33: =SUM(C33:N33) -> 116.1994858
N34: suunn. Kausi päivinä | O34: =Tulosennuste!H4 -> 365 | P34: onko ylitys? (1=kyllä) | Q34: =IF(Q33>O37,1,0) -> 0
N35: suunn.kausi vuosina | O35: =O34/365 -> 1 | P35: tukeen oikeuttava määrä | Q35: =IF(Q34=1,O37,Q33) -> 116.1994858
N36: suuunn.kausi yli vuoden? | O36: =IF(O35>1,O35,1) -> 1 | P36: tukiosuus | Q36: =Q35/Q33 -> 1
N37: max eyt/sukausi | O37: =P33*O36 -> 700
A70: KATETUOTTOLASKELMA
A71: Myynti yhteensä
A72: Myynti todellinen | I72: =O6 -> 416303.8895
A73: Myynti laskennallinen | I73: =O7 -> 32211.34675 | J73: =I72+I73 -> 448515.2363
A74: Eu- nautatuet | I74: =O9 -> 30937.14233
A75: kotoiset | I75: =O10 -> 65885.10845
A76: ympäristötuet | I76: =O11 -> 1275.578138 | J76: =I74+I75+I76 -> 98097.82892
A77: Tulot yhteensä | J77: =J73+J76 -> 546613.0652
A78: Vasikat
A79: Karjaostot vasikat | I79: =O13 -> 13500
A80: Karjaostot laskenn | I80: =O14 -> 293402.0482
A81: Rehun käyttö | I81: =O17 -> 148901.3643
A82: Kuivikekustannukset | J82: =I79+I80+I81 -> 455803.4125
A83: Katetuotto I | J83: =J77-J82 -> 90809.65271
F96: KUORMITUS PYSTYPYLVÄIKKÖ
F97: eNautaTukilaskuri
E98: kasvatuskausi | F98: =Päävalinta!M4 -> 2019-01-01 | G98: =Päävalinta!N4 -> - | H98: =Päävalinta!O4 -> 2019-12-31
A100: KASVUTAULU | D100: kesto | E100: =kasvatusryhmat!O10 -> 387 | F100: =kasvatusryhmat!O11 -> 371 | G100: =kasvatusryhmat!O12 -> 387 | H100: =kasvatusryhmat!O13 -> 375 | I100: =kasvatusryhmat!O14 -> 371 | J100: =kasvatusryhmat!O15 -> 395 | K100: =kasvatusryhmat!O16 -> 379 | L100: =kasvatusryhmat!O17 -> 368 | M100: =kasvatusryhmat!O18 -> 379 | N100: =kasvatusryhmat!O19 -> 338 | O100: =kasvatusryhmat!O20 -> 298 | P100: =kasvatusryhmat!O21 -> 387
A101: =#REF! ->  | B101: kasvatuksen aloitus | C101: =C103/D101 -> 237.2783897 | D101: =COUNTIF(D105:D280,D105) -> 31 | E101: R1 | F101: R2 | G101: R3 | H101: R4 | I101: R5 | J101: R6 | K101: R7 | L101: R8 | M101: R9 | N101: R10 | O101: R11 | P101: R12
A102: KARJAKOKO | B102: koko kau. 1. kasv. Pvm | C102: =kasvatusryhmat!H6 -> 2019-01-01 | D102: erän eka kpvm | E102: =kasvatusryhmat!M10 -> 2019-01-01 | F102: =kasvatusryhmat!M11 -> 2019-01-01 | G102: =kasvatusryhmat!M12 -> 2019-01-01 | H102: =kasvatusryhmat!M13 -> 2019-01-01 | I102: =kasvatusryhmat!M14 -> 2019-01-01 | J102: =kasvatusryhmat!M15 -> 2019-01-01 | K102: =kasvatusryhmat!M16 -> 2019-01-01 | L102: =kasvatusryhmat!M17 -> 2019-01-01 | M102: =kasvatusryhmat!M18 -> 2019-01-01 | N102: =kasvatusryhmat!M19 -> 2019-01-01 | O102: =kasvatusryhmat!M20 -> 2019-01-01 | P102: =kasvatusryhmat!M21 -> 2019-02-09 | U102: KUORMITUKSEN GRAFIIKKATAULU | AB102: PERUSTUU KALENTERIKUUKAUSIIN! | AJ102: Eläinten määrät eri täysinä kuukausina keskimäärin | BB102: =Päävalinta!O4-Päävalinta!M4+2 -> 366
A103: päivä | B103: pvm | C103: =SUM(C105:C127) -> 7355.63008 | D103: siirtymä päiviä | E103: =IF(Ryhma1!$Q14>0,-Ryhma1!$Q14,E102-$C$102) -> -345 | F103: =IF(Ryhma2!$Q14>0,-Ryhma2!$Q14,F102-$C$102) -> -310 | G103: =IF(Ryhma3!$Q14>0,-Ryhma3!$Q14,G102-$C$102) -> -278 | H103: =IF(Ryhma4!$Q14>0,-Ryhma4!$Q14,H102-$C$102) -> -243 | I103: =IF(Ryhma5!$Q14>0,-Ryhma5!$Q14,I102-$C$102) -> -203 | J103: =IF(Ryhma6!$Q14>0,-Ryhma6!$Q14,J102-$C$102) -> -172 | K103: =IF(Ryhma7!$Q14>0,-Ryhma7!$Q14,K102-$C$102) -> -133 | L103: =IF(Ryhma8!$Q14>0,-Ryhma8!$Q14,L102-$C$102) -> -112 | M103: =IF(Ryhma9!$Q14>0,-Ryhma9!$Q14,M102-$C$102) -> -72 | N103: =IF(Ryhma10!$Q14>0,-Ryhma10!$Q14,N102-$C$102) -> -41 | O103: =IF(Ryhma11!$Q14>0,-Ryhma11!$Q14,O102-$C$102) -> -10 | P103: =IF(Ryhma12!$Q14>0,-Ryhma12!$Q14,P102-$C$102) -> 39 | AW103: sarakkeita | AX103: viimeinen | AY103: pixelit | BB103: kumul pvt | BD103: =ROUND(AVERAGE(BD104:BD141),0) -> 195
A104: 0 | B104: =B105-1 -> 2018-12-31 | C104: =SUM(E104:P104) ->  | D104: =SUMIF(D105:D280,D105,C105:C280) -> 9907.375387 | E104: =IF(AND($A104>E$103,$A104<=E$100+E$103),OFFSET(#REF!,-E$103-1,0),0) ->  | K104: =IF(AND($A104>K$103,$A104<=K$100+K$103),OFFSET(#REF!,-K$103,0),0) ->  | L104: =IF(AND($A104>L$103,$A104<=L$100+L$103),OFFSET(#REF!,-L$103,0),0) ->  | M104: =IF(AND($A104>M$103,$A104<=M$100+M$103),OFFSET(#REF!,-M$103,0),0) ->  | N104: =IF(AND($A104>N$103,$A104<=N$100+N$103),OFFSET(#REF!,-N$103,0),0) ->  | O104: =IF(AND($A104>O$103,$A104<=O$100+O$103),OFFSET(#REF!,-O$103,0),0) ->  | P104: =IF(AND($A104>P$103,$A104<=P$100+P$103),OFFSET(#REF!,-P$103,0),0) -> 0 | Q104: jakson 1.ilmentymä | R104: merkintä | T104: ryhmät | U104: el.pvt yht. | V104: r1 | W104: r2 | X104: r3 | Y104: r4 | Z104: r5 | AA104: r6 | AB104: r7 | AC104: r8 | AD104: r9 | AE104: r10 | AF104: r11 | AG104: r12 | AH104: päivät kpl | AI104: el ka pv | AJ104: kuukausi | AK104: r1 | AL104: r2 | AM104: r3 | AN104: r4 | AO104: r5 | AP104: r6 | AQ104: r7 | AR104: r8 | AS104: r9 | AT104: r10 | AU104: r11 | AV104: r12 | AW104: =COUNTIF(AW105:AW143,">0") -> 15 | AX104: =ROUND(OFFSET(AW105,AW104-1,0)/30*AX105,0) -> 1 | AY104: =AW104*AX105+AX104-AX105 -> 393 | AZ104: palkkialueen leveys | BB104: =AH105 -> 31 | BC104: =IF(BB104>0,IF(BB104<BB$102,1,0),"") -> 1 | BD104: =IF(BC104>0,SUM(AK105:AV105)*BC104) -> 319.5927544
A105: 1 | B105: =kasvatusryhmat!H6 -> 2019-01-01 | C105: =SUM(E105:P105) -> 320.4084549 | D105: =YEAR(B105)*100 +MONTH(B105) -> 201901 | E105: =IF(AND($A105>E$103,$A105<=E$100+E$103),OFFSET(Ryhma1!K178,-E$103-1,0),0) -> 28.29096217 | F105: =IF(AND($A105>F$103,$A105<=F$100+F$103),OFFSET(Ryhma2!K178,-F$103-1,0),0) -> 28.45980957 | G105: =IF(AND($A105>G$103,$A105<=G$100+G$103),OFFSET(Ryhma3!$K178,-G$103-1,0),0) -> 28.61506605 | H105: =IF(AND($A105>H$103,$A105<=H$100+H$103),OFFSET(Ryhma4!$K178,-H$103-1,0),0) -> 28.78584778 | I105: =IF(AND($A105>I$103,$A105<=I$100+I$103),OFFSET(Ryhma5!$K178,-I$103-1,0),0) -> 28.98227534 | J105: =IF(AND($A105>J$103,$A105<=J$100+J$103),OFFSET(Ryhma6!$K178,-J$103-1,0),0) -> 29.13542815 | K105: =IF(AND($A105>K$103,$A105<=K$100+K$103),OFFSET(Ryhma7!$K178,-K$103-1,0),0) -> 29.32925434 | L105: =IF(AND($A105>L$103,$A105<=L$100+L$103),OFFSET(Ryhma8!$K178,-L$103-1,0),0) -> 29.43415583 | M105: =IF(AND($A105>M$103,$A105<=M$100+M$103),OFFSET(Ryhma9!$K178,-M$103-1,0),0) -> 29.63500729 | N105: =IF(AND($A105>N$103,$A105<=N$100+N$103),OFFSET(Ryhma10!$K178,-N$103-1,0),0) -> 29.79160937 | O105: =IF(AND($A105>O$103,$A105<=O$100+O$103),OFFSET(Ryhma11!$K178,-O$103-1,0),0) -> 29.949039 | P105: =IF(AND($A105>P$103,$A105<=P$100+P$103),OFFSET(Ryhma12!$K178,-P$103-1,0),0) -> 0 | Q105: =IF(COUNTIF(D$104:D105,D105)=1,D105,"") -> 201901 | R105: =IF(COUNTIF(D$105:D105,D105)=1,1,0) -> 1 | S105: =IF(R105=0,"",MAX(S$104:S104)+1) -> 1 | T105: =IFERROR(INDEX($D$105:$D$1201,MATCH(ROW()-ROW($Q$104),$S$105:$S$1201,0)),"") -> 201901 | U105: =SUMIF(D$104:D$1201,T105,C$104:C$1201) -> 9907.375387 | V105: =SUMIF($D$104:$D$1201,$T105,E$104:E$1201) -> 874.7870976 | W105: =SUMIF($D$104:$D$1201,$T105,F$104:F$1201) -> 880.0080416 | X105: =SUMIF($D$104:$D$1201,$T105,G$104:G$1201) -> 884.8087394 | Y105: =SUMIF($D$104:$D$1201,$T105,H$104:H$1201) -> 890.089495 | Z105: =SUMIF($D$104:$D$1201,$T105,I$104:I$1201) -> 896.1632472 | AA105: =SUMIF($D$104:$D$1201,$T105,J$104:J$1201) -> 900.8988975 | AB105: =SUMIF($D$104:$D$1201,$T105,K$104:K$1201) -> 906.8922125 | AC105: =SUMIF($D$104:$D$1201,$T105,L$104:L$1201) -> 910.1358799 | AD105: =SUMIF($D$104:$D$1201,$T105,M$104:M$1201) -> 916.3464238 | AE105: =SUMIF($D$104:$D$1201,$T105,N$104:N$1201) -> 921.1887293 | AF105: =SUMIF($D$104:$D$1201,$T105,O$104:O$1201) -> 926.0566233 | AG105: =SUMIF($D$104:$D$1201,$T105,P$104:P$1201) -> 0 | AH105: =COUNTIF(D$104:D$1201,T105) -> 31 | AI105: =U105/AH105 -> 319.5927544 | AJ105: kk1 | AK105: =SUMIF($D$104:$D$1201,$T105,E$104:E$1201)/COUNTIF($D$104:D$1201,$T105) -> 28.21893863 | AL105: =SUMIF($D$104:$D$1201,$T105,F$104:F$1201)/COUNTIF($D$104:E$1201,$T105) -> 28.38735618 | AM105: =SUMIF($D$104:$D$1201,$T105,G$104:G$1201)/COUNTIF($D$104:F$1201,$T105) -> 28.5422174 | AN105: =SUMIF($D$104:$D$1201,$T105,H$104:H$1201)/COUNTIF($D$104:G$1201,$T105) -> 28.71256435 | AO105: =SUMIF($D$104:$D$1201,$T105,I$104:I$1201)/COUNTIF($D$104:H$1201,$T105) -> 28.90849184 | AP105: =SUMIF($D$104:$D$1201,$T105,J$104:J$1201)/COUNTIF($D$104:I$1201,$T105) -> 29.06125476 | AQ105: =SUMIF($D$104:$D$1201,$T105,K$104:K$1201)/COUNTIF($D$104:J$1201,$T105) -> 29.2545875 | AR105: =SUMIF($D$104:$D$1201,$T105,L$104:L$1201)/COUNTIF($D$104:K$1201,$T105) -> 29.35922193 | AS105: =SUMIF($D$104:$D$1201,$T105,M$104:M$1201)/COUNTIF($D$104:L$1201,$T105) -> 29.55956206 | AT105: =SUMIF($D$104:$D$1201,$T105,N$104:N$1201)/COUNTIF($D$104:M$1201,$T105) -> 29.71576546 | AU105: =SUMIF($D$104:$D$1201,$T105,O$104:O$1201)/COUNTIF($D$104:N$1201,$T105) -> 29.8727943 | AV105: =SUMIF($D$104:$D$1201,$T105,P$104:P$1201)/COUNTIF($D$104:O$1201,$T105) -> 0 | AW105: =SUM(AK105:AV105) -> 319.5927544 | AX105: 28 | AY105: =37*AX105 -> 1036 | AZ105: koko alueen leveys | BB105: =BB104+AH106 -> 59 | BC105: =IF(BB105>0,IF(BB105<BB$102,1,0),0) -> 1 | BD105: =IF(BC105>0,SUM(AK106:AV106)*BC105) -> 322.3565388
A106: 2 | B106: =B105+1 -> 2019-01-02 | C106: 320.3539855 | D106: 201901 | E106: =IF(AND($A106>E$103,$A106<=E$100+E$103),OFFSET(Ryhma1!K179,-E$103-1,0),0) -> 28.28615271 | F106: =IF(AND($A106>F$103,$A106<=F$100+F$103),OFFSET(Ryhma2!K179,-F$103-1,0),0) -> 28.45497141 | G106: =IF(AND($A106>G$103,$A106<=G$100+G$103),OFFSET(Ryhma3!$K179,-G$103-1,0),0) -> 28.61020149 | H106: =IF(AND($A106>H$103,$A106<=H$100+H$103),OFFSET(Ryhma4!$K179,-H$103-1,0),0) -> 28.78095419 | I106: =IF(AND($A106>I$103,$A106<=I$100+I$103),OFFSET(Ryhma5!$K179,-I$103-1,0),0) -> 28.97734835 | J106: =IF(AND($A106>J$103,$A106<=J$100+J$103),OFFSET(Ryhma6!$K179,-J$103-1,0),0) -> 29.13047513 | K106: =IF(AND($A106>K$103,$A106<=K$100+K$103),OFFSET(Ryhma7!$K179,-K$103-1,0),0) -> 29.32426837 | L106: =IF(AND($A106>L$103,$A106<=L$100+L$103),OFFSET(Ryhma8!$K179,-L$103-1,0),0) -> 29.42915203 | M106: =IF(AND($A106>M$103,$A106<=M$100+M$103),OFFSET(Ryhma9!$K179,-M$103-1,0),0) -> 29.62996934 | N106: =IF(AND($A106>N$103,$A106<=N$100+N$103),OFFSET(Ryhma10!$K179,-N$103-1,0),0) -> 29.7865448 | O106: =IF(AND($A106>O$103,$A106<=O$100+O$103),OFFSET(Ryhma11!$K179,-O$103-1,0),0) -> 29.94394766 | P106: =IF(AND($A106>P$103,$A106<=P$100+P$103),OFFSET(Ryhma12!$K179,-P$103-1,0),0) -> 0 | Q106: =IF(COUNTIF(D$104:D106,D106)=1,D106,"") ->  | R106: =IF(COUNTIF(D$105:D106,D106)=1,1,0) -> 0 | S106: =IF(R106=0,"",MAX(S$104:S105)+1) ->  | T106: 201902 | U106: 9025.983086 | V106: 309.3017362 | W106: 790.8692933 | X106: 795.1837136 | Y106: 799.929565 | Z106: 805.388088 | AA106: 809.6440495 | AB106: 815.0302831 | AC106: 817.9453893 | AD106: 823.5268479 | AE106: 827.8786612 | AF106: 832.2534711 | AG106: 599.0319877 | AH106: 28 | AI106: =U106/AH106 -> 322.3565388 | AJ106: kk2 | AK106: =SUMIF($D$104:$D$1201,$T106,E$104:E$1201)/COUNTIF($D$104:D$1201,$T106) -> 11.04649058 | AL106: =SUMIF($D$104:$D$1201,$T106,F$104:F$1201)/COUNTIF($D$104:E$1201,$T106) -> 28.2453319 | AM106: =SUMIF($D$104:$D$1201,$T106,G$104:G$1201)/COUNTIF($D$104:F$1201,$T106) -> 28.39941834 | AN106: =SUMIF($D$104:$D$1201,$T106,H$104:H$1201)/COUNTIF($D$104:G$1201,$T106) -> 28.56891303 | AO106: =SUMIF($D$104:$D$1201,$T106,I$104:I$1201)/COUNTIF($D$104:H$1201,$T106) -> 28.76386028 | AP106: =SUMIF($D$104:$D$1201,$T106,J$104:J$1201)/COUNTIF($D$104:I$1201,$T106) -> 28.91585891 | AQ106: =SUMIF($D$104:$D$1201,$T106,K$104:K$1201)/COUNTIF($D$104:J$1201,$T106) -> 29.1082244 | AR106: =SUMIF($D$104:$D$1201,$T106,L$104:L$1201)/COUNTIF($D$104:K$1201,$T106) -> 29.21233533 | AS106: =SUMIF($D$104:$D$1201,$T106,M$104:M$1201)/COUNTIF($D$104:L$1201,$T106) -> 29.41167314 | AT106: =SUMIF($D$104:$D$1201,$T106,N$104:N$1201)/COUNTIF($D$104:M$1201,$T106) -> 29.56709504 | AU106: =SUMIF($D$104:$D$1201,$T106,O$104:O$1201)/COUNTIF($D$104:N$1201,$T106) -> 29.72333826 | AV106: =SUMIF($D$104:$D$1201,$T106,P$104:P$1201)/COUNTIF($D$104:O$1201,$T106) -> 21.39399956 | AW106: =SUM(AK106:AV106) -> 322.3565388 | AY106: =AY105-AY104 -> 643 | AZ106: takaalueen leveys | BB106: =BB105+AH107 -> 90 | BC106: 1 | BD106: 292.0013535
A107: 3 | B107: =B106+1 -> 2019-01-03 | C107: 320.2995253 | D107: 201901 | E107: =IF(AND($A107>E$103,$A107<=E$100+E$103),OFFSET(Ryhma1!K180,-E$103-1,0),0) -> 28.28134406 | F107: =IF(AND($A107>F$103,$A107<=F$100+F$103),OFFSET(Ryhma2!K180,-F$103-1,0),0) -> 28.45013406 | G107: =IF(AND($A107>G$103,$A107<=G$100+G$103),OFFSET(Ryhma3!$K180,-G$103-1,0),0) -> 28.60533776 | H107: =IF(AND($A107>H$103,$A107<=H$100+H$103),OFFSET(Ryhma4!$K180,-H$103-1,0),0) -> 28.77606143 | I107: =IF(AND($A107>I$103,$A107<=I$100+I$103),OFFSET(Ryhma5!$K180,-I$103-1,0),0) -> 28.9724222 | J107: =IF(AND($A107>J$103,$A107<=J$100+J$103),OFFSET(Ryhma6!$K180,-J$103-1,0),0) -> 29.12552295 | K107: =IF(AND($A107>K$103,$A107<=K$100+K$103),OFFSET(Ryhma7!$K180,-K$103-1,0),0) -> 29.31928324 | L107: =IF(AND($A107>L$103,$A107<=L$100+L$103),OFFSET(Ryhma8!$K180,-L$103-1,0),0) -> 29.42414907 | M107: =IF(AND($A107>M$103,$A107<=M$100+M$103),OFFSET(Ryhma9!$K180,-M$103-1,0),0) -> 29.62493224 | N107: =IF(AND($A107>N$103,$A107<=N$100+N$103),OFFSET(Ryhma10!$K180,-N$103-1,0),0) -> 29.78148109 | O107: =IF(AND($A107>O$103,$A107<=O$100+O$103),OFFSET(Ryhma11!$K180,-O$103-1,0),0) -> 29.93885719 | P107: =IF(AND($A107>P$103,$A107<=P$100+P$103),OFFSET(Ryhma12!$K180,-P$103-1,0),0) -> 0 | Q107: =IF(COUNTIF(D$104:D107,D107)=1,D107,"") ->  | R107: =IF(COUNTIF(D$105:D107,D107)=1,1,0) -> 0 | S107: =IF(R107=0,"",MAX(S$104:S106)+1) ->  | T107: 201903 | U107: 9052.041959 | V107: 0 | W107: 56.34673098 | X107: 875.9777187 | Y107: 881.2057686 | Z107: 887.2189004 | AA107: 891.9072856 | AB107: 897.840783 | AC107: 901.0520764 | AD107: 907.2006345 | AE107: 911.9946104 | AF107: 916.8139194 | AG107: 924.4835308 | AH107: 31 | AI107: 292.0013535 | AJ107: kk3 | AK107: =SUMIF($D$104:$D$1201,$T107,E$104:E$1201)/COUNTIF($D$104:D$1201,$T107) -> 0 | AL107: =SUMIF($D$104:$D$1201,$T107,F$104:F$1201)/COUNTIF($D$104:E$1201,$T107) -> 1.817636483 | AM107: =SUMIF($D$104:$D$1201,$T107,G$104:G$1201)/COUNTIF($D$104:F$1201,$T107) -> 28.25734577 | AN107: =SUMIF($D$104:$D$1201,$T107,H$104:H$1201)/COUNTIF($D$104:G$1201,$T107) -> 28.42599253 | AO107: =SUMIF($D$104:$D$1201,$T107,I$104:I$1201)/COUNTIF($D$104:H$1201,$T107) -> 28.61996453 | AP107: =SUMIF($D$104:$D$1201,$T107,J$104:J$1201)/COUNTIF($D$104:I$1201,$T107) -> 28.77120276 | AQ107: =SUMIF($D$104:$D$1201,$T107,K$104:K$1201)/COUNTIF($D$104:J$1201,$T107) -> 28.9626059 | AR107: =SUMIF($D$104:$D$1201,$T107,L$104:L$1201)/COUNTIF($D$104:K$1201,$T107) -> 29.06619601 | AS107: =SUMIF($D$104:$D$1201,$T107,M$104:M$1201)/COUNTIF($D$104:L$1201,$T107) -> 29.2645366 | AT107: =SUMIF($D$104:$D$1201,$T107,N$104:N$1201)/COUNTIF($D$104:M$1201,$T107) -> 29.41918098 | AU107: =SUMIF($D$104:$D$1201,$T107,O$104:O$1201)/COUNTIF($D$104:N$1201,$T107) -> 29.57464256 | AV107: =SUMIF($D$104:$D$1201,$T107,P$104:P$1201)/COUNTIF($D$104:O$1201,$T107) -> 29.82204938 | AW107: 292.0013535 | BB107: 120 | BC107: 1 | BD107: 278.3920655
A108: 4 | B108: 2019-01-04 | C108: 320.2450744 | D108: 201901 | E108: =IF(AND($A108>E$103,$A108<=E$100+E$103),OFFSET(Ryhma1!K181,-E$103-1,0),0) -> 28.27653624 | F108: =IF(AND($A108>F$103,$A108<=F$100+F$103),OFFSET(Ryhma2!K181,-F$103-1,0),0) -> 28.44529754 | G108: =IF(AND($A108>G$103,$A108<=G$100+G$103),OFFSET(Ryhma3!$K181,-G$103-1,0),0) -> 28.60047485 | H108: =IF(AND($A108>H$103,$A108<=H$100+H$103),OFFSET(Ryhma4!$K181,-H$103-1,0),0) -> 28.7711695 | I108: =IF(AND($A108>I$103,$A108<=I$100+I$103),OFFSET(Ryhma5!$K181,-I$103-1,0),0) -> 28.96749689 | J108: =IF(AND($A108>J$103,$A108<=J$100+J$103),OFFSET(Ryhma6!$K181,-J$103-1,0),0) -> 29.12057161 | K108: =IF(AND($A108>K$103,$A108<=K$100+K$103),OFFSET(Ryhma7!$K181,-K$103-1,0),0) -> 29.31429896 | L108: =IF(AND($A108>L$103,$A108<=L$100+L$103),OFFSET(Ryhma8!$K181,-L$103-1,0),0) -> 29.41914697 | M108: =IF(AND($A108>M$103,$A108<=M$100+M$103),OFFSET(Ryhma9!$K181,-M$103-1,0),0) -> 29.619896 | N108: =IF(AND($A108>N$103,$A108<=N$100+N$103),OFFSET(Ryhma10!$K181,-N$103-1,0),0) -> 29.77641823 | O108: =IF(AND($A108>O$103,$A108<=O$100+O$103),OFFSET(Ryhma11!$K181,-O$103-1,0),0) -> 29.93376758 | P108: =IF(AND($A108>P$103,$A108<=P$100+P$103),OFFSET(Ryhma12!$K181,-P$103-1,0),0) -> 0 | Q108: =IF(COUNTIF(D$104:D108,D108)=1,D108,"") ->  | R108: =IF(COUNTIF(D$105:D108,D108)=1,1,0) -> 0 | S108: =IF(R108=0,"",MAX(S$104:S107)+1) ->  | T108: 201904 | U108: 8351.761965 | V108: 0 | W108: 0 | X108: 534.6120513 | Y108: 848.36912 | Z108: 854.1581826 | AA108: 858.671863 | AB108: 864.3842587 | AC108: 867.4758886 | AD108: 873.3953311 | AE108: 878.0106675 | AF108: 882.650393 | AG108: 890.0342094 | AH108: 30 | AI108: 278.3920655 | AJ108: kk4 | AK108: =SUMIF($D$104:$D$1201,$T108,E$104:E$1201)/COUNTIF($D$104:D$1201,$T108) -> 0 | AL108: =SUMIF($D$104:$D$1201,$T108,F$104:F$1201)/COUNTIF($D$104:E$1201,$T108) -> 0 | AM108: =SUMIF($D$104:$D$1201,$T108,G$104:G$1201)/COUNTIF($D$104:F$1201,$T108) -> 17.82040171 | AN108: =SUMIF($D$104:$D$1201,$T108,H$104:H$1201)/COUNTIF($D$104:G$1201,$T108) -> 28.27897067 | AO108: =SUMIF($D$104:$D$1201,$T108,I$104:I$1201)/COUNTIF($D$104:H$1201,$T108) -> 28.47193942 | AP108: =SUMIF($D$104:$D$1201,$T108,J$104:J$1201)/COUNTIF($D$104:I$1201,$T108) -> 28.62239543 | AQ108: =SUMIF($D$104:$D$1201,$T108,K$104:K$1201)/COUNTIF($D$104:J$1201,$T108) -> 28.81280862 | AR108: =SUMIF($D$104:$D$1201,$T108,L$104:L$1201)/COUNTIF($D$104:K$1201,$T108) -> 28.91586295 | AS108: =SUMIF($D$104:$D$1201,$T108,M$104:M$1201)/COUNTIF($D$104:L$1201,$T108) -> 29.1131777 | AT108: =SUMIF($D$104:$D$1201,$T108,N$104:N$1201)/COUNTIF($D$104:M$1201,$T108) -> 29.26702225 | AU108: =SUMIF($D$104:$D$1201,$T108,O$104:O$1201)/COUNTIF($D$104:N$1201,$T108) -> 29.42167977 | AV108: =SUMIF($D$104:$D$1201,$T108,P$104:P$1201)/COUNTIF($D$104:O$1201,$T108) -> 29.66780698 | AW108: 278.3920655 | BB108: 151 | BC108: 1 | BD108: 241.9989628
A109: 5 | B109: 2019-01-05 | C109: 320.1906327 | D109: 201901 | E109: =IF(AND($A109>E$103,$A109<=E$100+E$103),OFFSET(Ryhma1!K182,-E$103-1,0),0) -> 28.27172923 | F109: =IF(AND($A109>F$103,$A109<=F$100+F$103),OFFSET(Ryhma2!K182,-F$103-1,0),0) -> 28.44046184 | G109: =IF(AND($A109>G$103,$A109<=G$100+G$103),OFFSET(Ryhma3!$K182,-G$103-1,0),0) -> 28.59561277 | H109: =IF(AND($A109>H$103,$A109<=H$100+H$103),OFFSET(Ryhma4!$K182,-H$103-1,0),0) -> 28.7662784 | I109: =IF(AND($A109>I$103,$A109<=I$100+I$103),OFFSET(Ryhma5!$K182,-I$103-1,0),0) -> 28.96257242 | J109: =IF(AND($A109>J$103,$A109<=J$100+J$103),OFFSET(Ryhma6!$K182,-J$103-1,0),0) -> 29.11562111 | K109: =IF(AND($A109>K$103,$A109<=K$100+K$103),OFFSET(Ryhma7!$K182,-K$103-1,0),0) -> 29.30931553 | L109: =IF(AND($A109>L$103,$A109<=L$100+L$103),OFFSET(Ryhma8!$K182,-L$103-1,0),0) -> 29.41414571 | M109: =IF(AND($A109>M$103,$A109<=M$100+M$103),OFFSET(Ryhma9!$K182,-M$103-1,0),0) -> 29.61486062 | N109: =IF(AND($A109>N$103,$A109<=N$100+N$103),OFFSET(Ryhma10!$K182,-N$103-1,0),0) -> 29.77135624 | O109: =IF(AND($A109>O$103,$A109<=O$100+O$103),OFFSET(Ryhma11!$K182,-O$103-1,0),0) -> 29.92867884 | P109: =IF(AND($A109>P$103,$A109<=P$100+P$103),OFFSET(Ryhma12!$K182,-P$103-1,0),0) -> 0 | Q109: =IF(COUNTIF(D$104:D109,D109)=1,D109,"") ->  | R109: =IF(COUNTIF(D$105:D109,D109)=1,1,0) -> 0 | S109: =IF(R109=0,"",MAX(S$104:S108)+1) ->  | T109: 201905 | U109: 7501.967846 | V109: 0 | W109: 0 | X109: 0 | Y109: 338.1379263 | Z109: 878.0652063 | AA109: 882.70522 | AB109: 888.5774999 | AC109: 891.7556613 | AD109: 897.840783 | AE109: 902.5852981 | AF109: 907.3548849 | AG109: 914.9453667 | AH109: 31 | AI109: 241.9989628 | AJ109: kk5 | AK109: =SUMIF($D$104:$D$1201,$T109,E$104:E$1201)/COUNTIF($D$104:D$1201,$T109) -> 0 | AL109: =SUMIF($D$104:$D$1201,$T109,F$104:F$1201)/COUNTIF($D$104:E$1201,$T109) -> 0 | AM109: =SUMIF($D$104:$D$1201,$T109,G$104:G$1201)/COUNTIF($D$104:F$1201,$T109) -> 0 | AN109: =SUMIF($D$104:$D$1201,$T109,H$104:H$1201)/COUNTIF($D$104:G$1201,$T109) -> 10.90767504 | AO109: =SUMIF($D$104:$D$1201,$T109,I$104:I$1201)/COUNTIF($D$104:H$1201,$T109) -> 28.32468407 | AP109: =SUMIF($D$104:$D$1201,$T109,J$104:J$1201)/COUNTIF($D$104:I$1201,$T109) -> 28.47436194 | AQ109: =SUMIF($D$104:$D$1201,$T109,K$104:K$1201)/COUNTIF($D$104:J$1201,$T109) -> 28.66379032 | AR109: =SUMIF($D$104:$D$1201,$T109,L$104:L$1201)/COUNTIF($D$104:K$1201,$T109) -> 28.76631166 | AS109: =SUMIF($D$104:$D$1201,$T109,M$104:M$1201)/COUNTIF($D$104:L$1201,$T109) -> 28.9626059 | AT109: =SUMIF($D$104:$D$1201,$T109,N$104:N$1201)/COUNTIF($D$104:M$1201,$T109) -> 29.11565478 | AU109: =SUMIF($D$104:$D$1201,$T109,O$104:O$1201)/COUNTIF($D$104:N$1201,$T109) -> 29.26951241 | AV109: =SUMIF($D$104:$D$1201,$T109,P$104:P$1201)/COUNTIF($D$104:O$1201,$T109) -> 29.51436667 | AW109: 241.9989628 | BB109: 181 | BC109: 1 | BD109: 217.7031586
A110: 6 | B110: 2019-01-06 | C110: 320.1362003 | D110: 201901 | E110: =IF(AND($A110>E$103,$A110<=E$100+E$103),OFFSET(Ryhma1!K183,-E$103-1,0),0) -> 28.26692303 | F110: =IF(AND($A110>F$103,$A110<=F$100+F$103),OFFSET(Ryhma2!K183,-F$103-1,0),0) -> 28.43562696 | G110: =IF(AND($A110>G$103,$A110<=G$100+G$103),OFFSET(Ryhma3!$K183,-G$103-1,0),0) -> 28.59075151 | H110: =IF(AND($A110>H$103,$A110<=H$100+H$103),OFFSET(Ryhma4!$K183,-H$103-1,0),0) -> 28.76138813 | I110: =IF(AND($A110>I$103,$A110<=I$100+I$103),OFFSET(Ryhma5!$K183,-I$103-1,0),0) -> 28.95764878 | J110: =IF(AND($A110>J$103,$A110<=J$100+J$103),OFFSET(Ryhma6!$K183,-J$103-1,0),0) -> 29.11067146 | K110: =IF(AND($A110>K$103,$A110<=K$100+K$103),OFFSET(Ryhma7!$K183,-K$103-1,0),0) -> 29.30433295 | L110: =IF(AND($A110>L$103,$A110<=L$100+L$103),OFFSET(Ryhma8!$K183,-L$103-1,0),0) -> 29.40914531 | M110: =IF(AND($A110>M$103,$A110<=M$100+M$103),OFFSET(Ryhma9!$K183,-M$103-1,0),0) -> 29.60982609 | N110: =IF(AND($A110>N$103,$A110<=N$100+N$103),OFFSET(Ryhma10!$K183,-N$103-1,0),0) -> 29.76629511 | O110: =IF(AND($A110>O$103,$A110<=O$100+O$103),OFFSET(Ryhma11!$K183,-O$103-1,0),0) -> 29.92359097 | P110: =IF(AND($A110>P$103,$A110<=P$100+P$103),OFFSET(Ryhma12!$K183,-P$103-1,0),0) -> 0 | Q110: =IF(COUNTIF(D$104:D110,D110)=1,D110,"") ->  | R110: =IF(COUNTIF(D$105:D110,D110)=1,1,0) -> 0 | S110: =IF(R110=0,"",MAX(S$104:S109)+1) ->  | T110: 201906 | U110: 6531.094757 | V110: 0 | W110: 0 | X110: 0 | Y110: 0 | Z110: 479.558477 | AA110: 849.8126969 | AB110: 855.4661562 | AC110: 858.5258888 | AD110: 864.3842587 | AE110: 868.9519774 | AF110: 873.5438335 | AG110: 880.8514689 | AH110: 30 | AI110: 217.7031586 | AJ110: kk6 | AK110: =SUMIF($D$104:$D$1201,$T110,E$104:E$1201)/COUNTIF($D$104:D$1201,$T110) -> 0 | AL110: =SUMIF($D$104:$D$1201,$T110,F$104:F$1201)/COUNTIF($D$104:E$1201,$T110) -> 0 | AM110: =SUMIF($D$104:$D$1201,$T110,G$104:G$1201)/COUNTIF($D$104:F$1201,$T110) -> 0 | AN110: =SUMIF($D$104:$D$1201,$T110,H$104:H$1201)/COUNTIF($D$104:G$1201,$T110) -> 0 | AO110: =SUMIF($D$104:$D$1201,$T110,I$104:I$1201)/COUNTIF($D$104:H$1201,$T110) -> 15.98528257 | AP110: =SUMIF($D$104:$D$1201,$T110,J$104:J$1201)/COUNTIF($D$104:I$1201,$T110) -> 28.3270899 | AQ110: =SUMIF($D$104:$D$1201,$T110,K$104:K$1201)/COUNTIF($D$104:J$1201,$T110) -> 28.51553854 | AR110: =SUMIF($D$104:$D$1201,$T110,L$104:L$1201)/COUNTIF($D$104:K$1201,$T110) -> 28.61752963 | AS110: =SUMIF($D$104:$D$1201,$T110,M$104:M$1201)/COUNTIF($D$104:L$1201,$T110) -> 28.81280862 | AT110: =SUMIF($D$104:$D$1201,$T110,N$104:N$1201)/COUNTIF($D$104:M$1201,$T110) -> 28.96506591 | AU110: =SUMIF($D$104:$D$1201,$T110,O$104:O$1201)/COUNTIF($D$104:N$1201,$T110) -> 29.11812778 | AV110: =SUMIF($D$104:$D$1201,$T110,P$104:P$1201)/COUNTIF($D$104:O$1201,$T110) -> 29.36171563 | AW110: 217.7031586 | BB110: 212 | BC110: 1 | BD110: 200.6746019
A111: 7 | B111: 2019-01-07 | C111: 320.0817771 | D111: 201901 | E111: =IF(AND($A111>E$103,$A111<=E$100+E$103),OFFSET(Ryhma1!K184,-E$103-1,0),0) -> 28.26211765 | F111: =IF(AND($A111>F$103,$A111<=F$100+F$103),OFFSET(Ryhma2!K184,-F$103-1,0),0) -> 28.4307929 | G111: =IF(AND($A111>G$103,$A111<=G$100+G$103),OFFSET(Ryhma3!$K184,-G$103-1,0),0) -> 28.58589108 | H111: =IF(AND($A111>H$103,$A111<=H$100+H$103),OFFSET(Ryhma4!$K184,-H$103-1,0),0) -> 28.75649869 | I111: =IF(AND($A111>I$103,$A111<=I$100+I$103),OFFSET(Ryhma5!$K184,-I$103-1,0),0) -> 28.95272598 | J111: =IF(AND($A111>J$103,$A111<=J$100+J$103),OFFSET(Ryhma6!$K184,-J$103-1,0),0) -> 29.10572264 | K111: =IF(AND($A111>K$103,$A111<=K$100+K$103),OFFSET(Ryhma7!$K184,-K$103-1,0),0) -> 29.29935121 | L111: =IF(AND($A111>L$103,$A111<=L$100+L$103),OFFSET(Ryhma8!$K184,-L$103-1,0),0) -> 29.40414575 | M111: =IF(AND($A111>M$103,$A111<=M$100+M$103),OFFSET(Ryhma9!$K184,-M$103-1,0),0) -> 29.60479242 | N111: =IF(AND($A111>N$103,$A111<=N$100+N$103),OFFSET(Ryhma10!$K184,-N$103-1,0),0) -> 29.76123484 | O111: =IF(AND($A111>O$103,$A111<=O$100+O$103),OFFSET(Ryhma11!$K184,-O$103-1,0),0) -> 29.91850396 | P111: =IF(AND($A111>P$103,$A111<=P$100+P$103),OFFSET(Ryhma12!$K184,-P$103-1,0),0) -> 0 | Q111: =IF(COUNTIF(D$104:D111,D111)=1,D111,"") ->  | R111: =IF(COUNTIF(D$105:D111,D111)=1,1,0) -> 0 | S111: =IF(R111=0,"",MAX(S$104:S110)+1) ->  | T111: 201907 | U111: 6220.91266 | V111: 0 | W111: 0 | X111: 0 | Y111: 0 | Z111: 0 | AA111: 873.5980948 | AB111: 879.4097887 | AC111: 882.5551601 | AD111: 888.5774999 | AE111: 893.2730644 | AF111: 897.9934419 | AG111: 905.5056106 | AH111: 31 | AI111: 200.6746019 | AJ111: kk7 | AK111: =SUMIF($D$104:$D$1201,$T111,E$104:E$1201)/COUNTIF($D$104:D$1201,$T111) -> 0 | AL111: =SUMIF($D$104:$D$1201,$T111,F$104:F$1201)/COUNTIF($D$104:E$1201,$T111) -> 0 | AM111: =SUMIF($D$104:$D$1201,$T111,G$104:G$1201)/COUNTIF($D$104:F$1201,$T111) -> 0 | AN111: =SUMIF($D$104:$D$1201,$T111,H$104:H$1201)/COUNTIF($D$104:G$1201,$T111) -> 0 | AO111: =SUMIF($D$104:$D$1201,$T111,I$104:I$1201)/COUNTIF($D$104:H$1201,$T111) -> 0 | AP111: =SUMIF($D$104:$D$1201,$T111,J$104:J$1201)/COUNTIF($D$104:I$1201,$T111) -> 28.1805837 | AQ111: =SUMIF($D$104:$D$1201,$T111,K$104:K$1201)/COUNTIF($D$104:J$1201,$T111) -> 28.3680577 | AR111: =SUMIF($D$104:$D$1201,$T111,L$104:L$1201)/COUNTIF($D$104:K$1201,$T111) -> 28.46952129 | AS111: =SUMIF($D$104:$D$1201,$T111,M$104:M$1201)/COUNTIF($D$104:L$1201,$T111) -> 28.66379032 | AT111: =SUMIF($D$104:$D$1201,$T111,N$104:N$1201)/COUNTIF($D$104:M$1201,$T111) -> 28.81526014 | AU111: =SUMIF($D$104:$D$1201,$T111,O$104:O$1201)/COUNTIF($D$104:N$1201,$T111) -> 28.96753038 | AV111: =SUMIF($D$104:$D$1201,$T111,P$104:P$1201)/COUNTIF($D$104:O$1201,$T111) -> 29.20985841 | AW111: 200.6746019 | BB111: 243 | BC111: 1 | BD111: 181.5512031
A112: 8 | B112: 2019-01-08 | C112: 320.0273632 | D112: 201901 | E112: =IF(AND($A112>E$103,$A112<=E$100+E$103),OFFSET(Ryhma1!K185,-E$103-1,0),0) -> 28.25731309 | F112: =IF(AND($A112>F$103,$A112<=F$100+F$103),OFFSET(Ryhma2!K185,-F$103-1,0),0) -> 28.42595967 | G112: =IF(AND($A112>G$103,$A112<=G$100+G$103),OFFSET(Ryhma3!$K185,-G$103-1,0),0) -> 28.58103148 | H112: =IF(AND($A112>H$103,$A112<=H$100+H$103),OFFSET(Ryhma4!$K185,-H$103-1,0),0) -> 28.75161009 | I112: =IF(AND($A112>I$103,$A112<=I$100+I$103),OFFSET(Ryhma5!$K185,-I$103-1,0),0) -> 28.94780402 | J112: =IF(AND($A112>J$103,$A112<=J$100+J$103),OFFSET(Ryhma6!$K185,-J$103-1,0),0) -> 29.10077467 | K112: =IF(AND($A112>K$103,$A112<=K$100+K$103),OFFSET(Ryhma7!$K185,-K$103-1,0),0) -> 29.29437032 | L112: =IF(AND($A112>L$103,$A112<=L$100+L$103),OFFSET(Ryhma8!$K185,-L$103-1,0),0) -> 29.39914705 | M112: =IF(AND($A112>M$103,$A112<=M$100+M$103),OFFSET(Ryhma9!$K185,-M$103-1,0),0) -> 29.59975961 | N112: =IF(AND($A112>N$103,$A112<=N$100+N$103),OFFSET(Ryhma10!$K185,-N$103-1,0),0) -> 29.75617543 | O112: =IF(AND($A112>O$103,$A112<=O$100+O$103),OFFSET(Ryhma11!$K185,-O$103-1,0),0) -> 29.91341781 | P112: =IF(AND($A112>P$103,$A112<=P$100+P$103),OFFSET(Ryhma12!$K185,-P$103-1,0),0) -> 0 | Q112: =IF(COUNTIF(D$104:D112,D112)=1,D112,"") ->  | R112: =IF(COUNTIF(D$105:D112,D112)=1,1,0) -> 0 | S112: =IF(R112=0,"",MAX(S$104:S111)+1) ->  | T112: 201908 | U112: 5628.087296 | V112: 0 | W112: 0 | X112: 0 | Y112: 0 | Z112: 0 | AA112: 308.881336 | AB112: 874.7870976 | AC112: 877.9159352 | AD112: 883.906618 | AE112: 888.5774999 | AF112: 893.2730644 | AG112: 900.7457447 | AH112: 31 | AI112: 181.5512031 | AJ112: kk8 | AK112: =SUMIF($D$104:$D$1201,$T112,E$104:E$1201)/COUNTIF($D$104:D$1201,$T112) -> 0 | AL112: =SUMIF($D$104:$D$1201,$T112,F$104:F$1201)/COUNTIF($D$104:E$1201,$T112) -> 0 | AM112: =SUMIF($D$104:$D$1201,$T112,G$104:G$1201)/COUNTIF($D$104:F$1201,$T112) -> 0 | AN112: =SUMIF($D$104:$D$1201,$T112,H$104:H$1201)/COUNTIF($D$104:G$1201,$T112) -> 0 | AO112: =SUMIF($D$104:$D$1201,$T112,I$104:I$1201)/COUNTIF($D$104:H$1201,$T112) -> 0 | AP112: =SUMIF($D$104:$D$1201,$T112,J$104:J$1201)/COUNTIF($D$104:I$1201,$T112) -> 9.963914065 | AQ112: =SUMIF($D$104:$D$1201,$T112,K$104:K$1201)/COUNTIF($D$104:J$1201,$T112) -> 28.21893863 | AR112: =SUMIF($D$104:$D$1201,$T112,L$104:L$1201)/COUNTIF($D$104:K$1201,$T112) -> 28.31986888 | AS112: =SUMIF($D$104:$D$1201,$T112,M$104:M$1201)/COUNTIF($D$104:L$1201,$T112) -> 28.51311671 | AT112: =SUMIF($D$104:$D$1201,$T112,N$104:N$1201)/COUNTIF($D$104:M$1201,$T112) -> 28.66379032 | AU112: =SUMIF($D$104:$D$1201,$T112,O$104:O$1201)/COUNTIF($D$104:N$1201,$T112) -> 28.81526014 | AV112: =SUMIF($D$104:$D$1201,$T112,P$104:P$1201)/COUNTIF($D$104:O$1201,$T112) -> 29.05631434 | AW112: 181.5512031 | BB112: 273 | BC112: 1 | BD112: 129.4933028
A113: 9 | B113: 2019-01-09 | C113: 319.9729586 | D113: 201901 | E113: =IF(AND($A113>E$103,$A113<=E$100+E$103),OFFSET(Ryhma1!K186,-E$103-1,0),0) -> 28.25250935 | F113: =IF(AND($A113>F$103,$A113<=F$100+F$103),OFFSET(Ryhma2!K186,-F$103-1,0),0) -> 28.42112726 | G113: =IF(AND($A113>G$103,$A113<=G$100+G$103),OFFSET(Ryhma3!$K186,-G$103-1,0),0) -> 28.57617271 | H113: =IF(AND($A113>H$103,$A113<=H$100+H$103),OFFSET(Ryhma4!$K186,-H$103-1,0),0) -> 28.74672231 | I113: =IF(AND($A113>I$103,$A113<=I$100+I$103),OFFSET(Ryhma5!$K186,-I$103-1,0),0) -> 28.94288289 | J113: =IF(AND($A113>J$103,$A113<=J$100+J$103),OFFSET(Ryhma6!$K186,-J$103-1,0),0) -> 29.09582754 | K113: =IF(AND($A113>K$103,$A113<=K$100+K$103),OFFSET(Ryhma7!$K186,-K$103-1,0),0) -> 29.28939028 | L113: =IF(AND($A113>L$103,$A113<=L$100+L$103),OFFSET(Ryhma8!$K186,-L$103-1,0),0) -> 29.39414919 | M113: =IF(AND($A113>M$103,$A113<=M$100+M$103),OFFSET(Ryhma9!$K186,-M$103-1,0),0) -> 29.59472765 | N113: =IF(AND($A113>N$103,$A113<=N$100+N$103),OFFSET(Ryhma10!$K186,-N$103-1,0),0) -> 29.75111688 | O113: =IF(AND($A113>O$103,$A113<=O$100+O$103),OFFSET(Ryhma11!$K186,-O$103-1,0),0) -> 29.90833253 | P113: =IF(AND($A113>P$103,$A113<=P$100+P$103),OFFSET(Ryhma12!$K186,-P$103-1,0),0) -> 0 | Q113: =IF(COUNTIF(D$104:D113,D113)=1,D113,"") ->  | R113: =IF(COUNTIF(D$105:D113,D113)=1,1,0) -> 0 | S113: =IF(R113=0,"",MAX(S$104:S112)+1) ->  | T113: 201909 | U113: 3884.799085 | V113: 0 | W113: 0 | X113: 0 | Y113: 0 | Z113: 0 | AA113: 0 | AB113: 84.41239337 | AC113: 366.7834885 | AD113: 850.9693268 | AE113: 855.4661562 | AF113: 859.9867484 | AG113: 867.1809718 | AH113: 30 | AI113: 129.4933028 | AJ113: kk9 | AK113: =SUMIF($D$104:$D$1201,$T113,E$104:E$1201)/COUNTIF($D$104:D$1201,$T113) -> 0 | AL113: =SUMIF($D$104:$D$1201,$T113,F$104:F$1201)/COUNTIF($D$104:E$1201,$T113) -> 0 | AM113: =SUMIF($D$104:$D$1201,$T113,G$104:G$1201)/COUNTIF($D$104:F$1201,$T113) -> 0 | AN113: =SUMIF($D$104:$D$1201,$T113,H$104:H$1201)/COUNTIF($D$104:G$1201,$T113) -> 0 | AO113: =SUMIF($D$104:$D$1201,$T113,I$104:I$1201)/COUNTIF($D$104:H$1201,$T113) -> 0 | AP113: =SUMIF($D$104:$D$1201,$T113,J$104:J$1201)/COUNTIF($D$104:I$1201,$T113) -> 0 | AQ113: =SUMIF($D$104:$D$1201,$T113,K$104:K$1201)/COUNTIF($D$104:J$1201,$T113) -> 2.813746446 | AR113: =SUMIF($D$104:$D$1201,$T113,L$104:L$1201)/COUNTIF($D$104:K$1201,$T113) -> 12.22611628 | AS113: =SUMIF($D$104:$D$1201,$T113,M$104:M$1201)/COUNTIF($D$104:L$1201,$T113) -> 28.36564423 | AT113: =SUMIF($D$104:$D$1201,$T113,N$104:N$1201)/COUNTIF($D$104:M$1201,$T113) -> 28.51553854 | AU113: =SUMIF($D$104:$D$1201,$T113,O$104:O$1201)/COUNTIF($D$104:N$1201,$T113) -> 28.66622495 | AV113: =SUMIF($D$104:$D$1201,$T113,P$104:P$1201)/COUNTIF($D$104:O$1201,$T113) -> 28.90603239 | AW113: 129.4933028 | BB113: 304 | BC113: 1 | BD113: 92.76868423
A114: 10 | B114: 2019-01-10 | C114: 319.9185632 | D114: 201901 | E114: =IF(AND($A114>E$103,$A114<=E$100+E$103),OFFSET(Ryhma1!K187,-E$103-1,0),0) -> 28.24770642 | F114: =IF(AND($A114>F$103,$A114<=F$100+F$103),OFFSET(Ryhma2!K187,-F$103-1,0),0) -> 28.41629566 | G114: =IF(AND($A114>G$103,$A114<=G$100+G$103),OFFSET(Ryhma3!$K187,-G$103-1,0),0) -> 28.57131476 | H114: =IF(AND($A114>H$103,$A114<=H$100+H$103),OFFSET(Ryhma4!$K187,-H$103-1,0),0) -> 28.74183537 | I114: =IF(AND($A114>I$103,$A114<=I$100+I$103),OFFSET(Ryhma5!$K187,-I$103-1,0),0) -> 28.9379626 | J114: =IF(AND($A114>J$103,$A114<=J$100+J$103),OFFSET(Ryhma6!$K187,-J$103-1,0),0) -> 29.09088125 | K114: =IF(AND($A114>K$103,$A114<=K$100+K$103),OFFSET(Ryhma7!$K187,-K$103-1,0),0) -> 29.28441108 | L114: =IF(AND($A114>L$103,$A114<=L$100+L$103),OFFSET(Ryhma8!$K187,-L$103-1,0),0) -> 29.38915219 | M114: =IF(AND($A114>M$103,$A114<=M$100+M$103),OFFSET(Ryhma9!$K187,-M$103-1,0),0) -> 29.58969655 | N114: =IF(AND($A114>N$103,$A114<=N$100+N$103),OFFSET(Ryhma10!$K187,-N$103-1,0),0) -> 29.74605919 | O114: =IF(AND($A114>O$103,$A114<=O$100+O$103),OFFSET(Ryhma11!$K187,-O$103-1,0),0) -> 29.90324811 | P114: =IF(AND($A114>P$103,$A114<=P$100+P$103),OFFSET(Ryhma12!$K187,-P$103-1,0),0) -> 0 | Q114: =IF(COUNTIF(D$104:D114,D114)=1,D114,"") ->  | R114: =IF(COUNTIF(D$105:D114,D114)=1,1,0) -> 0 | S114: =IF(R114=0,"",MAX(S$104:S113)+1) ->  | T114: 201910 | U114: 2875.829211 | V114: 0 | W114: 0 | X114: 0 | Y114: 0 | Z114: 0 | AA114: 0 | AB114: 0 | AC114: 0 | AD114: 874.7870976 | AE114: 681.2383198 | AF114: 428.3513035 | AG114: 891.4524902 | AH114: 31 | AI114: 92.76868423 | AJ114: kk10 | AK114: =SUMIF($D$104:$D$1201,$T114,E$104:E$1201)/COUNTIF($D$104:D$1201,$T114) -> 0 | AL114: =SUMIF($D$104:$D$1201,$T114,F$104:F$1201)/COUNTIF($D$104:E$1201,$T114) -> 0 | AM114: =SUMIF($D$104:$D$1201,$T114,G$104:G$1201)/COUNTIF($D$104:F$1201,$T114) -> 0 | AN114: =SUMIF($D$104:$D$1201,$T114,H$104:H$1201)/COUNTIF($D$104:G$1201,$T114) -> 0 | AO114: =SUMIF($D$104:$D$1201,$T114,I$104:I$1201)/COUNTIF($D$104:H$1201,$T114) -> 0 | AP114: =SUMIF($D$104:$D$1201,$T114,J$104:J$1201)/COUNTIF($D$104:I$1201,$T114) -> 0 | AQ114: =SUMIF($D$104:$D$1201,$T114,K$104:K$1201)/COUNTIF($D$104:J$1201,$T114) -> 0 | AR114: =SUMIF($D$104:$D$1201,$T114,L$104:L$1201)/COUNTIF($D$104:K$1201,$T114) -> 0 | AS114: =SUMIF($D$104:$D$1201,$T114,M$104:M$1201)/COUNTIF($D$104:L$1201,$T114) -> 28.21893863 | AT114: =SUMIF($D$104:$D$1201,$T114,N$104:N$1201)/COUNTIF($D$104:M$1201,$T114) -> 21.97542967 | AU114: =SUMIF($D$104:$D$1201,$T114,O$104:O$1201)/COUNTIF($D$104:N$1201,$T114) -> 13.81778399 | AV114: =SUMIF($D$104:$D$1201,$T114,P$104:P$1201)/COUNTIF($D$104:O$1201,$T114) -> 28.75653194 | AW114: 92.76868423 | BB114: 334 | BC114: 1 | BD114: 31.42154694
A115: 11 | B115: 2019-01-11 | C115: 319.864177 | D115: 201901 | E115: =IF(AND($A115>E$103,$A115<=E$100+E$103),OFFSET(Ryhma1!K188,-E$103-1,0),0) -> 28.24290431 | F115: =IF(AND($A115>F$103,$A115<=F$100+F$103),OFFSET(Ryhma2!K188,-F$103-1,0),0) -> 28.41146489 | G115: =IF(AND($A115>G$103,$A115<=G$100+G$103),OFFSET(Ryhma3!$K188,-G$103-1,0),0) -> 28.56645764 | H115: =IF(AND($A115>H$103,$A115<=H$100+H$103),OFFSET(Ryhma4!$K188,-H$103-1,0),0) -> 28.73694926 | I115: =IF(AND($A115>I$103,$A115<=I$100+I$103),OFFSET(Ryhma5!$K188,-I$103-1,0),0) -> 28.93304315 | J115: =IF(AND($A115>J$103,$A115<=J$100+J$103),OFFSET(Ryhma6!$K188,-J$103-1,0),0) -> 29.0859358 | K115: =IF(AND($A115>K$103,$A115<=K$100+K$103),OFFSET(Ryhma7!$K188,-K$103-1,0),0) -> 29.27943273 | L115: =IF(AND($A115>L$103,$A115<=L$100+L$103),OFFSET(Ryhma8!$K188,-L$103-1,0),0) -> 29.38415603 | M115: =IF(AND($A115>M$103,$A115<=M$100+M$103),OFFSET(Ryhma9!$K188,-M$103-1,0),0) -> 29.5846663 | N115: =IF(AND($A115>N$103,$A115<=N$100+N$103),OFFSET(Ryhma10!$K188,-N$103-1,0),0) -> 29.74100236 | O115: =IF(AND($A115>O$103,$A115<=O$100+O$103),OFFSET(Ryhma11!$K188,-O$103-1,0),0) -> 29.89816456 | P115: =IF(AND($A115>P$103,$A115<=P$100+P$103),OFFSET(Ryhma12!$K188,-P$103-1,0),0) -> 0 | Q115: =IF(COUNTIF(D$104:D115,D115)=1,D115,"") ->  | R115: =IF(COUNTIF(D$105:D115,D115)=1,1,0) -> 0 | S115: =IF(R115=0,"",MAX(S$104:S114)+1) ->  | T115: 201911 | U115: 942.6464082 | V115: 0 | W115: 0 | X115: 0 | Y115: 0 | Z115: 0 | AA115: 0 | AB115: 0 | AC115: 0 | AD115: 84.41239337 | AE115: 0 | AF115: 0 | AG115: 858.2340148 | AH115: 30 | AI115: 31.42154694 | AJ115: kk11 | AK115: =SUMIF($D$104:$D$1201,$T115,E$104:E$1201)/COUNTIF($D$104:D$1201,$T115) -> 0 | AL115: =SUMIF($D$104:$D$1201,$T115,F$104:F$1201)/COUNTIF($D$104:E$1201,$T115) -> 0 | AM115: =SUMIF($D$104:$D$1201,$T115,G$104:G$1201)/COUNTIF($D$104:F$1201,$T115) -> 0 | AN115: =SUMIF($D$104:$D$1201,$T115,H$104:H$1201)/COUNTIF($D$104:G$1201,$T115) -> 0 | AO115: =SUMIF($D$104:$D$1201,$T115,I$104:I$1201)/COUNTIF($D$104:H$1201,$T115) -> 0 | AP115: =SUMIF($D$104:$D$1201,$T115,J$104:J$1201)/COUNTIF($D$104:I$1201,$T115) -> 0 | AQ115: =SUMIF($D$104:$D$1201,$T115,K$104:K$1201)/COUNTIF($D$104:J$1201,$T115) -> 0 | AR115: =SUMIF($D$104:$D$1201,$T115,L$104:L$1201)/COUNTIF($D$104:K$1201,$T115) -> 0 | AS115: =SUMIF($D$104:$D$1201,$T115,M$104:M$1201)/COUNTIF($D$104:L$1201,$T115) -> 2.813746446 | AT115: =SUMIF($D$104:$D$1201,$T115,N$104:N$1201)/COUNTIF($D$104:M$1201,$T115) -> 0 | AU115: =SUMIF($D$104:$D$1201,$T115,O$104:O$1201)/COUNTIF($D$104:N$1201,$T115) -> 0 | AV115: =SUMIF($D$104:$D$1201,$T115,P$104:P$1201)/COUNTIF($D$104:O$1201,$T115) -> 28.60780049 | AW115: 31.42154694 | BB115: 365 | BC115: 1 | BD115: 28.45984248
A116: 12 | B116: 2019-01-12 | C116: 319.8098001 | D116: 201901 | E116: =IF(AND($A116>E$103,$A116<=E$100+E$103),OFFSET(Ryhma1!K189,-E$103-1,0),0) -> 28.23810302 | F116: =IF(AND($A116>F$103,$A116<=F$100+F$103),OFFSET(Ryhma2!K189,-F$103-1,0),0) -> 28.40663494 | G116: =IF(AND($A116>G$103,$A116<=G$100+G$103),OFFSET(Ryhma3!$K189,-G$103-1,0),0) -> 28.56160134 | H116: =IF(AND($A116>H$103,$A116<=H$100+H$103),OFFSET(Ryhma4!$K189,-H$103-1,0),0) -> 28.73206398 | I116: =IF(AND($A116>I$103,$A116<=I$100+I$103),OFFSET(Ryhma5!$K189,-I$103-1,0),0) -> 28.92812453 | J116: =IF(AND($A116>J$103,$A116<=J$100+J$103),OFFSET(Ryhma6!$K189,-J$103-1,0),0) -> 29.08099119 | K116: =IF(AND($A116>K$103,$A116<=K$100+K$103),OFFSET(Ryhma7!$K189,-K$103-1,0),0) -> 29.27445523 | L116: =IF(AND($A116>L$103,$A116<=L$100+L$103),OFFSET(Ryhma8!$K189,-L$103-1,0),0) -> 29.37916072 | M116: =IF(AND($A116>M$103,$A116<=M$100+M$103),OFFSET(Ryhma9!$K189,-M$103-1,0),0) -> 29.5796369 | N116: =IF(AND($A116>N$103,$A116<=N$100+N$103),OFFSET(Ryhma10!$K189,-N$103-1,0),0) -> 29.73594639 | O116: =IF(AND($A116>O$103,$A116<=O$100+O$103),OFFSET(Ryhma11!$K189,-O$103-1,0),0) -> 29.89308187 | P116: =IF(AND($A116>P$103,$A116<=P$100+P$103),OFFSET(Ryhma12!$K189,-P$103-1,0),0) -> 0 | Q116: =IF(COUNTIF(D$104:D116,D116)=1,D116,"") ->  | R116: =IF(COUNTIF(D$105:D116,D116)=1,1,0) -> 0 | S116: =IF(R116=0,"",MAX(S$104:S115)+1) ->  | T116: 201912 | U116: 882.2551169 | V116: 0 | W116: 0 | X116: 0 | Y116: 0 | Z116: 0 | AA116: 0 | AB116: 0 | AC116: 0 | AD116: 0 | AE116: 0 | AF116: 0 | AG116: 882.2551169 | AH116: 31 | AI116: 28.45984248 | AJ116: kk12 | AK116: =SUMIF($D$104:$D$1201,$T116,E$104:E$1201)/COUNTIF($D$104:D$1201,$T116) -> 0 | AL116: =SUMIF($D$104:$D$1201,$T116,F$104:F$1201)/COUNTIF($D$104:E$1201,$T116) -> 0 | AM116: =SUMIF($D$104:$D$1201,$T116,G$104:G$1201)/COUNTIF($D$104:F$1201,$T116) -> 0 | AN116: =SUMIF($D$104:$D$1201,$T116,H$104:H$1201)/COUNTIF($D$104:G$1201,$T116) -> 0 | AO116: =SUMIF($D$104:$D$1201,$T116,I$104:I$1201)/COUNTIF($D$104:H$1201,$T116) -> 0 | AP116: =SUMIF($D$104:$D$1201,$T116,J$104:J$1201)/COUNTIF($D$104:I$1201,$T116) -> 0 | AQ116: =SUMIF($D$104:$D$1201,$T116,K$104:K$1201)/COUNTIF($D$104:J$1201,$T116) -> 0 | AR116: =SUMIF($D$104:$D$1201,$T116,L$104:L$1201)/COUNTIF($D$104:K$1201,$T116) -> 0 | AS116: =SUMIF($D$104:$D$1201,$T116,M$104:M$1201)/COUNTIF($D$104:L$1201,$T116) -> 0 | AT116: =SUMIF($D$104:$D$1201,$T116,N$104:N$1201)/COUNTIF($D$104:M$1201,$T116) -> 0 | AU116: =SUMIF($D$104:$D$1201,$T116,O$104:O$1201)/COUNTIF($D$104:N$1201,$T116) -> 0 | AV116: =SUMIF($D$104:$D$1201,$T116,P$104:P$1201)/COUNTIF($D$104:O$1201,$T116) -> 28.45984248 | AW116: 28.45984248 | BB116: 396 | BC116: 0 | BD116: FALSE
A117: 13 | B117: 2019-01-13 | C117: 319.7554325 | D117: 201901 | E117: =IF(AND($A117>E$103,$A117<=E$100+E$103),OFFSET(Ryhma1!K190,-E$103-1,0),0) -> 28.23330254 | F117: =IF(AND($A117>F$103,$A117<=F$100+F$103),OFFSET(Ryhma2!K190,-F$103-1,0),0) -> 28.40180582 | G117: =IF(AND($A117>G$103,$A117<=G$100+G$103),OFFSET(Ryhma3!$K190,-G$103-1,0),0) -> 28.55674587 | H117: =IF(AND($A117>H$103,$A117<=H$100+H$103),OFFSET(Ryhma4!$K190,-H$103-1,0),0) -> 28.72717953 | I117: =IF(AND($A117>I$103,$A117<=I$100+I$103),OFFSET(Ryhma5!$K190,-I$103-1,0),0) -> 28.92320675 | J117: =IF(AND($A117>J$103,$A117<=J$100+J$103),OFFSET(Ryhma6!$K190,-J$103-1,0),0) -> 29.07604742 | K117: =IF(AND($A117>K$103,$A117<=K$100+K$103),OFFSET(Ryhma7!$K190,-K$103-1,0),0) -> 29.26947857 | L117: =IF(AND($A117>L$103,$A117<=L$100+L$103),OFFSET(Ryhma8!$K190,-L$103-1,0),0) -> 29.37416627 | M117: =IF(AND($A117>M$103,$A117<=M$100+M$103),OFFSET(Ryhma9!$K190,-M$103-1,0),0) -> 29.57460837 | N117: =IF(AND($A117>N$103,$A117<=N$100+N$103),OFFSET(Ryhma10!$K190,-N$103-1,0),0) -> 29.73089128 | O117: =IF(AND($A117>O$103,$A117<=O$100+O$103),OFFSET(Ryhma11!$K190,-O$103-1,0),0) -> 29.88800005 | P117: =IF(AND($A117>P$103,$A117<=P$100+P$103),OFFSET(Ryhma12!$K190,-P$103-1,0),0) -> 0 | Q117: =IF(COUNTIF(D$104:D117,D117)=1,D117,"") ->  | R117: =IF(COUNTIF(D$105:D117,D117)=1,1,0) -> 0 | S117: =IF(R117=0,"",MAX(S$104:S116)+1) ->  | T117: 202001 | U117: 877.6174691 | V117: 0 | W117: 0 | X117: 0 | Y117: 0 | Z117: 0 | AA117: 0 | AB117: 0 | AC117: 0 | AD117: 0 | AE117: 0 | AF117: 0 | AG117: 877.6174691 | AH117: 31 | AI117: 28.31024094 | AJ117: kk13 | AK117: =SUMIF($D$104:$D$1201,$T117,E$104:E$1201)/COUNTIF($D$104:D$1201,$T117) -> 0 | AL117: =SUMIF($D$104:$D$1201,$T117,F$104:F$1201)/COUNTIF($D$104:E$1201,$T117) -> 0 | AM117: =SUMIF($D$104:$D$1201,$T117,G$104:G$1201)/COUNTIF($D$104:F$1201,$T117) -> 0 | AN117: =SUMIF($D$104:$D$1201,$T117,H$104:H$1201)/COUNTIF($D$104:G$1201,$T117) -> 0 | AO117: =SUMIF($D$104:$D$1201,$T117,I$104:I$1201)/COUNTIF($D$104:H$1201,$T117) -> 0 | AP117: =SUMIF($D$104:$D$1201,$T117,J$104:J$1201)/COUNTIF($D$104:I$1201,$T117) -> 0 | AQ117: =SUMIF($D$104:$D$1201,$T117,K$104:K$1201)/COUNTIF($D$104:J$1201,$T117) -> 0 | AR117: =SUMIF($D$104:$D$1201,$T117,L$104:L$1201)/COUNTIF($D$104:K$1201,$T117) -> 0 | AS117: =SUMIF($D$104:$D$1201,$T117,M$104:M$1201)/COUNTIF($D$104:L$1201,$T117) -> 0 | AT117: =SUMIF($D$104:$D$1201,$T117,N$104:N$1201)/COUNTIF($D$104:M$1201,$T117) -> 0 | AU117: =SUMIF($D$104:$D$1201,$T117,O$104:O$1201)/COUNTIF($D$104:N$1201,$T117) -> 0 | AV117: =SUMIF($D$104:$D$1201,$T117,P$104:P$1201)/COUNTIF($D$104:O$1201,$T117) -> 28.31024094 | AW117: 28.31024094 | BB117: 425 | BC117: 0 | BD117: FALSE
A118: 14 | B118: 2019-01-14 | C118: 319.701074 | D118: 201901 | E118: =IF(AND($A118>E$103,$A118<=E$100+E$103),OFFSET(Ryhma1!K191,-E$103-1,0),0) -> 28.22850288 | F118: =IF(AND($A118>F$103,$A118<=F$100+F$103),OFFSET(Ryhma2!K191,-F$103-1,0),0) -> 28.39697751 | G118: =IF(AND($A118>G$103,$A118<=G$100+G$103),OFFSET(Ryhma3!$K191,-G$103-1,0),0) -> 28.55189122 | H118: =IF(AND($A118>H$103,$A118<=H$100+H$103),OFFSET(Ryhma4!$K191,-H$103-1,0),0) -> 28.72229591 | I118: =IF(AND($A118>I$103,$A118<=I$100+I$103),OFFSET(Ryhma5!$K191,-I$103-1,0),0) -> 28.9182898 | J118: =IF(AND($A118>J$103,$A118<=J$100+J$103),OFFSET(Ryhma6!$K191,-J$103-1,0),0) -> 29.07110449 | K118: =IF(AND($A118>K$103,$A118<=K$100+K$103),OFFSET(Ryhma7!$K191,-K$103-1,0),0) -> 29.26450276 | L118: =IF(AND($A118>L$103,$A118<=L$100+L$103),OFFSET(Ryhma8!$K191,-L$103-1,0),0) -> 29.36917266 | M118: =IF(AND($A118>M$103,$A118<=M$100+M$103),OFFSET(Ryhma9!$K191,-M$103-1,0),0) -> 29.56958068 | N118: =IF(AND($A118>N$103,$A118<=N$100+N$103),OFFSET(Ryhma10!$K191,-N$103-1,0),0) -> 29.72583703 | O118: =IF(AND($A118>O$103,$A118<=O$100+O$103),OFFSET(Ryhma11!$K191,-O$103-1,0),0) -> 29.88291909 | P118: =IF(AND($A118>P$103,$A118<=P$100+P$103),OFFSET(Ryhma12!$K191,-P$103-1,0),0) -> 0 | Q118: =IF(COUNTIF(D$104:D118,D118)=1,D118,"") ->  | R118: =IF(COUNTIF(D$105:D118,D118)=1,1,0) -> 0 | S118: =IF(R118=0,"",MAX(S$104:S117)+1) ->  | T118: 202002 | U118: 816.8200894 | V118: 0 | W118: 0 | X118: 0 | Y118: 0 | Z118: 0 | AA118: 0 | AB118: 0 | AC118: 0 | AD118: 0 | AE118: 0 | AF118: 0 | AG118: 816.8200894 | AH118: 29 | AI118: 28.16620998 | AJ118: kk14 | AK118: =SUMIF($D$104:$D$1201,$T118,E$104:E$1201)/COUNTIF($D$104:D$1201,$T118) -> 0 | AL118: =SUMIF($D$104:$D$1201,$T118,F$104:F$1201)/COUNTIF($D$104:E$1201,$T118) -> 0 | AM118: =SUMIF($D$104:$D$1201,$T118,G$104:G$1201)/COUNTIF($D$104:F$1201,$T118) -> 0 | AN118: =SUMIF($D$104:$D$1201,$T118,H$104:H$1201)/COUNTIF($D$104:G$1201,$T118) -> 0 | AO118: =SUMIF($D$104:$D$1201,$T118,I$104:I$1201)/COUNTIF($D$104:H$1201,$T118) -> 0 | AP118: =SUMIF($D$104:$D$1201,$T118,J$104:J$1201)/COUNTIF($D$104:I$1201,$T118) -> 0 | AQ118: =SUMIF($D$104:$D$1201,$T118,K$104:K$1201)/COUNTIF($D$104:J$1201,$T118) -> 0 | AR118: =SUMIF($D$104:$D$1201,$T118,L$104:L$1201)/COUNTIF($D$104:K$1201,$T118) -> 0 | AS118: =SUMIF($D$104:$D$1201,$T118,M$104:M$1201)/COUNTIF($D$104:L$1201,$T118) -> 0 | AT118: =SUMIF($D$104:$D$1201,$T118,N$104:N$1201)/COUNTIF($D$104:M$1201,$T118) -> 0 | AU118: =SUMIF($D$104:$D$1201,$T118,O$104:O$1201)/COUNTIF($D$104:N$1201,$T118) -> 0 | AV118: =SUMIF($D$104:$D$1201,$T118,P$104:P$1201)/COUNTIF($D$104:O$1201,$T118) -> 28.16620998 | AW118: 28.16620998 | BB118: 456 | BC118: 0 | BD118: FALSE
A119: 15 | B119: 2019-01-15 | C119: 319.6467249 | D119: 201901 | E119: =IF(AND($A119>E$103,$A119<=E$100+E$103),OFFSET(Ryhma1!K192,-E$103-1,0),0) -> 28.22370404 | F119: =IF(AND($A119>F$103,$A119<=F$100+F$103),OFFSET(Ryhma2!K192,-F$103-1,0),0) -> 28.39215002 | G119: =IF(AND($A119>G$103,$A119<=G$100+G$103),OFFSET(Ryhma3!$K192,-G$103-1,0),0) -> 28.5470374 | H119: =IF(AND($A119>H$103,$A119<=H$100+H$103),OFFSET(Ryhma4!$K192,-H$103-1,0),0) -> 28.71741312 | I119: =IF(AND($A119>I$103,$A119<=I$100+I$103),OFFSET(Ryhma5!$K192,-I$103-1,0),0) -> 28.91337369 | J119: =IF(AND($A119>J$103,$A119<=J$100+J$103),OFFSET(Ryhma6!$K192,-J$103-1,0),0) -> 29.06616241 | K119: =IF(AND($A119>K$103,$A119<=K$100+K$103),OFFSET(Ryhma7!$K192,-K$103-1,0),0) -> 29.2595278 | L119: =IF(AND($A119>L$103,$A119<=L$100+L$103),OFFSET(Ryhma8!$K192,-L$103-1,0),0) -> 29.3641799 | M119: =IF(AND($A119>M$103,$A119<=M$100+M$103),OFFSET(Ryhma9!$K192,-M$103-1,0),0) -> 29.56455385 | N119: =IF(AND($A119>N$103,$A119<=N$100+N$103),OFFSET(Ryhma10!$K192,-N$103-1,0),0) -> 29.72078364 | O119: =IF(AND($A119>O$103,$A119<=O$100+O$103),OFFSET(Ryhma11!$K192,-O$103-1,0),0) -> 29.87783899 | P119: =IF(AND($A119>P$103,$A119<=P$100+P$103),OFFSET(Ryhma12!$K192,-P$103-1,0),0) -> 0 | Q119: =IF(COUNTIF(D$104:D119,D119)=1,D119,"") ->  | R119: =IF(COUNTIF(D$105:D119,D119)=1,1,0) -> 0 | S119: =IF(R119=0,"",MAX(S$104:S118)+1) ->  | T119: 202003 | U119: 28.09444313 | V119: 0 | W119: 0 | X119: 0 | Y119: 0 | Z119: 0 | AA119: 0 | AB119: 0 | AC119: 0 | AD119: 0 | AE119: 0 | AF119: 0 | AG119: 28.09444313 | AH119: 31 | AI119: 0.906272359 | AJ119: kk15 | AK119: =SUMIF($D$104:$D$1201,$T119,E$104:E$1201)/COUNTIF($D$104:D$1201,$T119) -> 0 | AL119: =SUMIF($D$104:$D$1201,$T119,F$104:F$1201)/COUNTIF($D$104:E$1201,$T119) -> 0 | AM119: =SUMIF($D$104:$D$1201,$T119,G$104:G$1201)/COUNTIF($D$104:F$1201,$T119) -> 0 | AN119: =SUMIF($D$104:$D$1201,$T119,H$104:H$1201)/COUNTIF($D$104:G$1201,$T119) -> 0 | AO119: =SUMIF($D$104:$D$1201,$T119,I$104:I$1201)/COUNTIF($D$104:H$1201,$T119) -> 0 | AP119: =SUMIF($D$104:$D$1201,$T119,J$104:J$1201)/COUNTIF($D$104:I$1201,$T119) -> 0 | AQ119: =SUMIF($D$104:$D$1201,$T119,K$104:K$1201)/COUNTIF($D$104:J$1201,$T119) -> 0 | AR119: =SUMIF($D$104:$D$1201,$T119,L$104:L$1201)/COUNTIF($D$104:K$1201,$T119) -> 0 | AS119: =SUMIF($D$104:$D$1201,$T119,M$104:M$1201)/COUNTIF($D$104:L$1201,$T119) -> 0 | AT119: =SUMIF($D$104:$D$1201,$T119,N$104:N$1201)/COUNTIF($D$104:M$1201,$T119) -> 0 | AU119: =SUMIF($D$104:$D$1201,$T119,O$104:O$1201)/COUNTIF($D$104:N$1201,$T119) -> 0 | AV119: =SUMIF($D$104:$D$1201,$T119,P$104:P$1201)/COUNTIF($D$104:O$1201,$T119) -> 0.906272359 | AW119: 0.906272359 | BC119: 0 | BD119: FALSE
A120: 16 | B120: 2019-01-16 | C120: 319.5923849 | D120: 201901 | E120: =IF(AND($A120>E$103,$A120<=E$100+E$103),OFFSET(Ryhma1!K193,-E$103-1,0),0) -> 28.21890601 | F120: =IF(AND($A120>F$103,$A120<=F$100+F$103),OFFSET(Ryhma2!K193,-F$103-1,0),0) -> 28.38732336 | G120: =IF(AND($A120>G$103,$A120<=G$100+G$103),OFFSET(Ryhma3!$K193,-G$103-1,0),0) -> 28.5421844 | H120: =IF(AND($A120>H$103,$A120<=H$100+H$103),OFFSET(Ryhma4!$K193,-H$103-1,0),0) -> 28.71253116 | I120: =IF(AND($A120>I$103,$A120<=I$100+I$103),OFFSET(Ryhma5!$K193,-I$103-1,0),0) -> 28.90845842 | J120: =IF(AND($A120>J$103,$A120<=J$100+J$103),OFFSET(Ryhma6!$K193,-J$103-1,0),0) -> 29.06122116 | K120: =IF(AND($A120>K$103,$A120<=K$100+K$103),OFFSET(Ryhma7!$K193,-K$103-1,0),0) -> 29.25455368 | L120: =IF(AND($A120>L$103,$A120<=L$100+L$103),OFFSET(Ryhma8!$K193,-L$103-1,0),0) -> 29.35918799 | M120: =IF(AND($A120>M$103,$A120<=M$100+M$103),OFFSET(Ryhma9!$K193,-M$103-1,0),0) -> 29.55952788 | N120: =IF(AND($A120>N$103,$A120<=N$100+N$103),OFFSET(Ryhma10!$K193,-N$103-1,0),0) -> 29.7157311 | O120: =IF(AND($A120>O$103,$A120<=O$100+O$103),OFFSET(Ryhma11!$K193,-O$103-1,0),0) -> 29.87275976 | P120: =IF(AND($A120>P$103,$A120<=P$100+P$103),OFFSET(Ryhma12!$K193,-P$103-1,0),0) -> 0 | Q120: =IF(COUNTIF(D$104:D120,D120)=1,D120,"") ->  | R120: =IF(COUNTIF(D$105:D120,D120)=1,1,0) -> 0 | S120: =IF(R120=0,"",MAX(S$104:S119)+1) ->  | T120: 202004 | U120: 0 | V120: 0 | W120: 0 | X120: 0 | Y120: 0 | Z120: 0 | AA120: 0 | AB120: 0 | AC120: 0 | AD120: 0 | AE120: 0 | AF120: 0 | AG120: 0 | AH120: 30 | AI120: 0 | AJ120: kk16 | AK120: =SUMIF($D$104:$D$1201,$T120,E$104:E$1201)/COUNTIF($D$104:D$1201,$T120) -> 0 | AL120: =SUMIF($D$104:$D$1201,$T120,F$104:F$1201)/COUNTIF($D$104:E$1201,$T120) -> 0 | AM120: =SUMIF($D$104:$D$1201,$T120,G$104:G$1201)/COUNTIF($D$104:F$1201,$T120) -> 0 | AN120: =SUMIF($D$104:$D$1201,$T120,H$104:H$1201)/COUNTIF($D$104:G$1201,$T120) -> 0 | AO120: =SUMIF($D$104:$D$1201,$T120,I$104:I$1201)/COUNTIF($D$104:H$1201,$T120) -> 0 | AP120: =SUMIF($D$104:$D$1201,$T120,J$104:J$1201)/COUNTIF($D$104:I$1201,$T120) -> 0 | AQ120: =SUMIF($D$104:$D$1201,$T120,K$104:K$1201)/COUNTIF($D$104:J$1201,$T120) -> 0 | AR120: =SUMIF($D$104:$D$1201,$T120,L$104:L$1201)/COUNTIF($D$104:K$1201,$T120) -> 0 | AS120: =SUMIF($D$104:$D$1201,$T120,M$104:M$1201)/COUNTIF($D$104:L$1201,$T120) -> 0 | AT120: =SUMIF($D$104:$D$1201,$T120,N$104:N$1201)/COUNTIF($D$104:M$1201,$T120) -> 0 | AU120: =SUMIF($D$104:$D$1201,$T120,O$104:O$1201)/COUNTIF($D$104:N$1201,$T120) -> 0 | AV120: =SUMIF($D$104:$D$1201,$T120,P$104:P$1201)/COUNTIF($D$104:O$1201,$T120) -> 0 | AW120: 0 | BC120: 0 | BD120: FALSE
A121: 17 | B121: 2019-01-17 | C121: 319.5380542 | D121: 201901 | E121: =IF(AND($A121>E$103,$A121<=E$100+E$103),OFFSET(Ryhma1!K194,-E$103-1,0),0) -> 28.21410879 | F121: =IF(AND($A121>F$103,$A121<=F$100+F$103),OFFSET(Ryhma2!K194,-F$103-1,0),0) -> 28.38249751 | G121: =IF(AND($A121>G$103,$A121<=G$100+G$103),OFFSET(Ryhma3!$K194,-G$103-1,0),0) -> 28.53733223 | H121: =IF(AND($A121>H$103,$A121<=H$100+H$103),OFFSET(Ryhma4!$K194,-H$103-1,0),0) -> 28.70765003 | I121: =IF(AND($A121>I$103,$A121<=I$100+I$103),OFFSET(Ryhma5!$K194,-I$103-1,0),0) -> 28.90354398 | J121: =IF(AND($A121>J$103,$A121<=J$100+J$103),OFFSET(Ryhma6!$K194,-J$103-1,0),0) -> 29.05628075 | K121: =IF(AND($A121>K$103,$A121<=K$100+K$103),OFFSET(Ryhma7!$K194,-K$103-1,0),0) -> 29.2495804 | L121: =IF(AND($A121>L$103,$A121<=L$100+L$103),OFFSET(Ryhma8!$K194,-L$103-1,0),0) -> 29.35419693 | M121: =IF(AND($A121>M$103,$A121<=M$100+M$103),OFFSET(Ryhma9!$K194,-M$103-1,0),0) -> 29.55450276 | N121: =IF(AND($A121>N$103,$A121<=N$100+N$103),OFFSET(Ryhma10!$K194,-N$103-1,0),0) -> 29.71067943 | O121: =IF(AND($A121>O$103,$A121<=O$100+O$103),OFFSET(Ryhma11!$K194,-O$103-1,0),0) -> 29.86768139 | P121: =IF(AND($A121>P$103,$A121<=P$100+P$103),OFFSET(Ryhma12!$K194,-P$103-1,0),0) -> 0 | Q121: =IF(COUNTIF(D$104:D121,D121)=1,D121,"") ->  | R121: =IF(COUNTIF(D$105:D121,D121)=1,1,0) -> 0 | S121: =IF(R121=0,"",MAX(S$104:S120)+1) ->  | T121: 202005 | U121: 0 | V121: 0 | W121: 0 | X121: 0 | Y121: 0 | Z121: 0 | AA121: 0 | AB121: 0 | AC121: 0 | AD121: 0 | AE121: 0 | AF121: 0 | AG121: 0 | AH121: 31 | AI121: 0 | AJ121: kk17 | AK121: =SUMIF($D$104:$D$1201,$T121,E$104:E$1201)/COUNTIF($D$104:D$1201,$T121) -> 0 | AL121: =SUMIF($D$104:$D$1201,$T121,F$104:F$1201)/COUNTIF($D$104:E$1201,$T121) -> 0 | AM121: =SUMIF($D$104:$D$1201,$T121,G$104:G$1201)/COUNTIF($D$104:F$1201,$T121) -> 0 | AN121: =SUMIF($D$104:$D$1201,$T121,H$104:H$1201)/COUNTIF($D$104:G$1201,$T121) -> 0 | AO121: =SUMIF($D$104:$D$1201,$T121,I$104:I$1201)/COUNTIF($D$104:H$1201,$T121) -> 0 | AP121: =SUMIF($D$104:$D$1201,$T121,J$104:J$1201)/COUNTIF($D$104:I$1201,$T121) -> 0 | AQ121: =SUMIF($D$104:$D$1201,$T121,K$104:K$1201)/COUNTIF($D$104:J$1201,$T121) -> 0 | AR121: =SUMIF($D$104:$D$1201,$T121,L$104:L$1201)/COUNTIF($D$104:K$1201,$T121) -> 0 | AS121: =SUMIF($D$104:$D$1201,$T121,M$104:M$1201)/COUNTIF($D$104:L$1201,$T121) -> 0 | AT121: =SUMIF($D$104:$D$1201,$T121,N$104:N$1201)/COUNTIF($D$104:M$1201,$T121) -> 0 | AU121: =SUMIF($D$104:$D$1201,$T121,O$104:O$1201)/COUNTIF($D$104:N$1201,$T121) -> 0 | AV121: =SUMIF($D$104:$D$1201,$T121,P$104:P$1201)/COUNTIF($D$104:O$1201,$T121) -> 0 | AW121: 0 | BC121: 0 | BD121: FALSE
A122: 18 | B122: 2019-01-18 | C122: 319.4837327 | D122: 201901 | E122: =IF(AND($A122>E$103,$A122<=E$100+E$103),OFFSET(Ryhma1!K195,-E$103-1,0),0) -> 28.20931239 | F122: =IF(AND($A122>F$103,$A122<=F$100+F$103),OFFSET(Ryhma2!K195,-F$103-1,0),0) -> 28.37767249 | G122: =IF(AND($A122>G$103,$A122<=G$100+G$103),OFFSET(Ryhma3!$K195,-G$103-1,0),0) -> 28.53248088 | H122: =IF(AND($A122>H$103,$A122<=H$100+H$103),OFFSET(Ryhma4!$K195,-H$103-1,0),0) -> 28.70276973 | I122: =IF(AND($A122>I$103,$A122<=I$100+I$103),OFFSET(Ryhma5!$K195,-I$103-1,0),0) -> 28.89863038 | J122: =IF(AND($A122>J$103,$A122<=J$100+J$103),OFFSET(Ryhma6!$K195,-J$103-1,0),0) -> 29.05134118 | K122: =IF(AND($A122>K$103,$A122<=K$100+K$103),OFFSET(Ryhma7!$K195,-K$103-1,0),0) -> 29.24460797 | L122: =IF(AND($A122>L$103,$A122<=L$100+L$103),OFFSET(Ryhma8!$K195,-L$103-1,0),0) -> 29.34920671 | M122: =IF(AND($A122>M$103,$A122<=M$100+M$103),OFFSET(Ryhma9!$K195,-M$103-1,0),0) -> 29.54947849 | N122: =IF(AND($A122>N$103,$A122<=N$100+N$103),OFFSET(Ryhma10!$K195,-N$103-1,0),0) -> 29.70562861 | O122: =IF(AND($A122>O$103,$A122<=O$100+O$103),OFFSET(Ryhma11!$K195,-O$103-1,0),0) -> 29.86260389 | P122: =IF(AND($A122>P$103,$A122<=P$100+P$103),OFFSET(Ryhma12!$K195,-P$103-1,0),0) -> 0 | Q122: =IF(COUNTIF(D$104:D122,D122)=1,D122,"") ->  | R122: =IF(COUNTIF(D$105:D122,D122)=1,1,0) -> 0 | S122: =IF(R122=0,"",MAX(S$104:S121)+1) ->  | T122: 202006 | U122: 0 | V122: 0 | W122: 0 | X122: 0 | Y122: 0 | Z122: 0 | AA122: 0 | AB122: 0 | AC122: 0 | AD122: 0 | AE122: 0 | AF122: 0 | AG122: 0 | AH122: 30 | AI122: 0 | AJ122: kk18 | AK122: =SUMIF($D$104:$D$1201,$T122,E$104:E$1201)/COUNTIF($D$104:D$1201,$T122) -> 0 | AL122: =SUMIF($D$104:$D$1201,$T122,F$104:F$1201)/COUNTIF($D$104:E$1201,$T122) -> 0 | AM122: =SUMIF($D$104:$D$1201,$T122,G$104:G$1201)/COUNTIF($D$104:F$1201,$T122) -> 0 | AN122: =SUMIF($D$104:$D$1201,$T122,H$104:H$1201)/COUNTIF($D$104:G$1201,$T122) -> 0 | AO122: =SUMIF($D$104:$D$1201,$T122,I$104:I$1201)/COUNTIF($D$104:H$1201,$T122) -> 0 | AP122: =SUMIF($D$104:$D$1201,$T122,J$104:J$1201)/COUNTIF($D$104:I$1201,$T122) -> 0 | AQ122: =SUMIF($D$104:$D$1201,$T122,K$104:K$1201)/COUNTIF($D$104:J$1201,$T122) -> 0 | AR122: =SUMIF($D$104:$D$1201,$T122,L$104:L$1201)/COUNTIF($D$104:K$1201,$T122) -> 0 | AS122: =SUMIF($D$104:$D$1201,$T122,M$104:M$1201)/COUNTIF($D$104:L$1201,$T122) -> 0 | AT122: =SUMIF($D$104:$D$1201,$T122,N$104:N$1201)/COUNTIF($D$104:M$1201,$T122) -> 0 | AU122: =SUMIF($D$104:$D$1201,$T122,O$104:O$1201)/COUNTIF($D$104:N$1201,$T122) -> 0 | AV122: =SUMIF($D$104:$D$1201,$T122,P$104:P$1201)/COUNTIF($D$104:O$1201,$T122) -> 0 | AW122: 0 | BC122: 0 | BD122: FALSE
A123: 19 | B123: 2019-01-19 | C123: 319.4294205 | D123: 201901 | E123: =IF(AND($A123>E$103,$A123<=E$100+E$103),OFFSET(Ryhma1!K196,-E$103-1,0),0) -> 28.20451681 | F123: =IF(AND($A123>F$103,$A123<=F$100+F$103),OFFSET(Ryhma2!K196,-F$103-1,0),0) -> 28.37284828 | G123: =IF(AND($A123>G$103,$A123<=G$100+G$103),OFFSET(Ryhma3!$K196,-G$103-1,0),0) -> 28.52763036 | H123: =IF(AND($A123>H$103,$A123<=H$100+H$103),OFFSET(Ryhma4!$K196,-H$103-1,0),0) -> 28.69789025 | I123: =IF(AND($A123>I$103,$A123<=I$100+I$103),OFFSET(Ryhma5!$K196,-I$103-1,0),0) -> 28.89371761 | J123: =IF(AND($A123>J$103,$A123<=J$100+J$103),OFFSET(Ryhma6!$K196,-J$103-1,0),0) -> 29.04640245 | K123: =IF(AND($A123>K$103,$A123<=K$100+K$103),OFFSET(Ryhma7!$K196,-K$103-1,0),0) -> 29.23963639 | L123: =IF(AND($A123>L$103,$A123<=L$100+L$103),OFFSET(Ryhma8!$K196,-L$103-1,0),0) -> 29.34421735 | M123: =IF(AND($A123>M$103,$A123<=M$100+M$103),OFFSET(Ryhma9!$K196,-M$103-1,0),0) -> 29.54445508 | N123: =IF(AND($A123>N$103,$A123<=N$100+N$103),OFFSET(Ryhma10!$K196,-N$103-1,0),0) -> 29.70057866 | O123: =IF(AND($A123>O$103,$A123<=O$100+O$103),OFFSET(Ryhma11!$K196,-O$103-1,0),0) -> 29.85752724 | P123: =IF(AND($A123>P$103,$A123<=P$100+P$103),OFFSET(Ryhma12!$K196,-P$103-1,0),0) -> 0 | Q123: =IF(COUNTIF(D$104:D123,D123)=1,D123,"") ->  | R123: =IF(COUNTIF(D$105:D123,D123)=1,1,0) -> 0 | S123: =IF(R123=0,"",MAX(S$104:S122)+1) ->  | T123: 202007 | U123: 0 | V123: 0 | W123: 0 | X123: 0 | Y123: 0 | Z123: 0 | AA123: 0 | AB123: 0 | AC123: 0 | AD123: 0 | AE123: 0 | AF123: 0 | AG123: 0 | AH123: 31 | AI123: 0 | AJ123: kk19 | AK123: =SUMIF($D$104:$D$1201,$T123,E$104:E$1201)/COUNTIF($D$104:D$1201,$T123) -> 0 | AL123: =SUMIF($D$104:$D$1201,$T123,F$104:F$1201)/COUNTIF($D$104:E$1201,$T123) -> 0 | AM123: =SUMIF($D$104:$D$1201,$T123,G$104:G$1201)/COUNTIF($D$104:F$1201,$T123) -> 0 | AN123: =SUMIF($D$104:$D$1201,$T123,H$104:H$1201)/COUNTIF($D$104:G$1201,$T123) -> 0 | AO123: =SUMIF($D$104:$D$1201,$T123,I$104:I$1201)/COUNTIF($D$104:H$1201,$T123) -> 0 | AP123: =SUMIF($D$104:$D$1201,$T123,J$104:J$1201)/COUNTIF($D$104:I$1201,$T123) -> 0 | AQ123: =SUMIF($D$104:$D$1201,$T123,K$104:K$1201)/COUNTIF($D$104:J$1201,$T123) -> 0 | AR123: =SUMIF($D$104:$D$1201,$T123,L$104:L$1201)/COUNTIF($D$104:K$1201,$T123) -> 0 | AS123: =SUMIF($D$104:$D$1201,$T123,M$104:M$1201)/COUNTIF($D$104:L$1201,$T123) -> 0 | AT123: =SUMIF($D$104:$D$1201,$T123,N$104:N$1201)/COUNTIF($D$104:M$1201,$T123) -> 0 | AU123: =SUMIF($D$104:$D$1201,$T123,O$104:O$1201)/COUNTIF($D$104:N$1201,$T123) -> 0 | AV123: =SUMIF($D$104:$D$1201,$T123,P$104:P$1201)/COUNTIF($D$104:O$1201,$T123) -> 0 | AW123: 0 | BC123: 0 | BD123: FALSE
A124: 20 | B124: 2019-01-20 | C124: 319.3751175 | D124: 201901 | E124: =IF(AND($A124>E$103,$A124<=E$100+E$103),OFFSET(Ryhma1!K197,-E$103-1,0),0) -> 28.19972204 | F124: =IF(AND($A124>F$103,$A124<=F$100+F$103),OFFSET(Ryhma2!K197,-F$103-1,0),0) -> 28.3680249 | G124: =IF(AND($A124>G$103,$A124<=G$100+G$103),OFFSET(Ryhma3!$K197,-G$103-1,0),0) -> 28.52278066 | H124: =IF(AND($A124>H$103,$A124<=H$100+H$103),OFFSET(Ryhma4!$K197,-H$103-1,0),0) -> 28.69301161 | I124: =IF(AND($A124>I$103,$A124<=I$100+I$103),OFFSET(Ryhma5!$K197,-I$103-1,0),0) -> 28.88880568 | J124: =IF(AND($A124>J$103,$A124<=J$100+J$103),OFFSET(Ryhma6!$K197,-J$103-1,0),0) -> 29.04146457 | K124: =IF(AND($A124>K$103,$A124<=K$100+K$103),OFFSET(Ryhma7!$K197,-K$103-1,0),0) -> 29.23466565 | L124: =IF(AND($A124>L$103,$A124<=L$100+L$103),OFFSET(Ryhma8!$K197,-L$103-1,0),0) -> 29.33922883 | M124: =IF(AND($A124>M$103,$A124<=M$100+M$103),OFFSET(Ryhma9!$K197,-M$103-1,0),0) -> 29.53943253 | N124: =IF(AND($A124>N$103,$A124<=N$100+N$103),OFFSET(Ryhma10!$K197,-N$103-1,0),0) -> 29.69552956 | O124: =IF(AND($A124>O$103,$A124<=O$100+O$103),OFFSET(Ryhma11!$K197,-O$103-1,0),0) -> 29.85245146 | P124: =IF(AND($A124>P$103,$A124<=P$100+P$103),OFFSET(Ryhma12!$K197,-P$103-1,0),0) -> 0 | Q124: =IF(COUNTIF(D$104:D124,D124)=1,D124,"") ->  | R124: =IF(COUNTIF(D$105:D124,D124)=1,1,0) -> 0 | S124: =IF(R124=0,"",MAX(S$104:S123)+1) ->  | T124: 202008 | U124: 0 | V124: 0 | W124: 0 | X124: 0 | Y124: 0 | Z124: 0 | AA124: 0 | AB124: 0 | AC124: 0 | AD124: 0 | AE124: 0 | AF124: 0 | AG124: 0 | AH124: 31 | AI124: 0 | AJ124: kk20 | AK124: =SUMIF($D$104:$D$1201,$T124,E$104:E$1201)/COUNTIF($D$104:D$1201,$T124) -> 0 | AL124: =SUMIF($D$104:$D$1201,$T124,F$104:F$1201)/COUNTIF($D$104:E$1201,$T124) -> 0 | AM124: =SUMIF($D$104:$D$1201,$T124,G$104:G$1201)/COUNTIF($D$104:F$1201,$T124) -> 0 | AN124: =SUMIF($D$104:$D$1201,$T124,H$104:H$1201)/COUNTIF($D$104:G$1201,$T124) -> 0 | AO124: =SUMIF($D$104:$D$1201,$T124,I$104:I$1201)/COUNTIF($D$104:H$1201,$T124) -> 0 | AP124: =SUMIF($D$104:$D$1201,$T124,J$104:J$1201)/COUNTIF($D$104:I$1201,$T124) -> 0 | AQ124: =SUMIF($D$104:$D$1201,$T124,K$104:K$1201)/COUNTIF($D$104:J$1201,$T124) -> 0 | AR124: =SUMIF($D$104:$D$1201,$T124,L$104:L$1201)/COUNTIF($D$104:K$1201,$T124) -> 0 | AS124: =SUMIF($D$104:$D$1201,$T124,M$104:M$1201)/COUNTIF($D$104:L$1201,$T124) -> 0 | AT124: =SUMIF($D$104:$D$1201,$T124,N$104:N$1201)/COUNTIF($D$104:M$1201,$T124) -> 0 | AU124: =SUMIF($D$104:$D$1201,$T124,O$104:O$1201)/COUNTIF($D$104:N$1201,$T124) -> 0 | AV124: =SUMIF($D$104:$D$1201,$T124,P$104:P$1201)/COUNTIF($D$104:O$1201,$T124) -> 0 | AW124: 0 | BC124: 0 | BD124: FALSE
A125: 21 | B125: 2019-01-21 | C125: 319.3208237 | D125: 201901 | E125: =IF(AND($A125>E$103,$A125<=E$100+E$103),OFFSET(Ryhma1!K198,-E$103-1,0),0) -> 28.19492809 | F125: =IF(AND($A125>F$103,$A125<=F$100+F$103),OFFSET(Ryhma2!K198,-F$103-1,0),0) -> 28.36320234 | G125: =IF(AND($A125>G$103,$A125<=G$100+G$103),OFFSET(Ryhma3!$K198,-G$103-1,0),0) -> 28.51793179 | H125: =IF(AND($A125>H$103,$A125<=H$100+H$103),OFFSET(Ryhma4!$K198,-H$103-1,0),0) -> 28.6881338 | I125: =IF(AND($A125>I$103,$A125<=I$100+I$103),OFFSET(Ryhma5!$K198,-I$103-1,0),0) -> 28.88389458 | J125: =IF(AND($A125>J$103,$A125<=J$100+J$103),OFFSET(Ryhma6!$K198,-J$103-1,0),0) -> 29.03652752 | K125: =IF(AND($A125>K$103,$A125<=K$100+K$103),OFFSET(Ryhma7!$K198,-K$103-1,0),0) -> 29.22969576 | L125: =IF(AND($A125>L$103,$A125<=L$100+L$103),OFFSET(Ryhma8!$K198,-L$103-1,0),0) -> 29.33424116 | M125: =IF(AND($A125>M$103,$A125<=M$100+M$103),OFFSET(Ryhma9!$K198,-M$103-1,0),0) -> 29.53441082 | N125: =IF(AND($A125>N$103,$A125<=N$100+N$103),OFFSET(Ryhma10!$K198,-N$103-1,0),0) -> 29.69048132 | O125: =IF(AND($A125>O$103,$A125<=O$100+O$103),OFFSET(Ryhma11!$K198,-O$103-1,0),0) -> 29.84737655 | P125: =IF(AND($A125>P$103,$A125<=P$100+P$103),OFFSET(Ryhma12!$K198,-P$103-1,0),0) -> 0 | Q125: =IF(COUNTIF(D$104:D125,D125)=1,D125,"") ->  | R125: =IF(COUNTIF(D$105:D125,D125)=1,1,0) -> 0 | S125: =IF(R125=0,"",MAX(S$104:S124)+1) ->  | T125: 202009 | U125: 0 | V125: 0 | W125: 0 | X125: 0 | Y125: 0 | Z125: 0 | AA125: 0 | AB125: 0 | AC125: 0 | AD125: 0 | AE125: 0 | AF125: 0 | AG125: 0 | AH125: 30 | AI125: 0 | AJ125: kk21 | AK125: =SUMIF($D$104:$D$1201,$T125,E$104:E$1201)/COUNTIF($D$104:D$1201,$T125) -> 0 | AL125: =SUMIF($D$104:$D$1201,$T125,F$104:F$1201)/COUNTIF($D$104:E$1201,$T125) -> 0 | AM125: =SUMIF($D$104:$D$1201,$T125,G$104:G$1201)/COUNTIF($D$104:F$1201,$T125) -> 0 | AN125: =SUMIF($D$104:$D$1201,$T125,H$104:H$1201)/COUNTIF($D$104:G$1201,$T125) -> 0 | AO125: =SUMIF($D$104:$D$1201,$T125,I$104:I$1201)/COUNTIF($D$104:H$1201,$T125) -> 0 | AP125: =SUMIF($D$104:$D$1201,$T125,J$104:J$1201)/COUNTIF($D$104:I$1201,$T125) -> 0 | AQ125: =SUMIF($D$104:$D$1201,$T125,K$104:K$1201)/COUNTIF($D$104:J$1201,$T125) -> 0 | AR125: =SUMIF($D$104:$D$1201,$T125,L$104:L$1201)/COUNTIF($D$104:K$1201,$T125) -> 0 | AS125: =SUMIF($D$104:$D$1201,$T125,M$104:M$1201)/COUNTIF($D$104:L$1201,$T125) -> 0 | AT125: =SUMIF($D$104:$D$1201,$T125,N$104:N$1201)/COUNTIF($D$104:M$1201,$T125) -> 0 | AU125: =SUMIF($D$104:$D$1201,$T125,O$104:O$1201)/COUNTIF($D$104:N$1201,$T125) -> 0 | AV125: =SUMIF($D$104:$D$1201,$T125,P$104:P$1201)/COUNTIF($D$104:O$1201,$T125) -> 0 | AW125: 0 | BC125: 0 | BD125: FALSE
A126: 22 | B126: 2019-01-22 | C126: 319.2665392 | D126: 201901 | E126: =IF(AND($A126>E$103,$A126<=E$100+E$103),OFFSET(Ryhma1!K199,-E$103-1,0),0) -> 28.19013495 | F126: =IF(AND($A126>F$103,$A126<=F$100+F$103),OFFSET(Ryhma2!K199,-F$103-1,0),0) -> 28.35838059 | G126: =IF(AND($A126>G$103,$A126<=G$100+G$103),OFFSET(Ryhma3!$K199,-G$103-1,0),0) -> 28.51308374 | H126: =IF(AND($A126>H$103,$A126<=H$100+H$103),OFFSET(Ryhma4!$K199,-H$103-1,0),0) -> 28.68325682 | I126: =IF(AND($A126>I$103,$A126<=I$100+I$103),OFFSET(Ryhma5!$K199,-I$103-1,0),0) -> 28.87898432 | J126: =IF(AND($A126>J$103,$A126<=J$100+J$103),OFFSET(Ryhma6!$K199,-J$103-1,0),0) -> 29.03159131 | K126: =IF(AND($A126>K$103,$A126<=K$100+K$103),OFFSET(Ryhma7!$K199,-K$103-1,0),0) -> 29.22472671 | L126: =IF(AND($A126>L$103,$A126<=L$100+L$103),OFFSET(Ryhma8!$K199,-L$103-1,0),0) -> 29.32925434 | M126: =IF(AND($A126>M$103,$A126<=M$100+M$103),OFFSET(Ryhma9!$K199,-M$103-1,0),0) -> 29.52938997 | N126: =IF(AND($A126>N$103,$A126<=N$100+N$103),OFFSET(Ryhma10!$K199,-N$103-1,0),0) -> 29.68543394 | O126: =IF(AND($A126>O$103,$A126<=O$100+O$103),OFFSET(Ryhma11!$K199,-O$103-1,0),0) -> 29.84230249 | P126: =IF(AND($A126>P$103,$A126<=P$100+P$103),OFFSET(Ryhma12!$K199,-P$103-1,0),0) -> 0 | Q126: =IF(COUNTIF(D$104:D126,D126)=1,D126,"") ->  | R126: =IF(COUNTIF(D$105:D126,D126)=1,1,0) -> 0 | S126: =IF(R126=0,"",MAX(S$104:S125)+1) ->  | T126: 202010 | U126: 0 | V126: 0 | W126: 0 | X126: 0 | Y126: 0 | Z126: 0 | AA126: 0 | AB126: 0 | AC126: 0 | AD126: 0 | AE126: 0 | AF126: 0 | AG126: 0 | AH126: 31 | AI126: 0 | AJ126: kk22 | AK126: =SUMIF($D$104:$D$1201,$T126,E$104:E$1201)/COUNTIF($D$104:D$1201,$T126) -> 0 | AL126: =SUMIF($D$104:$D$1201,$T126,F$104:F$1201)/COUNTIF($D$104:E$1201,$T126) -> 0 | AM126: =SUMIF($D$104:$D$1201,$T126,G$104:G$1201)/COUNTIF($D$104:F$1201,$T126) -> 0 | AN126: =SUMIF($D$104:$D$1201,$T126,H$104:H$1201)/COUNTIF($D$104:G$1201,$T126) -> 0 | AO126: =SUMIF($D$104:$D$1201,$T126,I$104:I$1201)/COUNTIF($D$104:H$1201,$T126) -> 0 | AP126: =SUMIF($D$104:$D$1201,$T126,J$104:J$1201)/COUNTIF($D$104:I$1201,$T126) -> 0 | AQ126: =SUMIF($D$104:$D$1201,$T126,K$104:K$1201)/COUNTIF($D$104:J$1201,$T126) -> 0 | AR126: =SUMIF($D$104:$D$1201,$T126,L$104:L$1201)/COUNTIF($D$104:K$1201,$T126) -> 0 | AS126: =SUMIF($D$104:$D$1201,$T126,M$104:M$1201)/COUNTIF($D$104:L$1201,$T126) -> 0 | AT126: =SUMIF($D$104:$D$1201,$T126,N$104:N$1201)/COUNTIF($D$104:M$1201,$T126) -> 0 | AU126: =SUMIF($D$104:$D$1201,$T126,O$104:O$1201)/COUNTIF($D$104:N$1201,$T126) -> 0 | AV126: =SUMIF($D$104:$D$1201,$T126,P$104:P$1201)/COUNTIF($D$104:O$1201,$T126) -> 0 | AW126: 0 | BC126: 0 | BD126: FALSE
A127: 23 | B127: 2019-01-23 | C127: 319.2122639 | D127: 201901 | E127: =IF(AND($A127>E$103,$A127<=E$100+E$103),OFFSET(Ryhma1!K200,-E$103-1,0),0) -> 28.18534263 | F127: =IF(AND($A127>F$103,$A127<=F$100+F$103),OFFSET(Ryhma2!K200,-F$103-1,0),0) -> 28.35355967 | G127: =IF(AND($A127>G$103,$A127<=G$100+G$103),OFFSET(Ryhma3!$K200,-G$103-1,0),0) -> 28.50823652 | H127: =IF(AND($A127>H$103,$A127<=H$100+H$103),OFFSET(Ryhma4!$K200,-H$103-1,0),0) -> 28.67838067 | I127: =IF(AND($A127>I$103,$A127<=I$100+I$103),OFFSET(Ryhma5!$K200,-I$103-1,0),0) -> 28.87407489 | J127: =IF(AND($A127>J$103,$A127<=J$100+J$103),OFFSET(Ryhma6!$K200,-J$103-1,0),0) -> 29.02665594 | K127: =IF(AND($A127>K$103,$A127<=K$100+K$103),OFFSET(Ryhma7!$K200,-K$103-1,0),0) -> 29.21975851 | L127: =IF(AND($A127>L$103,$A127<=L$100+L$103),OFFSET(Ryhma8!$K200,-L$103-1,0),0) -> 29.32426837 | M127: =IF(AND($A127>M$103,$A127<=M$100+M$103),OFFSET(Ryhma9!$K200,-M$103-1,0),0) -> 29.52436998 | N127: =IF(AND($A127>N$103,$A127<=N$100+N$103),OFFSET(Ryhma10!$K200,-N$103-1,0),0) -> 29.68038741 | O127: =IF(AND($A127>O$103,$A127<=O$100+O$103),OFFSET(Ryhma11!$K200,-O$103-1,0),0) -> 29.8372293 | P127: =IF(AND($A127>P$103,$A127<=P$100+P$103),OFFSET(Ryhma12!$K200,-P$103-1,0),0) -> 0 | Q127: =IF(COUNTIF(D$104:D127,D127)=1,D127,"") ->  | R127: =IF(COUNTIF(D$105:D127,D127)=1,1,0) -> 0 | S127: =IF(R127=0,"",MAX(S$104:S126)+1) ->  | T127: 202011 | U127: 0 | V127: 0 | W127: 0 | X127: 0 | Y127: 0 | Z127: 0 | AA127: 0 | AB127: 0 | AC127: 0 | AD127: 0 | AE127: 0 | AF127: 0 | AG127: 0 | AH127: 30 | AI127: 0 | AJ127: kk23 | AK127: =SUMIF($D$104:$D$1201,$T127,E$104:E$1201)/COUNTIF($D$104:D$1201,$T127) -> 0 | AL127: =SUMIF($D$104:$D$1201,$T127,F$104:F$1201)/COUNTIF($D$104:E$1201,$T127) -> 0 | AM127: =SUMIF($D$104:$D$1201,$T127,G$104:G$1201)/COUNTIF($D$104:F$1201,$T127) -> 0 | AN127: =SUMIF($D$104:$D$1201,$T127,H$104:H$1201)/COUNTIF($D$104:G$1201,$T127) -> 0 | AO127: =SUMIF($D$104:$D$1201,$T127,I$104:I$1201)/COUNTIF($D$104:H$1201,$T127) -> 0 | AP127: =SUMIF($D$104:$D$1201,$T127,J$104:J$1201)/COUNTIF($D$104:I$1201,$T127) -> 0 | AQ127: =SUMIF($D$104:$D$1201,$T127,K$104:K$1201)/COUNTIF($D$104:J$1201,$T127) -> 0 | AR127: =SUMIF($D$104:$D$1201,$T127,L$104:L$1201)/COUNTIF($D$104:K$1201,$T127) -> 0 | AS127: =SUMIF($D$104:$D$1201,$T127,M$104:M$1201)/COUNTIF($D$104:L$1201,$T127) -> 0 | AT127: =SUMIF($D$104:$D$1201,$T127,N$104:N$1201)/COUNTIF($D$104:M$1201,$T127) -> 0 | AU127: =SUMIF($D$104:$D$1201,$T127,O$104:O$1201)/COUNTIF($D$104:N$1201,$T127) -> 0 | AV127: =SUMIF($D$104:$D$1201,$T127,P$104:P$1201)/COUNTIF($D$104:O$1201,$T127) -> 0 | AW127: 0 | BC127: 0 | BD127: FALSE
A128: 24 | B128: 2019-01-24 | C128: 319.1579978 | D128: 201901 | E128: =IF(AND($A128>E$103,$A128<=E$100+E$103),OFFSET(Ryhma1!K201,-E$103-1,0),0) -> 28.18055112 | F128: =IF(AND($A128>F$103,$A128<=F$100+F$103),OFFSET(Ryhma2!K201,-F$103-1,0),0) -> 28.34873956 | G128: =IF(AND($A128>G$103,$A128<=G$100+G$103),OFFSET(Ryhma3!$K201,-G$103-1,0),0) -> 28.50339012 | H128: =IF(AND($A128>H$103,$A128<=H$100+H$103),OFFSET(Ryhma4!$K201,-H$103-1,0),0) -> 28.67350534 | I128: =IF(AND($A128>I$103,$A128<=I$100+I$103),OFFSET(Ryhma5!$K201,-I$103-1,0),0) -> 28.8691663 | J128: =IF(AND($A128>J$103,$A128<=J$100+J$103),OFFSET(Ryhma6!$K201,-J$103-1,0),0) -> 29.02172141 | K128: =IF(AND($A128>K$103,$A128<=K$100+K$103),OFFSET(Ryhma7!$K201,-K$103-1,0),0) -> 29.21479115 | L128: =IF(AND($A128>L$103,$A128<=L$100+L$103),OFFSET(Ryhma8!$K201,-L$103-1,0),0) -> 29.31928324 | M128: =IF(AND($A128>M$103,$A128<=M$100+M$103),OFFSET(Ryhma9!$K201,-M$103-1,0),0) -> 29.51935083 | N128: =IF(AND($A128>N$103,$A128<=N$100+N$103),OFFSET(Ryhma10!$K201,-N$103-1,0),0) -> 29.67534175 | O128: =IF(AND($A128>O$103,$A128<=O$100+O$103),OFFSET(Ryhma11!$K201,-O$103-1,0),0) -> 29.83215697 | P128: =IF(AND($A128>P$103,$A128<=P$100+P$103),OFFSET(Ryhma12!$K201,-P$103-1,0),0) -> 0 | Q128: =IF(COUNTIF(D$104:D128,D128)=1,D128,"") ->  | R128: =IF(COUNTIF(D$105:D128,D128)=1,1,0) -> 0 | S128: =IF(R128=0,"",MAX(S$104:S127)+1) ->  | T128: 202012 | U128: 0 | V128: 0 | W128: 0 | X128: 0 | Y128: 0 | Z128: 0 | AA128: 0 | AB128: 0 | AC128: 0 | AD128: 0 | AE128: 0 | AF128: 0 | AG128: 0 | AH128: 31 | AI128: 0 | AJ128: kk24 | AK128: =SUMIF($D$104:$D$1201,$T128,E$104:E$1201)/COUNTIF($D$104:D$1201,$T128) -> 0 | AL128: =SUMIF($D$104:$D$1201,$T128,F$104:F$1201)/COUNTIF($D$104:E$1201,$T128) -> 0 | AM128: =SUMIF($D$104:$D$1201,$T128,G$104:G$1201)/COUNTIF($D$104:F$1201,$T128) -> 0 | AN128: =SUMIF($D$104:$D$1201,$T128,H$104:H$1201)/COUNTIF($D$104:G$1201,$T128) -> 0 | AO128: =SUMIF($D$104:$D$1201,$T128,I$104:I$1201)/COUNTIF($D$104:H$1201,$T128) -> 0 | AP128: =SUMIF($D$104:$D$1201,$T128,J$104:J$1201)/COUNTIF($D$104:I$1201,$T128) -> 0 | AQ128: =SUMIF($D$104:$D$1201,$T128,K$104:K$1201)/COUNTIF($D$104:J$1201,$T128) -> 0 | AR128: =SUMIF($D$104:$D$1201,$T128,L$104:L$1201)/COUNTIF($D$104:K$1201,$T128) -> 0 | AS128: =SUMIF($D$104:$D$1201,$T128,M$104:M$1201)/COUNTIF($D$104:L$1201,$T128) -> 0 | AT128: =SUMIF($D$104:$D$1201,$T128,N$104:N$1201)/COUNTIF($D$104:M$1201,$T128) -> 0 | AU128: =SUMIF($D$104:$D$1201,$T128,O$104:O$1201)/COUNTIF($D$104:N$1201,$T128) -> 0 | AV128: =SUMIF($D$104:$D$1201,$T128,P$104:P$1201)/COUNTIF($D$104:O$1201,$T128) -> 0 | AW128: 0 | BC128: 0 | BD128: FALSE
A129: 25 | B129: 2019-01-25 | C129: 319.1037409 | D129: 201901 | E129: =IF(AND($A129>E$103,$A129<=E$100+E$103),OFFSET(Ryhma1!K202,-E$103-1,0),0) -> 28.17576043 | F129: =IF(AND($A129>F$103,$A129<=F$100+F$103),OFFSET(Ryhma2!K202,-F$103-1,0),0) -> 28.34392028 | G129: =IF(AND($A129>G$103,$A129<=G$100+G$103),OFFSET(Ryhma3!$K202,-G$103-1,0),0) -> 28.49854454 | H129: =IF(AND($A129>H$103,$A129<=H$100+H$103),OFFSET(Ryhma4!$K202,-H$103-1,0),0) -> 28.66863084 | I129: =IF(AND($A129>I$103,$A129<=I$100+I$103),OFFSET(Ryhma5!$K202,-I$103-1,0),0) -> 28.86425854 | J129: =IF(AND($A129>J$103,$A129<=J$100+J$103),OFFSET(Ryhma6!$K202,-J$103-1,0),0) -> 29.01678771 | K129: =IF(AND($A129>K$103,$A129<=K$100+K$103),OFFSET(Ryhma7!$K202,-K$103-1,0),0) -> 29.20982463 | L129: =IF(AND($A129>L$103,$A129<=L$100+L$103),OFFSET(Ryhma8!$K202,-L$103-1,0),0) -> 29.31429896 | M129: =IF(AND($A129>M$103,$A129<=M$100+M$103),OFFSET(Ryhma9!$K202,-M$103-1,0),0) -> 29.51433254 | N129: =IF(AND($A129>N$103,$A129<=N$100+N$103),OFFSET(Ryhma10!$K202,-N$103-1,0),0) -> 29.67029694 | O129: =IF(AND($A129>O$103,$A129<=O$100+O$103),OFFSET(Ryhma11!$K202,-O$103-1,0),0) -> 29.82708551 | P129: =IF(AND($A129>P$103,$A129<=P$100+P$103),OFFSET(Ryhma12!$K202,-P$103-1,0),0) -> 0 | Q129: =IF(COUNTIF(D$104:D129,D129)=1,D129,"") ->  | R129: =IF(COUNTIF(D$105:D129,D129)=1,1,0) -> 0 | S129: =IF(R129=0,"",MAX(S$104:S128)+1) ->  | T129: 202101 | U129: 0 | V129: 0 | W129: 0 | X129: 0 | Y129: 0 | Z129: 0 | AA129: 0 | AB129: 0 | AC129: 0 | AD129: 0 | AE129: 0 | AF129: 0 | AG129: 0 | AH129: 31 | AI129: 0 | AJ129: kk25 | AK129: =SUMIF($D$104:$D$1201,$T129,E$104:E$1201)/COUNTIF($D$104:D$1201,$T129) -> 0 | AL129: =SUMIF($D$104:$D$1201,$T129,F$104:F$1201)/COUNTIF($D$104:E$1201,$T129) -> 0 | AM129: =SUMIF($D$104:$D$1201,$T129,G$104:G$1201)/COUNTIF($D$104:F$1201,$T129) -> 0 | AN129: =SUMIF($D$104:$D$1201,$T129,H$104:H$1201)/COUNTIF($D$104:G$1201,$T129) -> 0 | AO129: =SUMIF($D$104:$D$1201,$T129,I$104:I$1201)/COUNTIF($D$104:H$1201,$T129) -> 0 | AP129: =SUMIF($D$104:$D$1201,$T129,J$104:J$1201)/COUNTIF($D$104:I$1201,$T129) -> 0 | AQ129: =SUMIF($D$104:$D$1201,$T129,K$104:K$1201)/COUNTIF($D$104:J$1201,$T129) -> 0 | AR129: =SUMIF($D$104:$D$1201,$T129,L$104:L$1201)/COUNTIF($D$104:K$1201,$T129) -> 0 | AS129: =SUMIF($D$104:$D$1201,$T129,M$104:M$1201)/COUNTIF($D$104:L$1201,$T129) -> 0 | AT129: =SUMIF($D$104:$D$1201,$T129,N$104:N$1201)/COUNTIF($D$104:M$1201,$T129) -> 0 | AU129: =SUMIF($D$104:$D$1201,$T129,O$104:O$1201)/COUNTIF($D$104:N$1201,$T129) -> 0 | AV129: =SUMIF($D$104:$D$1201,$T129,P$104:P$1201)/COUNTIF($D$104:O$1201,$T129) -> 0 | AW129: 0 | BC129: 0 | BD129: FALSE
A130: 26 | B130: 2019-01-26 | C130: 319.0494933 | D130: 201901 | E130: =IF(AND($A130>E$103,$A130<=E$100+E$103),OFFSET(Ryhma1!K203,-E$103-1,0),0) -> 28.17097055 | F130: =IF(AND($A130>F$103,$A130<=F$100+F$103),OFFSET(Ryhma2!K203,-F$103-1,0),0) -> 28.33910181 | G130: =IF(AND($A130>G$103,$A130<=G$100+G$103),OFFSET(Ryhma3!$K203,-G$103-1,0),0) -> 28.49369979 | H130: =IF(AND($A130>H$103,$A130<=H$100+H$103),OFFSET(Ryhma4!$K203,-H$103-1,0),0) -> 28.66375718 | I130: =IF(AND($A130>I$103,$A130<=I$100+I$103),OFFSET(Ryhma5!$K203,-I$103-1,0),0) -> 28.85935162 | J130: =IF(AND($A130>J$103,$A130<=J$100+J$103),OFFSET(Ryhma6!$K203,-J$103-1,0),0) -> 29.01185486 | K130: =IF(AND($A130>K$103,$A130<=K$100+K$103),OFFSET(Ryhma7!$K203,-K$103-1,0),0) -> 29.20485896 | L130: =IF(AND($A130>L$103,$A130<=L$100+L$103),OFFSET(Ryhma8!$K203,-L$103-1,0),0) -> 29.30931553 | M130: =IF(AND($A130>M$103,$A130<=M$100+M$103),OFFSET(Ryhma9!$K203,-M$103-1,0),0) -> 29.50931511 | N130: =IF(AND($A130>N$103,$A130<=N$100+N$103),OFFSET(Ryhma10!$K203,-N$103-1,0),0) -> 29.66525299 | O130: =IF(AND($A130>O$103,$A130<=O$100+O$103),OFFSET(Ryhma11!$K203,-O$103-1,0),0) -> 29.8220149 | P130: =IF(AND($A130>P$103,$A130<=P$100+P$103),OFFSET(Ryhma12!$K203,-P$103-1,0),0) -> 0 | Q130: =IF(COUNTIF(D$104:D130,D130)=1,D130,"") ->  | R130: =IF(COUNTIF(D$105:D130,D130)=1,1,0) -> 0 | S130: =IF(R130=0,"",MAX(S$104:S129)+1) ->  | T130: 202102 | U130: 0 | V130: 0 | W130: 0 | X130: 0 | Y130: 0 | Z130: 0 | AA130: 0 | AB130: 0 | AC130: 0 | AD130: 0 | AE130: 0 | AF130: 0 | AG130: 0 | AH130: 28 | AI130: 0 | AJ130: kk26 | AK130: =SUMIF($D$104:$D$1201,$T130,E$104:E$1201)/COUNTIF($D$104:D$1201,$T130) -> 0 | AL130: =SUMIF($D$104:$D$1201,$T130,F$104:F$1201)/COUNTIF($D$104:E$1201,$T130) -> 0 | AM130: =SUMIF($D$104:$D$1201,$T130,G$104:G$1201)/COUNTIF($D$104:F$1201,$T130) -> 0 | AN130: =SUMIF($D$104:$D$1201,$T130,H$104:H$1201)/COUNTIF($D$104:G$1201,$T130) -> 0 | AO130: =SUMIF($D$104:$D$1201,$T130,I$104:I$1201)/COUNTIF($D$104:H$1201,$T130) -> 0 | AP130: =SUMIF($D$104:$D$1201,$T130,J$104:J$1201)/COUNTIF($D$104:I$1201,$T130) -> 0 | AQ130: =SUMIF($D$104:$D$1201,$T130,K$104:K$1201)/COUNTIF($D$104:J$1201,$T130) -> 0 | AR130: =SUMIF($D$104:$D$1201,$T130,L$104:L$1201)/COUNTIF($D$104:K$1201,$T130) -> 0 | AS130: =SUMIF($D$104:$D$1201,$T130,M$104:M$1201)/COUNTIF($D$104:L$1201,$T130) -> 0 | AT130: =SUMIF($D$104:$D$1201,$T130,N$104:N$1201)/COUNTIF($D$104:M$1201,$T130) -> 0 | AU130: =SUMIF($D$104:$D$1201,$T130,O$104:O$1201)/COUNTIF($D$104:N$1201,$T130) -> 0 | AV130: =SUMIF($D$104:$D$1201,$T130,P$104:P$1201)/COUNTIF($D$104:O$1201,$T130) -> 0 | AW130: 0 | BC130: 0 | BD130: FALSE
A131: 27 | B131: 2019-01-27 | C131: 318.9952549 | D131: 201901 | E131: =IF(AND($A131>E$103,$A131<=E$100+E$103),OFFSET(Ryhma1!K204,-E$103-1,0),0) -> 28.16618148 | F131: =IF(AND($A131>F$103,$A131<=F$100+F$103),OFFSET(Ryhma2!K204,-F$103-1,0),0) -> 28.33428416 | G131: =IF(AND($A131>G$103,$A131<=G$100+G$103),OFFSET(Ryhma3!$K204,-G$103-1,0),0) -> 28.48885586 | H131: =IF(AND($A131>H$103,$A131<=H$100+H$103),OFFSET(Ryhma4!$K204,-H$103-1,0),0) -> 28.65888434 | I131: =IF(AND($A131>I$103,$A131<=I$100+I$103),OFFSET(Ryhma5!$K204,-I$103-1,0),0) -> 28.85444553 | J131: =IF(AND($A131>J$103,$A131<=J$100+J$103),OFFSET(Ryhma6!$K204,-J$103-1,0),0) -> 29.00692284 | K131: =IF(AND($A131>K$103,$A131<=K$100+K$103),OFFSET(Ryhma7!$K204,-K$103-1,0),0) -> 29.19989414 | L131: =IF(AND($A131>L$103,$A131<=L$100+L$103),OFFSET(Ryhma8!$K204,-L$103-1,0),0) -> 29.30433295 | M131: =IF(AND($A131>M$103,$A131<=M$100+M$103),OFFSET(Ryhma9!$K204,-M$103-1,0),0) -> 29.50429852 | N131: =IF(AND($A131>N$103,$A131<=N$100+N$103),OFFSET(Ryhma10!$K204,-N$103-1,0),0) -> 29.6602099 | O131: =IF(AND($A131>O$103,$A131<=O$100+O$103),OFFSET(Ryhma11!$K204,-O$103-1,0),0) -> 29.81694516 | P131: =IF(AND($A131>P$103,$A131<=P$100+P$103),OFFSET(Ryhma12!$K204,-P$103-1,0),0) -> 0 | Q131: =IF(COUNTIF(D$104:D131,D131)=1,D131,"") ->  | R131: =IF(COUNTIF(D$105:D131,D131)=1,1,0) -> 0 | S131: =IF(R131=0,"",MAX(S$104:S130)+1) ->  | T131: 202103 | U131: 0 | V131: 0 | W131: 0 | X131: 0 | Y131: 0 | Z131: 0 | AA131: 0 | AB131: 0 | AC131: 0 | AD131: 0 | AE131: 0 | AF131: 0 | AG131: 0 | AH131: 31 | AI131: 0 | AJ131: kk27 | AK131: =SUMIF($D$104:$D$1201,$T131,E$104:E$1201)/COUNTIF($D$104:D$1201,$T131) -> 0 | AL131: =SUMIF($D$104:$D$1201,$T131,F$104:F$1201)/COUNTIF($D$104:E$1201,$T131) -> 0 | AM131: =SUMIF($D$104:$D$1201,$T131,G$104:G$1201)/COUNTIF($D$104:F$1201,$T131) -> 0 | AN131: =SUMIF($D$104:$D$1201,$T131,H$104:H$1201)/COUNTIF($D$104:G$1201,$T131) -> 0 | AO131: =SUMIF($D$104:$D$1201,$T131,I$104:I$1201)/COUNTIF($D$104:H$1201,$T131) -> 0 | AP131: =SUMIF($D$104:$D$1201,$T131,J$104:J$1201)/COUNTIF($D$104:I$1201,$T131) -> 0 | AQ131: =SUMIF($D$104:$D$1201,$T131,K$104:K$1201)/COUNTIF($D$104:J$1201,$T131) -> 0 | AR131: =SUMIF($D$104:$D$1201,$T131,L$104:L$1201)/COUNTIF($D$104:K$1201,$T131) -> 0 | AS131: =SUMIF($D$104:$D$1201,$T131,M$104:M$1201)/COUNTIF($D$104:L$1201,$T131) -> 0 | AT131: =SUMIF($D$104:$D$1201,$T131,N$104:N$1201)/COUNTIF($D$104:M$1201,$T131) -> 0 | AU131: =SUMIF($D$104:$D$1201,$T131,O$104:O$1201)/COUNTIF($D$104:N$1201,$T131) -> 0 | AV131: =SUMIF($D$104:$D$1201,$T131,P$104:P$1201)/COUNTIF($D$104:O$1201,$T131) -> 0 | AW131: 0 | BC131: 0 | BD131: FALSE
A132: 28 | B132: 2019-01-28 | C132: 318.9410257 | D132: 201901 | E132: =IF(AND($A132>E$103,$A132<=E$100+E$103),OFFSET(Ryhma1!K205,-E$103-1,0),0) -> 28.16139323 | F132: =IF(AND($A132>F$103,$A132<=F$100+F$103),OFFSET(Ryhma2!K205,-F$103-1,0),0) -> 28.32946733 | G132: =IF(AND($A132>G$103,$A132<=G$100+G$103),OFFSET(Ryhma3!$K205,-G$103-1,0),0) -> 28.48401275 | H132: =IF(AND($A132>H$103,$A132<=H$100+H$103),OFFSET(Ryhma4!$K205,-H$103-1,0),0) -> 28.65401233 | I132: =IF(AND($A132>I$103,$A132<=I$100+I$103),OFFSET(Ryhma5!$K205,-I$103-1,0),0) -> 28.84954027 | J132: =IF(AND($A132>J$103,$A132<=J$100+J$103),OFFSET(Ryhma6!$K205,-J$103-1,0),0) -> 29.00199167 | K132: =IF(AND($A132>K$103,$A132<=K$100+K$103),OFFSET(Ryhma7!$K205,-K$103-1,0),0) -> 29.19493016 | L132: =IF(AND($A132>L$103,$A132<=L$100+L$103),OFFSET(Ryhma8!$K205,-L$103-1,0),0) -> 29.29935121 | M132: =IF(AND($A132>M$103,$A132<=M$100+M$103),OFFSET(Ryhma9!$K205,-M$103-1,0),0) -> 29.49928279 | N132: =IF(AND($A132>N$103,$A132<=N$100+N$103),OFFSET(Ryhma10!$K205,-N$103-1,0),0) -> 29.65516766 | O132: =IF(AND($A132>O$103,$A132<=O$100+O$103),OFFSET(Ryhma11!$K205,-O$103-1,0),0) -> 29.81187628 | P132: =IF(AND($A132>P$103,$A132<=P$100+P$103),OFFSET(Ryhma12!$K205,-P$103-1,0),0) -> 0 | Q132: =IF(COUNTIF(D$104:D132,D132)=1,D132,"") ->  | R132: =IF(COUNTIF(D$105:D132,D132)=1,1,0) -> 0 | S132: =IF(R132=0,"",MAX(S$104:S131)+1) ->  | T132: 202104 | U132: 0 | V132: 0 | W132: 0 | X132: 0 | Y132: 0 | Z132: 0 | AA132: 0 | AB132: 0 | AC132: 0 | AD132: 0 | AE132: 0 | AF132: 0 | AG132: 0 | AH132: 30 | AI132: 0 | AJ132: kk28 | AK132: =SUMIF($D$104:$D$1201,$T132,E$104:E$1201)/COUNTIF($D$104:D$1201,$T132) -> 0 | AL132: =SUMIF($D$104:$D$1201,$T132,F$104:F$1201)/COUNTIF($D$104:E$1201,$T132) -> 0 | AM132: =SUMIF($D$104:$D$1201,$T132,G$104:G$1201)/COUNTIF($D$104:F$1201,$T132) -> 0 | AN132: =SUMIF($D$104:$D$1201,$T132,H$104:H$1201)/COUNTIF($D$104:G$1201,$T132) -> 0 | AO132: =SUMIF($D$104:$D$1201,$T132,I$104:I$1201)/COUNTIF($D$104:H$1201,$T132) -> 0 | AP132: =SUMIF($D$104:$D$1201,$T132,J$104:J$1201)/COUNTIF($D$104:I$1201,$T132) -> 0 | AQ132: =SUMIF($D$104:$D$1201,$T132,K$104:K$1201)/COUNTIF($D$104:J$1201,$T132) -> 0 | AR132: =SUMIF($D$104:$D$1201,$T132,L$104:L$1201)/COUNTIF($D$104:K$1201,$T132) -> 0 | AS132: =SUMIF($D$104:$D$1201,$T132,M$104:M$1201)/COUNTIF($D$104:L$1201,$T132) -> 0 | AT132: =SUMIF($D$104:$D$1201,$T132,N$104:N$1201)/COUNTIF($D$104:M$1201,$T132) -> 0 | AU132: =SUMIF($D$104:$D$1201,$T132,O$104:O$1201)/COUNTIF($D$104:N$1201,$T132) -> 0 | AV132: =SUMIF($D$104:$D$1201,$T132,P$104:P$1201)/COUNTIF($D$104:O$1201,$T132) -> 0 | AW132: 0 | BC132: 0 | BD132: FALSE
A133: 29 | B133: 2019-01-29 | C133: 318.8868057 | D133: 201901 | E133: =IF(AND($A133>E$103,$A133<=E$100+E$103),OFFSET(Ryhma1!K206,-E$103-1,0),0) -> 28.1566058 | F133: =IF(AND($A133>F$103,$A133<=F$100+F$103),OFFSET(Ryhma2!K206,-F$103-1,0),0) -> 28.32465132 | G133: =IF(AND($A133>G$103,$A133<=G$100+G$103),OFFSET(Ryhma3!$K206,-G$103-1,0),0) -> 28.47917047 | H133: =IF(AND($A133>H$103,$A133<=H$100+H$103),OFFSET(Ryhma4!$K206,-H$103-1,0),0) -> 28.64914115 | I133: =IF(AND($A133>I$103,$A133<=I$100+I$103),OFFSET(Ryhma5!$K206,-I$103-1,0),0) -> 28.84463585 | J133: =IF(AND($A133>J$103,$A133<=J$100+J$103),OFFSET(Ryhma6!$K206,-J$103-1,0),0) -> 28.99706133 | K133: =IF(AND($A133>K$103,$A133<=K$100+K$103),OFFSET(Ryhma7!$K206,-K$103-1,0),0) -> 29.18996702 | L133: =IF(AND($A133>L$103,$A133<=L$100+L$103),OFFSET(Ryhma8!$K206,-L$103-1,0),0) -> 29.29437032 | M133: =IF(AND($A133>M$103,$A133<=M$100+M$103),OFFSET(Ryhma9!$K206,-M$103-1,0),0) -> 29.49426791 | N133: =IF(AND($A133>N$103,$A133<=N$100+N$103),OFFSET(Ryhma10!$K206,-N$103-1,0),0) -> 29.65012628 | O133: =IF(AND($A133>O$103,$A133<=O$100+O$103),OFFSET(Ryhma11!$K206,-O$103-1,0),0) -> 29.80680826 | P133: =IF(AND($A133>P$103,$A133<=P$100+P$103),OFFSET(Ryhma12!$K206,-P$103-1,0),0) -> 0 | Q133: =IF(COUNTIF(D$104:D133,D133)=1,D133,"") ->  | R133: =IF(COUNTIF(D$105:D133,D133)=1,1,0) -> 0 | S133: =IF(R133=0,"",MAX(S$104:S132)+1) ->  | T133: 202105 | U133: 0 | V133: 0 | W133: 0 | X133: 0 | Y133: 0 | Z133: 0 | AA133: 0 | AB133: 0 | AC133: 0 | AD133: 0 | AE133: 0 | AF133: 0 | AG133: 0 | AH133: 31 | AI133: 0 | AJ133: kk29 | AK133: =SUMIF($D$104:$D$1201,$T133,E$104:E$1201)/COUNTIF($D$104:D$1201,$T133) -> 0 | AL133: =SUMIF($D$104:$D$1201,$T133,F$104:F$1201)/COUNTIF($D$104:E$1201,$T133) -> 0 | AM133: =SUMIF($D$104:$D$1201,$T133,G$104:G$1201)/COUNTIF($D$104:F$1201,$T133) -> 0 | AN133: =SUMIF($D$104:$D$1201,$T133,H$104:H$1201)/COUNTIF($D$104:G$1201,$T133) -> 0 | AO133: =SUMIF($D$104:$D$1201,$T133,I$104:I$1201)/COUNTIF($D$104:H$1201,$T133) -> 0 | AP133: =SUMIF($D$104:$D$1201,$T133,J$104:J$1201)/COUNTIF($D$104:I$1201,$T133) -> 0 | AQ133: =SUMIF($D$104:$D$1201,$T133,K$104:K$1201)/COUNTIF($D$104:J$1201,$T133) -> 0 | AR133: =SUMIF($D$104:$D$1201,$T133,L$104:L$1201)/COUNTIF($D$104:K$1201,$T133) -> 0 | AS133: =SUMIF($D$104:$D$1201,$T133,M$104:M$1201)/COUNTIF($D$104:L$1201,$T133) -> 0 | AT133: =SUMIF($D$104:$D$1201,$T133,N$104:N$1201)/COUNTIF($D$104:M$1201,$T133) -> 0 | AU133: =SUMIF($D$104:$D$1201,$T133,O$104:O$1201)/COUNTIF($D$104:N$1201,$T133) -> 0 | AV133: =SUMIF($D$104:$D$1201,$T133,P$104:P$1201)/COUNTIF($D$104:O$1201,$T133) -> 0 | AW133: 0 | BC133: 0 | BD133: FALSE
A134: 30 | B134: 2019-01-30 | C134: 318.832595 | D134: 201901 | E134: =IF(AND($A134>E$103,$A134<=E$100+E$103),OFFSET(Ryhma1!K207,-E$103-1,0),0) -> 28.15181917 | F134: =IF(AND($A134>F$103,$A134<=F$100+F$103),OFFSET(Ryhma2!K207,-F$103-1,0),0) -> 28.31983613 | G134: =IF(AND($A134>G$103,$A134<=G$100+G$103),OFFSET(Ryhma3!$K207,-G$103-1,0),0) -> 28.47432901 | H134: =IF(AND($A134>H$103,$A134<=H$100+H$103),OFFSET(Ryhma4!$K207,-H$103-1,0),0) -> 28.64427079 | I134: =IF(AND($A134>I$103,$A134<=I$100+I$103),OFFSET(Ryhma5!$K207,-I$103-1,0),0) -> 28.83973226 | J134: =IF(AND($A134>J$103,$A134<=J$100+J$103),OFFSET(Ryhma6!$K207,-J$103-1,0),0) -> 28.99213183 | K134: =IF(AND($A134>K$103,$A134<=K$100+K$103),OFFSET(Ryhma7!$K207,-K$103-1,0),0) -> 29.18500472 | L134: =IF(AND($A134>L$103,$A134<=L$100+L$103),OFFSET(Ryhma8!$K207,-L$103-1,0),0) -> 29.28939028 | M134: =IF(AND($A134>M$103,$A134<=M$100+M$103),OFFSET(Ryhma9!$K207,-M$103-1,0),0) -> 29.48925389 | N134: =IF(AND($A134>N$103,$A134<=N$100+N$103),OFFSET(Ryhma10!$K207,-N$103-1,0),0) -> 29.64508576 | O134: =IF(AND($A134>O$103,$A134<=O$100+O$103),OFFSET(Ryhma11!$K207,-O$103-1,0),0) -> 29.8017411 | P134: =IF(AND($A134>P$103,$A134<=P$100+P$103),OFFSET(Ryhma12!$K207,-P$103-1,0),0) -> 0 | Q134: =IF(COUNTIF(D$104:D134,D134)=1,D134,"") ->  | R134: =IF(COUNTIF(D$105:D134,D134)=1,1,0) -> 0 | S134: =IF(R134=0,"",MAX(S$104:S133)+1) ->  | T134: 202106 | U134: 0 | V134: 0 | W134: 0 | X134: 0 | Y134: 0 | Z134: 0 | AA134: 0 | AB134: 0 | AC134: 0 | AD134: 0 | AE134: 0 | AF134: 0 | AG134: 0 | AH134: 30 | AI134: 0 | AJ134: kk30 | AK134: =SUMIF($D$104:$D$1201,$T134,E$104:E$1201)/COUNTIF($D$104:D$1201,$T134) -> 0 | AL134: =SUMIF($D$104:$D$1201,$T134,F$104:F$1201)/COUNTIF($D$104:E$1201,$T134) -> 0 | AM134: =SUMIF($D$104:$D$1201,$T134,G$104:G$1201)/COUNTIF($D$104:F$1201,$T134) -> 0 | AN134: =SUMIF($D$104:$D$1201,$T134,H$104:H$1201)/COUNTIF($D$104:G$1201,$T134) -> 0 | AO134: =SUMIF($D$104:$D$1201,$T134,I$104:I$1201)/COUNTIF($D$104:H$1201,$T134) -> 0 | AP134: =SUMIF($D$104:$D$1201,$T134,J$104:J$1201)/COUNTIF($D$104:I$1201,$T134) -> 0 | AQ134: =SUMIF($D$104:$D$1201,$T134,K$104:K$1201)/COUNTIF($D$104:J$1201,$T134) -> 0 | AR134: =SUMIF($D$104:$D$1201,$T134,L$104:L$1201)/COUNTIF($D$104:K$1201,$T134) -> 0 | AS134: =SUMIF($D$104:$D$1201,$T134,M$104:M$1201)/COUNTIF($D$104:L$1201,$T134) -> 0 | AT134: =SUMIF($D$104:$D$1201,$T134,N$104:N$1201)/COUNTIF($D$104:M$1201,$T134) -> 0 | AU134: =SUMIF($D$104:$D$1201,$T134,O$104:O$1201)/COUNTIF($D$104:N$1201,$T134) -> 0 | AV134: =SUMIF($D$104:$D$1201,$T134,P$104:P$1201)/COUNTIF($D$104:O$1201,$T134) -> 0 | AW134: 0 | BC134: 0 | BD134: FALSE
A135: 31 | B135: 2019-01-31 | C135: 318.7783934 | D135: 201901 | E135: =IF(AND($A135>E$103,$A135<=E$100+E$103),OFFSET(Ryhma1!K208,-E$103-1,0),0) -> 28.14703336 | F135: =IF(AND($A135>F$103,$A135<=F$100+F$103),OFFSET(Ryhma2!K208,-F$103-1,0),0) -> 28.31502176 | G135: =IF(AND($A135>G$103,$A135<=G$100+G$103),OFFSET(Ryhma3!$K208,-G$103-1,0),0) -> 28.46948838 | H135: =IF(AND($A135>H$103,$A135<=H$100+H$103),OFFSET(Ryhma4!$K208,-H$103-1,0),0) -> 28.63940127 | I135: =IF(AND($A135>I$103,$A135<=I$100+I$103),OFFSET(Ryhma5!$K208,-I$103-1,0),0) -> 28.83482951 | J135: =IF(AND($A135>J$103,$A135<=J$100+J$103),OFFSET(Ryhma6!$K208,-J$103-1,0),0) -> 28.98720317 | K135: =IF(AND($A135>K$103,$A135<=K$100+K$103),OFFSET(Ryhma7!$K208,-K$103-1,0),0) -> 29.18004327 | L135: =IF(AND($A135>L$103,$A135<=L$100+L$103),OFFSET(Ryhma8!$K208,-L$103-1,0),0) -> 29.28441108 | M135: =IF(AND($A135>M$103,$A135<=M$100+M$103),OFFSET(Ryhma9!$K208,-M$103-1,0),0) -> 29.48424072 | N135: =IF(AND($A135>N$103,$A135<=N$100+N$103),OFFSET(Ryhma10!$K208,-N$103-1,0),0) -> 29.6400461 | O135: =IF(AND($A135>O$103,$A135<=O$100+O$103),OFFSET(Ryhma11!$K208,-O$103-1,0),0) -> 29.79667481 | P135: =IF(AND($A135>P$103,$A135<=P$100+P$103),OFFSET(Ryhma12!$K208,-P$103-1,0),0) -> 0 | Q135: =IF(COUNTIF(D$104:D135,D135)=1,D135,"") ->  | R135: =IF(COUNTIF(D$105:D135,D135)=1,1,0) -> 0 | S135: =IF(R135=0,"",MAX(S$104:S134)+1) ->  | T135: 202107 | U135: 0 | V135: 0 | W135: 0 | X135: 0 | Y135: 0 | Z135: 0 | AA135: 0 | AB135: 0 | AC135: 0 | AD135: 0 | AE135: 0 | AF135: 0 | AG135: 0 | AH135: 31 | AI135: 0 | AJ135: kk31 | AK135: =SUMIF($D$104:$D$1201,$T135,E$104:E$1201)/COUNTIF($D$104:D$1201,$T135) -> 0 | AL135: =SUMIF($D$104:$D$1201,$T135,F$104:F$1201)/COUNTIF($D$104:E$1201,$T135) -> 0 | AM135: =SUMIF($D$104:$D$1201,$T135,G$104:G$1201)/COUNTIF($D$104:F$1201,$T135) -> 0 | AN135: =SUMIF($D$104:$D$1201,$T135,H$104:H$1201)/COUNTIF($D$104:G$1201,$T135) -> 0 | AO135: =SUMIF($D$104:$D$1201,$T135,I$104:I$1201)/COUNTIF($D$104:H$1201,$T135) -> 0 | AP135: =SUMIF($D$104:$D$1201,$T135,J$104:J$1201)/COUNTIF($D$104:I$1201,$T135) -> 0 | AQ135: =SUMIF($D$104:$D$1201,$T135,K$104:K$1201)/COUNTIF($D$104:J$1201,$T135) -> 0 | AR135: =SUMIF($D$104:$D$1201,$T135,L$104:L$1201)/COUNTIF($D$104:K$1201,$T135) -> 0 | AS135: =SUMIF($D$104:$D$1201,$T135,M$104:M$1201)/COUNTIF($D$104:L$1201,$T135) -> 0 | AT135: =SUMIF($D$104:$D$1201,$T135,N$104:N$1201)/COUNTIF($D$104:M$1201,$T135) -> 0 | AU135: =SUMIF($D$104:$D$1201,$T135,O$104:O$1201)/COUNTIF($D$104:N$1201,$T135) -> 0 | AV135: =SUMIF($D$104:$D$1201,$T135,P$104:P$1201)/COUNTIF($D$104:O$1201,$T135) -> 0 | AW135: 0 | BC135: 0 | BD135: FALSE
A136: 32 | B136: 2019-02-01 | C136: 318.7242011 | D136: 201902 | E136: =IF(AND($A136>E$103,$A136<=E$100+E$103),OFFSET(Ryhma1!K209,-E$103-1,0),0) -> 28.14224837 | F136: =IF(AND($A136>F$103,$A136<=F$100+F$103),OFFSET(Ryhma2!K209,-F$103-1,0),0) -> 28.31020821 | G136: =IF(AND($A136>G$103,$A136<=G$100+G$103),OFFSET(Ryhma3!$K209,-G$103-1,0),0) -> 28.46464856 | H136: =IF(AND($A136>H$103,$A136<=H$100+H$103),OFFSET(Ryhma4!$K209,-H$103-1,0),0) -> 28.63453257 | I136: =IF(AND($A136>I$103,$A136<=I$100+I$103),OFFSET(Ryhma5!$K209,-I$103-1,0),0) -> 28.82992759 | J136: =IF(AND($A136>J$103,$A136<=J$100+J$103),OFFSET(Ryhma6!$K209,-J$103-1,0),0) -> 28.98227534 | K136: =IF(AND($A136>K$103,$A136<=K$100+K$103),OFFSET(Ryhma7!$K209,-K$103-1,0),0) -> 29.17508267 | L136: =IF(AND($A136>L$103,$A136<=L$100+L$103),OFFSET(Ryhma8!$K209,-L$103-1,0),0) -> 29.27943273 | M136: =IF(AND($A136>M$103,$A136<=M$100+M$103),OFFSET(Ryhma9!$K209,-M$103-1,0),0) -> 29.4792284 | N136: =IF(AND($A136>N$103,$A136<=N$100+N$103),OFFSET(Ryhma10!$K209,-N$103-1,0),0) -> 29.63500729 | O136: =IF(AND($A136>O$103,$A136<=O$100+O$103),OFFSET(Ryhma11!$K209,-O$103-1,0),0) -> 29.79160937 | P136: =IF(AND($A136>P$103,$A136<=P$100+P$103),OFFSET(Ryhma12!$K209,-P$103-1,0),0) -> 0 | Q136: =IF(COUNTIF(D$104:D136,D136)=1,D136,"") -> 201902 | R136: =IF(COUNTIF(D$105:D136,D136)=1,1,0) -> 1 | S136: =IF(R136=0,"",MAX(S$104:S135)+1) -> 2 | T136: 202108 | U136: 0 | V136: 0 | W136: 0 | X136: 0 | Y136: 0 | Z136: 0 | AA136: 0 | AB136: 0 | AC136: 0 | AD136: 0 | AE136: 0 | AF136: 0 | AG136: 0 | AH136: 31 | AI136: 0 | AJ136: kk32 | AK136: =SUMIF($D$104:$D$1201,$T136,E$104:E$1201)/COUNTIF($D$104:D$1201,$T136) -> 0 | AL136: =SUMIF($D$104:$D$1201,$T136,F$104:F$1201)/COUNTIF($D$104:E$1201,$T136) -> 0 | AM136: =SUMIF($D$104:$D$1201,$T136,G$104:G$1201)/COUNTIF($D$104:F$1201,$T136) -> 0 | AN136: =SUMIF($D$104:$D$1201,$T136,H$104:H$1201)/COUNTIF($D$104:G$1201,$T136) -> 0 | AO136: =SUMIF($D$104:$D$1201,$T136,I$104:I$1201)/COUNTIF($D$104:H$1201,$T136) -> 0 | AP136: =SUMIF($D$104:$D$1201,$T136,J$104:J$1201)/COUNTIF($D$104:I$1201,$T136) -> 0 | AQ136: =SUMIF($D$104:$D$1201,$T136,K$104:K$1201)/COUNTIF($D$104:J$1201,$T136) -> 0 | AR136: =SUMIF($D$104:$D$1201,$T136,L$104:L$1201)/COUNTIF($D$104:K$1201,$T136) -> 0 | AS136: =SUMIF($D$104:$D$1201,$T136,M$104:M$1201)/COUNTIF($D$104:L$1201,$T136) -> 0 | AT136: =SUMIF($D$104:$D$1201,$T136,N$104:N$1201)/COUNTIF($D$104:M$1201,$T136) -> 0 | AU136: =SUMIF($D$104:$D$1201,$T136,O$104:O$1201)/COUNTIF($D$104:N$1201,$T136) -> 0 | AV136: =SUMIF($D$104:$D$1201,$T136,P$104:P$1201)/COUNTIF($D$104:O$1201,$T136) -> 0 | AW136: 0 | BC136: 0 | BD136: FALSE
A137: 33 | B137: 2019-02-02 | C137: 318.670018 | D137: 201902 | E137: =IF(AND($A137>E$103,$A137<=E$100+E$103),OFFSET(Ryhma1!K210,-E$103-1,0),0) -> 28.13746419 | F137: =IF(AND($A137>F$103,$A137<=F$100+F$103),OFFSET(Ryhma2!K210,-F$103-1,0),0) -> 28.30539547 | G137: =IF(AND($A137>G$103,$A137<=G$100+G$103),OFFSET(Ryhma3!$K210,-G$103-1,0),0) -> 28.45980957 | H137: =IF(AND($A137>H$103,$A137<=H$100+H$103),OFFSET(Ryhma4!$K210,-H$103-1,0),0) -> 28.6296647 | I137: =IF(AND($A137>I$103,$A137<=I$100+I$103),OFFSET(Ryhma5!$K210,-I$103-1,0),0) -> 28.8250265 | J137: =IF(AND($A137>J$103,$A137<=J$100+J$103),OFFSET(Ryhma6!$K210,-J$103-1,0),0) -> 28.97734835 | K137: =IF(AND($A137>K$103,$A137<=K$100+K$103),OFFSET(Ryhma7!$K210,-K$103-1,0),0) -> 29.1701229 | L137: =IF(AND($A137>L$103,$A137<=L$100+L$103),OFFSET(Ryhma8!$K210,-L$103-1,0),0) -> 29.27445523 | M137: =IF(AND($A137>M$103,$A137<=M$100+M$103),OFFSET(Ryhma9!$K210,-M$103-1,0),0) -> 29.47421693 | N137: =IF(AND($A137>N$103,$A137<=N$100+N$103),OFFSET(Ryhma10!$K210,-N$103-1,0),0) -> 29.62996934 | O137: =IF(AND($A137>O$103,$A137<=O$100+O$103),OFFSET(Ryhma11!$K210,-O$103-1,0),0) -> 29.7865448 | P137: =IF(AND($A137>P$103,$A137<=P$100+P$103),OFFSET(Ryhma12!$K210,-P$103-1,0),0) -> 0 | Q137: =IF(COUNTIF(D$104:D137,D137)=1,D137,"") ->  | R137: =IF(COUNTIF(D$105:D137,D137)=1,1,0) -> 0 | S137: =IF(R137=0,"",MAX(S$104:S136)+1) ->  | T137: 202109 | U137: 0 | V137: 0 | W137: 0 | X137: 0 | Y137: 0 | Z137: 0 | AA137: 0 | AB137: 0 | AC137: 0 | AD137: 0 | AE137: 0 | AF137: 0 | AG137: 0 | AH137: 30 | AI137: 0 | AJ137: kk33 | AK137: =SUMIF($D$104:$D$1201,$T137,E$104:E$1201)/COUNTIF($D$104:D$1201,$T137) -> 0 | AL137: =SUMIF($D$104:$D$1201,$T137,F$104:F$1201)/COUNTIF($D$104:E$1201,$T137) -> 0 | AM137: =SUMIF($D$104:$D$1201,$T137,G$104:G$1201)/COUNTIF($D$104:F$1201,$T137) -> 0 | AN137: =SUMIF($D$104:$D$1201,$T137,H$104:H$1201)/COUNTIF($D$104:G$1201,$T137) -> 0 | AO137: =SUMIF($D$104:$D$1201,$T137,I$104:I$1201)/COUNTIF($D$104:H$1201,$T137) -> 0 | AP137: =SUMIF($D$104:$D$1201,$T137,J$104:J$1201)/COUNTIF($D$104:I$1201,$T137) -> 0 | AQ137: =SUMIF($D$104:$D$1201,$T137,K$104:K$1201)/COUNTIF($D$104:J$1201,$T137) -> 0 | AR137: =SUMIF($D$104:$D$1201,$T137,L$104:L$1201)/COUNTIF($D$104:K$1201,$T137) -> 0 | AS137: =SUMIF($D$104:$D$1201,$T137,M$104:M$1201)/COUNTIF($D$104:L$1201,$T137) -> 0 | AT137: =SUMIF($D$104:$D$1201,$T137,N$104:N$1201)/COUNTIF($D$104:M$1201,$T137) -> 0 | AU137: =SUMIF($D$104:$D$1201,$T137,O$104:O$1201)/COUNTIF($D$104:N$1201,$T137) -> 0 | AV137: =SUMIF($D$104:$D$1201,$T137,P$104:P$1201)/COUNTIF($D$104:O$1201,$T137) -> 0 | AW137: 0 | BC137: 0 | BD137: FALSE
A138: 34 | B138: 2019-02-03 | C138: 318.6158441 | D138: 201902 | E138: =IF(AND($A138>E$103,$A138<=E$100+E$103),OFFSET(Ryhma1!K211,-E$103-1,0),0) -> 28.13268082 | F138: =IF(AND($A138>F$103,$A138<=F$100+F$103),OFFSET(Ryhma2!K211,-F$103-1,0),0) -> 28.30058355 | G138: =IF(AND($A138>G$103,$A138<=G$100+G$103),OFFSET(Ryhma3!$K211,-G$103-1,0),0) -> 28.45497141 | H138: =IF(AND($A138>H$103,$A138<=H$100+H$103),OFFSET(Ryhma4!$K211,-H$103-1,0),0) -> 28.62479765 | I138: =IF(AND($A138>I$103,$A138<=I$100+I$103),OFFSET(Ryhma5!$K211,-I$103-1,0),0) -> 28.82012625 | J138: =IF(AND($A138>J$103,$A138<=J$100+J$103),OFFSET(Ryhma6!$K211,-J$103-1,0),0) -> 28.9724222 | K138: =IF(AND($A138>K$103,$A138<=K$100+K$103),OFFSET(Ryhma7!$K211,-K$103-1,0),0) -> 29.16516398 | L138: =IF(AND($A138>L$103,$A138<=L$100+L$103),OFFSET(Ryhma8!$K211,-L$103-1,0),0) -> 29.26947857 | M138: =IF(AND($A138>M$103,$A138<=M$100+M$103),OFFSET(Ryhma9!$K211,-M$103-1,0),0) -> 29.46920631 | N138: =IF(AND($A138>N$103,$A138<=N$100+N$103),OFFSET(Ryhma10!$K211,-N$103-1,0),0) -> 29.62493224 | O138: =IF(AND($A138>O$103,$A138<=O$100+O$103),OFFSET(Ryhma11!$K211,-O$103-1,0),0) -> 29.78148109 | P138: =IF(AND($A138>P$103,$A138<=P$100+P$103),OFFSET(Ryhma12!$K211,-P$103-1,0),0) -> 0 | Q138: =IF(COUNTIF(D$104:D138,D138)=1,D138,"") ->  | R138: =IF(COUNTIF(D$105:D138,D138)=1,1,0) -> 0 | S138: =IF(R138=0,"",MAX(S$104:S137)+1) ->  | T138: 202110 | U138: 0 | V138: 0 | W138: 0 | X138: 0 | Y138: 0 | Z138: 0 | AA138: 0 | AB138: 0 | AC138: 0 | AD138: 0 | AE138: 0 | AF138: 0 | AG138: 0 | AH138: 31 | AI138: 0 | AJ138: kk34 | AK138: =SUMIF($D$104:$D$1201,$T138,E$104:E$1201)/COUNTIF($D$104:D$1201,$T138) -> 0 | AL138: =SUMIF($D$104:$D$1201,$T138,F$104:F$1201)/COUNTIF($D$104:E$1201,$T138) -> 0 | AM138: =SUMIF($D$104:$D$1201,$T138,G$104:G$1201)/COUNTIF($D$104:F$1201,$T138) -> 0 | AN138: =SUMIF($D$104:$D$1201,$T138,H$104:H$1201)/COUNTIF($D$104:G$1201,$T138) -> 0 | AO138: =SUMIF($D$104:$D$1201,$T138,I$104:I$1201)/COUNTIF($D$104:H$1201,$T138) -> 0 | AP138: =SUMIF($D$104:$D$1201,$T138,J$104:J$1201)/COUNTIF($D$104:I$1201,$T138) -> 0 | AQ138: =SUMIF($D$104:$D$1201,$T138,K$104:K$1201)/COUNTIF($D$104:J$1201,$T138) -> 0 | AR138: =SUMIF($D$104:$D$1201,$T138,L$104:L$1201)/COUNTIF($D$104:K$1201,$T138) -> 0 | AS138: =SUMIF($D$104:$D$1201,$T138,M$104:M$1201)/COUNTIF($D$104:L$1201,$T138) -> 0 | AT138: =SUMIF($D$104:$D$1201,$T138,N$104:N$1201)/COUNTIF($D$104:M$1201,$T138) -> 0 | AU138: =SUMIF($D$104:$D$1201,$T138,O$104:O$1201)/COUNTIF($D$104:N$1201,$T138) -> 0 | AV138: =SUMIF($D$104:$D$1201,$T138,P$104:P$1201)/COUNTIF($D$104:O$1201,$T138) -> 0 | AW138: 0 | BC138: 0 | BD138: FALSE
A139: 35 | B139: 2019-02-04 | C139: 318.5616794 | D139: 201902 | E139: =IF(AND($A139>E$103,$A139<=E$100+E$103),OFFSET(Ryhma1!K212,-E$103-1,0),0) -> 28.12789826 | F139: =IF(AND($A139>F$103,$A139<=F$100+F$103),OFFSET(Ryhma2!K212,-F$103-1,0),0) -> 28.29577246 | G139: =IF(AND($A139>G$103,$A139<=G$100+G$103),OFFSET(Ryhma3!$K212,-G$103-1,0),0) -> 28.45013406 | H139: =IF(AND($A139>H$103,$A139<=H$100+H$103),OFFSET(Ryhma4!$K212,-H$103-1,0),0) -> 28.61993144 | I139: =IF(AND($A139>I$103,$A139<=I$100+I$103),OFFSET(Ryhma5!$K212,-I$103-1,0),0) -> 28.81522682 | J139: =IF(AND($A139>J$103,$A139<=J$100+J$103),OFFSET(Ryhma6!$K212,-J$103-1,0),0) -> 28.96749689 | K139: =IF(AND($A139>K$103,$A139<=K$100+K$103),OFFSET(Ryhma7!$K212,-K$103-1,0),0) -> 29.1602059 | L139: =IF(AND($A139>L$103,$A139<=L$100+L$103),OFFSET(Ryhma8!$K212,-L$103-1,0),0) -> 29.26450276 | M139: =IF(AND($A139>M$103,$A139<=M$100+M$103),OFFSET(Ryhma9!$K212,-M$103-1,0),0) -> 29.46419654 | N139: =IF(AND($A139>N$103,$A139<=N$100+N$103),OFFSET(Ryhma10!$K212,-N$103-1,0),0) -> 29.619896 | O139: =IF(AND($A139>O$103,$A139<=O$100+O$103),OFFSET(Ryhma11!$K212,-O$103-1,0),0) -> 29.77641823 | P139: =IF(AND($A139>P$103,$A139<=P$100+P$103),OFFSET(Ryhma12!$K212,-P$103-1,0),0) -> 0 | Q139: =IF(COUNTIF(D$104:D139,D139)=1,D139,"") ->  | R139: =IF(COUNTIF(D$105:D139,D139)=1,1,0) -> 0 | S139: =IF(R139=0,"",MAX(S$104:S138)+1) ->  | T139: 202111 | U139: 0 | V139: 0 | W139: 0 | X139: 0 | Y139: 0 | Z139: 0 | AA139: 0 | AB139: 0 | AC139: 0 | AD139: 0 | AE139: 0 | AF139: 0 | AG139: 0 | AH139: 30 | AI139: 0 | AJ139: kk35 | AK139: =SUMIF($D$104:$D$1201,$T139,E$104:E$1201)/COUNTIF($D$104:D$1201,$T139) -> 0 | AL139: =SUMIF($D$104:$D$1201,$T139,F$104:F$1201)/COUNTIF($D$104:E$1201,$T139) -> 0 | AM139: =SUMIF($D$104:$D$1201,$T139,G$104:G$1201)/COUNTIF($D$104:F$1201,$T139) -> 0 | AN139: =SUMIF($D$104:$D$1201,$T139,H$104:H$1201)/COUNTIF($D$104:G$1201,$T139) -> 0 | AO139: =SUMIF($D$104:$D$1201,$T139,I$104:I$1201)/COUNTIF($D$104:H$1201,$T139) -> 0 | AP139: =SUMIF($D$104:$D$1201,$T139,J$104:J$1201)/COUNTIF($D$104:I$1201,$T139) -> 0 | AQ139: =SUMIF($D$104:$D$1201,$T139,K$104:K$1201)/COUNTIF($D$104:J$1201,$T139) -> 0 | AR139: =SUMIF($D$104:$D$1201,$T139,L$104:L$1201)/COUNTIF($D$104:K$1201,$T139) -> 0 | AS139: =SUMIF($D$104:$D$1201,$T139,M$104:M$1201)/COUNTIF($D$104:L$1201,$T139) -> 0 | AT139: =SUMIF($D$104:$D$1201,$T139,N$104:N$1201)/COUNTIF($D$104:M$1201,$T139) -> 0 | AU139: =SUMIF($D$104:$D$1201,$T139,O$104:O$1201)/COUNTIF($D$104:N$1201,$T139) -> 0 | AV139: =SUMIF($D$104:$D$1201,$T139,P$104:P$1201)/COUNTIF($D$104:O$1201,$T139) -> 0 | AW139: 0 | BC139: 0 | BD139: FALSE
A140: 36 | B140: 2019-02-05 | C140: 318.5075239 | D140: 201902 | E140: =IF(AND($A140>E$103,$A140<=E$100+E$103),OFFSET(Ryhma1!K213,-E$103-1,0),0) -> 28.12311652 | F140: =IF(AND($A140>F$103,$A140<=F$100+F$103),OFFSET(Ryhma2!K213,-F$103-1,0),0) -> 28.29096217 | G140: =IF(AND($A140>G$103,$A140<=G$100+G$103),OFFSET(Ryhma3!$K213,-G$103-1,0),0) -> 28.44529754 | H140: =IF(AND($A140>H$103,$A140<=H$100+H$103),OFFSET(Ryhma4!$K213,-H$103-1,0),0) -> 28.61506605 | I140: =IF(AND($A140>I$103,$A140<=I$100+I$103),OFFSET(Ryhma5!$K213,-I$103-1,0),0) -> 28.81032824 | J140: =IF(AND($A140>J$103,$A140<=J$100+J$103),OFFSET(Ryhma6!$K213,-J$103-1,0),0) -> 28.96257242 | K140: =IF(AND($A140>K$103,$A140<=K$100+K$103),OFFSET(Ryhma7!$K213,-K$103-1,0),0) -> 29.15524867 | L140: =IF(AND($A140>L$103,$A140<=L$100+L$103),OFFSET(Ryhma8!$K213,-L$103-1,0),0) -> 29.2595278 | M140: =IF(AND($A140>M$103,$A140<=M$100+M$103),OFFSET(Ryhma9!$K213,-M$103-1,0),0) -> 29.45918763 | N140: =IF(AND($A140>N$103,$A140<=N$100+N$103),OFFSET(Ryhma10!$K213,-N$103-1,0),0) -> 29.61486062 | O140: =IF(AND($A140>O$103,$A140<=O$100+O$103),OFFSET(Ryhma11!$K213,-O$103-1,0),0) -> 29.77135624 | P140: =IF(AND($A140>P$103,$A140<=P$100+P$103),OFFSET(Ryhma12!$K213,-P$103-1,0),0) -> 0 | Q140: =IF(COUNTIF(D$104:D140,D140)=1,D140,"") ->  | R140: =IF(COUNTIF(D$105:D140,D140)=1,1,0) -> 0 | S140: =IF(R140=0,"",MAX(S$104:S139)+1) ->  | T140: 202112 | U140: 0 | V140: 0 | W140: 0 | X140: 0 | Y140: 0 | Z140: 0 | AA140: 0 | AB140: 0 | AC140: 0 | AD140: 0 | AE140: 0 | AF140: 0 | AG140: 0 | AH140: 31 | AI140: 0 | AJ140: kk36 | AK140: =SUMIF($D$104:$D$1201,$T140,E$104:E$1201)/COUNTIF($D$104:D$1201,$T140) -> 0 | AL140: =SUMIF($D$104:$D$1201,$T140,F$104:F$1201)/COUNTIF($D$104:E$1201,$T140) -> 0 | AM140: =SUMIF($D$104:$D$1201,$T140,G$104:G$1201)/COUNTIF($D$104:F$1201,$T140) -> 0 | AN140: =SUMIF($D$104:$D$1201,$T140,H$104:H$1201)/COUNTIF($D$104:G$1201,$T140) -> 0 | AO140: =SUMIF($D$104:$D$1201,$T140,I$104:I$1201)/COUNTIF($D$104:H$1201,$T140) -> 0 | AP140: =SUMIF($D$104:$D$1201,$T140,J$104:J$1201)/COUNTIF($D$104:I$1201,$T140) -> 0 | AQ140: =SUMIF($D$104:$D$1201,$T140,K$104:K$1201)/COUNTIF($D$104:J$1201,$T140) -> 0 | AR140: =SUMIF($D$104:$D$1201,$T140,L$104:L$1201)/COUNTIF($D$104:K$1201,$T140) -> 0 | AS140: =SUMIF($D$104:$D$1201,$T140,M$104:M$1201)/COUNTIF($D$104:L$1201,$T140) -> 0 | AT140: =SUMIF($D$104:$D$1201,$T140,N$104:N$1201)/COUNTIF($D$104:M$1201,$T140) -> 0 | AU140: =SUMIF($D$104:$D$1201,$T140,O$104:O$1201)/COUNTIF($D$104:N$1201,$T140) -> 0 | AV140: =SUMIF($D$104:$D$1201,$T140,P$104:P$1201)/COUNTIF($D$104:O$1201,$T140) -> 0 | AW140: 0 | BC140: 0 | BD140: FALSE
A141: 37 | B141: 2019-02-06 | C141: 318.4533776 | D141: 201902 | E141: =IF(AND($A141>E$103,$A141<=E$100+E$103),OFFSET(Ryhma1!K214,-E$103-1,0),0) -> 28.11833559 | F141: =IF(AND($A141>F$103,$A141<=F$100+F$103),OFFSET(Ryhma2!K214,-F$103-1,0),0) -> 28.28615271 | G141: =IF(AND($A141>G$103,$A141<=G$100+G$103),OFFSET(Ryhma3!$K214,-G$103-1,0),0) -> 28.44046184 | H141: =IF(AND($A141>H$103,$A141<=H$100+H$103),OFFSET(Ryhma4!$K214,-H$103-1,0),0) -> 28.61020149 | I141: =IF(AND($A141>I$103,$A141<=I$100+I$103),OFFSET(Ryhma5!$K214,-I$103-1,0),0) -> 28.80543048 | J141: =IF(AND($A141>J$103,$A141<=J$100+J$103),OFFSET(Ryhma6!$K214,-J$103-1,0),0) -> 28.95764878 | K141: =IF(AND($A141>K$103,$A141<=K$100+K$103),OFFSET(Ryhma7!$K214,-K$103-1,0),0) -> 29.15029228 | L141: =IF(AND($A141>L$103,$A141<=L$100+L$103),OFFSET(Ryhma8!$K214,-L$103-1,0),0) -> 29.25455368 | M141: =IF(AND($A141>M$103,$A141<=M$100+M$103),OFFSET(Ryhma9!$K214,-M$103-1,0),0) -> 29.45417957 | N141: =IF(AND($A141>N$103,$A141<=N$100+N$103),OFFSET(Ryhma10!$K214,-N$103-1,0),0) -> 29.60982609 | O141: =IF(AND($A141>O$103,$A141<=O$100+O$103),OFFSET(Ryhma11!$K214,-O$103-1,0),0) -> 29.76629511 | P141: =IF(AND($A141>P$103,$A141<=P$100+P$103),OFFSET(Ryhma12!$K214,-P$103-1,0),0) -> 0 | Q141: =IF(COUNTIF(D$104:D141,D141)=1,D141,"") ->  | R141: =IF(COUNTIF(D$105:D141,D141)=1,1,0) -> 0 | S141: =IF(R141=0,"",MAX(S$104:S140)+1) ->  | T141: 202201 | U141: 0 | V141: 0 | W141: 0 | X141: 0 | Y141: 0 | Z141: 0 | AA141: 0 | AB141: 0 | AC141: 0 | AD141: 0 | AE141: 0 | AF141: 0 | AG141: 0 | AH141: 1 | AI141: 0 | AJ141: kk37 | AK141: =SUMIF($D$104:$D$1201,$T141,E$104:E$1201)/COUNTIF($D$104:D$1201,$T141) -> 0 | AL141: =SUMIF($D$104:$D$1201,$T141,F$104:F$1201)/COUNTIF($D$104:E$1201,$T141) -> 0 | AM141: =SUMIF($D$104:$D$1201,$T141,G$104:G$1201)/COUNTIF($D$104:F$1201,$T141) -> 0 | AN141: =SUMIF($D$104:$D$1201,$T141,H$104:H$1201)/COUNTIF($D$104:G$1201,$T141) -> 0 | AO141: =SUMIF($D$104:$D$1201,$T141,I$104:I$1201)/COUNTIF($D$104:H$1201,$T141) -> 0 | AP141: =SUMIF($D$104:$D$1201,$T141,J$104:J$1201)/COUNTIF($D$104:I$1201,$T141) -> 0 | AQ141: =SUMIF($D$104:$D$1201,$T141,K$104:K$1201)/COUNTIF($D$104:J$1201,$T141) -> 0 | AR141: =SUMIF($D$104:$D$1201,$T141,L$104:L$1201)/COUNTIF($D$104:K$1201,$T141) -> 0 | AS141: =SUMIF($D$104:$D$1201,$T141,M$104:M$1201)/COUNTIF($D$104:L$1201,$T141) -> 0 | AT141: =SUMIF($D$104:$D$1201,$T141,N$104:N$1201)/COUNTIF($D$104:M$1201,$T141) -> 0 | AU141: =SUMIF($D$104:$D$1201,$T141,O$104:O$1201)/COUNTIF($D$104:N$1201,$T141) -> 0 | AV141: =SUMIF($D$104:$D$1201,$T141,P$104:P$1201)/COUNTIF($D$104:O$1201,$T141) -> 0 | AW141: 0 | BC141: 0 | BD141: FALSE
A142: 38 | B142: 2019-02-07 | C142: 318.3992405 | D142: 201902 | E142: =IF(AND($A142>E$103,$A142<=E$100+E$103),OFFSET(Ryhma1!K215,-E$103-1,0),0) -> 28.11355547 | F142: =IF(AND($A142>F$103,$A142<=F$100+F$103),OFFSET(Ryhma2!K215,-F$103-1,0),0) -> 28.28134406 | G142: =IF(AND($A142>G$103,$A142<=G$100+G$103),OFFSET(Ryhma3!$K215,-G$103-1,0),0) -> 28.43562696 | H142: =IF(AND($A142>H$103,$A142<=H$100+H$103),OFFSET(Ryhma4!$K215,-H$103-1,0),0) -> 28.60533776 | I142: =IF(AND($A142>I$103,$A142<=I$100+I$103),OFFSET(Ryhma5!$K215,-I$103-1,0),0) -> 28.80053356 | J142: =IF(AND($A142>J$103,$A142<=J$100+J$103),OFFSET(Ryhma6!$K215,-J$103-1,0),0) -> 28.95272598 | K142: =IF(AND($A142>K$103,$A142<=K$100+K$103),OFFSET(Ryhma7!$K215,-K$103-1,0),0) -> 29.14533673 | L142: =IF(AND($A142>L$103,$A142<=L$100+L$103),OFFSET(Ryhma8!$K215,-L$103-1,0),0) -> 29.2495804 | M142: =IF(AND($A142>M$103,$A142<=M$100+M$103),OFFSET(Ryhma9!$K215,-M$103-1,0),0) -> 29.44917236 | N142: =IF(AND($A142>N$103,$A142<=N$100+N$103),OFFSET(Ryhma10!$K215,-N$103-1,0),0) -> 29.60479242 | O142: =IF(AND($A142>O$103,$A142<=O$100+O$103),OFFSET(Ryhma11!$K215,-O$103-1,0),0) -> 29.76123484 | P142: =IF(AND($A142>P$103,$A142<=P$100+P$103),OFFSET(Ryhma12!$K215,-P$103-1,0),0) -> 0 | Q142: =IF(COUNTIF(D$104:D142,D142)=1,D142,"") ->  | R142: =IF(COUNTIF(D$105:D142,D142)=1,1,0) -> 0 | S142: =IF(R142=0,"",MAX(S$104:S141)+1) ->  | T142: =COUNTA(T105:T141) -> 37 | U142: =SUM(U105:U141) -> 72527.28678 | AG142: Kasvatauspäivät | AH142: =SUM(AH105:AH141) -> 1097 | AI142: =SUM(AI105:AI141) -> 2393.796738 | AK142: kk1
A143: 39 | B143: 2019-02-08 | C143: 318.3451127 | D143: 201902 | E143: =IF(AND($A143>E$103,$A143<=E$100+E$103),OFFSET(Ryhma1!K216,-E$103-1,0),0) -> 28.10877617 | F143: =IF(AND($A143>F$103,$A143<=F$100+F$103),OFFSET(Ryhma2!K216,-F$103-1,0),0) -> 28.27653624 | G143: =IF(AND($A143>G$103,$A143<=G$100+G$103),OFFSET(Ryhma3!$K216,-G$103-1,0),0) -> 28.4307929 | H143: =IF(AND($A143>H$103,$A143<=H$100+H$103),OFFSET(Ryhma4!$K216,-H$103-1,0),0) -> 28.60047485 | I143: =IF(AND($A143>I$103,$A143<=I$100+I$103),OFFSET(Ryhma5!$K216,-I$103-1,0),0) -> 28.79563747 | J143: =IF(AND($A143>J$103,$A143<=J$100+J$103),OFFSET(Ryhma6!$K216,-J$103-1,0),0) -> 28.94780402 | K143: =IF(AND($A143>K$103,$A143<=K$100+K$103),OFFSET(Ryhma7!$K216,-K$103-1,0),0) -> 29.14038202 | L143: =IF(AND($A143>L$103,$A143<=L$100+L$103),OFFSET(Ryhma8!$K216,-L$103-1,0),0) -> 29.24460797 | M143: =IF(AND($A143>M$103,$A143<=M$100+M$103),OFFSET(Ryhma9!$K216,-M$103-1,0),0) -> 29.444166 | N143: =IF(AND($A143>N$103,$A143<=N$100+N$103),OFFSET(Ryhma10!$K216,-N$103-1,0),0) -> 29.59975961 | O143: =IF(AND($A143>O$103,$A143<=O$100+O$103),OFFSET(Ryhma11!$K216,-O$103-1,0),0) -> 29.75617543 | P143: =IF(AND($A143>P$103,$A143<=P$100+P$103),OFFSET(Ryhma12!$K216,-P$103-1,0),0) -> 0 | Q143: =IF(COUNTIF(D$104:D143,D143)=1,D143,"") ->  | R143: =IF(COUNTIF(D$105:D143,D143)=1,1,0) -> 0 | S143: =IF(R143=0,"",MAX(S$104:S142)+1) ->  | T143: =IFERROR(INDEX($D$105:$D$1201,MATCH(ROW()-ROW($Q$104),$S$105:$S$1201,0)),"") ->  | U143: =U142/AH142 -> 66.11420855 | AH143: =AI142/AH142 -> 2.182130117 | AI143: =AI142/T142 -> 64.69720915 | AK143: =SUM(AK105:AK141) -> 39.26542921 | AL143: 58.45032457 | AM143: 103.0193832 | AN143: 124.8941156 | AO143: 159.0742227 | AP143: 210.3166615 | AQ143: 232.7182981 | AR143: 242.952964 | AS143: 291.6996004 | AT143: 284.0198031 | AU143: 277.2468945 | AV143: 370.1390416
A144: 40 | B144: 2019-02-09 | C144: 348.290994 | D144: 201902 | E144: =IF(AND($A144>E$103,$A144<=E$100+E$103),OFFSET(Ryhma1!K217,-E$103-1,0),0) -> 28.10399767 | F144: =IF(AND($A144>F$103,$A144<=F$100+F$103),OFFSET(Ryhma2!K217,-F$103-1,0),0) -> 28.27172923 | G144: =IF(AND($A144>G$103,$A144<=G$100+G$103),OFFSET(Ryhma3!$K217,-G$103-1,0),0) -> 28.42595967 | H144: =IF(AND($A144>H$103,$A144<=H$100+H$103),OFFSET(Ryhma4!$K217,-H$103-1,0),0) -> 28.59561277 | I144: =IF(AND($A144>I$103,$A144<=I$100+I$103),OFFSET(Ryhma5!$K217,-I$103-1,0),0) -> 28.79074221 | J144: =IF(AND($A144>J$103,$A144<=J$100+J$103),OFFSET(Ryhma6!$K217,-J$103-1,0),0) -> 28.94288289 | K144: =IF(AND($A144>K$103,$A144<=K$100+K$103),OFFSET(Ryhma7!$K217,-K$103-1,0),0) -> 29.13542815 | L144: =IF(AND($A144>L$103,$A144<=L$100+L$103),OFFSET(Ryhma8!$K217,-L$103-1,0),0) -> 29.23963639 | M144: =IF(AND($A144>M$103,$A144<=M$100+M$103),OFFSET(Ryhma9!$K217,-M$103-1,0),0) -> 29.43916049 | N144: =IF(AND($A144>N$103,$A144<=N$100+N$103),OFFSET(Ryhma10!$K217,-N$103-1,0),0) -> 29.59472765 | O144: =IF(AND($A144>O$103,$A144<=O$100+O$103),OFFSET(Ryhma11!$K217,-O$103-1,0),0) -> 29.75111688 | P144: =IF(AND($A144>P$103,$A144<=P$100+P$103),OFFSET(Ryhma12!$K217,-P$103-1,0),0) -> 30 | Q144: =IF(COUNTIF(D$104:D144,D144)=1,D144,"") ->  | R144: =IF(COUNTIF(D$105:D144,D144)=1,1,0) -> 0 | S144: =IF(R144=0,"",MAX(S$104:S143)+1) ->  | T144: =IFERROR(INDEX($D$105:$D$1201,MATCH(ROW()-ROW($Q$104),$S$105:$S$1201,0)),"") ->  | AH144: =365/12*AH143 -> 66.37312439
A145: 41 | B145: 2019-02-10 | C145: 348.2317845 | D145: 201902 | E145: =IF(AND($A145>E$103,$A145<=E$100+E$103),OFFSET(Ryhma1!K218,-E$103-1,0),0) -> 28.09922 | F145: =IF(AND($A145>F$103,$A145<=F$100+F$103),OFFSET(Ryhma2!K218,-F$103-1,0),0) -> 28.26692303 | G145: =IF(AND($A145>G$103,$A145<=G$100+G$103),OFFSET(Ryhma3!$K218,-G$103-1,0),0) -> 28.42112726 | H145: =IF(AND($A145>H$103,$A145<=H$100+H$103),OFFSET(Ryhma4!$K218,-H$103-1,0),0) -> 28.59075151 | I145: =IF(AND($A145>I$103,$A145<=I$100+I$103),OFFSET(Ryhma5!$K218,-I$103-1,0),0) -> 28.78584778 | J145: =IF(AND($A145>J$103,$A145<=J$100+J$103),OFFSET(Ryhma6!$K218,-J$103-1,0),0) -> 28.9379626 | K145: =IF(AND($A145>K$103,$A145<=K$100+K$103),OFFSET(Ryhma7!$K218,-K$103-1,0),0) -> 29.13047513 | L145: =IF(AND($A145>L$103,$A145<=L$100+L$103),OFFSET(Ryhma8!$K218,-L$103-1,0),0) -> 29.23466565 | M145: =IF(AND($A145>M$103,$A145<=M$100+M$103),OFFSET(Ryhma9!$K218,-M$103-1,0),0) -> 29.43415583 | N145: =IF(AND($A145>N$103,$A145<=N$100+N$103),OFFSET(Ryhma10!$K218,-N$103-1,0),0) -> 29.58969655 | O145: =IF(AND($A145>O$103,$A145<=O$100+O$103),OFFSET(Ryhma11!$K218,-O$103-1,0),0) -> 29.74605919 | P145: =IF(AND($A145>P$103,$A145<=P$100+P$103),OFFSET(Ryhma12!$K218,-P$103-1,0),0) -> 29.9949 | Q145: =IF(COUNTIF(D$104:D145,D145)=1,D145,"") ->  | R145: =IF(COUNTIF(D$105:D145,D145)=1,1,0) -> 0 | S145: =IF(R145=0,"",MAX(S$104:S144)+1) ->  | AH145: =COUNTA(AH105:AH141) -> 37
A146: 42 | B146: 2019-02-11 | C146: 348.1725851 | D146: 201902 | E146: =IF(AND($A146>E$103,$A146<=E$100+E$103),OFFSET(Ryhma1!K219,-E$103-1,0),0) -> 28.09444313 | F146: =IF(AND($A146>F$103,$A146<=F$100+F$103),OFFSET(Ryhma2!K219,-F$103-1,0),0) -> 28.26211765 | G146: =IF(AND($A146>G$103,$A146<=G$100+G$103),OFFSET(Ryhma3!$K219,-G$103-1,0),0) -> 28.41629566 | H146: =IF(AND($A146>H$103,$A146<=H$100+H$103),OFFSET(Ryhma4!$K219,-H$103-1,0),0) -> 28.58589108 | I146: =IF(AND($A146>I$103,$A146<=I$100+I$103),OFFSET(Ryhma5!$K219,-I$103-1,0),0) -> 28.78095419 | J146: =IF(AND($A146>J$103,$A146<=J$100+J$103),OFFSET(Ryhma6!$K219,-J$103-1,0),0) -> 28.93304315 | K146: =IF(AND($A146>K$103,$A146<=K$100+K$103),OFFSET(Ryhma7!$K219,-K$103-1,0),0) -> 29.12552295 | L146: =IF(AND($A146>L$103,$A146<=L$100+L$103),OFFSET(Ryhma8!$K219,-L$103-1,0),0) -> 29.22969576 | M146: =IF(AND($A146>M$103,$A146<=M$100+M$103),OFFSET(Ryhma9!$K219,-M$103-1,0),0) -> 29.42915203 | N146: =IF(AND($A146>N$103,$A146<=N$100+N$103),OFFSET(Ryhma10!$K219,-N$103-1,0),0) -> 29.5846663 | O146: =IF(AND($A146>O$103,$A146<=O$100+O$103),OFFSET(Ryhma11!$K219,-O$103-1,0),0) -> 29.74100236 | P146: =IF(AND($A146>P$103,$A146<=P$100+P$103),OFFSET(Ryhma12!$K219,-P$103-1,0),0) -> 29.98980087 | Q146: =IF(COUNTIF(D$104:D146,D146)=1,D146,"") ->  | R146: =IF(COUNTIF(D$105:D146,D146)=1,1,0) -> 0 | S146: =IF(R146=0,"",MAX(S$104:S145)+1) -> 
A147: 43 | B147: 2019-02-12 | C147: 320.0237287 | D147: 201902 | E147: =IF(AND($A147>E$103,$A147<=E$100+E$103),OFFSET(Ryhma1!K220,-E$103-1,0),0) -> 0 | F147: =IF(AND($A147>F$103,$A147<=F$100+F$103),OFFSET(Ryhma2!K220,-F$103-1,0),0) -> 28.25731309 | G147: =IF(AND($A147>G$103,$A147<=G$100+G$103),OFFSET(Ryhma3!$K220,-G$103-1,0),0) -> 28.41146489 | H147: =IF(AND($A147>H$103,$A147<=H$100+H$103),OFFSET(Ryhma4!$K220,-H$103-1,0),0) -> 28.58103148 | I147: =IF(AND($A147>I$103,$A147<=I$100+I$103),OFFSET(Ryhma5!$K220,-I$103-1,0),0) -> 28.77606143 | J147: =IF(AND($A147>J$103,$A147<=J$100+J$103),OFFSET(Ryhma6!$K220,-J$103-1,0),0) -> 28.92812453 | K147: =IF(AND($A147>K$103,$A147<=K$100+K$103),OFFSET(Ryhma7!$K220,-K$103-1,0),0) -> 29.12057161 | L147: =IF(AND($A147>L$103,$A147<=L$100+L$103),OFFSET(Ryhma8!$K220,-L$103-1,0),0) -> 29.22472671 | M147: =IF(AND($A147>M$103,$A147<=M$100+M$103),OFFSET(Ryhma9!$K220,-M$103-1,0),0) -> 29.42414907 | N147: =IF(AND($A147>N$103,$A147<=N$100+N$103),OFFSET(Ryhma10!$K220,-N$103-1,0),0) -> 29.5796369 | O147: =IF(AND($A147>O$103,$A147<=O$100+O$103),OFFSET(Ryhma11!$K220,-O$103-1,0),0) -> 29.73594639 | P147: =IF(AND($A147>P$103,$A147<=P$100+P$103),OFFSET(Ryhma12!$K220,-P$103-1,0),0) -> 29.9847026 | Q147: =IF(COUNTIF(D$104:D147,D147)=1,D147,"") ->  | R147: =IF(COUNTIF(D$105:D147,D147)=1,1,0) -> 0 | S147: =IF(R147=0,"",MAX(S$104:S146)+1) -> 
A148: 44 | B148: 2019-02-13 | C148: 319.9693247 | D148: 201902 | E148: =IF(AND($A148>E$103,$A148<=E$100+E$103),OFFSET(Ryhma1!K221,-E$103-1,0),0) -> 0 | F148: =IF(AND($A148>F$103,$A148<=F$100+F$103),OFFSET(Ryhma2!K221,-F$103-1,0),0) -> 28.25250935 | G148: =IF(AND($A148>G$103,$A148<=G$100+G$103),OFFSET(Ryhma3!$K221,-G$103-1,0),0) -> 28.40663494 | H148: =IF(AND($A148>H$103,$A148<=H$100+H$103),OFFSET(Ryhma4!$K221,-H$103-1,0),0) -> 28.57617271 | I148: =IF(AND($A148>I$103,$A148<=I$100+I$103),OFFSET(Ryhma5!$K221,-I$103-1,0),0) -> 28.7711695 | J148: =IF(AND($A148>J$103,$A148<=J$100+J$103),OFFSET(Ryhma6!$K221,-J$103-1,0),0) -> 28.92320675 | K148: =IF(AND($A148>K$103,$A148<=K$100+K$103),OFFSET(Ryhma7!$K221,-K$103-1,0),0) -> 29.11562111 | L148: =IF(AND($A148>L$103,$A148<=L$100+L$103),OFFSET(Ryhma8!$K221,-L$103-1,0),0) -> 29.21975851 | M148: =IF(AND($A148>M$103,$A148<=M$100+M$103),OFFSET(Ryhma9!$K221,-M$103-1,0),0) -> 29.41914697 | N148: =IF(AND($A148>N$103,$A148<=N$100+N$103),OFFSET(Ryhma10!$K221,-N$103-1,0),0) -> 29.57460837 | O148: =IF(AND($A148>O$103,$A148<=O$100+O$103),OFFSET(Ryhma11!$K221,-O$103-1,0),0) -> 29.73089128 | P148: =IF(AND($A148>P$103,$A148<=P$100+P$103),OFFSET(Ryhma12!$K221,-P$103-1,0),0) -> 29.9796052 | Q148: =IF(COUNTIF(D$104:D148,D148)=1,D148,"") ->  | R148: =IF(COUNTIF(D$105:D148,D148)=1,1,0) -> 0 | S148: =IF(R148=0,"",MAX(S$104:S147)+1) -> 
A149: 45 | B149: 2019-02-14 | C149: 319.9149299 | D149: 201902 | E149: =IF(AND($A149>E$103,$A149<=E$100+E$103),OFFSET(Ryhma1!K222,-E$103-1,0),0) -> 0 | F149: =IF(AND($A149>F$103,$A149<=F$100+F$103),OFFSET(Ryhma2!K222,-F$103-1,0),0) -> 28.24770642 | G149: =IF(AND($A149>G$103,$A149<=G$100+G$103),OFFSET(Ryhma3!$K222,-G$103-1,0),0) -> 28.40180582 | H149: =IF(AND($A149>H$103,$A149<=H$100+H$103),OFFSET(Ryhma4!$K222,-H$103-1,0),0) -> 28.57131476 | I149: =IF(AND($A149>I$103,$A149<=I$100+I$103),OFFSET(Ryhma5!$K222,-I$103-1,0),0) -> 28.7662784 | J149: =IF(AND($A149>J$103,$A149<=J$100+J$103),OFFSET(Ryhma6!$K222,-J$103-1,0),0) -> 28.9182898 | K149: =IF(AND($A149>K$103,$A149<=K$100+K$103),OFFSET(Ryhma7!$K222,-K$103-1,0),0) -> 29.11067146 | L149: =IF(AND($A149>L$103,$A149<=L$100+L$103),OFFSET(Ryhma8!$K222,-L$103-1,0),0) -> 29.21479115 | M149: =IF(AND($A149>M$103,$A149<=M$100+M$103),OFFSET(Ryhma9!$K222,-M$103-1,0),0) -> 29.41414571 | N149: =IF(AND($A149>N$103,$A149<=N$100+N$103),OFFSET(Ryhma10!$K222,-N$103-1,0),0) -> 29.56958068 | O149: =IF(AND($A149>O$103,$A149<=O$100+O$103),OFFSET(Ryhma11!$K222,-O$103-1,0),0) -> 29.72583703 | P149: =IF(AND($A149>P$103,$A149<=P$100+P$103),OFFSET(Ryhma12!$K222,-P$103-1,0),0) -> 29.97450867 | Q149: =IF(COUNTIF(D$104:D149,D149)=1,D149,"") ->  | R149: =IF(COUNTIF(D$105:D149,D149)=1,1,0) -> 0 | S149: =IF(R149=0,"",MAX(S$104:S148)+1) -> 
A150: 46 | B150: 2019-02-15 | C150: 319.8605444 | D150: 201902 | E150: =IF(AND($A150>E$103,$A150<=E$100+E$103),OFFSET(Ryhma1!K223,-E$103-1,0),0) -> 0 | F150: =IF(AND($A150>F$103,$A150<=F$100+F$103),OFFSET(Ryhma2!K223,-F$103-1,0),0) -> 28.24290431 | G150: =IF(AND($A150>G$103,$A150<=G$100+G$103),OFFSET(Ryhma3!$K223,-G$103-1,0),0) -> 28.39697751 | H150: =IF(AND($A150>H$103,$A150<=H$100+H$103),OFFSET(Ryhma4!$K223,-H$103-1,0),0) -> 28.56645764 | I150: =IF(AND($A150>I$103,$A150<=I$100+I$103),OFFSET(Ryhma5!$K223,-I$103-1,0),0) -> 28.76138813 | J150: =IF(AND($A150>J$103,$A150<=J$100+J$103),OFFSET(Ryhma6!$K223,-J$103-1,0),0) -> 28.91337369 | K150: =IF(AND($A150>K$103,$A150<=K$100+K$103),OFFSET(Ryhma7!$K223,-K$103-1,0),0) -> 29.10572264 | L150: =IF(AND($A150>L$103,$A150<=L$100+L$103),OFFSET(Ryhma8!$K223,-L$103-1,0),0) -> 29.20982463 | M150: =IF(AND($A150>M$103,$A150<=M$100+M$103),OFFSET(Ryhma9!$K223,-M$103-1,0),0) -> 29.40914531 | N150: =IF(AND($A150>N$103,$A150<=N$100+N$103),OFFSET(Ryhma10!$K223,-N$103-1,0),0) -> 29.56455385 | O150: =IF(AND($A150>O$103,$A150<=O$100+O$103),OFFSET(Ryhma11!$K223,-O$103-1,0),0) -> 29.72078364 | P150: =IF(AND($A150>P$103,$A150<=P$100+P$103),OFFSET(Ryhma12!$K223,-P$103-1,0),0) -> 29.969413 | Q150: =IF(COUNTIF(D$104:D150,D150)=1,D150,"") ->  | R150: =IF(COUNTIF(D$105:D150,D150)=1,1,0) -> 0 | S150: =IF(R150=0,"",MAX(S$104:S149)+1) -> 
A151: 47 | B151: 2019-02-16 | C151: 319.8061681 | D151: 201902 | E151: =IF(AND($A151>E$103,$A151<=E$100+E$103),OFFSET(Ryhma1!K224,-E$103-1,0),0) -> 0 | F151: =IF(AND($A151>F$103,$A151<=F$100+F$103),OFFSET(Ryhma2!K224,-F$103-1,0),0) -> 28.23810302 | G151: =IF(AND($A151>G$103,$A151<=G$100+G$103),OFFSET(Ryhma3!$K224,-G$103-1,0),0) -> 28.39215002 | H151: =IF(AND($A151>H$103,$A151<=H$100+H$103),OFFSET(Ryhma4!$K224,-H$103-1,0),0) -> 28.56160134 | I151: =IF(AND($A151>I$103,$A151<=I$100+I$103),OFFSET(Ryhma5!$K224,-I$103-1,0),0) -> 28.75649869 | J151: =IF(AND($A151>J$103,$A151<=J$100+J$103),OFFSET(Ryhma6!$K224,-J$103-1,0),0) -> 28.90845842 | K151: =IF(AND($A151>K$103,$A151<=K$100+K$103),OFFSET(Ryhma7!$K224,-K$103-1,0),0) -> 29.10077467 | L151: =IF(AND($A151>L$103,$A151<=L$100+L$103),OFFSET(Ryhma8!$K224,-L$103-1,0),0) -> 29.20485896 | M151: =IF(AND($A151>M$103,$A151<=M$100+M$103),OFFSET(Ryhma9!$K224,-M$103-1,0),0) -> 29.40414575 | N151: =IF(AND($A151>N$103,$A151<=N$100+N$103),OFFSET(Ryhma10!$K224,-N$103-1,0),0) -> 29.55952788 | O151: =IF(AND($A151>O$103,$A151<=O$100+O$103),OFFSET(Ryhma11!$K224,-O$103-1,0),0) -> 29.7157311 | P151: =IF(AND($A151>P$103,$A151<=P$100+P$103),OFFSET(Ryhma12!$K224,-P$103-1,0),0) -> 29.9643182 | Q151: =IF(COUNTIF(D$104:D151,D151)=1,D151,"") ->  | R151: =IF(COUNTIF(D$105:D151,D151)=1,1,0) -> 0 | S151: =IF(R151=0,"",MAX(S$104:S150)+1) -> 
A152: 48 | B152: 2019-02-17 | C152: 319.751801 | D152: 201902 | E152: =IF(AND($A152>E$103,$A152<=E$100+E$103),OFFSET(Ryhma1!K225,-E$103-1,0),0) -> 0 | F152: =IF(AND($A152>F$103,$A152<=F$100+F$103),OFFSET(Ryhma2!K225,-F$103-1,0),0) -> 28.23330254 | G152: =IF(AND($A152>G$103,$A152<=G$100+G$103),OFFSET(Ryhma3!$K225,-G$103-1,0),0) -> 28.38732336 | H152: =IF(AND($A152>H$103,$A152<=H$100+H$103),OFFSET(Ryhma4!$K225,-H$103-1,0),0) -> 28.55674587 | I152: =IF(AND($A152>I$103,$A152<=I$100+I$103),OFFSET(Ryhma5!$K225,-I$103-1,0),0) -> 28.75161009 | J152: =IF(AND($A152>J$103,$A152<=J$100+J$103),OFFSET(Ryhma6!$K225,-J$103-1,0),0) -> 28.90354398 | K152: =IF(AND($A152>K$103,$A152<=K$100+K$103),OFFSET(Ryhma7!$K225,-K$103-1,0),0) -> 29.09582754 | L152: =IF(AND($A152>L$103,$A152<=L$100+L$103),OFFSET(Ryhma8!$K225,-L$103-1,0),0) -> 29.19989414 | M152: =IF(AND($A152>M$103,$A152<=M$100+M$103),OFFSET(Ryhma9!$K225,-M$103-1,0),0) -> 29.39914705 | N152: =IF(AND($A152>N$103,$A152<=N$100+N$103),OFFSET(Ryhma10!$K225,-N$103-1,0),0) -> 29.55450276 | O152: =IF(AND($A152>O$103,$A152<=O$100+O$103),OFFSET(Ryhma11!$K225,-O$103-1,0),0) -> 29.71067943 | P152: =IF(AND($A152>P$103,$A152<=P$100+P$103),OFFSET(Ryhma12!$K225,-P$103-1,0),0) -> 29.95922427 | Q152: =IF(COUNTIF(D$104:D152,D152)=1,D152,"") ->  | R152: =IF(COUNTIF(D$105:D152,D152)=1,1,0) -> 0 | S152: =IF(R152=0,"",MAX(S$104:S151)+1) -> 
A153: 49 | B153: 2019-02-18 | C153: 319.6974432 | D153: 201902 | E153: =IF(AND($A153>E$103,$A153<=E$100+E$103),OFFSET(Ryhma1!K226,-E$103-1,0),0) -> 0 | F153: =IF(AND($A153>F$103,$A153<=F$100+F$103),OFFSET(Ryhma2!K226,-F$103-1,0),0) -> 28.22850288 | G153: =IF(AND($A153>G$103,$A153<=G$100+G$103),OFFSET(Ryhma3!$K226,-G$103-1,0),0) -> 28.38249751 | H153: =IF(AND($A153>H$103,$A153<=H$100+H$103),OFFSET(Ryhma4!$K226,-H$103-1,0),0) -> 28.55189122 | I153: =IF(AND($A153>I$103,$A153<=I$100+I$103),OFFSET(Ryhma5!$K226,-I$103-1,0),0) -> 28.74672231 | J153: =IF(AND($A153>J$103,$A153<=J$100+J$103),OFFSET(Ryhma6!$K226,-J$103-1,0),0) -> 28.89863038 | K153: =IF(AND($A153>K$103,$A153<=K$100+K$103),OFFSET(Ryhma7!$K226,-K$103-1,0),0) -> 29.09088125 | L153: =IF(AND($A153>L$103,$A153<=L$100+L$103),OFFSET(Ryhma8!$K226,-L$103-1,0),0) -> 29.19493016 | M153: =IF(AND($A153>M$103,$A153<=M$100+M$103),OFFSET(Ryhma9!$K226,-M$103-1,0),0) -> 29.39414919 | N153: =IF(AND($A153>N$103,$A153<=N$100+N$103),OFFSET(Ryhma10!$K226,-N$103-1,0),0) -> 29.54947849 | O153: =IF(AND($A153>O$103,$A153<=O$100+O$103),OFFSET(Ryhma11!$K226,-O$103-1,0),0) -> 29.70562861 | P153: =IF(AND($A153>P$103,$A153<=P$100+P$103),OFFSET(Ryhma12!$K226,-P$103-1,0),0) -> 29.9541312 | Q153: =IF(COUNTIF(D$104:D153,D153)=1,D153,"") ->  | R153: =IF(COUNTIF(D$105:D153,D153)=1,1,0) -> 0 | S153: =IF(R153=0,"",MAX(S$104:S152)+1) -> 
A154: 50 | B154: 2019-02-19 | C154: 319.6430946 | D154: 201902 | E154: =IF(AND($A154>E$103,$A154<=E$100+E$103),OFFSET(Ryhma1!K227,-E$103-1,0),0) -> 0 | F154: =IF(AND($A154>F$103,$A154<=F$100+F$103),OFFSET(Ryhma2!K227,-F$103-1,0),0) -> 28.22370404 | G154: =IF(AND($A154>G$103,$A154<=G$100+G$103),OFFSET(Ryhma3!$K227,-G$103-1,0),0) -> 28.37767249 | H154: =IF(AND($A154>H$103,$A154<=H$100+H$103),OFFSET(Ryhma4!$K227,-H$103-1,0),0) -> 28.5470374 | I154: =IF(AND($A154>I$103,$A154<=I$100+I$103),OFFSET(Ryhma5!$K227,-I$103-1,0),0) -> 28.74183537 | J154: =IF(AND($A154>J$103,$A154<=J$100+J$103),OFFSET(Ryhma6!$K227,-J$103-1,0),0) -> 28.89371761 | K154: =IF(AND($A154>K$103,$A154<=K$100+K$103),OFFSET(Ryhma7!$K227,-K$103-1,0),0) -> 29.0859358 | L154: =IF(AND($A154>L$103,$A154<=L$100+L$103),OFFSET(Ryhma8!$K227,-L$103-1,0),0) -> 29.18996702 | M154: =IF(AND($A154>M$103,$A154<=M$100+M$103),OFFSET(Ryhma9!$K227,-M$103-1,0),0) -> 29.38915219 | N154: =IF(AND($A154>N$103,$A154<=N$100+N$103),OFFSET(Ryhma10!$K227,-N$103-1,0),0) -> 29.54445508 | O154: =IF(AND($A154>O$103,$A154<=O$100+O$103),OFFSET(Ryhma11!$K227,-O$103-1,0),0) -> 29.70057866 | P154: =IF(AND($A154>P$103,$A154<=P$100+P$103),OFFSET(Ryhma12!$K227,-P$103-1,0),0) -> 29.949039 | Q154: =IF(COUNTIF(D$104:D154,D154)=1,D154,"") ->  | R154: =IF(COUNTIF(D$105:D154,D154)=1,1,0) -> 0 | S154: =IF(R154=0,"",MAX(S$104:S153)+1) -> 
A155: 51 | B155: 2019-02-20 | C155: 319.5887553 | D155: 201902 | E155: =IF(AND($A155>E$103,$A155<=E$100+E$103),OFFSET(Ryhma1!K228,-E$103-1,0),0) -> 0 | F155: =IF(AND($A155>F$103,$A155<=F$100+F$103),OFFSET(Ryhma2!K228,-F$103-1,0),0) -> 28.21890601 | G155: =IF(AND($A155>G$103,$A155<=G$100+G$103),OFFSET(Ryhma3!$K228,-G$103-1,0),0) -> 28.37284828 | H155: =IF(AND($A155>H$103,$A155<=H$100+H$103),OFFSET(Ryhma4!$K228,-H$103-1,0),0) -> 28.5421844 | I155: =IF(AND($A155>I$103,$A155<=I$100+I$103),OFFSET(Ryhma5!$K228,-I$103-1,0),0) -> 28.73694926 | J155: =IF(AND($A155>J$103,$A155<=J$100+J$103),OFFSET(Ryhma6!$K228,-J$103-1,0),0) -> 28.88880568 | K155: =IF(AND($A155>K$103,$A155<=K$100+K$103),OFFSET(Ryhma7!$K228,-K$103-1,0),0) -> 29.08099119 | L155: =IF(AND($A155>L$103,$A155<=L$100+L$103),OFFSET(Ryhma8!$K228,-L$103-1,0),0) -> 29.18500472 | M155: =IF(AND($A155>M$103,$A155<=M$100+M$103),OFFSET(Ryhma9!$K228,-M$103-1,0),0) -> 29.38415603 | N155: =IF(AND($A155>N$103,$A155<=N$100+N$103),OFFSET(Ryhma10!$K228,-N$103-1,0),0) -> 29.53943253 | O155: =IF(AND($A155>O$103,$A155<=O$100+O$103),OFFSET(Ryhma11!$K228,-O$103-1,0),0) -> 29.69552956 | P155: =IF(AND($A155>P$103,$A155<=P$100+P$103),OFFSET(Ryhma12!$K228,-P$103-1,0),0) -> 29.94394766 | Q155: =IF(COUNTIF(D$104:D155,D155)=1,D155,"") ->  | R155: =IF(COUNTIF(D$105:D155,D155)=1,1,0) -> 0 | S155: =IF(R155=0,"",MAX(S$104:S154)+1) -> 
A156: 52 | B156: 2019-02-21 | C156: 319.5344252 | D156: 201902 | E156: =IF(AND($A156>E$103,$A156<=E$100+E$103),OFFSET(Ryhma1!K229,-E$103-1,0),0) -> 0 | F156: =IF(AND($A156>F$103,$A156<=F$100+F$103),OFFSET(Ryhma2!K229,-F$103-1,0),0) -> 28.21410879 | G156: =IF(AND($A156>G$103,$A156<=G$100+G$103),OFFSET(Ryhma3!$K229,-G$103-1,0),0) -> 28.3680249 | H156: =IF(AND($A156>H$103,$A156<=H$100+H$103),OFFSET(Ryhma4!$K229,-H$103-1,0),0) -> 28.53733223 | I156: =IF(AND($A156>I$103,$A156<=I$100+I$103),OFFSET(Ryhma5!$K229,-I$103-1,0),0) -> 28.73206398 | J156: =IF(AND($A156>J$103,$A156<=J$100+J$103),OFFSET(Ryhma6!$K229,-J$103-1,0),0) -> 28.88389458 | K156: =IF(AND($A156>K$103,$A156<=K$100+K$103),OFFSET(Ryhma7!$K229,-K$103-1,0),0) -> 29.07604742 | L156: =IF(AND($A156>L$103,$A156<=L$100+L$103),OFFSET(Ryhma8!$K229,-L$103-1,0),0) -> 29.18004327 | M156: =IF(AND($A156>M$103,$A156<=M$100+M$103),OFFSET(Ryhma9!$K229,-M$103-1,0),0) -> 29.37916072 | N156: =IF(AND($A156>N$103,$A156<=N$100+N$103),OFFSET(Ryhma10!$K229,-N$103-1,0),0) -> 29.53441082 | O156: =IF(AND($A156>O$103,$A156<=O$100+O$103),OFFSET(Ryhma11!$K229,-O$103-1,0),0) -> 29.69048132 | P156: =IF(AND($A156>P$103,$A156<=P$100+P$103),OFFSET(Ryhma12!$K229,-P$103-1,0),0) -> 29.93885719 | Q156: =IF(COUNTIF(D$104:D156,D156)=1,D156,"") ->  | R156: =IF(COUNTIF(D$105:D156,D156)=1,1,0) -> 0 | S156: =IF(R156=0,"",MAX(S$104:S155)+1) -> 
A157: 53 | B157: 2019-02-22 | C157: 319.4801044 | D157: 201902 | E157: =IF(AND($A157>E$103,$A157<=E$100+E$103),OFFSET(Ryhma1!K230,-E$103-1,0),0) -> 0 | F157: =IF(AND($A157>F$103,$A157<=F$100+F$103),OFFSET(Ryhma2!K230,-F$103-1,0),0) -> 28.20931239 | G157: =IF(AND($A157>G$103,$A157<=G$100+G$103),OFFSET(Ryhma3!$K230,-G$103-1,0),0) -> 28.36320234 | H157: =IF(AND($A157>H$103,$A157<=H$100+H$103),OFFSET(Ryhma4!$K230,-H$103-1,0),0) -> 28.53248088 | I157: =IF(AND($A157>I$103,$A157<=I$100+I$103),OFFSET(Ryhma5!$K230,-I$103-1,0),0) -> 28.72717953 | J157: =IF(AND($A157>J$103,$A157<=J$100+J$103),OFFSET(Ryhma6!$K230,-J$103-1,0),0) -> 28.87898432 | K157: =IF(AND($A157>K$103,$A157<=K$100+K$103),OFFSET(Ryhma7!$K230,-K$103-1,0),0) -> 29.07110449 | L157: =IF(AND($A157>L$103,$A157<=L$100+L$103),OFFSET(Ryhma8!$K230,-L$103-1,0),0) -> 29.17508267 | M157: =IF(AND($A157>M$103,$A157<=M$100+M$103),OFFSET(Ryhma9!$K230,-M$103-1,0),0) -> 29.37416627 | N157: =IF(AND($A157>N$103,$A157<=N$100+N$103),OFFSET(Ryhma10!$K230,-N$103-1,0),0) -> 29.52938997 | O157: =IF(AND($A157>O$103,$A157<=O$100+O$103),OFFSET(Ryhma11!$K230,-O$103-1,0),0) -> 29.68543394 | P157: =IF(AND($A157>P$103,$A157<=P$100+P$103),OFFSET(Ryhma12!$K230,-P$103-1,0),0) -> 29.93376758 | Q157: =IF(COUNTIF(D$104:D157,D157)=1,D157,"") ->  | R157: =IF(COUNTIF(D$105:D157,D157)=1,1,0) -> 0 | S157: =IF(R157=0,"",MAX(S$104:S156)+1) -> 
A158: 54 | B158: 2019-02-23 | C158: 319.4257928 | D158: 201902 | E158: =IF(AND($A158>E$103,$A158<=E$100+E$103),OFFSET(Ryhma1!K231,-E$103-1,0),0) -> 0 | F158: =IF(AND($A158>F$103,$A158<=F$100+F$103),OFFSET(Ryhma2!K231,-F$103-1,0),0) -> 28.20451681 | G158: =IF(AND($A158>G$103,$A158<=G$100+G$103),OFFSET(Ryhma3!$K231,-G$103-1,0),0) -> 28.35838059 | H158: =IF(AND($A158>H$103,$A158<=H$100+H$103),OFFSET(Ryhma4!$K231,-H$103-1,0),0) -> 28.52763036 | I158: =IF(AND($A158>I$103,$A158<=I$100+I$103),OFFSET(Ryhma5!$K231,-I$103-1,0),0) -> 28.72229591 | J158: =IF(AND($A158>J$103,$A158<=J$100+J$103),OFFSET(Ryhma6!$K231,-J$103-1,0),0) -> 28.87407489 | K158: =IF(AND($A158>K$103,$A158<=K$100+K$103),OFFSET(Ryhma7!$K231,-K$103-1,0),0) -> 29.06616241 | L158: =IF(AND($A158>L$103,$A158<=L$100+L$103),OFFSET(Ryhma8!$K231,-L$103-1,0),0) -> 29.1701229 | M158: =IF(AND($A158>M$103,$A158<=M$100+M$103),OFFSET(Ryhma9!$K231,-M$103-1,0),0) -> 29.36917266 | N158: =IF(AND($A158>N$103,$A158<=N$100+N$103),OFFSET(Ryhma10!$K231,-N$103-1,0),0) -> 29.52436998 | O158: =IF(AND($A158>O$103,$A158<=O$100+O$103),OFFSET(Ryhma11!$K231,-O$103-1,0),0) -> 29.68038741 | P158: =IF(AND($A158>P$103,$A158<=P$100+P$103),OFFSET(Ryhma12!$K231,-P$103-1,0),0) -> 29.92867884 | Q158: =IF(COUNTIF(D$104:D158,D158)=1,D158,"") ->  | R158: =IF(COUNTIF(D$105:D158,D158)=1,1,0) -> 0 | S158: =IF(R158=0,"",MAX(S$104:S157)+1) -> 
A159: 55 | B159: 2019-02-24 | C159: 319.3714904 | D159: 201902 | E159: =IF(AND($A159>E$103,$A159<=E$100+E$103),OFFSET(Ryhma1!K232,-E$103-1,0),0) -> 0 | F159: =IF(AND($A159>F$103,$A159<=F$100+F$103),OFFSET(Ryhma2!K232,-F$103-1,0),0) -> 28.19972204 | G159: =IF(AND($A159>G$103,$A159<=G$100+G$103),OFFSET(Ryhma3!$K232,-G$103-1,0),0) -> 28.35355967 | H159: =IF(AND($A159>H$103,$A159<=H$100+H$103),OFFSET(Ryhma4!$K232,-H$103-1,0),0) -> 28.52278066 | I159: =IF(AND($A159>I$103,$A159<=I$100+I$103),OFFSET(Ryhma5!$K232,-I$103-1,0),0) -> 28.71741312 | J159: =IF(AND($A159>J$103,$A159<=J$100+J$103),OFFSET(Ryhma6!$K232,-J$103-1,0),0) -> 28.8691663 | K159: =IF(AND($A159>K$103,$A159<=K$100+K$103),OFFSET(Ryhma7!$K232,-K$103-1,0),0) -> 29.06122116 | L159: =IF(AND($A159>L$103,$A159<=L$100+L$103),OFFSET(Ryhma8!$K232,-L$103-1,0),0) -> 29.16516398 | M159: =IF(AND($A159>M$103,$A159<=M$100+M$103),OFFSET(Ryhma9!$K232,-M$103-1,0),0) -> 29.3641799 | N159: =IF(AND($A159>N$103,$A159<=N$100+N$103),OFFSET(Ryhma10!$K232,-N$103-1,0),0) -> 29.51935083 | O159: =IF(AND($A159>O$103,$A159<=O$100+O$103),OFFSET(Ryhma11!$K232,-O$103-1,0),0) -> 29.67534175 | P159: =IF(AND($A159>P$103,$A159<=P$100+P$103),OFFSET(Ryhma12!$K232,-P$103-1,0),0) -> 29.92359097 | Q159: =IF(COUNTIF(D$104:D159,D159)=1,D159,"") ->  | R159: =IF(COUNTIF(D$105:D159,D159)=1,1,0) -> 0 | S159: =IF(R159=0,"",MAX(S$104:S158)+1) -> 
A160: 56 | B160: 2019-02-25 | C160: 319.3171972 | D160: 201902 | E160: =IF(AND($A160>E$103,$A160<=E$100+E$103),OFFSET(Ryhma1!K233,-E$103-1,0),0) -> 0 | F160: =IF(AND($A160>F$103,$A160<=F$100+F$103),OFFSET(Ryhma2!K233,-F$103-1,0),0) -> 28.19492809 | G160: =IF(AND($A160>G$103,$A160<=G$100+G$103),OFFSET(Ryhma3!$K233,-G$103-1,0),0) -> 28.34873956 | H160: =IF(AND($A160>H$103,$A160<=H$100+H$103),OFFSET(Ryhma4!$K233,-H$103-1,0),0) -> 28.51793179 | I160: =IF(AND($A160>I$103,$A160<=I$100+I$103),OFFSET(Ryhma5!$K233,-I$103-1,0),0) -> 28.71253116 | J160: =IF(AND($A160>J$103,$A160<=J$100+J$103),OFFSET(Ryhma6!$K233,-J$103-1,0),0) -> 28.86425854 | K160: =IF(AND($A160>K$103,$A160<=K$100+K$103),OFFSET(Ryhma7!$K233,-K$103-1,0),0) -> 29.05628075 | L160: =IF(AND($A160>L$103,$A160<=L$100+L$103),OFFSET(Ryhma8!$K233,-L$103-1,0),0) -> 29.1602059 | M160: =IF(AND($A160>M$103,$A160<=M$100+M$103),OFFSET(Ryhma9!$K233,-M$103-1,0),0) -> 29.35918799 | N160: =IF(AND($A160>N$103,$A160<=N$100+N$103),OFFSET(Ryhma10!$K233,-N$103-1,0),0) -> 29.51433254 | O160: =IF(AND($A160>O$103,$A160<=O$100+O$103),OFFSET(Ryhma11!$K233,-O$103-1,0),0) -> 29.67029694 | P160: =IF(AND($A160>P$103,$A160<=P$100+P$103),OFFSET(Ryhma12!$K233,-P$103-1,0),0) -> 29.91850396 | Q160: =IF(COUNTIF(D$104:D160,D160)=1,D160,"") ->  | R160: =IF(COUNTIF(D$105:D160,D160)=1,1,0) -> 0 | S160: =IF(R160=0,"",MAX(S$104:S159)+1) -> 
A161: 57 | B161: 2019-02-26 | C161: 319.2629133 | D161: 201902 | E161: =IF(AND($A161>E$103,$A161<=E$100+E$103),OFFSET(Ryhma1!K234,-E$103-1,0),0) -> 0 | F161: =IF(AND($A161>F$103,$A161<=F$100+F$103),OFFSET(Ryhma2!K234,-F$103-1,0),0) -> 28.19013495 | G161: =IF(AND($A161>G$103,$A161<=G$100+G$103),OFFSET(Ryhma3!$K234,-G$103-1,0),0) -> 28.34392028 | H161: =IF(AND($A161>H$103,$A161<=H$100+H$103),OFFSET(Ryhma4!$K234,-H$103-1,0),0) -> 28.51308374 | I161: =IF(AND($A161>I$103,$A161<=I$100+I$103),OFFSET(Ryhma5!$K234,-I$103-1,0),0) -> 28.70765003 | J161: =IF(AND($A161>J$103,$A161<=J$100+J$103),OFFSET(Ryhma6!$K234,-J$103-1,0),0) -> 28.85935162 | K161: =IF(AND($A161>K$103,$A161<=K$100+K$103),OFFSET(Ryhma7!$K234,-K$103-1,0),0) -> 29.05134118 | L161: =IF(AND($A161>L$103,$A161<=L$100+L$103),OFFSET(Ryhma8!$K234,-L$103-1,0),0) -> 29.15524867 | M161: =IF(AND($A161>M$103,$A161<=M$100+M$103),OFFSET(Ryhma9!$K234,-M$103-1,0),0) -> 29.35419693 | N161: =IF(AND($A161>N$103,$A161<=N$100+N$103),OFFSET(Ryhma10!$K234,-N$103-1,0),0) -> 29.50931511 | O161: =IF(AND($A161>O$103,$A161<=O$100+O$103),OFFSET(Ryhma11!$K234,-O$103-1,0),0) -> 29.66525299 | P161: =IF(AND($A161>P$103,$A161<=P$100+P$103),OFFSET(Ryhma12!$K234,-P$103-1,0),0) -> 29.91341781 | Q161: =IF(COUNTIF(D$104:D161,D161)=1,D161,"") ->  | R161: =IF(COUNTIF(D$105:D161,D161)=1,1,0) -> 0 | S161: =IF(R161=0,"",MAX(S$104:S160)+1) -> 
A162: 58 | B162: 2019-02-27 | C162: 319.2086386 | D162: 201902 | E162: =IF(AND($A162>E$103,$A162<=E$100+E$103),OFFSET(Ryhma1!K235,-E$103-1,0),0) -> 0 | F162: =IF(AND($A162>F$103,$A162<=F$100+F$103),OFFSET(Ryhma2!K235,-F$103-1,0),0) -> 28.18534263 | G162: =IF(AND($A162>G$103,$A162<=G$100+G$103),OFFSET(Ryhma3!$K235,-G$103-1,0),0) -> 28.33910181 | H162: =IF(AND($A162>H$103,$A162<=H$100+H$103),OFFSET(Ryhma4!$K235,-H$103-1,0),0) -> 28.50823652 | I162: =IF(AND($A162>I$103,$A162<=I$100+I$103),OFFSET(Ryhma5!$K235,-I$103-1,0),0) -> 28.70276973 | J162: =IF(AND($A162>J$103,$A162<=J$100+J$103),OFFSET(Ryhma6!$K235,-J$103-1,0),0) -> 28.85444553 | K162: =IF(AND($A162>K$103,$A162<=K$100+K$103),OFFSET(Ryhma7!$K235,-K$103-1,0),0) -> 29.04640245 | L162: =IF(AND($A162>L$103,$A162<=L$100+L$103),OFFSET(Ryhma8!$K235,-L$103-1,0),0) -> 29.15029228 | M162: =IF(AND($A162>M$103,$A162<=M$100+M$103),OFFSET(Ryhma9!$K235,-M$103-1,0),0) -> 29.34920671 | N162: =IF(AND($A162>N$103,$A162<=N$100+N$103),OFFSET(Ryhma10!$K235,-N$103-1,0),0) -> 29.50429852 | O162: =IF(AND($A162>O$103,$A162<=O$100+O$103),OFFSET(Ryhma11!$K235,-O$103-1,0),0) -> 29.6602099 | P162: =IF(AND($A162>P$103,$A162<=P$100+P$103),OFFSET(Ryhma12!$K235,-P$103-1,0),0) -> 29.90833253 | Q162: =IF(COUNTIF(D$104:D162,D162)=1,D162,"") ->  | R162: =IF(COUNTIF(D$105:D162,D162)=1,1,0) -> 0 | S162: =IF(R162=0,"",MAX(S$104:S161)+1) -> 
A163: 59 | B163: 2019-02-28 | C163: 319.1543731 | D163: 201902 | E163: =IF(AND($A163>E$103,$A163<=E$100+E$103),OFFSET(Ryhma1!K236,-E$103-1,0),0) -> 0 | F163: =IF(AND($A163>F$103,$A163<=F$100+F$103),OFFSET(Ryhma2!K236,-F$103-1,0),0) -> 28.18055112 | G163: =IF(AND($A163>G$103,$A163<=G$100+G$103),OFFSET(Ryhma3!$K236,-G$103-1,0),0) -> 28.33428416 | H163: =IF(AND($A163>H$103,$A163<=H$100+H$103),OFFSET(Ryhma4!$K236,-H$103-1,0),0) -> 28.50339012 | I163: =IF(AND($A163>I$103,$A163<=I$100+I$103),OFFSET(Ryhma5!$K236,-I$103-1,0),0) -> 28.69789025 | J163: =IF(AND($A163>J$103,$A163<=J$100+J$103),OFFSET(Ryhma6!$K236,-J$103-1,0),0) -> 28.84954027 | K163: =IF(AND($A163>K$103,$A163<=K$100+K$103),OFFSET(Ryhma7!$K236,-K$103-1,0),0) -> 29.04146457 | L163: =IF(AND($A163>L$103,$A163<=L$100+L$103),OFFSET(Ryhma8!$K236,-L$103-1,0),0) -> 29.14533673 | M163: =IF(AND($A163>M$103,$A163<=M$100+M$103),OFFSET(Ryhma9!$K236,-M$103-1,0),0) -> 29.34421735 | N163: =IF(AND($A163>N$103,$A163<=N$100+N$103),OFFSET(Ryhma10!$K236,-N$103-1,0),0) -> 29.49928279 | O163: =IF(AND($A163>O$103,$A163<=O$100+O$103),OFFSET(Ryhma11!$K236,-O$103-1,0),0) -> 29.65516766 | P163: =IF(AND($A163>P$103,$A163<=P$100+P$103),OFFSET(Ryhma12!$K236,-P$103-1,0),0) -> 29.90324811 | Q163: =IF(COUNTIF(D$104:D163,D163)=1,D163,"") ->  | R163: =IF(COUNTIF(D$105:D163,D163)=1,1,0) -> 0 | S163: =IF(R163=0,"",MAX(S$104:S162)+1) -> 
A164: 60 | B164: 2019-03-01 | C164: 319.1001169 | D164: 201903 | E164: =IF(AND($A164>E$103,$A164<=E$100+E$103),OFFSET(Ryhma1!K237,-E$103-1,0),0) -> 0 | F164: =IF(AND($A164>F$103,$A164<=F$100+F$103),OFFSET(Ryhma2!K237,-F$103-1,0),0) -> 28.17576043 | G164: =IF(AND($A164>G$103,$A164<=G$100+G$103),OFFSET(Ryhma3!$K237,-G$103-1,0),0) -> 28.32946733 | H164: =IF(AND($A164>H$103,$A164<=H$100+H$103),OFFSET(Ryhma4!$K237,-H$103-1,0),0) -> 28.49854454 | I164: =IF(AND($A164>I$103,$A164<=I$100+I$103),OFFSET(Ryhma5!$K237,-I$103-1,0),0) -> 28.69301161 | J164: =IF(AND($A164>J$103,$A164<=J$100+J$103),OFFSET(Ryhma6!$K237,-J$103-1,0),0) -> 28.84463585 | K164: =IF(AND($A164>K$103,$A164<=K$100+K$103),OFFSET(Ryhma7!$K237,-K$103-1,0),0) -> 29.03652752 | L164: =IF(AND($A164>L$103,$A164<=L$100+L$103),OFFSET(Ryhma8!$K237,-L$103-1,0),0) -> 29.14038202 | M164: =IF(AND($A164>M$103,$A164<=M$100+M$103),OFFSET(Ryhma9!$K237,-M$103-1,0),0) -> 29.33922883 | N164: =IF(AND($A164>N$103,$A164<=N$100+N$103),OFFSET(Ryhma10!$K237,-N$103-1,0),0) -> 29.49426791 | O164: =IF(AND($A164>O$103,$A164<=O$100+O$103),OFFSET(Ryhma11!$K237,-O$103-1,0),0) -> 29.65012628 | P164: =IF(AND($A164>P$103,$A164<=P$100+P$103),OFFSET(Ryhma12!$K237,-P$103-1,0),0) -> 29.89816456 | Q164: =IF(COUNTIF(D$104:D164,D164)=1,D164,"") -> 201903 | R164: =IF(COUNTIF(D$105:D164,D164)=1,1,0) -> 1 | S164: =IF(R164=0,"",MAX(S$104:S163)+1) -> 3
A165: 61 | B165: 2019-03-02 | C165: 319.0458699 | D165: 201903 | E165: =IF(AND($A165>E$103,$A165<=E$100+E$103),OFFSET(Ryhma1!K238,-E$103-1,0),0) -> 0 | F165: =IF(AND($A165>F$103,$A165<=F$100+F$103),OFFSET(Ryhma2!K238,-F$103-1,0),0) -> 28.17097055 | G165: =IF(AND($A165>G$103,$A165<=G$100+G$103),OFFSET(Ryhma3!$K238,-G$103-1,0),0) -> 28.32465132 | H165: =IF(AND($A165>H$103,$A165<=H$100+H$103),OFFSET(Ryhma4!$K238,-H$103-1,0),0) -> 28.49369979 | I165: =IF(AND($A165>I$103,$A165<=I$100+I$103),OFFSET(Ryhma5!$K238,-I$103-1,0),0) -> 28.6881338 | J165: =IF(AND($A165>J$103,$A165<=J$100+J$103),OFFSET(Ryhma6!$K238,-J$103-1,0),0) -> 28.83973226 | K165: =IF(AND($A165>K$103,$A165<=K$100+K$103),OFFSET(Ryhma7!$K238,-K$103-1,0),0) -> 29.03159131 | L165: =IF(AND($A165>L$103,$A165<=L$100+L$103),OFFSET(Ryhma8!$K238,-L$103-1,0),0) -> 29.13542815 | M165: =IF(AND($A165>M$103,$A165<=M$100+M$103),OFFSET(Ryhma9!$K238,-M$103-1,0),0) -> 29.33424116 | N165: =IF(AND($A165>N$103,$A165<=N$100+N$103),OFFSET(Ryhma10!$K238,-N$103-1,0),0) -> 29.48925389 | O165: =IF(AND($A165>O$103,$A165<=O$100+O$103),OFFSET(Ryhma11!$K238,-O$103-1,0),0) -> 29.64508576 | P165: =IF(AND($A165>P$103,$A165<=P$100+P$103),OFFSET(Ryhma12!$K238,-P$103-1,0),0) -> 29.89308187 | Q165: =IF(COUNTIF(D$104:D165,D165)=1,D165,"") ->  | R165: =IF(COUNTIF(D$105:D165,D165)=1,1,0) -> 0 | S165: =IF(R165=0,"",MAX(S$104:S164)+1) -> 
A166: 62 | B166: 2019-03-03 | C166: 290.8254506 | D166: 201903 | E166: =IF(AND($A166>E$103,$A166<=E$100+E$103),OFFSET(Ryhma1!K239,-E$103-1,0),0) -> 0 | F166: =IF(AND($A166>F$103,$A166<=F$100+F$103),OFFSET(Ryhma2!K239,-F$103-1,0),0) -> 0 | G166: =IF(AND($A166>G$103,$A166<=G$100+G$103),OFFSET(Ryhma3!$K239,-G$103-1,0),0) -> 28.31983613 | H166: =IF(AND($A166>H$103,$A166<=H$100+H$103),OFFSET(Ryhma4!$K239,-H$103-1,0),0) -> 28.48885586 | I166: =IF(AND($A166>I$103,$A166<=I$100+I$103),OFFSET(Ryhma5!$K239,-I$103-1,0),0) -> 28.68325682 | J166: =IF(AND($A166>J$103,$A166<=J$100+J$103),OFFSET(Ryhma6!$K239,-J$103-1,0),0) -> 28.83482951 | K166: =IF(AND($A166>K$103,$A166<=K$100+K$103),OFFSET(Ryhma7!$K239,-K$103-1,0),0) -> 29.02665594 | L166: =IF(AND($A166>L$103,$A166<=L$100+L$103),OFFSET(Ryhma8!$K239,-L$103-1,0),0) -> 29.13047513 | M166: =IF(AND($A166>M$103,$A166<=M$100+M$103),OFFSET(Ryhma9!$K239,-M$103-1,0),0) -> 29.32925434 | N166: =IF(AND($A166>N$103,$A166<=N$100+N$103),OFFSET(Ryhma10!$K239,-N$103-1,0),0) -> 29.48424072 | O166: =IF(AND($A166>O$103,$A166<=O$100+O$103),OFFSET(Ryhma11!$K239,-O$103-1,0),0) -> 29.6400461 | P166: =IF(AND($A166>P$103,$A166<=P$100+P$103),OFFSET(Ryhma12!$K239,-P$103-1,0),0) -> 29.88800005 | Q166: =IF(COUNTIF(D$104:D166,D166)=1,D166,"") ->  | R166: =IF(COUNTIF(D$105:D166,D166)=1,1,0) -> 0 | S166: =IF(R166=0,"",MAX(S$104:S165)+1) -> 
A167: 63 | B167: 2019-03-04 | C167: 290.7760103 | D167: 201903 | E167: =IF(AND($A167>E$103,$A167<=E$100+E$103),OFFSET(Ryhma1!K240,-E$103-1,0),0) -> 0 | F167: =IF(AND($A167>F$103,$A167<=F$100+F$103),OFFSET(Ryhma2!K240,-F$103-1,0),0) -> 0 | G167: =IF(AND($A167>G$103,$A167<=G$100+G$103),OFFSET(Ryhma3!$K240,-G$103-1,0),0) -> 28.31502176 | H167: =IF(AND($A167>H$103,$A167<=H$100+H$103),OFFSET(Ryhma4!$K240,-H$103-1,0),0) -> 28.48401275 | I167: =IF(AND($A167>I$103,$A167<=I$100+I$103),OFFSET(Ryhma5!$K240,-I$103-1,0),0) -> 28.67838067 | J167: =IF(AND($A167>J$103,$A167<=J$100+J$103),OFFSET(Ryhma6!$K240,-J$103-1,0),0) -> 28.82992759 | K167: =IF(AND($A167>K$103,$A167<=K$100+K$103),OFFSET(Ryhma7!$K240,-K$103-1,0),0) -> 29.02172141 | L167: =IF(AND($A167>L$103,$A167<=L$100+L$103),OFFSET(Ryhma8!$K240,-L$103-1,0),0) -> 29.12552295 | M167: =IF(AND($A167>M$103,$A167<=M$100+M$103),OFFSET(Ryhma9!$K240,-M$103-1,0),0) -> 29.32426837 | N167: =IF(AND($A167>N$103,$A167<=N$100+N$103),OFFSET(Ryhma10!$K240,-N$103-1,0),0) -> 29.4792284 | O167: =IF(AND($A167>O$103,$A167<=O$100+O$103),OFFSET(Ryhma11!$K240,-O$103-1,0),0) -> 29.63500729 | P167: =IF(AND($A167>P$103,$A167<=P$100+P$103),OFFSET(Ryhma12!$K240,-P$103-1,0),0) -> 29.88291909 | Q167: =IF(COUNTIF(D$104:D167,D167)=1,D167,"") ->  | R167: =IF(COUNTIF(D$105:D167,D167)=1,1,0) -> 0 | S167: =IF(R167=0,"",MAX(S$104:S166)+1) -> 
A168: 64 | B168: 2019-03-05 | C168: =SUM(E168:P168) -> 290.7265783 | D168: 201903 | E168: =IF(AND($A168>E$103,$A168<=E$100+E$103),OFFSET(Ryhma1!K241,-E$103-1,0),0) -> 0 | F168: =IF(AND($A168>F$103,$A168<=F$100+F$103),OFFSET(Ryhma2!K241,-F$103-1,0),0) -> 0 | G168: =IF(AND($A168>G$103,$A168<=G$100+G$103),OFFSET(Ryhma3!$K241,-G$103-1,0),0) -> 28.31020821 | H168: =IF(AND($A168>H$103,$A168<=H$100+H$103),OFFSET(Ryhma4!$K241,-H$103-1,0),0) -> 28.47917047 | I168: =IF(AND($A168>I$103,$A168<=I$100+I$103),OFFSET(Ryhma5!$K241,-I$103-1,0),0) -> 28.67350534 | J168: =IF(AND($A168>J$103,$A168<=J$100+J$103),OFFSET(Ryhma6!$K241,-J$103-1,0),0) -> 28.8250265 | K168: =IF(AND($A168>K$103,$A168<=K$100+K$103),OFFSET(Ryhma7!$K241,-K$103-1,0),0) -> 29.01678771 | L168: =IF(AND($A168>L$103,$A168<=L$100+L$103),OFFSET(Ryhma8!$K241,-L$103-1,0),0) -> 29.12057161 | M168: =IF(AND($A168>M$103,$A168<=M$100+M$103),OFFSET(Ryhma9!$K241,-M$103-1,0),0) -> 29.31928324 | N168: =IF(AND($A168>N$103,$A168<=N$100+N$103),OFFSET(Ryhma10!$K241,-N$103-1,0),0) -> 29.47421693 | O168: =IF(AND($A168>O$103,$A168<=O$100+O$103),OFFSET(Ryhma11!$K241,-O$103-1,0),0) -> 29.62996934 | P168: =IF(AND($A168>P$103,$A168<=P$100+P$103),OFFSET(Ryhma12!$K241,-P$103-1,0),0) -> 29.87783899 | Q168: =IF(COUNTIF(D$104:D168,D168)=1,D168,"") ->  | R168: =IF(COUNTIF(D$105:D168,D168)=1,1,0) -> 0 | S168: =IF(R168=0,"",MAX(S$104:S167)+1) -> 
A169: 65 | B169: 2019-03-06 | C169: 290.6771548 | D169: =YEAR(B169)*100 +MONTH(B169) -> 201903 | E169: =IF(AND($A169>E$103,$A169<=E$100+E$103),OFFSET(Ryhma1!K242,-E$103-1,0),0) -> 0 | F169: =IF(AND($A169>F$103,$A169<=F$100+F$103),OFFSET(Ryhma2!K242,-F$103-1,0),0) -> 0 | G169: =IF(AND($A169>G$103,$A169<=G$100+G$103),OFFSET(Ryhma3!$K242,-G$103-1,0),0) -> 28.30539547 | H169: =IF(AND($A169>H$103,$A169<=H$100+H$103),OFFSET(Ryhma4!$K242,-H$103-1,0),0) -> 28.47432901 | I169: =IF(AND($A169>I$103,$A169<=I$100+I$103),OFFSET(Ryhma5!$K242,-I$103-1,0),0) -> 28.66863084 | J169: =IF(AND($A169>J$103,$A169<=J$100+J$103),OFFSET(Ryhma6!$K242,-J$103-1,0),0) -> 28.82012625 | K169: =IF(AND($A169>K$103,$A169<=K$100+K$103),OFFSET(Ryhma7!$K242,-K$103-1,0),0) -> 29.01185486 | L169: =IF(AND($A169>L$103,$A169<=L$100+L$103),OFFSET(Ryhma8!$K242,-L$103-1,0),0) -> 29.11562111 | M169: =IF(AND($A169>M$103,$A169<=M$100+M$103),OFFSET(Ryhma9!$K242,-M$103-1,0),0) -> 29.31429896 | N169: =IF(AND($A169>N$103,$A169<=N$100+N$103),OFFSET(Ryhma10!$K242,-N$103-1,0),0) -> 29.46920631 | O169: =IF(AND($A169>O$103,$A169<=O$100+O$103),OFFSET(Ryhma11!$K242,-O$103-1,0),0) -> 29.62493224 | P169: =IF(AND($A169>P$103,$A169<=P$100+P$103),OFFSET(Ryhma12!$K242,-P$103-1,0),0) -> 29.87275976 | Q169: =IF(COUNTIF(D$104:D169,D169)=1,D169,"") ->  | R169: =IF(COUNTIF(D$105:D169,D169)=1,1,0) -> 0 | S169: =IF(R169=0,"",MAX(S$104:S168)+1) -> 
A170: 66 | B170: 2019-03-07 | C170: 290.6277397 | D170: 201903 | E170: =IF(AND($A170>E$103,$A170<=E$100+E$103),OFFSET(Ryhma1!K243,-E$103-1,0),0) -> 0 | F170: =IF(AND($A170>F$103,$A170<=F$100+F$103),OFFSET(Ryhma2!K243,-F$103-1,0),0) -> 0 | G170: =IF(AND($A170>G$103,$A170<=G$100+G$103),OFFSET(Ryhma3!$K243,-G$103-1,0),0) -> 28.30058355 | H170: =IF(AND($A170>H$103,$A170<=H$100+H$103),OFFSET(Ryhma4!$K243,-H$103-1,0),0) -> 28.46948838 | I170: =IF(AND($A170>I$103,$A170<=I$100+I$103),OFFSET(Ryhma5!$K243,-I$103-1,0),0) -> 28.66375718 | J170: =IF(AND($A170>J$103,$A170<=J$100+J$103),OFFSET(Ryhma6!$K243,-J$103-1,0),0) -> 28.81522682 | K170: =IF(AND($A170>K$103,$A170<=K$100+K$103),OFFSET(Ryhma7!$K243,-K$103-1,0),0) -> 29.00692284 | L170: =IF(AND($A170>L$103,$A170<=L$100+L$103),OFFSET(Ryhma8!$K243,-L$103-1,0),0) -> 29.11067146 | M170: =IF(AND($A170>M$103,$A170<=M$100+M$103),OFFSET(Ryhma9!$K243,-M$103-1,0),0) -> 29.30931553 | N170: =IF(AND($A170>N$103,$A170<=N$100+N$103),OFFSET(Ryhma10!$K243,-N$103-1,0),0) -> 29.46419654 | O170: =IF(AND($A170>O$103,$A170<=O$100+O$103),OFFSET(Ryhma11!$K243,-O$103-1,0),0) -> 29.619896 | P170: =IF(AND($A170>P$103,$A170<=P$100+P$103),OFFSET(Ryhma12!$K243,-P$103-1,0),0) -> 29.86768139 | Q170: =IF(COUNTIF(D$104:D170,D170)=1,D170,"") ->  | R170: =IF(COUNTIF(D$105:D170,D170)=1,1,0) -> 0 | S170: =IF(R170=0,"",MAX(S$104:S169)+1) -> 
A171: 67 | B171: =B170+1 -> 2019-03-08 | C171: 290.578333 | D171: 201903 | E171: =IF(AND($A171>E$103,$A171<=E$100+E$103),OFFSET(Ryhma1!K244,-E$103-1,0),0) -> 0 | F171: =IF(AND($A171>F$103,$A171<=F$100+F$103),OFFSET(Ryhma2!K244,-F$103-1,0),0) -> 0 | G171: =IF(AND($A171>G$103,$A171<=G$100+G$103),OFFSET(Ryhma3!$K244,-G$103-1,0),0) -> 28.29577246 | H171: =IF(AND($A171>H$103,$A171<=H$100+H$103),OFFSET(Ryhma4!$K244,-H$103-1,0),0) -> 28.46464856 | I171: =IF(AND($A171>I$103,$A171<=I$100+I$103),OFFSET(Ryhma5!$K244,-I$103-1,0),0) -> 28.65888434 | J171: =IF(AND($A171>J$103,$A171<=J$100+J$103),OFFSET(Ryhma6!$K244,-J$103-1,0),0) -> 28.81032824 | K171: =IF(AND($A171>K$103,$A171<=K$100+K$103),OFFSET(Ryhma7!$K244,-K$103-1,0),0) -> 29.00199167 | L171: =IF(AND($A171>L$103,$A171<=L$100+L$103),OFFSET(Ryhma8!$K244,-L$103-1,0),0) -> 29.10572264 | M171: =IF(AND($A171>M$103,$A171<=M$100+M$103),OFFSET(Ryhma9!$K244,-M$103-1,0),0) -> 29.30433295 | N171: =IF(AND($A171>N$103,$A171<=N$100+N$103),OFFSET(Ryhma10!$K244,-N$103-1,0),0) -> 29.45918763 | O171: =IF(AND($A171>O$103,$A171<=O$100+O$103),OFFSET(Ryhma11!$K244,-O$103-1,0),0) -> 29.61486062 | P171: =IF(AND($A171>P$103,$A171<=P$100+P$103),OFFSET(Ryhma12!$K244,-P$103-1,0),0) -> 29.86260389 | Q171: =IF(COUNTIF(D$104:D171,D171)=1,D171,"") ->  | R171: =IF(COUNTIF(D$105:D171,D171)=1,1,0) -> 0 | S171: =IF(R171=0,"",MAX(S$104:S170)+1) -> 
A172: 68 | B172: 2019-03-09 | C172: 290.5289347 | D172: 201903 | E172: =IF(AND($A172>E$103,$A172<=E$100+E$103),OFFSET(Ryhma1!K245,-E$103-1,0),0) -> 0 | F172: =IF(AND($A172>F$103,$A172<=F$100+F$103),OFFSET(Ryhma2!K245,-F$103-1,0),0) -> 0 | G172: =IF(AND($A172>G$103,$A172<=G$100+G$103),OFFSET(Ryhma3!$K245,-G$103-1,0),0) -> 28.29096217 | H172: =IF(AND($A172>H$103,$A172<=H$100+H$103),OFFSET(Ryhma4!$K245,-H$103-1,0),0) -> 28.45980957 | I172: =IF(AND($A172>I$103,$A172<=I$100+I$103),OFFSET(Ryhma5!$K245,-I$103-1,0),0) -> 28.65401233 | J172: =IF(AND($A172>J$103,$A172<=J$100+J$103),OFFSET(Ryhma6!$K245,-J$103-1,0),0) -> 28.80543048 | K172: =IF(AND($A172>K$103,$A172<=K$100+K$103),OFFSET(Ryhma7!$K245,-K$103-1,0),0) -> 28.99706133 | L172: =IF(AND($A172>L$103,$A172<=L$100+L$103),OFFSET(Ryhma8!$K245,-L$103-1,0),0) -> 29.10077467 | M172: =IF(AND($A172>M$103,$A172<=M$100+M$103),OFFSET(Ryhma9!$K245,-M$103-1,0),0) -> 29.29935121 | N172: =IF(AND($A172>N$103,$A172<=N$100+N$103),OFFSET(Ryhma10!$K245,-N$103-1,0),0) -> 29.45417957 | O172: =IF(AND($A172>O$103,$A172<=O$100+O$103),OFFSET(Ryhma11!$K245,-O$103-1,0),0) -> 29.60982609 | P172: =IF(AND($A172>P$103,$A172<=P$100+P$103),OFFSET(Ryhma12!$K245,-P$103-1,0),0) -> 29.85752724 | Q172: =IF(COUNTIF(D$104:D172,D172)=1,D172,"") ->  | R172: =IF(COUNTIF(D$105:D172,D172)=1,1,0) -> 0 | S172: =IF(R172=0,"",MAX(S$104:S171)+1) -> 
A173: 69 | B173: 2019-03-10 | C173: 290.4795448 | D173: 201903 | E173: =IF(AND($A173>E$103,$A173<=E$100+E$103),OFFSET(Ryhma1!K246,-E$103-1,0),0) -> 0 | F173: =IF(AND($A173>F$103,$A173<=F$100+F$103),OFFSET(Ryhma2!K246,-F$103-1,0),0) -> 0 | G173: =IF(AND($A173>G$103,$A173<=G$100+G$103),OFFSET(Ryhma3!$K246,-G$103-1,0),0) -> 28.28615271 | H173: =IF(AND($A173>H$103,$A173<=H$100+H$103),OFFSET(Ryhma4!$K246,-H$103-1,0),0) -> 28.45497141 | I173: =IF(AND($A173>I$103,$A173<=I$100+I$103),OFFSET(Ryhma5!$K246,-I$103-1,0),0) -> 28.64914115 | J173: =IF(AND($A173>J$103,$A173<=J$100+J$103),OFFSET(Ryhma6!$K246,-J$103-1,0),0) -> 28.80053356 | K173: =IF(AND($A173>K$103,$A173<=K$100+K$103),OFFSET(Ryhma7!$K246,-K$103-1,0),0) -> 28.99213183 | L173: =IF(AND($A173>L$103,$A173<=L$100+L$103),OFFSET(Ryhma8!$K246,-L$103-1,0),0) -> 29.09582754 | M173: =IF(AND($A173>M$103,$A173<=M$100+M$103),OFFSET(Ryhma9!$K246,-M$103-1,0),0) -> 29.29437032 | N173: =IF(AND($A173>N$103,$A173<=N$100+N$103),OFFSET(Ryhma10!$K246,-N$103-1,0),0) -> 29.44917236 | O173: =IF(AND($A173>O$103,$A173<=O$100+O$103),OFFSET(Ryhma11!$K246,-O$103-1,0),0) -> 29.60479242 | P173: =IF(AND($A173>P$103,$A173<=P$100+P$103),OFFSET(Ryhma12!$K246,-P$103-1,0),0) -> 29.85245146 | Q173: =IF(COUNTIF(D$104:D173,D173)=1,D173,"") ->  | R173: =IF(COUNTIF(D$105:D173,D173)=1,1,0) -> 0 | S173: =IF(R173=0,"",MAX(S$104:S172)+1) -> 
A174: 70 | B174: 2019-03-11 | C174: 290.4301632 | D174: 201903 | E174: =IF(AND($A174>E$103,$A174<=E$100+E$103),OFFSET(Ryhma1!K247,-E$103-1,0),0) -> 0 | F174: =IF(AND($A174>F$103,$A174<=F$100+F$103),OFFSET(Ryhma2!K247,-F$103-1,0),0) -> 0 | G174: =IF(AND($A174>G$103,$A174<=G$100+G$103),OFFSET(Ryhma3!$K247,-G$103-1,0),0) -> 28.28134406 | H174: =IF(AND($A174>H$103,$A174<=H$100+H$103),OFFSET(Ryhma4!$K247,-H$103-1,0),0) -> 28.45013406 | I174: =IF(AND($A174>I$103,$A174<=I$100+I$103),OFFSET(Ryhma5!$K247,-I$103-1,0),0) -> 28.64427079 | J174: =IF(AND($A174>J$103,$A174<=J$100+J$103),OFFSET(Ryhma6!$K247,-J$103-1,0),0) -> 28.79563747 | K174: =IF(AND($A174>K$103,$A174<=K$100+K$103),OFFSET(Ryhma7!$K247,-K$103-1,0),0) -> 28.98720317 | L174: =IF(AND($A174>L$103,$A174<=L$100+L$103),OFFSET(Ryhma8!$K247,-L$103-1,0),0) -> 29.09088125 | M174: =IF(AND($A174>M$103,$A174<=M$100+M$103),OFFSET(Ryhma9!$K247,-M$103-1,0),0) -> 29.28939028 | N174: =IF(AND($A174>N$103,$A174<=N$100+N$103),OFFSET(Ryhma10!$K247,-N$103-1,0),0) -> 29.444166 | O174: =IF(AND($A174>O$103,$A174<=O$100+O$103),OFFSET(Ryhma11!$K247,-O$103-1,0),0) -> 29.59975961 | P174: =IF(AND($A174>P$103,$A174<=P$100+P$103),OFFSET(Ryhma12!$K247,-P$103-1,0),0) -> 29.84737655 | Q174: =IF(COUNTIF(D$104:D174,D174)=1,D174,"") ->  | R174: =IF(COUNTIF(D$105:D174,D174)=1,1,0) -> 0 | S174: =IF(R174=0,"",MAX(S$104:S173)+1) -> 
A175: 71 | B175: 2019-03-12 | C175: 290.3807901 | D175: 201903 | E175: =IF(AND($A175>E$103,$A175<=E$100+E$103),OFFSET(Ryhma1!K248,-E$103-1,0),0) -> 0 | F175: =IF(AND($A175>F$103,$A175<=F$100+F$103),OFFSET(Ryhma2!K248,-F$103-1,0),0) -> 0 | G175: =IF(AND($A175>G$103,$A175<=G$100+G$103),OFFSET(Ryhma3!$K248,-G$103-1,0),0) -> 28.27653624 | H175: =IF(AND($A175>H$103,$A175<=H$100+H$103),OFFSET(Ryhma4!$K248,-H$103-1,0),0) -> 28.44529754 | I175: =IF(AND($A175>I$103,$A175<=I$100+I$103),OFFSET(Ryhma5!$K248,-I$103-1,0),0) -> 28.63940127 | J175: =IF(AND($A175>J$103,$A175<=J$100+J$103),OFFSET(Ryhma6!$K248,-J$103-1,0),0) -> 28.79074221 | K175: =IF(AND($A175>K$103,$A175<=K$100+K$103),OFFSET(Ryhma7!$K248,-K$103-1,0),0) -> 28.98227534 | L175: =IF(AND($A175>L$103,$A175<=L$100+L$103),OFFSET(Ryhma8!$K248,-L$103-1,0),0) -> 29.0859358 | M175: =IF(AND($A175>M$103,$A175<=M$100+M$103),OFFSET(Ryhma9!$K248,-M$103-1,0),0) -> 29.28441108 | N175: =IF(AND($A175>N$103,$A175<=N$100+N$103),OFFSET(Ryhma10!$K248,-N$103-1,0),0) -> 29.43916049 | O175: =IF(AND($A175>O$103,$A175<=O$100+O$103),OFFSET(Ryhma11!$K248,-O$103-1,0),0) -> 29.59472765 | P175: =IF(AND($A175>P$103,$A175<=P$100+P$103),OFFSET(Ryhma12!$K248,-P$103-1,0),0) -> 29.84230249 | Q175: =IF(COUNTIF(D$104:D175,D175)=1,D175,"") ->  | R175: =IF(COUNTIF(D$105:D175,D175)=1,1,0) -> 0 | S175: =IF(R175=0,"",MAX(S$104:S174)+1) -> 
A176: 72 | B176: 2019-03-13 | C176: 290.3314254 | D176: 201903 | E176: =IF(AND($A176>E$103,$A176<=E$100+E$103),OFFSET(Ryhma1!K249,-E$103-1,0),0) -> 0 | F176: =IF(AND($A176>F$103,$A176<=F$100+F$103),OFFSET(Ryhma2!K249,-F$103-1,0),0) -> 0 | G176: =IF(AND($A176>G$103,$A176<=G$100+G$103),OFFSET(Ryhma3!$K249,-G$103-1,0),0) -> 28.27172923 | H176: =IF(AND($A176>H$103,$A176<=H$100+H$103),OFFSET(Ryhma4!$K249,-H$103-1,0),0) -> 28.44046184 | I176: =IF(AND($A176>I$103,$A176<=I$100+I$103),OFFSET(Ryhma5!$K249,-I$103-1,0),0) -> 28.63453257 | J176: =IF(AND($A176>J$103,$A176<=J$100+J$103),OFFSET(Ryhma6!$K249,-J$103-1,0),0) -> 28.78584778 | K176: =IF(AND($A176>K$103,$A176<=K$100+K$103),OFFSET(Ryhma7!$K249,-K$103-1,0),0) -> 28.97734835 | L176: =IF(AND($A176>L$103,$A176<=L$100+L$103),OFFSET(Ryhma8!$K249,-L$103-1,0),0) -> 29.08099119 | M176: =IF(AND($A176>M$103,$A176<=M$100+M$103),OFFSET(Ryhma9!$K249,-M$103-1,0),0) -> 29.27943273 | N176: =IF(AND($A176>N$103,$A176<=N$100+N$103),OFFSET(Ryhma10!$K249,-N$103-1,0),0) -> 29.43415583 | O176: =IF(AND($A176>O$103,$A176<=O$100+O$103),OFFSET(Ryhma11!$K249,-O$103-1,0),0) -> 29.58969655 | P176: =IF(AND($A176>P$103,$A176<=P$100+P$103),OFFSET(Ryhma12!$K249,-P$103-1,0),0) -> 29.8372293 | Q176: =IF(COUNTIF(D$104:D176,D176)=1,D176,"") ->  | R176: =IF(COUNTIF(D$105:D176,D176)=1,1,0) -> 0 | S176: =IF(R176=0,"",MAX(S$104:S175)+1) -> 
A177: 73 | B177: 2019-03-14 | C177: 290.282069 | D177: 201903 | E177: =IF(AND($A177>E$103,$A177<=E$100+E$103),OFFSET(Ryhma1!K250,-E$103-1,0),0) -> 0 | F177: =IF(AND($A177>F$103,$A177<=F$100+F$103),OFFSET(Ryhma2!K250,-F$103-1,0),0) -> 0 | G177: =IF(AND($A177>G$103,$A177<=G$100+G$103),OFFSET(Ryhma3!$K250,-G$103-1,0),0) -> 28.26692303 | H177: =IF(AND($A177>H$103,$A177<=H$100+H$103),OFFSET(Ryhma4!$K250,-H$103-1,0),0) -> 28.43562696 | I177: =IF(AND($A177>I$103,$A177<=I$100+I$103),OFFSET(Ryhma5!$K250,-I$103-1,0),0) -> 28.6296647 | J177: =IF(AND($A177>J$103,$A177<=J$100+J$103),OFFSET(Ryhma6!$K250,-J$103-1,0),0) -> 28.78095419 | K177: =IF(AND($A177>K$103,$A177<=K$100+K$103),OFFSET(Ryhma7!$K250,-K$103-1,0),0) -> 28.9724222 | L177: =IF(AND($A177>L$103,$A177<=L$100+L$103),OFFSET(Ryhma8!$K250,-L$103-1,0),0) -> 29.07604742 | M177: =IF(AND($A177>M$103,$A177<=M$100+M$103),OFFSET(Ryhma9!$K250,-M$103-1,0),0) -> 29.27445523 | N177: =IF(AND($A177>N$103,$A177<=N$100+N$103),OFFSET(Ryhma10!$K250,-N$103-1,0),0) -> 29.42915203 | O177: =IF(AND($A177>O$103,$A177<=O$100+O$103),OFFSET(Ryhma11!$K250,-O$103-1,0),0) -> 29.5846663 | P177: =IF(AND($A177>P$103,$A177<=P$100+P$103),OFFSET(Ryhma12!$K250,-P$103-1,0),0) -> 29.83215697 | Q177: =IF(COUNTIF(D$104:D177,D177)=1,D177,"") ->  | R177: =IF(COUNTIF(D$105:D177,D177)=1,1,0) -> 0 | S177: =IF(R177=0,"",MAX(S$104:S176)+1) -> 
A178: 74 | B178: 2019-03-15 | C178: 290.2327211 | D178: 201903 | E178: =IF(AND($A178>E$103,$A178<=E$100+E$103),OFFSET(Ryhma1!K251,-E$103-1,0),0) -> 0 | F178: =IF(AND($A178>F$103,$A178<=F$100+F$103),OFFSET(Ryhma2!K251,-F$103-1,0),0) -> 0 | G178: =IF(AND($A178>G$103,$A178<=G$100+G$103),OFFSET(Ryhma3!$K251,-G$103-1,0),0) -> 28.26211765 | H178: =IF(AND($A178>H$103,$A178<=H$100+H$103),OFFSET(Ryhma4!$K251,-H$103-1,0),0) -> 28.4307929 | I178: =IF(AND($A178>I$103,$A178<=I$100+I$103),OFFSET(Ryhma5!$K251,-I$103-1,0),0) -> 28.62479765 | J178: =IF(AND($A178>J$103,$A178<=J$100+J$103),OFFSET(Ryhma6!$K251,-J$103-1,0),0) -> 28.77606143 | K178: =IF(AND($A178>K$103,$A178<=K$100+K$103),OFFSET(Ryhma7!$K251,-K$103-1,0),0) -> 28.96749689 | L178: =IF(AND($A178>L$103,$A178<=L$100+L$103),OFFSET(Ryhma8!$K251,-L$103-1,0),0) -> 29.07110449 | M178: =IF(AND($A178>M$103,$A178<=M$100+M$103),OFFSET(Ryhma9!$K251,-M$103-1,0),0) -> 29.26947857 | N178: =IF(AND($A178>N$103,$A178<=N$100+N$103),OFFSET(Ryhma10!$K251,-N$103-1,0),0) -> 29.42414907 | O178: =IF(AND($A178>O$103,$A178<=O$100+O$103),OFFSET(Ryhma11!$K251,-O$103-1,0),0) -> 29.5796369 | P178: =IF(AND($A178>P$103,$A178<=P$100+P$103),OFFSET(Ryhma12!$K251,-P$103-1,0),0) -> 29.82708551 | Q178: =IF(COUNTIF(D$104:D178,D178)=1,D178,"") ->  | R178: =IF(COUNTIF(D$105:D178,D178)=1,1,0) -> 0 | S178: =IF(R178=0,"",MAX(S$104:S177)+1) -> 
A179: 75 | B179: 2019-03-16 | C179: 290.1833815 | D179: 201903 | E179: =IF(AND($A179>E$103,$A179<=E$100+E$103),OFFSET(Ryhma1!K252,-E$103-1,0),0) -> 0 | F179: =IF(AND($A179>F$103,$A179<=F$100+F$103),OFFSET(Ryhma2!K252,-F$103-1,0),0) -> 0 | G179: =IF(AND($A179>G$103,$A179<=G$100+G$103),OFFSET(Ryhma3!$K252,-G$103-1,0),0) -> 28.25731309 | H179: =IF(AND($A179>H$103,$A179<=H$100+H$103),OFFSET(Ryhma4!$K252,-H$103-1,0),0) -> 28.42595967 | I179: =IF(AND($A179>I$103,$A179<=I$100+I$103),OFFSET(Ryhma5!$K252,-I$103-1,0),0) -> 28.61993144 | J179: =IF(AND($A179>J$103,$A179<=J$100+J$103),OFFSET(Ryhma6!$K252,-J$103-1,0),0) -> 28.7711695 | K179: =IF(AND($A179>K$103,$A179<=K$100+K$103),OFFSET(Ryhma7!$K252,-K$103-1,0),0) -> 28.96257242 | L179: =IF(AND($A179>L$103,$A179<=L$100+L$103),OFFSET(Ryhma8!$K252,-L$103-1,0),0) -> 29.06616241 | M179: =IF(AND($A179>M$103,$A179<=M$100+M$103),OFFSET(Ryhma9!$K252,-M$103-1,0),0) -> 29.26450276 | N179: =IF(AND($A179>N$103,$A179<=N$100+N$103),OFFSET(Ryhma10!$K252,-N$103-1,0),0) -> 29.41914697 | O179: =IF(AND($A179>O$103,$A179<=O$100+O$103),OFFSET(Ryhma11!$K252,-O$103-1,0),0) -> 29.57460837 | P179: =IF(AND($A179>P$103,$A179<=P$100+P$103),OFFSET(Ryhma12!$K252,-P$103-1,0),0) -> 29.8220149 | Q179: =IF(COUNTIF(D$104:D179,D179)=1,D179,"") ->  | R179: =IF(COUNTIF(D$105:D179,D179)=1,1,0) -> 0 | S179: =IF(R179=0,"",MAX(S$104:S178)+1) -> 
A180: 76 | B180: 2019-03-17 | C180: 290.1340503 | D180: 201903 | E180: =IF(AND($A180>E$103,$A180<=E$100+E$103),OFFSET(Ryhma1!K253,-E$103-1,0),0) -> 0 | F180: =IF(AND($A180>F$103,$A180<=F$100+F$103),OFFSET(Ryhma2!K253,-F$103-1,0),0) -> 0 | G180: =IF(AND($A180>G$103,$A180<=G$100+G$103),OFFSET(Ryhma3!$K253,-G$103-1,0),0) -> 28.25250935 | H180: =IF(AND($A180>H$103,$A180<=H$100+H$103),OFFSET(Ryhma4!$K253,-H$103-1,0),0) -> 28.42112726 | I180: =IF(AND($A180>I$103,$A180<=I$100+I$103),OFFSET(Ryhma5!$K253,-I$103-1,0),0) -> 28.61506605 | J180: =IF(AND($A180>J$103,$A180<=J$100+J$103),OFFSET(Ryhma6!$K253,-J$103-1,0),0) -> 28.7662784 | K180: =IF(AND($A180>K$103,$A180<=K$100+K$103),OFFSET(Ryhma7!$K253,-K$103-1,0),0) -> 28.95764878 | L180: =IF(AND($A180>L$103,$A180<=L$100+L$103),OFFSET(Ryhma8!$K253,-L$103-1,0),0) -> 29.06122116 | M180: =IF(AND($A180>M$103,$A180<=M$100+M$103),OFFSET(Ryhma9!$K253,-M$103-1,0),0) -> 29.2595278 | N180: =IF(AND($A180>N$103,$A180<=N$100+N$103),OFFSET(Ryhma10!$K253,-N$103-1,0),0) -> 29.41414571 | O180: =IF(AND($A180>O$103,$A180<=O$100+O$103),OFFSET(Ryhma11!$K253,-O$103-1,0),0) -> 29.56958068 | P180: =IF(AND($A180>P$103,$A180<=P$100+P$103),OFFSET(Ryhma12!$K253,-P$103-1,0),0) -> 29.81694516 | Q180: =IF(COUNTIF(D$104:D180,D180)=1,D180,"") ->  | R180: =IF(COUNTIF(D$105:D180,D180)=1,1,0) -> 0 | S180: =IF(R180=0,"",MAX(S$104:S179)+1) -> 
A181: 77 | B181: 2019-03-18 | C181: 290.0847276 | D181: 201903 | E181: =IF(AND($A181>E$103,$A181<=E$100+E$103),OFFSET(Ryhma1!K254,-E$103-1,0),0) -> 0 | F181: =IF(AND($A181>F$103,$A181<=F$100+F$103),OFFSET(Ryhma2!K254,-F$103-1,0),0) -> 0 | G181: =IF(AND($A181>G$103,$A181<=G$100+G$103),OFFSET(Ryhma3!$K254,-G$103-1,0),0) -> 28.24770642 | H181: =IF(AND($A181>H$103,$A181<=H$100+H$103),OFFSET(Ryhma4!$K254,-H$103-1,0),0) -> 28.41629566 | I181: =IF(AND($A181>I$103,$A181<=I$100+I$103),OFFSET(Ryhma5!$K254,-I$103-1,0),0) -> 28.61020149 | J181: =IF(AND($A181>J$103,$A181<=J$100+J$103),OFFSET(Ryhma6!$K254,-J$103-1,0),0) -> 28.76138813 | K181: =IF(AND($A181>K$103,$A181<=K$100+K$103),OFFSET(Ryhma7!$K254,-K$103-1,0),0) -> 28.95272598 | L181: =IF(AND($A181>L$103,$A181<=L$100+L$103),OFFSET(Ryhma8!$K254,-L$103-1,0),0) -> 29.05628075 | M181: =IF(AND($A181>M$103,$A181<=M$100+M$103),OFFSET(Ryhma9!$K254,-M$103-1,0),0) -> 29.25455368 | N181: =IF(AND($A181>N$103,$A181<=N$100+N$103),OFFSET(Ryhma10!$K254,-N$103-1,0),0) -> 29.40914531 | O181: =IF(AND($A181>O$103,$A181<=O$100+O$103),OFFSET(Ryhma11!$K254,-O$103-1,0),0) -> 29.56455385 | P181: =IF(AND($A181>P$103,$A181<=P$100+P$103),OFFSET(Ryhma12!$K254,-P$103-1,0),0) -> 29.81187628 | Q181: =IF(COUNTIF(D$104:D181,D181)=1,D181,"") ->  | R181: =IF(COUNTIF(D$105:D181,D181)=1,1,0) -> 0 | S181: =IF(R181=0,"",MAX(S$104:S180)+1) -> 
A182: 78 | B182: 2019-03-19 | C182: 290.0354131 | D182: 201903 | E182: =IF(AND($A182>E$103,$A182<=E$100+E$103),OFFSET(Ryhma1!K255,-E$103-1,0),0) -> 0 | F182: =IF(AND($A182>F$103,$A182<=F$100+F$103),OFFSET(Ryhma2!K255,-F$103-1,0),0) -> 0 | G182: =IF(AND($A182>G$103,$A182<=G$100+G$103),OFFSET(Ryhma3!$K255,-G$103-1,0),0) -> 28.24290431 | H182: =IF(AND($A182>H$103,$A182<=H$100+H$103),OFFSET(Ryhma4!$K255,-H$103-1,0),0) -> 28.41146489 | I182: =IF(AND($A182>I$103,$A182<=I$100+I$103),OFFSET(Ryhma5!$K255,-I$103-1,0),0) -> 28.60533776 | J182: =IF(AND($A182>J$103,$A182<=J$100+J$103),OFFSET(Ryhma6!$K255,-J$103-1,0),0) -> 28.75649869 | K182: =IF(AND($A182>K$103,$A182<=K$100+K$103),OFFSET(Ryhma7!$K255,-K$103-1,0),0) -> 28.94780402 | L182: =IF(AND($A182>L$103,$A182<=L$100+L$103),OFFSET(Ryhma8!$K255,-L$103-1,0),0) -> 29.05134118 | M182: =IF(AND($A182>M$103,$A182<=M$100+M$103),OFFSET(Ryhma9!$K255,-M$103-1,0),0) -> 29.2495804 | N182: =IF(AND($A182>N$103,$A182<=N$100+N$103),OFFSET(Ryhma10!$K255,-N$103-1,0),0) -> 29.40414575 | O182: =IF(AND($A182>O$103,$A182<=O$100+O$103),OFFSET(Ryhma11!$K255,-O$103-1,0),0) -> 29.55952788 | P182: =IF(AND($A182>P$103,$A182<=P$100+P$103),OFFSET(Ryhma12!$K255,-P$103-1,0),0) -> 29.80680826 | Q182: =IF(COUNTIF(D$104:D182,D182)=1,D182,"") ->  | R182: =IF(COUNTIF(D$105:D182,D182)=1,1,0) -> 0 | S182: =IF(R182=0,"",MAX(S$104:S181)+1) -> 
A183: 79 | B183: 2019-03-20 | C183: 289.9861071 | D183: 201903 | E183: =IF(AND($A183>E$103,$A183<=E$100+E$103),OFFSET(Ryhma1!K256,-E$103-1,0),0) -> 0 | F183: =IF(AND($A183>F$103,$A183<=F$100+F$103),OFFSET(Ryhma2!K256,-F$103-1,0),0) -> 0 | G183: =IF(AND($A183>G$103,$A183<=G$100+G$103),OFFSET(Ryhma3!$K256,-G$103-1,0),0) -> 28.23810302 | H183: =IF(AND($A183>H$103,$A183<=H$100+H$103),OFFSET(Ryhma4!$K256,-H$103-1,0),0) -> 28.40663494 | I183: =IF(AND($A183>I$103,$A183<=I$100+I$103),OFFSET(Ryhma5!$K256,-I$103-1,0),0) -> 28.60047485 | J183: =IF(AND($A183>J$103,$A183<=J$100+J$103),OFFSET(Ryhma6!$K256,-J$103-1,0),0) -> 28.75161009 | K183: =IF(AND($A183>K$103,$A183<=K$100+K$103),OFFSET(Ryhma7!$K256,-K$103-1,0),0) -> 28.94288289 | L183: =IF(AND($A183>L$103,$A183<=L$100+L$103),OFFSET(Ryhma8!$K256,-L$103-1,0),0) -> 29.04640245 | M183: =IF(AND($A183>M$103,$A183<=M$100+M$103),OFFSET(Ryhma9!$K256,-M$103-1,0),0) -> 29.24460797 | N183: =IF(AND($A183>N$103,$A183<=N$100+N$103),OFFSET(Ryhma10!$K256,-N$103-1,0),0) -> 29.39914705 | O183: =IF(AND($A183>O$103,$A183<=O$100+O$103),OFFSET(Ryhma11!$K256,-O$103-1,0),0) -> 29.55450276 | P183: =IF(AND($A183>P$103,$A183<=P$100+P$103),OFFSET(Ryhma12!$K256,-P$103-1,0),0) -> 29.8017411 | Q183: =IF(COUNTIF(D$104:D183,D183)=1,D183,"") ->  | R183: =IF(COUNTIF(D$105:D183,D183)=1,1,0) -> 0 | S183: =IF(R183=0,"",MAX(S$104:S182)+1) -> 
A184: 80 | B184: 2019-03-21 | C184: 289.9368095 | D184: 201903 | E184: =IF(AND($A184>E$103,$A184<=E$100+E$103),OFFSET(Ryhma1!K257,-E$103-1,0),0) -> 0 | F184: =IF(AND($A184>F$103,$A184<=F$100+F$103),OFFSET(Ryhma2!K257,-F$103-1,0),0) -> 0 | G184: =IF(AND($A184>G$103,$A184<=G$100+G$103),OFFSET(Ryhma3!$K257,-G$103-1,0),0) -> 28.23330254 | H184: =IF(AND($A184>H$103,$A184<=H$100+H$103),OFFSET(Ryhma4!$K257,-H$103-1,0),0) -> 28.40180582 | I184: =IF(AND($A184>I$103,$A184<=I$100+I$103),OFFSET(Ryhma5!$K257,-I$103-1,0),0) -> 28.59561277 | J184: =IF(AND($A184>J$103,$A184<=J$100+J$103),OFFSET(Ryhma6!$K257,-J$103-1,0),0) -> 28.74672231 | K184: =IF(AND($A184>K$103,$A184<=K$100+K$103),OFFSET(Ryhma7!$K257,-K$103-1,0),0) -> 28.9379626 | L184: =IF(AND($A184>L$103,$A184<=L$100+L$103),OFFSET(Ryhma8!$K257,-L$103-1,0),0) -> 29.04146457 | M184: =IF(AND($A184>M$103,$A184<=M$100+M$103),OFFSET(Ryhma9!$K257,-M$103-1,0),0) -> 29.23963639 | N184: =IF(AND($A184>N$103,$A184<=N$100+N$103),OFFSET(Ryhma10!$K257,-N$103-1,0),0) -> 29.39414919 | O184: =IF(AND($A184>O$103,$A184<=O$100+O$103),OFFSET(Ryhma11!$K257,-O$103-1,0),0) -> 29.54947849 | P184: =IF(AND($A184>P$103,$A184<=P$100+P$103),OFFSET(Ryhma12!$K257,-P$103-1,0),0) -> 29.79667481 | Q184: =IF(COUNTIF(D$104:D184,D184)=1,D184,"") ->  | R184: =IF(COUNTIF(D$105:D184,D184)=1,1,0) -> 0 | S184: =IF(R184=0,"",MAX(S$104:S183)+1) -> 
A185: 81 | B185: 2019-03-22 | C185: 289.8875202 | D185: 201903 | E185: =IF(AND($A185>E$103,$A185<=E$100+E$103),OFFSET(Ryhma1!K258,-E$103-1,0),0) -> 0 | F185: =IF(AND($A185>F$103,$A185<=F$100+F$103),OFFSET(Ryhma2!K258,-F$103-1,0),0) -> 0 | G185: =IF(AND($A185>G$103,$A185<=G$100+G$103),OFFSET(Ryhma3!$K258,-G$103-1,0),0) -> 28.22850288 | H185: =IF(AND($A185>H$103,$A185<=H$100+H$103),OFFSET(Ryhma4!$K258,-H$103-1,0),0) -> 28.39697751 | I185: =IF(AND($A185>I$103,$A185<=I$100+I$103),OFFSET(Ryhma5!$K258,-I$103-1,0),0) -> 28.59075151 | J185: =IF(AND($A185>J$103,$A185<=J$100+J$103),OFFSET(Ryhma6!$K258,-J$103-1,0),0) -> 28.74183537 | K185: =IF(AND($A185>K$103,$A185<=K$100+K$103),OFFSET(Ryhma7!$K258,-K$103-1,0),0) -> 28.93304315 | L185: =IF(AND($A185>L$103,$A185<=L$100+L$103),OFFSET(Ryhma8!$K258,-L$103-1,0),0) -> 29.03652752 | M185: =IF(AND($A185>M$103,$A185<=M$100+M$103),OFFSET(Ryhma9!$K258,-M$103-1,0),0) -> 29.23466565 | N185: =IF(AND($A185>N$103,$A185<=N$100+N$103),OFFSET(Ryhma10!$K258,-N$103-1,0),0) -> 29.38915219 | O185: =IF(AND($A185>O$103,$A185<=O$100+O$103),OFFSET(Ryhma11!$K258,-O$103-1,0),0) -> 29.54445508 | P185: =IF(AND($A185>P$103,$A185<=P$100+P$103),OFFSET(Ryhma12!$K258,-P$103-1,0),0) -> 29.79160937 | Q185: =IF(COUNTIF(D$104:D185,D185)=1,D185,"") ->  | R185: =IF(COUNTIF(D$105:D185,D185)=1,1,0) -> 0 | S185: =IF(R185=0,"",MAX(S$104:S184)+1) -> 
A186: 82 | B186: 2019-03-23 | C186: 289.8382394 | D186: 201903 | E186: =IF(AND($A186>E$103,$A186<=E$100+E$103),OFFSET(Ryhma1!K259,-E$103-1,0),0) -> 0 | F186: =IF(AND($A186>F$103,$A186<=F$100+F$103),OFFSET(Ryhma2!K259,-F$103-1,0),0) -> 0 | G186: =IF(AND($A186>G$103,$A186<=G$100+G$103),OFFSET(Ryhma3!$K259,-G$103-1,0),0) -> 28.22370404 | H186: =IF(AND($A186>H$103,$A186<=H$100+H$103),OFFSET(Ryhma4!$K259,-H$103-1,0),0) -> 28.39215002 | I186: =IF(AND($A186>I$103,$A186<=I$100+I$103),OFFSET(Ryhma5!$K259,-I$103-1,0),0) -> 28.58589108 | J186: =IF(AND($A186>J$103,$A186<=J$100+J$103),OFFSET(Ryhma6!$K259,-J$103-1,0),0) -> 28.73694926 | K186: =IF(AND($A186>K$103,$A186<=K$100+K$103),OFFSET(Ryhma7!$K259,-K$103-1,0),0) -> 28.92812453 | L186: =IF(AND($A186>L$103,$A186<=L$100+L$103),OFFSET(Ryhma8!$K259,-L$103-1,0),0) -> 29.03159131 | M186: =IF(AND($A186>M$103,$A186<=M$100+M$103),OFFSET(Ryhma9!$K259,-M$103-1,0),0) -> 29.22969576 | N186: =IF(AND($A186>N$103,$A186<=N$100+N$103),OFFSET(Ryhma10!$K259,-N$103-1,0),0) -> 29.38415603 | O186: =IF(AND($A186>O$103,$A186<=O$100+O$103),OFFSET(Ryhma11!$K259,-O$103-1,0),0) -> 29.53943253 | P186: =IF(AND($A186>P$103,$A186<=P$100+P$103),OFFSET(Ryhma12!$K259,-P$103-1,0),0) -> 29.7865448 | Q186: =IF(COUNTIF(D$104:D186,D186)=1,D186,"") ->  | R186: =IF(COUNTIF(D$105:D186,D186)=1,1,0) -> 0 | S186: =IF(R186=0,"",MAX(S$104:S185)+1) -> 
A187: 83 | B187: 2019-03-24 | C187: 289.7889669 | D187: 201903 | E187: =IF(AND($A187>E$103,$A187<=E$100+E$103),OFFSET(Ryhma1!K260,-E$103-1,0),0) -> 0 | F187: =IF(AND($A187>F$103,$A187<=F$100+F$103),OFFSET(Ryhma2!K260,-F$103-1,0),0) -> 0 | G187: =IF(AND($A187>G$103,$A187<=G$100+G$103),OFFSET(Ryhma3!$K260,-G$103-1,0),0) -> 28.21890601 | H187: =IF(AND($A187>H$103,$A187<=H$100+H$103),OFFSET(Ryhma4!$K260,-H$103-1,0),0) -> 28.38732336 | I187: =IF(AND($A187>I$103,$A187<=I$100+I$103),OFFSET(Ryhma5!$K260,-I$103-1,0),0) -> 28.58103148 | J187: =IF(AND($A187>J$103,$A187<=J$100+J$103),OFFSET(Ryhma6!$K260,-J$103-1,0),0) -> 28.73206398 | K187: =IF(AND($A187>K$103,$A187<=K$100+K$103),OFFSET(Ryhma7!$K260,-K$103-1,0),0) -> 28.92320675 | L187: =IF(AND($A187>L$103,$A187<=L$100+L$103),OFFSET(Ryhma8!$K260,-L$103-1,0),0) -> 29.02665594 | M187: =IF(AND($A187>M$103,$A187<=M$100+M$103),OFFSET(Ryhma9!$K260,-M$103-1,0),0) -> 29.22472671 | N187: =IF(AND($A187>N$103,$A187<=N$100+N$103),OFFSET(Ryhma10!$K260,-N$103-1,0),0) -> 29.37916072 | O187: =IF(AND($A187>O$103,$A187<=O$100+O$103),OFFSET(Ryhma11!$K260,-O$103-1,0),0) -> 29.53441082 | P187: =IF(AND($A187>P$103,$A187<=P$100+P$103),OFFSET(Ryhma12!$K260,-P$103-1,0),0) -> 29.78148109 | Q187: =IF(COUNTIF(D$104:D187,D187)=1,D187,"") ->  | R187: =IF(COUNTIF(D$105:D187,D187)=1,1,0) -> 0 | S187: =IF(R187=0,"",MAX(S$104:S186)+1) -> 
A188: 84 | B188: 2019-03-25 | C188: 289.7397027 | D188: 201903 | E188: =IF(AND($A188>E$103,$A188<=E$100+E$103),OFFSET(Ryhma1!K261,-E$103-1,0),0) -> 0 | F188: =IF(AND($A188>F$103,$A188<=F$100+F$103),OFFSET(Ryhma2!K261,-F$103-1,0),0) -> 0 | G188: =IF(AND($A188>G$103,$A188<=G$100+G$103),OFFSET(Ryhma3!$K261,-G$103-1,0),0) -> 28.21410879 | H188: =IF(AND($A188>H$103,$A188<=H$100+H$103),OFFSET(Ryhma4!$K261,-H$103-1,0),0) -> 28.38249751 | I188: =IF(AND($A188>I$103,$A188<=I$100+I$103),OFFSET(Ryhma5!$K261,-I$103-1,0),0) -> 28.57617271 | J188: =IF(AND($A188>J$103,$A188<=J$100+J$103),OFFSET(Ryhma6!$K261,-J$103-1,0),0) -> 28.72717953 | K188: =IF(AND($A188>K$103,$A188<=K$100+K$103),OFFSET(Ryhma7!$K261,-K$103-1,0),0) -> 28.9182898 | L188: =IF(AND($A188>L$103,$A188<=L$100+L$103),OFFSET(Ryhma8!$K261,-L$103-1,0),0) -> 29.02172141 | M188: =IF(AND($A188>M$103,$A188<=M$100+M$103),OFFSET(Ryhma9!$K261,-M$103-1,0),0) -> 29.21975851 | N188: =IF(AND($A188>N$103,$A188<=N$100+N$103),OFFSET(Ryhma10!$K261,-N$103-1,0),0) -> 29.37416627 | O188: =IF(AND($A188>O$103,$A188<=O$100+O$103),OFFSET(Ryhma11!$K261,-O$103-1,0),0) -> 29.52938997 | P188: =IF(AND($A188>P$103,$A188<=P$100+P$103),OFFSET(Ryhma12!$K261,-P$103-1,0),0) -> 29.77641823 | Q188: =IF(COUNTIF(D$104:D188,D188)=1,D188,"") ->  | R188: =IF(COUNTIF(D$105:D188,D188)=1,1,0) -> 0 | S188: =IF(R188=0,"",MAX(S$104:S187)+1) -> 
A189: 85 | B189: 2019-03-26 | C189: 289.690447 | D189: 201903 | E189: =IF(AND($A189>E$103,$A189<=E$100+E$103),OFFSET(Ryhma1!K262,-E$103-1,0),0) -> 0 | F189: =IF(AND($A189>F$103,$A189<=F$100+F$103),OFFSET(Ryhma2!K262,-F$103-1,0),0) -> 0 | G189: =IF(AND($A189>G$103,$A189<=G$100+G$103),OFFSET(Ryhma3!$K262,-G$103-1,0),0) -> 28.20931239 | H189: =IF(AND($A189>H$103,$A189<=H$100+H$103),OFFSET(Ryhma4!$K262,-H$103-1,0),0) -> 28.37767249 | I189: =IF(AND($A189>I$103,$A189<=I$100+I$103),OFFSET(Ryhma5!$K262,-I$103-1,0),0) -> 28.57131476 | J189: =IF(AND($A189>J$103,$A189<=J$100+J$103),OFFSET(Ryhma6!$K262,-J$103-1,0),0) -> 28.72229591 | K189: =IF(AND($A189>K$103,$A189<=K$100+K$103),OFFSET(Ryhma7!$K262,-K$103-1,0),0) -> 28.91337369 | L189: =IF(AND($A189>L$103,$A189<=L$100+L$103),OFFSET(Ryhma8!$K262,-L$103-1,0),0) -> 29.01678771 | M189: =IF(AND($A189>M$103,$A189<=M$100+M$103),OFFSET(Ryhma9!$K262,-M$103-1,0),0) -> 29.21479115 | N189: =IF(AND($A189>N$103,$A189<=N$100+N$103),OFFSET(Ryhma10!$K262,-N$103-1,0),0) -> 29.36917266 | O189: =IF(AND($A189>O$103,$A189<=O$100+O$103),OFFSET(Ryhma11!$K262,-O$103-1,0),0) -> 29.52436998 | P189: =IF(AND($A189>P$103,$A189<=P$100+P$103),OFFSET(Ryhma12!$K262,-P$103-1,0),0) -> 29.77135624 | Q189: =IF(COUNTIF(D$104:D189,D189)=1,D189,"") ->  | R189: =IF(COUNTIF(D$105:D189,D189)=1,1,0) -> 0 | S189: =IF(R189=0,"",MAX(S$104:S188)+1) -> 
A190: 86 | B190: 2019-03-27 | C190: 289.6411996 | D190: 201903 | E190: =IF(AND($A190>E$103,$A190<=E$100+E$103),OFFSET(Ryhma1!K263,-E$103-1,0),0) -> 0 | F190: =IF(AND($A190>F$103,$A190<=F$100+F$103),OFFSET(Ryhma2!K263,-F$103-1,0),0) -> 0 | G190: =IF(AND($A190>G$103,$A190<=G$100+G$103),OFFSET(Ryhma3!$K263,-G$103-1,0),0) -> 28.20451681 | H190: =IF(AND($A190>H$103,$A190<=H$100+H$103),OFFSET(Ryhma4!$K263,-H$103-1,0),0) -> 28.37284828 | I190: =IF(AND($A190>I$103,$A190<=I$100+I$103),OFFSET(Ryhma5!$K263,-I$103-1,0),0) -> 28.56645764 | J190: =IF(AND($A190>J$103,$A190<=J$100+J$103),OFFSET(Ryhma6!$K263,-J$103-1,0),0) -> 28.71741312 | K190: =IF(AND($A190>K$103,$A190<=K$100+K$103),OFFSET(Ryhma7!$K263,-K$103-1,0),0) -> 28.90845842 | L190: =IF(AND($A190>L$103,$A190<=L$100+L$103),OFFSET(Ryhma8!$K263,-L$103-1,0),0) -> 29.01185486 | M190: =IF(AND($A190>M$103,$A190<=M$100+M$103),OFFSET(Ryhma9!$K263,-M$103-1,0),0) -> 29.20982463 | N190: =IF(AND($A190>N$103,$A190<=N$100+N$103),OFFSET(Ryhma10!$K263,-N$103-1,0),0) -> 29.3641799 | O190: =IF(AND($A190>O$103,$A190<=O$100+O$103),OFFSET(Ryhma11!$K263,-O$103-1,0),0) -> 29.51935083 | P190: =IF(AND($A190>P$103,$A190<=P$100+P$103),OFFSET(Ryhma12!$K263,-P$103-1,0),0) -> 29.76629511 | Q190: =IF(COUNTIF(D$104:D190,D190)=1,D190,"") ->  | R190: =IF(COUNTIF(D$105:D190,D190)=1,1,0) -> 0 | S190: =IF(R190=0,"",MAX(S$104:S189)+1) -> 
A191: 87 | B191: 2019-03-28 | C191: 289.5919606 | D191: 201903 | E191: =IF(AND($A191>E$103,$A191<=E$100+E$103),OFFSET(Ryhma1!K264,-E$103-1,0),0) -> 0 | F191: =IF(AND($A191>F$103,$A191<=F$100+F$103),OFFSET(Ryhma2!K264,-F$103-1,0),0) -> 0 | G191: =IF(AND($A191>G$103,$A191<=G$100+G$103),OFFSET(Ryhma3!$K264,-G$103-1,0),0) -> 28.19972204 | H191: =IF(AND($A191>H$103,$A191<=H$100+H$103),OFFSET(Ryhma4!$K264,-H$103-1,0),0) -> 28.3680249 | I191: =IF(AND($A191>I$103,$A191<=I$100+I$103),OFFSET(Ryhma5!$K264,-I$103-1,0),0) -> 28.56160134 | J191: =IF(AND($A191>J$103,$A191<=J$100+J$103),OFFSET(Ryhma6!$K264,-J$103-1,0),0) -> 28.71253116 | K191: =IF(AND($A191>K$103,$A191<=K$100+K$103),OFFSET(Ryhma7!$K264,-K$103-1,0),0) -> 28.90354398 | L191: =IF(AND($A191>L$103,$A191<=L$100+L$103),OFFSET(Ryhma8!$K264,-L$103-1,0),0) -> 29.00692284 | M191: =IF(AND($A191>M$103,$A191<=M$100+M$103),OFFSET(Ryhma9!$K264,-M$103-1,0),0) -> 29.20485896 | N191: =IF(AND($A191>N$103,$A191<=N$100+N$103),OFFSET(Ryhma10!$K264,-N$103-1,0),0) -> 29.35918799 | O191: =IF(AND($A191>O$103,$A191<=O$100+O$103),OFFSET(Ryhma11!$K264,-O$103-1,0),0) -> 29.51433254 | P191: =IF(AND($A191>P$103,$A191<=P$100+P$103),OFFSET(Ryhma12!$K264,-P$103-1,0),0) -> 29.76123484 | Q191: =IF(COUNTIF(D$104:D191,D191)=1,D191,"") ->  | R191: =IF(COUNTIF(D$105:D191,D191)=1,1,0) -> 0 | S191: =IF(R191=0,"",MAX(S$104:S190)+1) -> 
A192: 88 | B192: 2019-03-29 | C192: 289.54273 | D192: 201903 | E192: =IF(AND($A192>E$103,$A192<=E$100+E$103),OFFSET(Ryhma1!K265,-E$103-1,0),0) -> 0 | F192: =IF(AND($A192>F$103,$A192<=F$100+F$103),OFFSET(Ryhma2!K265,-F$103-1,0),0) -> 0 | G192: =IF(AND($A192>G$103,$A192<=G$100+G$103),OFFSET(Ryhma3!$K265,-G$103-1,0),0) -> 28.19492809 | H192: =IF(AND($A192>H$103,$A192<=H$100+H$103),OFFSET(Ryhma4!$K265,-H$103-1,0),0) -> 28.36320234 | I192: =IF(AND($A192>I$103,$A192<=I$100+I$103),OFFSET(Ryhma5!$K265,-I$103-1,0),0) -> 28.55674587 | J192: =IF(AND($A192>J$103,$A192<=J$100+J$103),OFFSET(Ryhma6!$K265,-J$103-1,0),0) -> 28.70765003 | K192: =IF(AND($A192>K$103,$A192<=K$100+K$103),OFFSET(Ryhma7!$K265,-K$103-1,0),0) -> 28.89863038 | L192: =IF(AND($A192>L$103,$A192<=L$100+L$103),OFFSET(Ryhma8!$K265,-L$103-1,0),0) -> 29.00199167 | M192: =IF(AND($A192>M$103,$A192<=M$100+M$103),OFFSET(Ryhma9!$K265,-M$103-1,0),0) -> 29.19989414 | N192: =IF(AND($A192>N$103,$A192<=N$100+N$103),OFFSET(Ryhma10!$K265,-N$103-1,0),0) -> 29.35419693 | O192: =IF(AND($A192>O$103,$A192<=O$100+O$103),OFFSET(Ryhma11!$K265,-O$103-1,0),0) -> 29.50931511 | P192: =IF(AND($A192>P$103,$A192<=P$100+P$103),OFFSET(Ryhma12!$K265,-P$103-1,0),0) -> 29.75617543 | Q192: =IF(COUNTIF(D$104:D192,D192)=1,D192,"") ->  | R192: =IF(COUNTIF(D$105:D192,D192)=1,1,0) -> 0 | S192: =IF(R192=0,"",MAX(S$104:S191)+1) -> 
A193: 89 | B193: 2019-03-30 | C193: 289.4935077 | D193: 201903 | E193: =IF(AND($A193>E$103,$A193<=E$100+E$103),OFFSET(Ryhma1!K266,-E$103-1,0),0) -> 0 | F193: =IF(AND($A193>F$103,$A193<=F$100+F$103),OFFSET(Ryhma2!K266,-F$103-1,0),0) -> 0 | G193: =IF(AND($A193>G$103,$A193<=G$100+G$103),OFFSET(Ryhma3!$K266,-G$103-1,0),0) -> 28.19013495 | H193: =IF(AND($A193>H$103,$A193<=H$100+H$103),OFFSET(Ryhma4!$K266,-H$103-1,0),0) -> 28.35838059 | I193: =IF(AND($A193>I$103,$A193<=I$100+I$103),OFFSET(Ryhma5!$K266,-I$103-1,0),0) -> 28.55189122 | J193: =IF(AND($A193>J$103,$A193<=J$100+J$103),OFFSET(Ryhma6!$K266,-J$103-1,0),0) -> 28.70276973 | K193: =IF(AND($A193>K$103,$A193<=K$100+K$103),OFFSET(Ryhma7!$K266,-K$103-1,0),0) -> 28.89371761 | L193: =IF(AND($A193>L$103,$A193<=L$100+L$103),OFFSET(Ryhma8!$K266,-L$103-1,0),0) -> 28.99706133 | M193: =IF(AND($A193>M$103,$A193<=M$100+M$103),OFFSET(Ryhma9!$K266,-M$103-1,0),0) -> 29.19493016 | N193: =IF(AND($A193>N$103,$A193<=N$100+N$103),OFFSET(Ryhma10!$K266,-N$103-1,0),0) -> 29.34920671 | O193: =IF(AND($A193>O$103,$A193<=O$100+O$103),OFFSET(Ryhma11!$K266,-O$103-1,0),0) -> 29.50429852 | P193: =IF(AND($A193>P$103,$A193<=P$100+P$103),OFFSET(Ryhma12!$K266,-P$103-1,0),0) -> 29.75111688 | Q193: =IF(COUNTIF(D$104:D193,D193)=1,D193,"") ->  | R193: =IF(COUNTIF(D$105:D193,D193)=1,1,0) -> 0 | S193: =IF(R193=0,"",MAX(S$104:S192)+1) -> 
A194: 90 | B194: 2019-03-31 | C194: 289.4442938 | D194: 201903 | E194: =IF(AND($A194>E$103,$A194<=E$100+E$103),OFFSET(Ryhma1!K267,-E$103-1,0),0) -> 0 | F194: =IF(AND($A194>F$103,$A194<=F$100+F$103),OFFSET(Ryhma2!K267,-F$103-1,0),0) -> 0 | G194: =IF(AND($A194>G$103,$A194<=G$100+G$103),OFFSET(Ryhma3!$K267,-G$103-1,0),0) -> 28.18534263 | H194: =IF(AND($A194>H$103,$A194<=H$100+H$103),OFFSET(Ryhma4!$K267,-H$103-1,0),0) -> 28.35355967 | I194: =IF(AND($A194>I$103,$A194<=I$100+I$103),OFFSET(Ryhma5!$K267,-I$103-1,0),0) -> 28.5470374 | J194: =IF(AND($A194>J$103,$A194<=J$100+J$103),OFFSET(Ryhma6!$K267,-J$103-1,0),0) -> 28.69789025 | K194: =IF(AND($A194>K$103,$A194<=K$100+K$103),OFFSET(Ryhma7!$K267,-K$103-1,0),0) -> 28.88880568 | L194: =IF(AND($A194>L$103,$A194<=L$100+L$103),OFFSET(Ryhma8!$K267,-L$103-1,0),0) -> 28.99213183 | M194: =IF(AND($A194>M$103,$A194<=M$100+M$103),OFFSET(Ryhma9!$K267,-M$103-1,0),0) -> 29.18996702 | N194: =IF(AND($A194>N$103,$A194<=N$100+N$103),OFFSET(Ryhma10!$K267,-N$103-1,0),0) -> 29.34421735 | O194: =IF(AND($A194>O$103,$A194<=O$100+O$103),OFFSET(Ryhma11!$K267,-O$103-1,0),0) -> 29.49928279 | P194: =IF(AND($A194>P$103,$A194<=P$100+P$103),OFFSET(Ryhma12!$K267,-P$103-1,0),0) -> 29.74605919 | Q194: =IF(COUNTIF(D$104:D194,D194)=1,D194,"") ->  | R194: =IF(COUNTIF(D$105:D194,D194)=1,1,0) -> 0 | S194: =IF(R194=0,"",MAX(S$104:S193)+1) -> 
A195: 91 | B195: 2019-04-01 | C195: 289.3950883 | D195: 201904 | E195: =IF(AND($A195>E$103,$A195<=E$100+E$103),OFFSET(Ryhma1!K268,-E$103-1,0),0) -> 0 | F195: =IF(AND($A195>F$103,$A195<=F$100+F$103),OFFSET(Ryhma2!K268,-F$103-1,0),0) -> 0 | G195: =IF(AND($A195>G$103,$A195<=G$100+G$103),OFFSET(Ryhma3!$K268,-G$103-1,0),0) -> 28.18055112 | H195: =IF(AND($A195>H$103,$A195<=H$100+H$103),OFFSET(Ryhma4!$K268,-H$103-1,0),0) -> 28.34873956 | I195: =IF(AND($A195>I$103,$A195<=I$100+I$103),OFFSET(Ryhma5!$K268,-I$103-1,0),0) -> 28.5421844 | J195: =IF(AND($A195>J$103,$A195<=J$100+J$103),OFFSET(Ryhma6!$K268,-J$103-1,0),0) -> 28.69301161 | K195: =IF(AND($A195>K$103,$A195<=K$100+K$103),OFFSET(Ryhma7!$K268,-K$103-1,0),0) -> 28.88389458 | L195: =IF(AND($A195>L$103,$A195<=L$100+L$103),OFFSET(Ryhma8!$K268,-L$103-1,0),0) -> 28.98720317 | M195: =IF(AND($A195>M$103,$A195<=M$100+M$103),OFFSET(Ryhma9!$K268,-M$103-1,0),0) -> 29.18500472 | N195: =IF(AND($A195>N$103,$A195<=N$100+N$103),OFFSET(Ryhma10!$K268,-N$103-1,0),0) -> 29.33922883 | O195: =IF(AND($A195>O$103,$A195<=O$100+O$103),OFFSET(Ryhma11!$K268,-O$103-1,0),0) -> 29.49426791 | P195: =IF(AND($A195>P$103,$A195<=P$100+P$103),OFFSET(Ryhma12!$K268,-P$103-1,0),0) -> 29.74100236 | Q195: =IF(COUNTIF(D$104:D195,D195)=1,D195,"") -> 201904 | R195: =IF(COUNTIF(D$105:D195,D195)=1,1,0) -> 1 | S195: =IF(R195=0,"",MAX(S$104:S194)+1) -> 4
A196: 92 | B196: 2019-04-02 | C196: 289.3458911 | D196: 201904 | E196: =IF(AND($A196>E$103,$A196<=E$100+E$103),OFFSET(Ryhma1!K269,-E$103-1,0),0) -> 0 | F196: =IF(AND($A196>F$103,$A196<=F$100+F$103),OFFSET(Ryhma2!K269,-F$103-1,0),0) -> 0 | G196: =IF(AND($A196>G$103,$A196<=G$100+G$103),OFFSET(Ryhma3!$K269,-G$103-1,0),0) -> 28.17576043 | H196: =IF(AND($A196>H$103,$A196<=H$100+H$103),OFFSET(Ryhma4!$K269,-H$103-1,0),0) -> 28.34392028 | I196: =IF(AND($A196>I$103,$A196<=I$100+I$103),OFFSET(Ryhma5!$K269,-I$103-1,0),0) -> 28.53733223 | J196: =IF(AND($A196>J$103,$A196<=J$100+J$103),OFFSET(Ryhma6!$K269,-J$103-1,0),0) -> 28.6881338 | K196: =IF(AND($A196>K$103,$A196<=K$100+K$103),OFFSET(Ryhma7!$K269,-K$103-1,0),0) -> 28.87898432 | L196: =IF(AND($A196>L$103,$A196<=L$100+L$103),OFFSET(Ryhma8!$K269,-L$103-1,0),0) -> 28.98227534 | M196: =IF(AND($A196>M$103,$A196<=M$100+M$103),OFFSET(Ryhma9!$K269,-M$103-1,0),0) -> 29.18004327 | N196: =IF(AND($A196>N$103,$A196<=N$100+N$103),OFFSET(Ryhma10!$K269,-N$103-1,0),0) -> 29.33424116 | O196: =IF(AND($A196>O$103,$A196<=O$100+O$103),OFFSET(Ryhma11!$K269,-O$103-1,0),0) -> 29.48925389 | P196: =IF(AND($A196>P$103,$A196<=P$100+P$103),OFFSET(Ryhma12!$K269,-P$103-1,0),0) -> 29.73594639 | Q196: =IF(COUNTIF(D$104:D196,D196)=1,D196,"") ->  | R196: =IF(COUNTIF(D$105:D196,D196)=1,1,0) -> 0 | S196: =IF(R196=0,"",MAX(S$104:S195)+1) -> 
A197: 93 | B197: 2019-04-03 | C197: 289.2967023 | D197: 201904 | E197: =IF(AND($A197>E$103,$A197<=E$100+E$103),OFFSET(Ryhma1!K270,-E$103-1,0),0) -> 0 | F197: =IF(AND($A197>F$103,$A197<=F$100+F$103),OFFSET(Ryhma2!K270,-F$103-1,0),0) -> 0 | G197: =IF(AND($A197>G$103,$A197<=G$100+G$103),OFFSET(Ryhma3!$K270,-G$103-1,0),0) -> 28.17097055 | H197: =IF(AND($A197>H$103,$A197<=H$100+H$103),OFFSET(Ryhma4!$K270,-H$103-1,0),0) -> 28.33910181 | I197: =IF(AND($A197>I$103,$A197<=I$100+I$103),OFFSET(Ryhma5!$K270,-I$103-1,0),0) -> 28.53248088 | J197: =IF(AND($A197>J$103,$A197<=J$100+J$103),OFFSET(Ryhma6!$K270,-J$103-1,0),0) -> 28.68325682 | K197: =IF(AND($A197>K$103,$A197<=K$100+K$103),OFFSET(Ryhma7!$K270,-K$103-1,0),0) -> 28.87407489 | L197: =IF(AND($A197>L$103,$A197<=L$100+L$103),OFFSET(Ryhma8!$K270,-L$103-1,0),0) -> 28.97734835 | M197: =IF(AND($A197>M$103,$A197<=M$100+M$103),OFFSET(Ryhma9!$K270,-M$103-1,0),0) -> 29.17508267 | N197: =IF(AND($A197>N$103,$A197<=N$100+N$103),OFFSET(Ryhma10!$K270,-N$103-1,0),0) -> 29.32925434 | O197: =IF(AND($A197>O$103,$A197<=O$100+O$103),OFFSET(Ryhma11!$K270,-O$103-1,0),0) -> 29.48424072 | P197: =IF(AND($A197>P$103,$A197<=P$100+P$103),OFFSET(Ryhma12!$K270,-P$103-1,0),0) -> 29.73089128 | Q197: =IF(COUNTIF(D$104:D197,D197)=1,D197,"") ->  | R197: =IF(COUNTIF(D$105:D197,D197)=1,1,0) -> 0 | S197: =IF(R197=0,"",MAX(S$104:S196)+1) -> 
A198: 94 | B198: 2019-04-04 | C198: 289.2475219 | D198: 201904 | E198: =IF(AND($A198>E$103,$A198<=E$100+E$103),OFFSET(Ryhma1!K271,-E$103-1,0),0) -> 0 | F198: =IF(AND($A198>F$103,$A198<=F$100+F$103),OFFSET(Ryhma2!K271,-F$103-1,0),0) -> 0 | G198: =IF(AND($A198>G$103,$A198<=G$100+G$103),OFFSET(Ryhma3!$K271,-G$103-1,0),0) -> 28.16618148 | H198: =IF(AND($A198>H$103,$A198<=H$100+H$103),OFFSET(Ryhma4!$K271,-H$103-1,0),0) -> 28.33428416 | I198: =IF(AND($A198>I$103,$A198<=I$100+I$103),OFFSET(Ryhma5!$K271,-I$103-1,0),0) -> 28.52763036 | J198: =IF(AND($A198>J$103,$A198<=J$100+J$103),OFFSET(Ryhma6!$K271,-J$103-1,0),0) -> 28.67838067 | K198: =IF(AND($A198>K$103,$A198<=K$100+K$103),OFFSET(Ryhma7!$K271,-K$103-1,0),0) -> 28.8691663 | L198: =IF(AND($A198>L$103,$A198<=L$100+L$103),OFFSET(Ryhma8!$K271,-L$103-1,0),0) -> 28.9724222 | M198: =IF(AND($A198>M$103,$A198<=M$100+M$103),OFFSET(Ryhma9!$K271,-M$103-1,0),0) -> 29.1701229 | N198: =IF(AND($A198>N$103,$A198<=N$100+N$103),OFFSET(Ryhma10!$K271,-N$103-1,0),0) -> 29.32426837 | O198: =IF(AND($A198>O$103,$A198<=O$100+O$103),OFFSET(Ryhma11!$K271,-O$103-1,0),0) -> 29.4792284 | P198: =IF(AND($A198>P$103,$A198<=P$100+P$103),OFFSET(Ryhma12!$K271,-P$103-1,0),0) -> 29.72583703 | Q198: =IF(COUNTIF(D$104:D198,D198)=1,D198,"") ->  | R198: =IF(COUNTIF(D$105:D198,D198)=1,1,0) -> 0 | S198: =IF(R198=0,"",MAX(S$104:S197)+1) -> 
A199: 95 | B199: 2019-04-05 | C199: 289.1983498 | D199: 201904 | E199: =IF(AND($A199>E$103,$A199<=E$100+E$103),OFFSET(Ryhma1!K272,-E$103-1,0),0) -> 0 | F199: =IF(AND($A199>F$103,$A199<=F$100+F$103),OFFSET(Ryhma2!K272,-F$103-1,0),0) -> 0 | G199: =IF(AND($A199>G$103,$A199<=G$100+G$103),OFFSET(Ryhma3!$K272,-G$103-1,0),0) -> 28.16139323 | H199: =IF(AND($A199>H$103,$A199<=H$100+H$103),OFFSET(Ryhma4!$K272,-H$103-1,0),0) -> 28.32946733 | I199: =IF(AND($A199>I$103,$A199<=I$100+I$103),OFFSET(Ryhma5!$K272,-I$103-1,0),0) -> 28.52278066 | J199: =IF(AND($A199>J$103,$A199<=J$100+J$103),OFFSET(Ryhma6!$K272,-J$103-1,0),0) -> 28.67350534 | K199: =IF(AND($A199>K$103,$A199<=K$100+K$103),OFFSET(Ryhma7!$K272,-K$103-1,0),0) -> 28.86425854 | L199: =IF(AND($A199>L$103,$A199<=L$100+L$103),OFFSET(Ryhma8!$K272,-L$103-1,0),0) -> 28.96749689 | M199: =IF(AND($A199>M$103,$A199<=M$100+M$103),OFFSET(Ryhma9!$K272,-M$103-1,0),0) -> 29.16516398 | N199: =IF(AND($A199>N$103,$A199<=N$100+N$103),OFFSET(Ryhma10!$K272,-N$103-1,0),0) -> 29.31928324 | O199: =IF(AND($A199>O$103,$A199<=O$100+O$103),OFFSET(Ryhma11!$K272,-O$103-1,0),0) -> 29.47421693 | P199: =IF(AND($A199>P$103,$A199<=P$100+P$103),OFFSET(Ryhma12!$K272,-P$103-1,0),0) -> 29.72078364 | Q199: =IF(COUNTIF(D$104:D199,D199)=1,D199,"") ->  | R199: =IF(COUNTIF(D$105:D199,D199)=1,1,0) -> 0 | S199: =IF(R199=0,"",MAX(S$104:S198)+1) -> 
A200: 96 | B200: 2019-04-06 | C200: 289.1491861 | D200: 201904 | E200: =IF(AND($A200>E$103,$A200<=E$100+E$103),OFFSET(Ryhma1!K273,-E$103-1,0),0) -> 0 | F200: =IF(AND($A200>F$103,$A200<=F$100+F$103),OFFSET(Ryhma2!K273,-F$103-1,0),0) -> 0 | G200: =IF(AND($A200>G$103,$A200<=G$100+G$103),OFFSET(Ryhma3!$K273,-G$103-1,0),0) -> 28.1566058 | H200: =IF(AND($A200>H$103,$A200<=H$100+H$103),OFFSET(Ryhma4!$K273,-H$103-1,0),0) -> 28.32465132 | I200: =IF(AND($A200>I$103,$A200<=I$100+I$103),OFFSET(Ryhma5!$K273,-I$103-1,0),0) -> 28.51793179 | J200: =IF(AND($A200>J$103,$A200<=J$100+J$103),OFFSET(Ryhma6!$K273,-J$103-1,0),0) -> 28.66863084 | K200: =IF(AND($A200>K$103,$A200<=K$100+K$103),OFFSET(Ryhma7!$K273,-K$103-1,0),0) -> 28.85935162 | L200: =IF(AND($A200>L$103,$A200<=L$100+L$103),OFFSET(Ryhma8!$K273,-L$103-1,0),0) -> 28.96257242 | M200: =IF(AND($A200>M$103,$A200<=M$100+M$103),OFFSET(Ryhma9!$K273,-M$103-1,0),0) -> 29.1602059 | N200: =IF(AND($A200>N$103,$A200<=N$100+N$103),OFFSET(Ryhma10!$K273,-N$103-1,0),0) -> 29.31429896 | O200: =IF(AND($A200>O$103,$A200<=O$100+O$103),OFFSET(Ryhma11!$K273,-O$103-1,0),0) -> 29.46920631 | P200: =IF(AND($A200>P$103,$A200<=P$100+P$103),OFFSET(Ryhma12!$K273,-P$103-1,0),0) -> 29.7157311 | Q200: =IF(COUNTIF(D$104:D200,D200)=1,D200,"") ->  | R200: =IF(COUNTIF(D$105:D200,D200)=1,1,0) -> 0 | S200: =IF(R200=0,"",MAX(S$104:S199)+1) -> 
A201: 97 | B201: 2019-04-07 | C201: 289.1000307 | D201: 201904 | E201: =IF(AND($A201>E$103,$A201<=E$100+E$103),OFFSET(Ryhma1!K274,-E$103-1,0),0) -> 0 | F201: =IF(AND($A201>F$103,$A201<=F$100+F$103),OFFSET(Ryhma2!K274,-F$103-1,0),0) -> 0 | G201: =IF(AND($A201>G$103,$A201<=G$100+G$103),OFFSET(Ryhma3!$K274,-G$103-1,0),0) -> 28.15181917 | H201: =IF(AND($A201>H$103,$A201<=H$100+H$103),OFFSET(Ryhma4!$K274,-H$103-1,0),0) -> 28.31983613 | I201: =IF(AND($A201>I$103,$A201<=I$100+I$103),OFFSET(Ryhma5!$K274,-I$103-1,0),0) -> 28.51308374 | J201: =IF(AND($A201>J$103,$A201<=J$100+J$103),OFFSET(Ryhma6!$K274,-J$103-1,0),0) -> 28.66375718 | K201: =IF(AND($A201>K$103,$A201<=K$100+K$103),OFFSET(Ryhma7!$K274,-K$103-1,0),0) -> 28.85444553 | L201: =IF(AND($A201>L$103,$A201<=L$100+L$103),OFFSET(Ryhma8!$K274,-L$103-1,0),0) -> 28.95764878 | M201: =IF(AND($A201>M$103,$A201<=M$100+M$103),OFFSET(Ryhma9!$K274,-M$103-1,0),0) -> 29.15524867 | N201: =IF(AND($A201>N$103,$A201<=N$100+N$103),OFFSET(Ryhma10!$K274,-N$103-1,0),0) -> 29.30931553 | O201: =IF(AND($A201>O$103,$A201<=O$100+O$103),OFFSET(Ryhma11!$K274,-O$103-1,0),0) -> 29.46419654 | P201: =IF(AND($A201>P$103,$A201<=P$100+P$103),OFFSET(Ryhma12!$K274,-P$103-1,0),0) -> 29.71067943 | Q201: =IF(COUNTIF(D$104:D201,D201)=1,D201,"") ->  | R201: =IF(COUNTIF(D$105:D201,D201)=1,1,0) -> 0 | S201: =IF(R201=0,"",MAX(S$104:S200)+1) -> 
A202: 98 | B202: 2019-04-08 | C202: 289.0508837 | D202: 201904 | E202: =IF(AND($A202>E$103,$A202<=E$100+E$103),OFFSET(Ryhma1!K275,-E$103-1,0),0) -> 0 | F202: =IF(AND($A202>F$103,$A202<=F$100+F$103),OFFSET(Ryhma2!K275,-F$103-1,0),0) -> 0 | G202: =IF(AND($A202>G$103,$A202<=G$100+G$103),OFFSET(Ryhma3!$K275,-G$103-1,0),0) -> 28.14703336 | H202: =IF(AND($A202>H$103,$A202<=H$100+H$103),OFFSET(Ryhma4!$K275,-H$103-1,0),0) -> 28.31502176 | I202: =IF(AND($A202>I$103,$A202<=I$100+I$103),OFFSET(Ryhma5!$K275,-I$103-1,0),0) -> 28.50823652 | J202: =IF(AND($A202>J$103,$A202<=J$100+J$103),OFFSET(Ryhma6!$K275,-J$103-1,0),0) -> 28.65888434 | K202: =IF(AND($A202>K$103,$A202<=K$100+K$103),OFFSET(Ryhma7!$K275,-K$103-1,0),0) -> 28.84954027 | L202: =IF(AND($A202>L$103,$A202<=L$100+L$103),OFFSET(Ryhma8!$K275,-L$103-1,0),0) -> 28.95272598 | M202: =IF(AND($A202>M$103,$A202<=M$100+M$103),OFFSET(Ryhma9!$K275,-M$103-1,0),0) -> 29.15029228 | N202: =IF(AND($A202>N$103,$A202<=N$100+N$103),OFFSET(Ryhma10!$K275,-N$103-1,0),0) -> 29.30433295 | O202: =IF(AND($A202>O$103,$A202<=O$100+O$103),OFFSET(Ryhma11!$K275,-O$103-1,0),0) -> 29.45918763 | P202: =IF(AND($A202>P$103,$A202<=P$100+P$103),OFFSET(Ryhma12!$K275,-P$103-1,0),0) -> 29.70562861 | Q202: =IF(COUNTIF(D$104:D202,D202)=1,D202,"") ->  | R202: =IF(COUNTIF(D$105:D202,D202)=1,1,0) -> 0 | S202: =IF(R202=0,"",MAX(S$104:S201)+1) -> 
A203: 99 | B203: 2019-04-09 | C203: 289.0017451 | D203: 201904 | E203: =IF(AND($A203>E$103,$A203<=E$100+E$103),OFFSET(Ryhma1!K276,-E$103-1,0),0) -> 0 | F203: =IF(AND($A203>F$103,$A203<=F$100+F$103),OFFSET(Ryhma2!K276,-F$103-1,0),0) -> 0 | G203: =IF(AND($A203>G$103,$A203<=G$100+G$103),OFFSET(Ryhma3!$K276,-G$103-1,0),0) -> 28.14224837 | H203: =IF(AND($A203>H$103,$A203<=H$100+H$103),OFFSET(Ryhma4!$K276,-H$103-1,0),0) -> 28.31020821 | I203: =IF(AND($A203>I$103,$A203<=I$100+I$103),OFFSET(Ryhma5!$K276,-I$103-1,0),0) -> 28.50339012 | J203: =IF(AND($A203>J$103,$A203<=J$100+J$103),OFFSET(Ryhma6!$K276,-J$103-1,0),0) -> 28.65401233 | K203: =IF(AND($A203>K$103,$A203<=K$100+K$103),OFFSET(Ryhma7!$K276,-K$103-1,0),0) -> 28.84463585 | L203: =IF(AND($A203>L$103,$A203<=L$100+L$103),OFFSET(Ryhma8!$K276,-L$103-1,0),0) -> 28.94780402 | M203: =IF(AND($A203>M$103,$A203<=M$100+M$103),OFFSET(Ryhma9!$K276,-M$103-1,0),0) -> 29.14533673 | N203: =IF(AND($A203>N$103,$A203<=N$100+N$103),OFFSET(Ryhma10!$K276,-N$103-1,0),0) -> 29.29935121 | O203: =IF(AND($A203>O$103,$A203<=O$100+O$103),OFFSET(Ryhma11!$K276,-O$103-1,0),0) -> 29.45417957 | P203: =IF(AND($A203>P$103,$A203<=P$100+P$103),OFFSET(Ryhma12!$K276,-P$103-1,0),0) -> 29.70057866 | Q203: =IF(COUNTIF(D$104:D203,D203)=1,D203,"") ->  | R203: =IF(COUNTIF(D$105:D203,D203)=1,1,0) -> 0 | S203: =IF(R203=0,"",MAX(S$104:S202)+1) -> 
A204: 100 | B204: 2019-04-10 | C204: 288.9526148 | D204: 201904 | E204: =IF(AND($A204>E$103,$A204<=E$100+E$103),OFFSET(Ryhma1!K277,-E$103-1,0),0) -> 0 | F204: =IF(AND($A204>F$103,$A204<=F$100+F$103),OFFSET(Ryhma2!K277,-F$103-1,0),0) -> 0 | G204: =IF(AND($A204>G$103,$A204<=G$100+G$103),OFFSET(Ryhma3!$K277,-G$103-1,0),0) -> 28.13746419 | H204: =IF(AND($A204>H$103,$A204<=H$100+H$103),OFFSET(Ryhma4!$K277,-H$103-1,0),0) -> 28.30539547 | I204: =IF(AND($A204>I$103,$A204<=I$100+I$103),OFFSET(Ryhma5!$K277,-I$103-1,0),0) -> 28.49854454 | J204: =IF(AND($A204>J$103,$A204<=J$100+J$103),OFFSET(Ryhma6!$K277,-J$103-1,0),0) -> 28.64914115 | K204: =IF(AND($A204>K$103,$A204<=K$100+K$103),OFFSET(Ryhma7!$K277,-K$103-1,0),0) -> 28.83973226 | L204: =IF(AND($A204>L$103,$A204<=L$100+L$103),OFFSET(Ryhma8!$K277,-L$103-1,0),0) -> 28.94288289 | M204: =IF(AND($A204>M$103,$A204<=M$100+M$103),OFFSET(Ryhma9!$K277,-M$103-1,0),0) -> 29.14038202 | N204: =IF(AND($A204>N$103,$A204<=N$100+N$103),OFFSET(Ryhma10!$K277,-N$103-1,0),0) -> 29.29437032 | O204: =IF(AND($A204>O$103,$A204<=O$100+O$103),OFFSET(Ryhma11!$K277,-O$103-1,0),0) -> 29.44917236 | P204: =IF(AND($A204>P$103,$A204<=P$100+P$103),OFFSET(Ryhma12!$K277,-P$103-1,0),0) -> 29.69552956 | Q204: =IF(COUNTIF(D$104:D204,D204)=1,D204,"") ->  | R204: =IF(COUNTIF(D$105:D204,D204)=1,1,0) -> 0 | S204: =IF(R204=0,"",MAX(S$104:S203)+1) -> 
A205: 101 | B205: 2019-04-11 | C205: 288.9034928 | D205: 201904 | E205: =IF(AND($A205>E$103,$A205<=E$100+E$103),OFFSET(Ryhma1!K278,-E$103-1,0),0) -> 0 | F205: =IF(AND($A205>F$103,$A205<=F$100+F$103),OFFSET(Ryhma2!K278,-F$103-1,0),0) -> 0 | G205: =IF(AND($A205>G$103,$A205<=G$100+G$103),OFFSET(Ryhma3!$K278,-G$103-1,0),0) -> 28.13268082 | H205: =IF(AND($A205>H$103,$A205<=H$100+H$103),OFFSET(Ryhma4!$K278,-H$103-1,0),0) -> 28.30058355 | I205: =IF(AND($A205>I$103,$A205<=I$100+I$103),OFFSET(Ryhma5!$K278,-I$103-1,0),0) -> 28.49369979 | J205: =IF(AND($A205>J$103,$A205<=J$100+J$103),OFFSET(Ryhma6!$K278,-J$103-1,0),0) -> 28.64427079 | K205: =IF(AND($A205>K$103,$A205<=K$100+K$103),OFFSET(Ryhma7!$K278,-K$103-1,0),0) -> 28.83482951 | L205: =IF(AND($A205>L$103,$A205<=L$100+L$103),OFFSET(Ryhma8!$K278,-L$103-1,0),0) -> 28.9379626 | M205: =IF(AND($A205>M$103,$A205<=M$100+M$103),OFFSET(Ryhma9!$K278,-M$103-1,0),0) -> 29.13542815 | N205: =IF(AND($A205>N$103,$A205<=N$100+N$103),OFFSET(Ryhma10!$K278,-N$103-1,0),0) -> 29.28939028 | O205: =IF(AND($A205>O$103,$A205<=O$100+O$103),OFFSET(Ryhma11!$K278,-O$103-1,0),0) -> 29.444166 | P205: =IF(AND($A205>P$103,$A205<=P$100+P$103),OFFSET(Ryhma12!$K278,-P$103-1,0),0) -> 29.69048132 | Q205: =IF(COUNTIF(D$104:D205,D205)=1,D205,"") ->  | R205: =IF(COUNTIF(D$105:D205,D205)=1,1,0) -> 0 | S205: =IF(R205=0,"",MAX(S$104:S204)+1) -> 
A206: 102 | B206: 2019-04-12 | C206: 288.8543792 | D206: 201904 | E206: =IF(AND($A206>E$103,$A206<=E$100+E$103),OFFSET(Ryhma1!K279,-E$103-1,0),0) -> 0 | F206: =IF(AND($A206>F$103,$A206<=F$100+F$103),OFFSET(Ryhma2!K279,-F$103-1,0),0) -> 0 | G206: =IF(AND($A206>G$103,$A206<=G$100+G$103),OFFSET(Ryhma3!$K279,-G$103-1,0),0) -> 28.12789826 | H206: =IF(AND($A206>H$103,$A206<=H$100+H$103),OFFSET(Ryhma4!$K279,-H$103-1,0),0) -> 28.29577246 | I206: =IF(AND($A206>I$103,$A206<=I$100+I$103),OFFSET(Ryhma5!$K279,-I$103-1,0),0) -> 28.48885586 | J206: =IF(AND($A206>J$103,$A206<=J$100+J$103),OFFSET(Ryhma6!$K279,-J$103-1,0),0) -> 28.63940127 | K206: =IF(AND($A206>K$103,$A206<=K$100+K$103),OFFSET(Ryhma7!$K279,-K$103-1,0),0) -> 28.82992759 | L206: =IF(AND($A206>L$103,$A206<=L$100+L$103),OFFSET(Ryhma8!$K279,-L$103-1,0),0) -> 28.93304315 | M206: =IF(AND($A206>M$103,$A206<=M$100+M$103),OFFSET(Ryhma9!$K279,-M$103-1,0),0) -> 29.13047513 | N206: =IF(AND($A206>N$103,$A206<=N$100+N$103),OFFSET(Ryhma10!$K279,-N$103-1,0),0) -> 29.28441108 | O206: =IF(AND($A206>O$103,$A206<=O$100+O$103),OFFSET(Ryhma11!$K279,-O$103-1,0),0) -> 29.43916049 | P206: =IF(AND($A206>P$103,$A206<=P$100+P$103),OFFSET(Ryhma12!$K279,-P$103-1,0),0) -> 29.68543394 | Q206: =IF(COUNTIF(D$104:D206,D206)=1,D206,"") ->  | R206: =IF(COUNTIF(D$105:D206,D206)=1,1,0) -> 0 | S206: =IF(R206=0,"",MAX(S$104:S205)+1) -> 
A207: 103 | B207: 2019-04-13 | C207: 288.805274 | D207: 201904 | E207: =IF(AND($A207>E$103,$A207<=E$100+E$103),OFFSET(Ryhma1!K280,-E$103-1,0),0) -> 0 | F207: =IF(AND($A207>F$103,$A207<=F$100+F$103),OFFSET(Ryhma2!K280,-F$103-1,0),0) -> 0 | G207: =IF(AND($A207>G$103,$A207<=G$100+G$103),OFFSET(Ryhma3!$K280,-G$103-1,0),0) -> 28.12311652 | H207: =IF(AND($A207>H$103,$A207<=H$100+H$103),OFFSET(Ryhma4!$K280,-H$103-1,0),0) -> 28.29096217 | I207: =IF(AND($A207>I$103,$A207<=I$100+I$103),OFFSET(Ryhma5!$K280,-I$103-1,0),0) -> 28.48401275 | J207: =IF(AND($A207>J$103,$A207<=J$100+J$103),OFFSET(Ryhma6!$K280,-J$103-1,0),0) -> 28.63453257 | K207: =IF(AND($A207>K$103,$A207<=K$100+K$103),OFFSET(Ryhma7!$K280,-K$103-1,0),0) -> 28.8250265 | L207: =IF(AND($A207>L$103,$A207<=L$100+L$103),OFFSET(Ryhma8!$K280,-L$103-1,0),0) -> 28.92812453 | M207: =IF(AND($A207>M$103,$A207<=M$100+M$103),OFFSET(Ryhma9!$K280,-M$103-1,0),0) -> 29.12552295 | N207: =IF(AND($A207>N$103,$A207<=N$100+N$103),OFFSET(Ryhma10!$K280,-N$103-1,0),0) -> 29.27943273 | O207: =IF(AND($A207>O$103,$A207<=O$100+O$103),OFFSET(Ryhma11!$K280,-O$103-1,0),0) -> 29.43415583 | P207: =IF(AND($A207>P$103,$A207<=P$100+P$103),OFFSET(Ryhma12!$K280,-P$103-1,0),0) -> 29.68038741 | Q207: =IF(COUNTIF(D$104:D207,D207)=1,D207,"") ->  | R207: =IF(COUNTIF(D$105:D207,D207)=1,1,0) -> 0 | S207: =IF(R207=0,"",MAX(S$104:S206)+1) -> 
A208: 104 | B208: 2019-04-14 | C208: 288.7561771 | D208: 201904 | E208: =IF(AND($A208>E$103,$A208<=E$100+E$103),OFFSET(Ryhma1!K281,-E$103-1,0),0) -> 0 | F208: =IF(AND($A208>F$103,$A208<=F$100+F$103),OFFSET(Ryhma2!K281,-F$103-1,0),0) -> 0 | G208: =IF(AND($A208>G$103,$A208<=G$100+G$103),OFFSET(Ryhma3!$K281,-G$103-1,0),0) -> 28.11833559 | H208: =IF(AND($A208>H$103,$A208<=H$100+H$103),OFFSET(Ryhma4!$K281,-H$103-1,0),0) -> 28.28615271 | I208: =IF(AND($A208>I$103,$A208<=I$100+I$103),OFFSET(Ryhma5!$K281,-I$103-1,0),0) -> 28.47917047 | J208: =IF(AND($A208>J$103,$A208<=J$100+J$103),OFFSET(Ryhma6!$K281,-J$103-1,0),0) -> 28.6296647 | K208: =IF(AND($A208>K$103,$A208<=K$100+K$103),OFFSET(Ryhma7!$K281,-K$103-1,0),0) -> 28.82012625 | L208: =IF(AND($A208>L$103,$A208<=L$100+L$103),OFFSET(Ryhma8!$K281,-L$103-1,0),0) -> 28.92320675 | M208: =IF(AND($A208>M$103,$A208<=M$100+M$103),OFFSET(Ryhma9!$K281,-M$103-1,0),0) -> 29.12057161 | N208: =IF(AND($A208>N$103,$A208<=N$100+N$103),OFFSET(Ryhma10!$K281,-N$103-1,0),0) -> 29.27445523 | O208: =IF(AND($A208>O$103,$A208<=O$100+O$103),OFFSET(Ryhma11!$K281,-O$103-1,0),0) -> 29.42915203 | P208: =IF(AND($A208>P$103,$A208<=P$100+P$103),OFFSET(Ryhma12!$K281,-P$103-1,0),0) -> 29.67534175 | Q208: =IF(COUNTIF(D$104:D208,D208)=1,D208,"") ->  | R208: =IF(COUNTIF(D$105:D208,D208)=1,1,0) -> 0 | S208: =IF(R208=0,"",MAX(S$104:S207)+1) -> 
A209: 105 | B209: 2019-04-15 | C209: 288.7070885 | D209: 201904 | E209: =IF(AND($A209>E$103,$A209<=E$100+E$103),OFFSET(Ryhma1!K282,-E$103-1,0),0) -> 0 | F209: =IF(AND($A209>F$103,$A209<=F$100+F$103),OFFSET(Ryhma2!K282,-F$103-1,0),0) -> 0 | G209: =IF(AND($A209>G$103,$A209<=G$100+G$103),OFFSET(Ryhma3!$K282,-G$103-1,0),0) -> 28.11355547 | H209: =IF(AND($A209>H$103,$A209<=H$100+H$103),OFFSET(Ryhma4!$K282,-H$103-1,0),0) -> 28.28134406 | I209: =IF(AND($A209>I$103,$A209<=I$100+I$103),OFFSET(Ryhma5!$K282,-I$103-1,0),0) -> 28.47432901 | J209: =IF(AND($A209>J$103,$A209<=J$100+J$103),OFFSET(Ryhma6!$K282,-J$103-1,0),0) -> 28.62479765 | K209: =IF(AND($A209>K$103,$A209<=K$100+K$103),OFFSET(Ryhma7!$K282,-K$103-1,0),0) -> 28.81522682 | L209: =IF(AND($A209>L$103,$A209<=L$100+L$103),OFFSET(Ryhma8!$K282,-L$103-1,0),0) -> 28.9182898 | M209: =IF(AND($A209>M$103,$A209<=M$100+M$103),OFFSET(Ryhma9!$K282,-M$103-1,0),0) -> 29.11562111 | N209: =IF(AND($A209>N$103,$A209<=N$100+N$103),OFFSET(Ryhma10!$K282,-N$103-1,0),0) -> 29.26947857 | O209: =IF(AND($A209>O$103,$A209<=O$100+O$103),OFFSET(Ryhma11!$K282,-O$103-1,0),0) -> 29.42414907 | P209: =IF(AND($A209>P$103,$A209<=P$100+P$103),OFFSET(Ryhma12!$K282,-P$103-1,0),0) -> 29.67029694 | Q209: =IF(COUNTIF(D$104:D209,D209)=1,D209,"") ->  | R209: =IF(COUNTIF(D$105:D209,D209)=1,1,0) -> 0 | S209: =IF(R209=0,"",MAX(S$104:S208)+1) -> 
A210: 106 | B210: 2019-04-16 | C210: 288.6580083 | D210: 201904 | E210: =IF(AND($A210>E$103,$A210<=E$100+E$103),OFFSET(Ryhma1!K283,-E$103-1,0),0) -> 0 | F210: =IF(AND($A210>F$103,$A210<=F$100+F$103),OFFSET(Ryhma2!K283,-F$103-1,0),0) -> 0 | G210: =IF(AND($A210>G$103,$A210<=G$100+G$103),OFFSET(Ryhma3!$K283,-G$103-1,0),0) -> 28.10877617 | H210: =IF(AND($A210>H$103,$A210<=H$100+H$103),OFFSET(Ryhma4!$K283,-H$103-1,0),0) -> 28.27653624 | I210: =IF(AND($A210>I$103,$A210<=I$100+I$103),OFFSET(Ryhma5!$K283,-I$103-1,0),0) -> 28.46948838 | J210: =IF(AND($A210>J$103,$A210<=J$100+J$103),OFFSET(Ryhma6!$K283,-J$103-1,0),0) -> 28.61993144 | K210: =IF(AND($A210>K$103,$A210<=K$100+K$103),OFFSET(Ryhma7!$K283,-K$103-1,0),0) -> 28.81032824 | L210: =IF(AND($A210>L$103,$A210<=L$100+L$103),OFFSET(Ryhma8!$K283,-L$103-1,0),0) -> 28.91337369 | M210: =IF(AND($A210>M$103,$A210<=M$100+M$103),OFFSET(Ryhma9!$K283,-M$103-1,0),0) -> 29.11067146 | N210: =IF(AND($A210>N$103,$A210<=N$100+N$103),OFFSET(Ryhma10!$K283,-N$103-1,0),0) -> 29.26450276 | O210: =IF(AND($A210>O$103,$A210<=O$100+O$103),OFFSET(Ryhma11!$K283,-O$103-1,0),0) -> 29.41914697 | P210: =IF(AND($A210>P$103,$A210<=P$100+P$103),OFFSET(Ryhma12!$K283,-P$103-1,0),0) -> 29.66525299 | Q210: =IF(COUNTIF(D$104:D210,D210)=1,D210,"") ->  | R210: =IF(COUNTIF(D$105:D210,D210)=1,1,0) -> 0 | S210: =IF(R210=0,"",MAX(S$104:S209)+1) -> 
A211: 107 | B211: 2019-04-17 | C211: 288.6089365 | D211: 201904 | E211: =IF(AND($A211>E$103,$A211<=E$100+E$103),OFFSET(Ryhma1!K284,-E$103-1,0),0) -> 0 | F211: =IF(AND($A211>F$103,$A211<=F$100+F$103),OFFSET(Ryhma2!K284,-F$103-1,0),0) -> 0 | G211: =IF(AND($A211>G$103,$A211<=G$100+G$103),OFFSET(Ryhma3!$K284,-G$103-1,0),0) -> 28.10399767 | H211: =IF(AND($A211>H$103,$A211<=H$100+H$103),OFFSET(Ryhma4!$K284,-H$103-1,0),0) -> 28.27172923 | I211: =IF(AND($A211>I$103,$A211<=I$100+I$103),OFFSET(Ryhma5!$K284,-I$103-1,0),0) -> 28.46464856 | J211: =IF(AND($A211>J$103,$A211<=J$100+J$103),OFFSET(Ryhma6!$K284,-J$103-1,0),0) -> 28.61506605 | K211: =IF(AND($A211>K$103,$A211<=K$100+K$103),OFFSET(Ryhma7!$K284,-K$103-1,0),0) -> 28.80543048 | L211: =IF(AND($A211>L$103,$A211<=L$100+L$103),OFFSET(Ryhma8!$K284,-L$103-1,0),0) -> 28.90845842 | M211: =IF(AND($A211>M$103,$A211<=M$100+M$103),OFFSET(Ryhma9!$K284,-M$103-1,0),0) -> 29.10572264 | N211: =IF(AND($A211>N$103,$A211<=N$100+N$103),OFFSET(Ryhma10!$K284,-N$103-1,0),0) -> 29.2595278 | O211: =IF(AND($A211>O$103,$A211<=O$100+O$103),OFFSET(Ryhma11!$K284,-O$103-1,0),0) -> 29.41414571 | P211: =IF(AND($A211>P$103,$A211<=P$100+P$103),OFFSET(Ryhma12!$K284,-P$103-1,0),0) -> 29.6602099 | Q211: =IF(COUNTIF(D$104:D211,D211)=1,D211,"") ->  | R211: =IF(COUNTIF(D$105:D211,D211)=1,1,0) -> 0 | S211: =IF(R211=0,"",MAX(S$104:S210)+1) -> 
A212: 108 | B212: 2019-04-18 | C212: 288.5598729 | D212: 201904 | E212: =IF(AND($A212>E$103,$A212<=E$100+E$103),OFFSET(Ryhma1!K285,-E$103-1,0),0) -> 0 | F212: =IF(AND($A212>F$103,$A212<=F$100+F$103),OFFSET(Ryhma2!K285,-F$103-1,0),0) -> 0 | G212: =IF(AND($A212>G$103,$A212<=G$100+G$103),OFFSET(Ryhma3!$K285,-G$103-1,0),0) -> 28.09922 | H212: =IF(AND($A212>H$103,$A212<=H$100+H$103),OFFSET(Ryhma4!$K285,-H$103-1,0),0) -> 28.26692303 | I212: =IF(AND($A212>I$103,$A212<=I$100+I$103),OFFSET(Ryhma5!$K285,-I$103-1,0),0) -> 28.45980957 | J212: =IF(AND($A212>J$103,$A212<=J$100+J$103),OFFSET(Ryhma6!$K285,-J$103-1,0),0) -> 28.61020149 | K212: =IF(AND($A212>K$103,$A212<=K$100+K$103),OFFSET(Ryhma7!$K285,-K$103-1,0),0) -> 28.80053356 | L212: =IF(AND($A212>L$103,$A212<=L$100+L$103),OFFSET(Ryhma8!$K285,-L$103-1,0),0) -> 28.90354398 | M212: =IF(AND($A212>M$103,$A212<=M$100+M$103),OFFSET(Ryhma9!$K285,-M$103-1,0),0) -> 29.10077467 | N212: =IF(AND($A212>N$103,$A212<=N$100+N$103),OFFSET(Ryhma10!$K285,-N$103-1,0),0) -> 29.25455368 | O212: =IF(AND($A212>O$103,$A212<=O$100+O$103),OFFSET(Ryhma11!$K285,-O$103-1,0),0) -> 29.40914531 | P212: =IF(AND($A212>P$103,$A212<=P$100+P$103),OFFSET(Ryhma12!$K285,-P$103-1,0),0) -> 29.65516766 | Q212: =IF(COUNTIF(D$104:D212,D212)=1,D212,"") ->  | R212: =IF(COUNTIF(D$105:D212,D212)=1,1,0) -> 0 | S212: =IF(R212=0,"",MAX(S$104:S211)+1) -> 
A213: 109 | B213: 2019-04-19 | C213: 288.5108178 | D213: 201904 | E213: =IF(AND($A213>E$103,$A213<=E$100+E$103),OFFSET(Ryhma1!K286,-E$103-1,0),0) -> 0 | F213: =IF(AND($A213>F$103,$A213<=F$100+F$103),OFFSET(Ryhma2!K286,-F$103-1,0),0) -> 0 | G213: =IF(AND($A213>G$103,$A213<=G$100+G$103),OFFSET(Ryhma3!$K286,-G$103-1,0),0) -> 28.09444313 | H213: =IF(AND($A213>H$103,$A213<=H$100+H$103),OFFSET(Ryhma4!$K286,-H$103-1,0),0) -> 28.26211765 | I213: =IF(AND($A213>I$103,$A213<=I$100+I$103),OFFSET(Ryhma5!$K286,-I$103-1,0),0) -> 28.45497141 | J213: =IF(AND($A213>J$103,$A213<=J$100+J$103),OFFSET(Ryhma6!$K286,-J$103-1,0),0) -> 28.60533776 | K213: =IF(AND($A213>K$103,$A213<=K$100+K$103),OFFSET(Ryhma7!$K286,-K$103-1,0),0) -> 28.79563747 | L213: =IF(AND($A213>L$103,$A213<=L$100+L$103),OFFSET(Ryhma8!$K286,-L$103-1,0),0) -> 28.89863038 | M213: =IF(AND($A213>M$103,$A213<=M$100+M$103),OFFSET(Ryhma9!$K286,-M$103-1,0),0) -> 29.09582754 | N213: =IF(AND($A213>N$103,$A213<=N$100+N$103),OFFSET(Ryhma10!$K286,-N$103-1,0),0) -> 29.2495804 | O213: =IF(AND($A213>O$103,$A213<=O$100+O$103),OFFSET(Ryhma11!$K286,-O$103-1,0),0) -> 29.40414575 | P213: =IF(AND($A213>P$103,$A213<=P$100+P$103),OFFSET(Ryhma12!$K286,-P$103-1,0),0) -> 29.65012628 | Q213: =IF(COUNTIF(D$104:D213,D213)=1,D213,"") ->  | R213: =IF(COUNTIF(D$105:D213,D213)=1,1,0) -> 0 | S213: =IF(R213=0,"",MAX(S$104:S212)+1) -> 
A214: 110 | B214: 2019-04-20 | C214: 260.3721039 | D214: 201904 | E214: =IF(AND($A214>E$103,$A214<=E$100+E$103),OFFSET(Ryhma1!K287,-E$103-1,0),0) -> 0 | F214: =IF(AND($A214>F$103,$A214<=F$100+F$103),OFFSET(Ryhma2!K287,-F$103-1,0),0) -> 0 | G214: =IF(AND($A214>G$103,$A214<=G$100+G$103),OFFSET(Ryhma3!$K287,-G$103-1,0),0) -> 0 | H214: =IF(AND($A214>H$103,$A214<=H$100+H$103),OFFSET(Ryhma4!$K287,-H$103-1,0),0) -> 28.25731309 | I214: =IF(AND($A214>I$103,$A214<=I$100+I$103),OFFSET(Ryhma5!$K287,-I$103-1,0),0) -> 28.45013406 | J214: =IF(AND($A214>J$103,$A214<=J$100+J$103),OFFSET(Ryhma6!$K287,-J$103-1,0),0) -> 28.60047485 | K214: =IF(AND($A214>K$103,$A214<=K$100+K$103),OFFSET(Ryhma7!$K287,-K$103-1,0),0) -> 28.79074221 | L214: =IF(AND($A214>L$103,$A214<=L$100+L$103),OFFSET(Ryhma8!$K287,-L$103-1,0),0) -> 28.89371761 | M214: =IF(AND($A214>M$103,$A214<=M$100+M$103),OFFSET(Ryhma9!$K287,-M$103-1,0),0) -> 29.09088125 | N214: =IF(AND($A214>N$103,$A214<=N$100+N$103),OFFSET(Ryhma10!$K287,-N$103-1,0),0) -> 29.24460797 | O214: =IF(AND($A214>O$103,$A214<=O$100+O$103),OFFSET(Ryhma11!$K287,-O$103-1,0),0) -> 29.39914705 | P214: =IF(AND($A214>P$103,$A214<=P$100+P$103),OFFSET(Ryhma12!$K287,-P$103-1,0),0) -> 29.64508576 | Q214: =IF(COUNTIF(D$104:D214,D214)=1,D214,"") ->  | R214: =IF(COUNTIF(D$105:D214,D214)=1,1,0) -> 0 | S214: =IF(R214=0,"",MAX(S$104:S213)+1) -> 
A215: 111 | B215: 2019-04-21 | C215: 260.3278406 | D215: 201904 | E215: =IF(AND($A215>E$103,$A215<=E$100+E$103),OFFSET(Ryhma1!K288,-E$103-1,0),0) -> 0 | F215: =IF(AND($A215>F$103,$A215<=F$100+F$103),OFFSET(Ryhma2!K288,-F$103-1,0),0) -> 0 | G215: =IF(AND($A215>G$103,$A215<=G$100+G$103),OFFSET(Ryhma3!$K288,-G$103-1,0),0) -> 0 | H215: =IF(AND($A215>H$103,$A215<=H$100+H$103),OFFSET(Ryhma4!$K288,-H$103-1,0),0) -> 28.25250935 | I215: =IF(AND($A215>I$103,$A215<=I$100+I$103),OFFSET(Ryhma5!$K288,-I$103-1,0),0) -> 28.44529754 | J215: =IF(AND($A215>J$103,$A215<=J$100+J$103),OFFSET(Ryhma6!$K288,-J$103-1,0),0) -> 28.59561277 | K215: =IF(AND($A215>K$103,$A215<=K$100+K$103),OFFSET(Ryhma7!$K288,-K$103-1,0),0) -> 28.78584778 | L215: =IF(AND($A215>L$103,$A215<=L$100+L$103),OFFSET(Ryhma8!$K288,-L$103-1,0),0) -> 28.88880568 | M215: =IF(AND($A215>M$103,$A215<=M$100+M$103),OFFSET(Ryhma9!$K288,-M$103-1,0),0) -> 29.0859358 | N215: =IF(AND($A215>N$103,$A215<=N$100+N$103),OFFSET(Ryhma10!$K288,-N$103-1,0),0) -> 29.23963639 | O215: =IF(AND($A215>O$103,$A215<=O$100+O$103),OFFSET(Ryhma11!$K288,-O$103-1,0),0) -> 29.39414919 | P215: =IF(AND($A215>P$103,$A215<=P$100+P$103),OFFSET(Ryhma12!$K288,-P$103-1,0),0) -> 29.6400461 | Q215: =IF(COUNTIF(D$104:D215,D215)=1,D215,"") ->  | R215: =IF(COUNTIF(D$105:D215,D215)=1,1,0) -> 0 | S215: =IF(R215=0,"",MAX(S$104:S214)+1) -> 
A216: 112 | B216: 2019-04-22 | C216: 260.2835849 | D216: 201904 | E216: =IF(AND($A216>E$103,$A216<=E$100+E$103),OFFSET(Ryhma1!K289,-E$103-1,0),0) -> 0 | F216: =IF(AND($A216>F$103,$A216<=F$100+F$103),OFFSET(Ryhma2!K289,-F$103-1,0),0) -> 0 | G216: =IF(AND($A216>G$103,$A216<=G$100+G$103),OFFSET(Ryhma3!$K289,-G$103-1,0),0) -> 0 | H216: =IF(AND($A216>H$103,$A216<=H$100+H$103),OFFSET(Ryhma4!$K289,-H$103-1,0),0) -> 28.24770642 | I216: =IF(AND($A216>I$103,$A216<=I$100+I$103),OFFSET(Ryhma5!$K289,-I$103-1,0),0) -> 28.44046184 | J216: =IF(AND($A216>J$103,$A216<=J$100+J$103),OFFSET(Ryhma6!$K289,-J$103-1,0),0) -> 28.59075151 | K216: =IF(AND($A216>K$103,$A216<=K$100+K$103),OFFSET(Ryhma7!$K289,-K$103-1,0),0) -> 28.78095419 | L216: =IF(AND($A216>L$103,$A216<=L$100+L$103),OFFSET(Ryhma8!$K289,-L$103-1,0),0) -> 28.88389458 | M216: =IF(AND($A216>M$103,$A216<=M$100+M$103),OFFSET(Ryhma9!$K289,-M$103-1,0),0) -> 29.08099119 | N216: =IF(AND($A216>N$103,$A216<=N$100+N$103),OFFSET(Ryhma10!$K289,-N$103-1,0),0) -> 29.23466565 | O216: =IF(AND($A216>O$103,$A216<=O$100+O$103),OFFSET(Ryhma11!$K289,-O$103-1,0),0) -> 29.38915219 | P216: =IF(AND($A216>P$103,$A216<=P$100+P$103),OFFSET(Ryhma12!$K289,-P$103-1,0),0) -> 29.63500729 | Q216: =IF(COUNTIF(D$104:D216,D216)=1,D216,"") ->  | R216: =IF(COUNTIF(D$105:D216,D216)=1,1,0) -> 0 | S216: =IF(R216=0,"",MAX(S$104:S215)+1) -> 
A217: 113 | B217: 2019-04-23 | C217: 260.2393367 | D217: 201904 | E217: =IF(AND($A217>E$103,$A217<=E$100+E$103),OFFSET(Ryhma1!K290,-E$103-1,0),0) -> 0 | F217: =IF(AND($A217>F$103,$A217<=F$100+F$103),OFFSET(Ryhma2!K290,-F$103-1,0),0) -> 0 | G217: =IF(AND($A217>G$103,$A217<=G$100+G$103),OFFSET(Ryhma3!$K290,-G$103-1,0),0) -> 0 | H217: =IF(AND($A217>H$103,$A217<=H$100+H$103),OFFSET(Ryhma4!$K290,-H$103-1,0),0) -> 28.24290431 | I217: =IF(AND($A217>I$103,$A217<=I$100+I$103),OFFSET(Ryhma5!$K290,-I$103-1,0),0) -> 28.43562696 | J217: =IF(AND($A217>J$103,$A217<=J$100+J$103),OFFSET(Ryhma6!$K290,-J$103-1,0),0) -> 28.58589108 | K217: =IF(AND($A217>K$103,$A217<=K$100+K$103),OFFSET(Ryhma7!$K290,-K$103-1,0),0) -> 28.77606143 | L217: =IF(AND($A217>L$103,$A217<=L$100+L$103),OFFSET(Ryhma8!$K290,-L$103-1,0),0) -> 28.87898432 | M217: =IF(AND($A217>M$103,$A217<=M$100+M$103),OFFSET(Ryhma9!$K290,-M$103-1,0),0) -> 29.07604742 | N217: =IF(AND($A217>N$103,$A217<=N$100+N$103),OFFSET(Ryhma10!$K290,-N$103-1,0),0) -> 29.22969576 | O217: =IF(AND($A217>O$103,$A217<=O$100+O$103),OFFSET(Ryhma11!$K290,-O$103-1,0),0) -> 29.38415603 | P217: =IF(AND($A217>P$103,$A217<=P$100+P$103),OFFSET(Ryhma12!$K290,-P$103-1,0),0) -> 29.62996934 | Q217: =IF(COUNTIF(D$104:D217,D217)=1,D217,"") ->  | R217: =IF(COUNTIF(D$105:D217,D217)=1,1,0) -> 0 | S217: =IF(R217=0,"",MAX(S$104:S216)+1) -> 
A218: 114 | B218: 2019-04-24 | C218: 260.195096 | D218: 201904 | E218: =IF(AND($A218>E$103,$A218<=E$100+E$103),OFFSET(Ryhma1!K291,-E$103-1,0),0) -> 0 | F218: =IF(AND($A218>F$103,$A218<=F$100+F$103),OFFSET(Ryhma2!K291,-F$103-1,0),0) -> 0 | G218: =IF(AND($A218>G$103,$A218<=G$100+G$103),OFFSET(Ryhma3!$K291,-G$103-1,0),0) -> 0 | H218: =IF(AND($A218>H$103,$A218<=H$100+H$103),OFFSET(Ryhma4!$K291,-H$103-1,0),0) -> 28.23810302 | I218: =IF(AND($A218>I$103,$A218<=I$100+I$103),OFFSET(Ryhma5!$K291,-I$103-1,0),0) -> 28.4307929 | J218: =IF(AND($A218>J$103,$A218<=J$100+J$103),OFFSET(Ryhma6!$K291,-J$103-1,0),0) -> 28.58103148 | K218: =IF(AND($A218>K$103,$A218<=K$100+K$103),OFFSET(Ryhma7!$K291,-K$103-1,0),0) -> 28.7711695 | L218: =IF(AND($A218>L$103,$A218<=L$100+L$103),OFFSET(Ryhma8!$K291,-L$103-1,0),0) -> 28.87407489 | M218: =IF(AND($A218>M$103,$A218<=M$100+M$103),OFFSET(Ryhma9!$K291,-M$103-1,0),0) -> 29.07110449 | N218: =IF(AND($A218>N$103,$A218<=N$100+N$103),OFFSET(Ryhma10!$K291,-N$103-1,0),0) -> 29.22472671 | O218: =IF(AND($A218>O$103,$A218<=O$100+O$103),OFFSET(Ryhma11!$K291,-O$103-1,0),0) -> 29.37916072 | P218: =IF(AND($A218>P$103,$A218<=P$100+P$103),OFFSET(Ryhma12!$K291,-P$103-1,0),0) -> 29.62493224 | Q218: =IF(COUNTIF(D$104:D218,D218)=1,D218,"") ->  | R218: =IF(COUNTIF(D$105:D218,D218)=1,1,0) -> 0 | S218: =IF(R218=0,"",MAX(S$104:S217)+1) -> 
A219: 115 | B219: 2019-04-25 | C219: 260.1508628 | D219: 201904 | E219: =IF(AND($A219>E$103,$A219<=E$100+E$103),OFFSET(Ryhma1!K292,-E$103-1,0),0) -> 0 | F219: =IF(AND($A219>F$103,$A219<=F$100+F$103),OFFSET(Ryhma2!K292,-F$103-1,0),0) -> 0 | G219: =IF(AND($A219>G$103,$A219<=G$100+G$103),OFFSET(Ryhma3!$K292,-G$103-1,0),0) -> 0 | H219: =IF(AND($A219>H$103,$A219<=H$100+H$103),OFFSET(Ryhma4!$K292,-H$103-1,0),0) -> 28.23330254 | I219: =IF(AND($A219>I$103,$A219<=I$100+I$103),OFFSET(Ryhma5!$K292,-I$103-1,0),0) -> 28.42595967 | J219: =IF(AND($A219>J$103,$A219<=J$100+J$103),OFFSET(Ryhma6!$K292,-J$103-1,0),0) -> 28.57617271 | K219: =IF(AND($A219>K$103,$A219<=K$100+K$103),OFFSET(Ryhma7!$K292,-K$103-1,0),0) -> 28.7662784 | L219: =IF(AND($A219>L$103,$A219<=L$100+L$103),OFFSET(Ryhma8!$K292,-L$103-1,0),0) -> 28.8691663 | M219: =IF(AND($A219>M$103,$A219<=M$100+M$103),OFFSET(Ryhma9!$K292,-M$103-1,0),0) -> 29.06616241 | N219: =IF(AND($A219>N$103,$A219<=N$100+N$103),OFFSET(Ryhma10!$K292,-N$103-1,0),0) -> 29.21975851 | O219: =IF(AND($A219>O$103,$A219<=O$100+O$103),OFFSET(Ryhma11!$K292,-O$103-1,0),0) -> 29.37416627 | P219: =IF(AND($A219>P$103,$A219<=P$100+P$103),OFFSET(Ryhma12!$K292,-P$103-1,0),0) -> 29.619896 | Q219: =IF(COUNTIF(D$104:D219,D219)=1,D219,"") ->  | R219: =IF(COUNTIF(D$105:D219,D219)=1,1,0) -> 0 | S219: =IF(R219=0,"",MAX(S$104:S218)+1) -> 
A220: 116 | B220: 2019-04-26 | C220: 260.1066372 | D220: 201904 | E220: =IF(AND($A220>E$103,$A220<=E$100+E$103),OFFSET(Ryhma1!K293,-E$103-1,0),0) -> 0 | F220: =IF(AND($A220>F$103,$A220<=F$100+F$103),OFFSET(Ryhma2!K293,-F$103-1,0),0) -> 0 | G220: =IF(AND($A220>G$103,$A220<=G$100+G$103),OFFSET(Ryhma3!$K293,-G$103-1,0),0) -> 0 | H220: =IF(AND($A220>H$103,$A220<=H$100+H$103),OFFSET(Ryhma4!$K293,-H$103-1,0),0) -> 28.22850288 | I220: =IF(AND($A220>I$103,$A220<=I$100+I$103),OFFSET(Ryhma5!$K293,-I$103-1,0),0) -> 28.42112726 | J220: =IF(AND($A220>J$103,$A220<=J$100+J$103),OFFSET(Ryhma6!$K293,-J$103-1,0),0) -> 28.57131476 | K220: =IF(AND($A220>K$103,$A220<=K$100+K$103),OFFSET(Ryhma7!$K293,-K$103-1,0),0) -> 28.76138813 | L220: =IF(AND($A220>L$103,$A220<=L$100+L$103),OFFSET(Ryhma8!$K293,-L$103-1,0),0) -> 28.86425854 | M220: =IF(AND($A220>M$103,$A220<=M$100+M$103),OFFSET(Ryhma9!$K293,-M$103-1,0),0) -> 29.06122116 | N220: =IF(AND($A220>N$103,$A220<=N$100+N$103),OFFSET(Ryhma10!$K293,-N$103-1,0),0) -> 29.21479115 | O220: =IF(AND($A220>O$103,$A220<=O$100+O$103),OFFSET(Ryhma11!$K293,-O$103-1,0),0) -> 29.36917266 | P220: =IF(AND($A220>P$103,$A220<=P$100+P$103),OFFSET(Ryhma12!$K293,-P$103-1,0),0) -> 29.61486062 | Q220: =IF(COUNTIF(D$104:D220,D220)=1,D220,"") ->  | R220: =IF(COUNTIF(D$105:D220,D220)=1,1,0) -> 0 | S220: =IF(R220=0,"",MAX(S$104:S219)+1) -> 
A221: 117 | B221: 2019-04-27 | C221: 260.062419 | D221: 201904 | E221: =IF(AND($A221>E$103,$A221<=E$100+E$103),OFFSET(Ryhma1!K294,-E$103-1,0),0) -> 0 | F221: =IF(AND($A221>F$103,$A221<=F$100+F$103),OFFSET(Ryhma2!K294,-F$103-1,0),0) -> 0 | G221: =IF(AND($A221>G$103,$A221<=G$100+G$103),OFFSET(Ryhma3!$K294,-G$103-1,0),0) -> 0 | H221: =IF(AND($A221>H$103,$A221<=H$100+H$103),OFFSET(Ryhma4!$K294,-H$103-1,0),0) -> 28.22370404 | I221: =IF(AND($A221>I$103,$A221<=I$100+I$103),OFFSET(Ryhma5!$K294,-I$103-1,0),0) -> 28.41629566 | J221: =IF(AND($A221>J$103,$A221<=J$100+J$103),OFFSET(Ryhma6!$K294,-J$103-1,0),0) -> 28.56645764 | K221: =IF(AND($A221>K$103,$A221<=K$100+K$103),OFFSET(Ryhma7!$K294,-K$103-1,0),0) -> 28.75649869 | L221: =IF(AND($A221>L$103,$A221<=L$100+L$103),OFFSET(Ryhma8!$K294,-L$103-1,0),0) -> 28.85935162 | M221: =IF(AND($A221>M$103,$A221<=M$100+M$103),OFFSET(Ryhma9!$K294,-M$103-1,0),0) -> 29.05628075 | N221: =IF(AND($A221>N$103,$A221<=N$100+N$103),OFFSET(Ryhma10!$K294,-N$103-1,0),0) -> 29.20982463 | O221: =IF(AND($A221>O$103,$A221<=O$100+O$103),OFFSET(Ryhma11!$K294,-O$103-1,0),0) -> 29.3641799 | P221: =IF(AND($A221>P$103,$A221<=P$100+P$103),OFFSET(Ryhma12!$K294,-P$103-1,0),0) -> 29.60982609 | Q221: =IF(COUNTIF(D$104:D221,D221)=1,D221,"") ->  | R221: =IF(COUNTIF(D$105:D221,D221)=1,1,0) -> 0 | S221: =IF(R221=0,"",MAX(S$104:S220)+1) -> 
A222: 118 | B222: 2019-04-28 | C222: 260.0182084 | D222: 201904 | E222: =IF(AND($A222>E$103,$A222<=E$100+E$103),OFFSET(Ryhma1!K295,-E$103-1,0),0) -> 0 | F222: =IF(AND($A222>F$103,$A222<=F$100+F$103),OFFSET(Ryhma2!K295,-F$103-1,0),0) -> 0 | G222: =IF(AND($A222>G$103,$A222<=G$100+G$103),OFFSET(Ryhma3!$K295,-G$103-1,0),0) -> 0 | H222: =IF(AND($A222>H$103,$A222<=H$100+H$103),OFFSET(Ryhma4!$K295,-H$103-1,0),0) -> 28.21890601 | I222: =IF(AND($A222>I$103,$A222<=I$100+I$103),OFFSET(Ryhma5!$K295,-I$103-1,0),0) -> 28.41146489 | J222: =IF(AND($A222>J$103,$A222<=J$100+J$103),OFFSET(Ryhma6!$K295,-J$103-1,0),0) -> 28.56160134 | K222: =IF(AND($A222>K$103,$A222<=K$100+K$103),OFFSET(Ryhma7!$K295,-K$103-1,0),0) -> 28.75161009 | L222: =IF(AND($A222>L$103,$A222<=L$100+L$103),OFFSET(Ryhma8!$K295,-L$103-1,0),0) -> 28.85444553 | M222: =IF(AND($A222>M$103,$A222<=M$100+M$103),OFFSET(Ryhma9!$K295,-M$103-1,0),0) -> 29.05134118 | N222: =IF(AND($A222>N$103,$A222<=N$100+N$103),OFFSET(Ryhma10!$K295,-N$103-1,0),0) -> 29.20485896 | O222: =IF(AND($A222>O$103,$A222<=O$100+O$103),OFFSET(Ryhma11!$K295,-O$103-1,0),0) -> 29.35918799 | P222: =IF(AND($A222>P$103,$A222<=P$100+P$103),OFFSET(Ryhma12!$K295,-P$103-1,0),0) -> 29.60479242 | Q222: =IF(COUNTIF(D$104:D222,D222)=1,D222,"") ->  | R222: =IF(COUNTIF(D$105:D222,D222)=1,1,0) -> 0 | S222: =IF(R222=0,"",MAX(S$104:S221)+1) -> 
A223: 119 | B223: 2019-04-29 | C223: 259.9740053 | D223: 201904 | E223: =IF(AND($A223>E$103,$A223<=E$100+E$103),OFFSET(Ryhma1!K296,-E$103-1,0),0) -> 0 | F223: =IF(AND($A223>F$103,$A223<=F$100+F$103),OFFSET(Ryhma2!K296,-F$103-1,0),0) -> 0 | G223: =IF(AND($A223>G$103,$A223<=G$100+G$103),OFFSET(Ryhma3!$K296,-G$103-1,0),0) -> 0 | H223: =IF(AND($A223>H$103,$A223<=H$100+H$103),OFFSET(Ryhma4!$K296,-H$103-1,0),0) -> 28.21410879 | I223: =IF(AND($A223>I$103,$A223<=I$100+I$103),OFFSET(Ryhma5!$K296,-I$103-1,0),0) -> 28.40663494 | J223: =IF(AND($A223>J$103,$A223<=J$100+J$103),OFFSET(Ryhma6!$K296,-J$103-1,0),0) -> 28.55674587 | K223: =IF(AND($A223>K$103,$A223<=K$100+K$103),OFFSET(Ryhma7!$K296,-K$103-1,0),0) -> 28.74672231 | L223: =IF(AND($A223>L$103,$A223<=L$100+L$103),OFFSET(Ryhma8!$K296,-L$103-1,0),0) -> 28.84954027 | M223: =IF(AND($A223>M$103,$A223<=M$100+M$103),OFFSET(Ryhma9!$K296,-M$103-1,0),0) -> 29.04640245 | N223: =IF(AND($A223>N$103,$A223<=N$100+N$103),OFFSET(Ryhma10!$K296,-N$103-1,0),0) -> 29.19989414 | O223: =IF(AND($A223>O$103,$A223<=O$100+O$103),OFFSET(Ryhma11!$K296,-O$103-1,0),0) -> 29.35419693 | P223: =IF(AND($A223>P$103,$A223<=P$100+P$103),OFFSET(Ryhma12!$K296,-P$103-1,0),0) -> 29.59975961 | Q223: =IF(COUNTIF(D$104:D223,D223)=1,D223,"") ->  | R223: =IF(COUNTIF(D$105:D223,D223)=1,1,0) -> 0 | S223: =IF(R223=0,"",MAX(S$104:S222)+1) -> 
A224: 120 | B224: 2019-04-30 | C224: 259.9298097 | D224: 201904 | E224: =IF(AND($A224>E$103,$A224<=E$100+E$103),OFFSET(Ryhma1!K297,-E$103-1,0),0) -> 0 | F224: =IF(AND($A224>F$103,$A224<=F$100+F$103),OFFSET(Ryhma2!K297,-F$103-1,0),0) -> 0 | G224: =IF(AND($A224>G$103,$A224<=G$100+G$103),OFFSET(Ryhma3!$K297,-G$103-1,0),0) -> 0 | H224: =IF(AND($A224>H$103,$A224<=H$100+H$103),OFFSET(Ryhma4!$K297,-H$103-1,0),0) -> 28.20931239 | I224: =IF(AND($A224>I$103,$A224<=I$100+I$103),OFFSET(Ryhma5!$K297,-I$103-1,0),0) -> 28.40180582 | J224: =IF(AND($A224>J$103,$A224<=J$100+J$103),OFFSET(Ryhma6!$K297,-J$103-1,0),0) -> 28.55189122 | K224: =IF(AND($A224>K$103,$A224<=K$100+K$103),OFFSET(Ryhma7!$K297,-K$103-1,0),0) -> 28.74183537 | L224: =IF(AND($A224>L$103,$A224<=L$100+L$103),OFFSET(Ryhma8!$K297,-L$103-1,0),0) -> 28.84463585 | M224: =IF(AND($A224>M$103,$A224<=M$100+M$103),OFFSET(Ryhma9!$K297,-M$103-1,0),0) -> 29.04146457 | N224: =IF(AND($A224>N$103,$A224<=N$100+N$103),OFFSET(Ryhma10!$K297,-N$103-1,0),0) -> 29.19493016 | O224: =IF(AND($A224>O$103,$A224<=O$100+O$103),OFFSET(Ryhma11!$K297,-O$103-1,0),0) -> 29.34920671 | P224: =IF(AND($A224>P$103,$A224<=P$100+P$103),OFFSET(Ryhma12!$K297,-P$103-1,0),0) -> 29.59472765 | Q224: =IF(COUNTIF(D$104:D224,D224)=1,D224,"") ->  | R224: =IF(COUNTIF(D$105:D224,D224)=1,1,0) -> 0 | S224: =IF(R224=0,"",MAX(S$104:S223)+1) -> 
A225: 121 | B225: 2019-05-01 | C225: 259.8856217 | D225: 201905 | E225: =IF(AND($A225>E$103,$A225<=E$100+E$103),OFFSET(Ryhma1!K298,-E$103-1,0),0) -> 0 | F225: =IF(AND($A225>F$103,$A225<=F$100+F$103),OFFSET(Ryhma2!K298,-F$103-1,0),0) -> 0 | G225: =IF(AND($A225>G$103,$A225<=G$100+G$103),OFFSET(Ryhma3!$K298,-G$103-1,0),0) -> 0 | H225: =IF(AND($A225>H$103,$A225<=H$100+H$103),OFFSET(Ryhma4!$K298,-H$103-1,0),0) -> 28.20451681 | I225: =IF(AND($A225>I$103,$A225<=I$100+I$103),OFFSET(Ryhma5!$K298,-I$103-1,0),0) -> 28.39697751 | J225: =IF(AND($A225>J$103,$A225<=J$100+J$103),OFFSET(Ryhma6!$K298,-J$103-1,0),0) -> 28.5470374 | K225: =IF(AND($A225>K$103,$A225<=K$100+K$103),OFFSET(Ryhma7!$K298,-K$103-1,0),0) -> 28.73694926 | L225: =IF(AND($A225>L$103,$A225<=L$100+L$103),OFFSET(Ryhma8!$K298,-L$103-1,0),0) -> 28.83973226 | M225: =IF(AND($A225>M$103,$A225<=M$100+M$103),OFFSET(Ryhma9!$K298,-M$103-1,0),0) -> 29.03652752 | N225: =IF(AND($A225>N$103,$A225<=N$100+N$103),OFFSET(Ryhma10!$K298,-N$103-1,0),0) -> 29.18996702 | O225: =IF(AND($A225>O$103,$A225<=O$100+O$103),OFFSET(Ryhma11!$K298,-O$103-1,0),0) -> 29.34421735 | P225: =IF(AND($A225>P$103,$A225<=P$100+P$103),OFFSET(Ryhma12!$K298,-P$103-1,0),0) -> 29.58969655 | Q225: =IF(COUNTIF(D$104:D225,D225)=1,D225,"") -> 201905 | R225: =IF(COUNTIF(D$105:D225,D225)=1,1,0) -> 1 | S225: =IF(R225=0,"",MAX(S$104:S224)+1) -> 5
A226: 122 | B226: 2019-05-02 | C226: 259.8414411 | D226: 201905 | E226: =IF(AND($A226>E$103,$A226<=E$100+E$103),OFFSET(Ryhma1!K299,-E$103-1,0),0) -> 0 | F226: =IF(AND($A226>F$103,$A226<=F$100+F$103),OFFSET(Ryhma2!K299,-F$103-1,0),0) -> 0 | G226: =IF(AND($A226>G$103,$A226<=G$100+G$103),OFFSET(Ryhma3!$K299,-G$103-1,0),0) -> 0 | H226: =IF(AND($A226>H$103,$A226<=H$100+H$103),OFFSET(Ryhma4!$K299,-H$103-1,0),0) -> 28.19972204 | I226: =IF(AND($A226>I$103,$A226<=I$100+I$103),OFFSET(Ryhma5!$K299,-I$103-1,0),0) -> 28.39215002 | J226: =IF(AND($A226>J$103,$A226<=J$100+J$103),OFFSET(Ryhma6!$K299,-J$103-1,0),0) -> 28.5421844 | K226: =IF(AND($A226>K$103,$A226<=K$100+K$103),OFFSET(Ryhma7!$K299,-K$103-1,0),0) -> 28.73206398 | L226: =IF(AND($A226>L$103,$A226<=L$100+L$103),OFFSET(Ryhma8!$K299,-L$103-1,0),0) -> 28.83482951 | M226: =IF(AND($A226>M$103,$A226<=M$100+M$103),OFFSET(Ryhma9!$K299,-M$103-1,0),0) -> 29.03159131 | N226: =IF(AND($A226>N$103,$A226<=N$100+N$103),OFFSET(Ryhma10!$K299,-N$103-1,0),0) -> 29.18500472 | O226: =IF(AND($A226>O$103,$A226<=O$100+O$103),OFFSET(Ryhma11!$K299,-O$103-1,0),0) -> 29.33922883 | P226: =IF(AND($A226>P$103,$A226<=P$100+P$103),OFFSET(Ryhma12!$K299,-P$103-1,0),0) -> 29.5846663 | Q226: =IF(COUNTIF(D$104:D226,D226)=1,D226,"") ->  | R226: =IF(COUNTIF(D$105:D226,D226)=1,1,0) -> 0 | S226: =IF(R226=0,"",MAX(S$104:S225)+1) -> 
A227: 123 | B227: 2019-05-03 | C227: 259.7972681 | D227: 201905 | E227: =IF(AND($A227>E$103,$A227<=E$100+E$103),OFFSET(Ryhma1!K300,-E$103-1,0),0) -> 0 | F227: =IF(AND($A227>F$103,$A227<=F$100+F$103),OFFSET(Ryhma2!K300,-F$103-1,0),0) -> 0 | G227: =IF(AND($A227>G$103,$A227<=G$100+G$103),OFFSET(Ryhma3!$K300,-G$103-1,0),0) -> 0 | H227: =IF(AND($A227>H$103,$A227<=H$100+H$103),OFFSET(Ryhma4!$K300,-H$103-1,0),0) -> 28.19492809 | I227: =IF(AND($A227>I$103,$A227<=I$100+I$103),OFFSET(Ryhma5!$K300,-I$103-1,0),0) -> 28.38732336 | J227: =IF(AND($A227>J$103,$A227<=J$100+J$103),OFFSET(Ryhma6!$K300,-J$103-1,0),0) -> 28.53733223 | K227: =IF(AND($A227>K$103,$A227<=K$100+K$103),OFFSET(Ryhma7!$K300,-K$103-1,0),0) -> 28.72717953 | L227: =IF(AND($A227>L$103,$A227<=L$100+L$103),OFFSET(Ryhma8!$K300,-L$103-1,0),0) -> 28.82992759 | M227: =IF(AND($A227>M$103,$A227<=M$100+M$103),OFFSET(Ryhma9!$K300,-M$103-1,0),0) -> 29.02665594 | N227: =IF(AND($A227>N$103,$A227<=N$100+N$103),OFFSET(Ryhma10!$K300,-N$103-1,0),0) -> 29.18004327 | O227: =IF(AND($A227>O$103,$A227<=O$100+O$103),OFFSET(Ryhma11!$K300,-O$103-1,0),0) -> 29.33424116 | P227: =IF(AND($A227>P$103,$A227<=P$100+P$103),OFFSET(Ryhma12!$K300,-P$103-1,0),0) -> 29.5796369 | Q227: =IF(COUNTIF(D$104:D227,D227)=1,D227,"") ->  | R227: =IF(COUNTIF(D$105:D227,D227)=1,1,0) -> 0 | S227: =IF(R227=0,"",MAX(S$104:S226)+1) -> 
A228: 124 | B228: 2019-05-04 | C228: 259.7531025 | D228: 201905 | E228: =IF(AND($A228>E$103,$A228<=E$100+E$103),OFFSET(Ryhma1!K301,-E$103-1,0),0) -> 0 | F228: =IF(AND($A228>F$103,$A228<=F$100+F$103),OFFSET(Ryhma2!K301,-F$103-1,0),0) -> 0 | G228: =IF(AND($A228>G$103,$A228<=G$100+G$103),OFFSET(Ryhma3!$K301,-G$103-1,0),0) -> 0 | H228: =IF(AND($A228>H$103,$A228<=H$100+H$103),OFFSET(Ryhma4!$K301,-H$103-1,0),0) -> 28.19013495 | I228: =IF(AND($A228>I$103,$A228<=I$100+I$103),OFFSET(Ryhma5!$K301,-I$103-1,0),0) -> 28.38249751 | J228: =IF(AND($A228>J$103,$A228<=J$100+J$103),OFFSET(Ryhma6!$K301,-J$103-1,0),0) -> 28.53248088 | K228: =IF(AND($A228>K$103,$A228<=K$100+K$103),OFFSET(Ryhma7!$K301,-K$103-1,0),0) -> 28.72229591 | L228: =IF(AND($A228>L$103,$A228<=L$100+L$103),OFFSET(Ryhma8!$K301,-L$103-1,0),0) -> 28.8250265 | M228: =IF(AND($A228>M$103,$A228<=M$100+M$103),OFFSET(Ryhma9!$K301,-M$103-1,0),0) -> 29.02172141 | N228: =IF(AND($A228>N$103,$A228<=N$100+N$103),OFFSET(Ryhma10!$K301,-N$103-1,0),0) -> 29.17508267 | O228: =IF(AND($A228>O$103,$A228<=O$100+O$103),OFFSET(Ryhma11!$K301,-O$103-1,0),0) -> 29.32925434 | P228: =IF(AND($A228>P$103,$A228<=P$100+P$103),OFFSET(Ryhma12!$K301,-P$103-1,0),0) -> 29.57460837 | Q228: =IF(COUNTIF(D$104:D228,D228)=1,D228,"") ->  | R228: =IF(COUNTIF(D$105:D228,D228)=1,1,0) -> 0 | S228: =IF(R228=0,"",MAX(S$104:S227)+1) -> 
A229: 125 | B229: 2019-05-05 | C229: 259.7089445 | D229: 201905 | E229: =IF(AND($A229>E$103,$A229<=E$100+E$103),OFFSET(Ryhma1!K302,-E$103-1,0),0) -> 0 | F229: =IF(AND($A229>F$103,$A229<=F$100+F$103),OFFSET(Ryhma2!K302,-F$103-1,0),0) -> 0 | G229: =IF(AND($A229>G$103,$A229<=G$100+G$103),OFFSET(Ryhma3!$K302,-G$103-1,0),0) -> 0 | H229: =IF(AND($A229>H$103,$A229<=H$100+H$103),OFFSET(Ryhma4!$K302,-H$103-1,0),0) -> 28.18534263 | I229: =IF(AND($A229>I$103,$A229<=I$100+I$103),OFFSET(Ryhma5!$K302,-I$103-1,0),0) -> 28.37767249 | J229: =IF(AND($A229>J$103,$A229<=J$100+J$103),OFFSET(Ryhma6!$K302,-J$103-1,0),0) -> 28.52763036 | K229: =IF(AND($A229>K$103,$A229<=K$100+K$103),OFFSET(Ryhma7!$K302,-K$103-1,0),0) -> 28.71741312 | L229: =IF(AND($A229>L$103,$A229<=L$100+L$103),OFFSET(Ryhma8!$K302,-L$103-1,0),0) -> 28.82012625 | M229: =IF(AND($A229>M$103,$A229<=M$100+M$103),OFFSET(Ryhma9!$K302,-M$103-1,0),0) -> 29.01678771 | N229: =IF(AND($A229>N$103,$A229<=N$100+N$103),OFFSET(Ryhma10!$K302,-N$103-1,0),0) -> 29.1701229 | O229: =IF(AND($A229>O$103,$A229<=O$100+O$103),OFFSET(Ryhma11!$K302,-O$103-1,0),0) -> 29.32426837 | P229: =IF(AND($A229>P$103,$A229<=P$100+P$103),OFFSET(Ryhma12!$K302,-P$103-1,0),0) -> 29.56958068 | Q229: =IF(COUNTIF(D$104:D229,D229)=1,D229,"") ->  | R229: =IF(COUNTIF(D$105:D229,D229)=1,1,0) -> 0 | S229: =IF(R229=0,"",MAX(S$104:S228)+1) -> 
A230: 126 | B230: 2019-05-06 | C230: 259.664794 | D230: 201905 | E230: =IF(AND($A230>E$103,$A230<=E$100+E$103),OFFSET(Ryhma1!K303,-E$103-1,0),0) -> 0 | F230: =IF(AND($A230>F$103,$A230<=F$100+F$103),OFFSET(Ryhma2!K303,-F$103-1,0),0) -> 0 | G230: =IF(AND($A230>G$103,$A230<=G$100+G$103),OFFSET(Ryhma3!$K303,-G$103-1,0),0) -> 0 | H230: =IF(AND($A230>H$103,$A230<=H$100+H$103),OFFSET(Ryhma4!$K303,-H$103-1,0),0) -> 28.18055112 | I230: =IF(AND($A230>I$103,$A230<=I$100+I$103),OFFSET(Ryhma5!$K303,-I$103-1,0),0) -> 28.37284828 | J230: =IF(AND($A230>J$103,$A230<=J$100+J$103),OFFSET(Ryhma6!$K303,-J$103-1,0),0) -> 28.52278066 | K230: =IF(AND($A230>K$103,$A230<=K$100+K$103),OFFSET(Ryhma7!$K303,-K$103-1,0),0) -> 28.71253116 | L230: =IF(AND($A230>L$103,$A230<=L$100+L$103),OFFSET(Ryhma8!$K303,-L$103-1,0),0) -> 28.81522682 | M230: =IF(AND($A230>M$103,$A230<=M$100+M$103),OFFSET(Ryhma9!$K303,-M$103-1,0),0) -> 29.01185486 | N230: =IF(AND($A230>N$103,$A230<=N$100+N$103),OFFSET(Ryhma10!$K303,-N$103-1,0),0) -> 29.16516398 | O230: =IF(AND($A230>O$103,$A230<=O$100+O$103),OFFSET(Ryhma11!$K303,-O$103-1,0),0) -> 29.31928324 | P230: =IF(AND($A230>P$103,$A230<=P$100+P$103),OFFSET(Ryhma12!$K303,-P$103-1,0),0) -> 29.56455385 | Q230: =IF(COUNTIF(D$104:D230,D230)=1,D230,"") ->  | R230: =IF(COUNTIF(D$105:D230,D230)=1,1,0) -> 0 | S230: =IF(R230=0,"",MAX(S$104:S229)+1) -> 
A231: 127 | B231: 2019-05-07 | C231: 259.620651 | D231: 201905 | E231: =IF(AND($A231>E$103,$A231<=E$100+E$103),OFFSET(Ryhma1!K304,-E$103-1,0),0) -> 0 | F231: =IF(AND($A231>F$103,$A231<=F$100+F$103),OFFSET(Ryhma2!K304,-F$103-1,0),0) -> 0 | G231: =IF(AND($A231>G$103,$A231<=G$100+G$103),OFFSET(Ryhma3!$K304,-G$103-1,0),0) -> 0 | H231: =IF(AND($A231>H$103,$A231<=H$100+H$103),OFFSET(Ryhma4!$K304,-H$103-1,0),0) -> 28.17576043 | I231: =IF(AND($A231>I$103,$A231<=I$100+I$103),OFFSET(Ryhma5!$K304,-I$103-1,0),0) -> 28.3680249 | J231: =IF(AND($A231>J$103,$A231<=J$100+J$103),OFFSET(Ryhma6!$K304,-J$103-1,0),0) -> 28.51793179 | K231: =IF(AND($A231>K$103,$A231<=K$100+K$103),OFFSET(Ryhma7!$K304,-K$103-1,0),0) -> 28.70765003 | L231: =IF(AND($A231>L$103,$A231<=L$100+L$103),OFFSET(Ryhma8!$K304,-L$103-1,0),0) -> 28.81032824 | M231: =IF(AND($A231>M$103,$A231<=M$100+M$103),OFFSET(Ryhma9!$K304,-M$103-1,0),0) -> 29.00692284 | N231: =IF(AND($A231>N$103,$A231<=N$100+N$103),OFFSET(Ryhma10!$K304,-N$103-1,0),0) -> 29.1602059 | O231: =IF(AND($A231>O$103,$A231<=O$100+O$103),OFFSET(Ryhma11!$K304,-O$103-1,0),0) -> 29.31429896 | P231: =IF(AND($A231>P$103,$A231<=P$100+P$103),OFFSET(Ryhma12!$K304,-P$103-1,0),0) -> 29.55952788 | Q231: =IF(COUNTIF(D$104:D231,D231)=1,D231,"") ->  | R231: =IF(COUNTIF(D$105:D231,D231)=1,1,0) -> 0 | S231: =IF(R231=0,"",MAX(S$104:S230)+1) -> 
A232: 128 | B232: 2019-05-08 | C232: =SUM(E232:P232) -> 259.5765155 | D232: 201905 | E232: =IF(AND($A232>E$103,$A232<=E$100+E$103),OFFSET(Ryhma1!K305,-E$103-1,0),0) -> 0 | F232: =IF(AND($A232>F$103,$A232<=F$100+F$103),OFFSET(Ryhma2!K305,-F$103-1,0),0) -> 0 | G232: =IF(AND($A232>G$103,$A232<=G$100+G$103),OFFSET(Ryhma3!$K305,-G$103-1,0),0) -> 0 | H232: =IF(AND($A232>H$103,$A232<=H$100+H$103),OFFSET(Ryhma4!$K305,-H$103-1,0),0) -> 28.17097055 | I232: =IF(AND($A232>I$103,$A232<=I$100+I$103),OFFSET(Ryhma5!$K305,-I$103-1,0),0) -> 28.36320234 | J232: =IF(AND($A232>J$103,$A232<=J$100+J$103),OFFSET(Ryhma6!$K305,-J$103-1,0),0) -> 28.51308374 | K232: =IF(AND($A232>K$103,$A232<=K$100+K$103),OFFSET(Ryhma7!$K305,-K$103-1,0),0) -> 28.70276973 | L232: =IF(AND($A232>L$103,$A232<=L$100+L$103),OFFSET(Ryhma8!$K305,-L$103-1,0),0) -> 28.80543048 | M232: =IF(AND($A232>M$103,$A232<=M$100+M$103),OFFSET(Ryhma9!$K305,-M$103-1,0),0) -> 29.00199167 | N232: =IF(AND($A232>N$103,$A232<=N$100+N$103),OFFSET(Ryhma10!$K305,-N$103-1,0),0) -> 29.15524867 | O232: =IF(AND($A232>O$103,$A232<=O$100+O$103),OFFSET(Ryhma11!$K305,-O$103-1,0),0) -> 29.30931553 | P232: =IF(AND($A232>P$103,$A232<=P$100+P$103),OFFSET(Ryhma12!$K305,-P$103-1,0),0) -> 29.55450276 | Q232: =IF(COUNTIF(D$104:D232,D232)=1,D232,"") ->  | R232: =IF(COUNTIF(D$105:D232,D232)=1,1,0) -> 0 | S232: =IF(R232=0,"",MAX(S$104:S231)+1) -> 
A233: 129 | B233: 2019-05-09 | C233: 259.5323875 | D233: =YEAR(B233)*100 +MONTH(B233) -> 201905 | E233: =IF(AND($A233>E$103,$A233<=E$100+E$103),OFFSET(Ryhma1!K306,-E$103-1,0),0) -> 0 | F233: =IF(AND($A233>F$103,$A233<=F$100+F$103),OFFSET(Ryhma2!K306,-F$103-1,0),0) -> 0 | G233: =IF(AND($A233>G$103,$A233<=G$100+G$103),OFFSET(Ryhma3!$K306,-G$103-1,0),0) -> 0 | H233: =IF(AND($A233>H$103,$A233<=H$100+H$103),OFFSET(Ryhma4!$K306,-H$103-1,0),0) -> 28.16618148 | I233: =IF(AND($A233>I$103,$A233<=I$100+I$103),OFFSET(Ryhma5!$K306,-I$103-1,0),0) -> 28.35838059 | J233: =IF(AND($A233>J$103,$A233<=J$100+J$103),OFFSET(Ryhma6!$K306,-J$103-1,0),0) -> 28.50823652 | K233: =IF(AND($A233>K$103,$A233<=K$100+K$103),OFFSET(Ryhma7!$K306,-K$103-1,0),0) -> 28.69789025 | L233: =IF(AND($A233>L$103,$A233<=L$100+L$103),OFFSET(Ryhma8!$K306,-L$103-1,0),0) -> 28.80053356 | M233: =IF(AND($A233>M$103,$A233<=M$100+M$103),OFFSET(Ryhma9!$K306,-M$103-1,0),0) -> 28.99706133 | N233: =IF(AND($A233>N$103,$A233<=N$100+N$103),OFFSET(Ryhma10!$K306,-N$103-1,0),0) -> 29.15029228 | O233: =IF(AND($A233>O$103,$A233<=O$100+O$103),OFFSET(Ryhma11!$K306,-O$103-1,0),0) -> 29.30433295 | P233: =IF(AND($A233>P$103,$A233<=P$100+P$103),OFFSET(Ryhma12!$K306,-P$103-1,0),0) -> 29.54947849 | Q233: =IF(COUNTIF(D$104:D233,D233)=1,D233,"") ->  | R233: =IF(COUNTIF(D$105:D233,D233)=1,1,0) -> 0 | S233: =IF(R233=0,"",MAX(S$104:S232)+1) -> 
A234: 130 | B234: 2019-05-10 | C234: 259.4882669 | D234: 201905 | E234: =IF(AND($A234>E$103,$A234<=E$100+E$103),OFFSET(Ryhma1!K307,-E$103-1,0),0) -> 0 | F234: =IF(AND($A234>F$103,$A234<=F$100+F$103),OFFSET(Ryhma2!K307,-F$103-1,0),0) -> 0 | G234: =IF(AND($A234>G$103,$A234<=G$100+G$103),OFFSET(Ryhma3!$K307,-G$103-1,0),0) -> 0 | H234: =IF(AND($A234>H$103,$A234<=H$100+H$103),OFFSET(Ryhma4!$K307,-H$103-1,0),0) -> 28.16139323 | I234: =IF(AND($A234>I$103,$A234<=I$100+I$103),OFFSET(Ryhma5!$K307,-I$103-1,0),0) -> 28.35355967 | J234: =IF(AND($A234>J$103,$A234<=J$100+J$103),OFFSET(Ryhma6!$K307,-J$103-1,0),0) -> 28.50339012 | K234: =IF(AND($A234>K$103,$A234<=K$100+K$103),OFFSET(Ryhma7!$K307,-K$103-1,0),0) -> 28.69301161 | L234: =IF(AND($A234>L$103,$A234<=L$100+L$103),OFFSET(Ryhma8!$K307,-L$103-1,0),0) -> 28.79563747 | M234: =IF(AND($A234>M$103,$A234<=M$100+M$103),OFFSET(Ryhma9!$K307,-M$103-1,0),0) -> 28.99213183 | N234: =IF(AND($A234>N$103,$A234<=N$100+N$103),OFFSET(Ryhma10!$K307,-N$103-1,0),0) -> 29.14533673 | O234: =IF(AND($A234>O$103,$A234<=O$100+O$103),OFFSET(Ryhma11!$K307,-O$103-1,0),0) -> 29.29935121 | P234: =IF(AND($A234>P$103,$A234<=P$100+P$103),OFFSET(Ryhma12!$K307,-P$103-1,0),0) -> 29.54445508 | Q234: =IF(COUNTIF(D$104:D234,D234)=1,D234,"") ->  | R234: =IF(COUNTIF(D$105:D234,D234)=1,1,0) -> 0 | S234: =IF(R234=0,"",MAX(S$104:S233)+1) -> 
A235: 131 | B235: =B234+1 -> 2019-05-11 | C235: 259.4441539 | D235: 201905 | E235: =IF(AND($A235>E$103,$A235<=E$100+E$103),OFFSET(Ryhma1!K308,-E$103-1,0),0) -> 0 | F235: =IF(AND($A235>F$103,$A235<=F$100+F$103),OFFSET(Ryhma2!K308,-F$103-1,0),0) -> 0 | G235: =IF(AND($A235>G$103,$A235<=G$100+G$103),OFFSET(Ryhma3!$K308,-G$103-1,0),0) -> 0 | H235: =IF(AND($A235>H$103,$A235<=H$100+H$103),OFFSET(Ryhma4!$K308,-H$103-1,0),0) -> 28.1566058 | I235: =IF(AND($A235>I$103,$A235<=I$100+I$103),OFFSET(Ryhma5!$K308,-I$103-1,0),0) -> 28.34873956 | J235: =IF(AND($A235>J$103,$A235<=J$100+J$103),OFFSET(Ryhma6!$K308,-J$103-1,0),0) -> 28.49854454 | K235: =IF(AND($A235>K$103,$A235<=K$100+K$103),OFFSET(Ryhma7!$K308,-K$103-1,0),0) -> 28.6881338 | L235: =IF(AND($A235>L$103,$A235<=L$100+L$103),OFFSET(Ryhma8!$K308,-L$103-1,0),0) -> 28.79074221 | M235: =IF(AND($A235>M$103,$A235<=M$100+M$103),OFFSET(Ryhma9!$K308,-M$103-1,0),0) -> 28.98720317 | N235: =IF(AND($A235>N$103,$A235<=N$100+N$103),OFFSET(Ryhma10!$K308,-N$103-1,0),0) -> 29.14038202 | O235: =IF(AND($A235>O$103,$A235<=O$100+O$103),OFFSET(Ryhma11!$K308,-O$103-1,0),0) -> 29.29437032 | P235: =IF(AND($A235>P$103,$A235<=P$100+P$103),OFFSET(Ryhma12!$K308,-P$103-1,0),0) -> 29.53943253 | Q235: =IF(COUNTIF(D$104:D235,D235)=1,D235,"") ->  | R235: =IF(COUNTIF(D$105:D235,D235)=1,1,0) -> 0 | S235: =IF(R235=0,"",MAX(S$104:S234)+1) -> 
A236: 132 | B236: 2019-05-12 | C236: 259.4000484 | D236: 201905 | E236: =IF(AND($A236>E$103,$A236<=E$100+E$103),OFFSET(Ryhma1!K309,-E$103-1,0),0) -> 0 | F236: =IF(AND($A236>F$103,$A236<=F$100+F$103),OFFSET(Ryhma2!K309,-F$103-1,0),0) -> 0 | G236: =IF(AND($A236>G$103,$A236<=G$100+G$103),OFFSET(Ryhma3!$K309,-G$103-1,0),0) -> 0 | H236: =IF(AND($A236>H$103,$A236<=H$100+H$103),OFFSET(Ryhma4!$K309,-H$103-1,0),0) -> 28.15181917 | I236: =IF(AND($A236>I$103,$A236<=I$100+I$103),OFFSET(Ryhma5!$K309,-I$103-1,0),0) -> 28.34392028 | J236: =IF(AND($A236>J$103,$A236<=J$100+J$103),OFFSET(Ryhma6!$K309,-J$103-1,0),0) -> 28.49369979 | K236: =IF(AND($A236>K$103,$A236<=K$100+K$103),OFFSET(Ryhma7!$K309,-K$103-1,0),0) -> 28.68325682 | L236: =IF(AND($A236>L$103,$A236<=L$100+L$103),OFFSET(Ryhma8!$K309,-L$103-1,0),0) -> 28.78584778 | M236: =IF(AND($A236>M$103,$A236<=M$100+M$103),OFFSET(Ryhma9!$K309,-M$103-1,0),0) -> 28.98227534 | N236: =IF(AND($A236>N$103,$A236<=N$100+N$103),OFFSET(Ryhma10!$K309,-N$103-1,0),0) -> 29.13542815 | O236: =IF(AND($A236>O$103,$A236<=O$100+O$103),OFFSET(Ryhma11!$K309,-O$103-1,0),0) -> 29.28939028 | P236: =IF(AND($A236>P$103,$A236<=P$100+P$103),OFFSET(Ryhma12!$K309,-P$103-1,0),0) -> 29.53441082 | Q236: =IF(COUNTIF(D$104:D236,D236)=1,D236,"") ->  | R236: =IF(COUNTIF(D$105:D236,D236)=1,1,0) -> 0 | S236: =IF(R236=0,"",MAX(S$104:S235)+1) -> 
A237: 133 | B237: 2019-05-13 | C237: 231.2089171 | D237: 201905 | E237: =IF(AND($A237>E$103,$A237<=E$100+E$103),OFFSET(Ryhma1!K310,-E$103-1,0),0) -> 0 | F237: =IF(AND($A237>F$103,$A237<=F$100+F$103),OFFSET(Ryhma2!K310,-F$103-1,0),0) -> 0 | G237: =IF(AND($A237>G$103,$A237<=G$100+G$103),OFFSET(Ryhma3!$K310,-G$103-1,0),0) -> 0 | H237: =IF(AND($A237>H$103,$A237<=H$100+H$103),OFFSET(Ryhma4!$K310,-H$103-1,0),0) -> 0 | I237: =IF(AND($A237>I$103,$A237<=I$100+I$103),OFFSET(Ryhma5!$K310,-I$103-1,0),0) -> 28.33910181 | J237: =IF(AND($A237>J$103,$A237<=J$100+J$103),OFFSET(Ryhma6!$K310,-J$103-1,0),0) -> 28.48885586 | K237: =IF(AND($A237>K$103,$A237<=K$100+K$103),OFFSET(Ryhma7!$K310,-K$103-1,0),0) -> 28.67838067 | L237: =IF(AND($A237>L$103,$A237<=L$100+L$103),OFFSET(Ryhma8!$K310,-L$103-1,0),0) -> 28.78095419 | M237: =IF(AND($A237>M$103,$A237<=M$100+M$103),OFFSET(Ryhma9!$K310,-M$103-1,0),0) -> 28.97734835 | N237: =IF(AND($A237>N$103,$A237<=N$100+N$103),OFFSET(Ryhma10!$K310,-N$103-1,0),0) -> 29.13047513 | O237: =IF(AND($A237>O$103,$A237<=O$100+O$103),OFFSET(Ryhma11!$K310,-O$103-1,0),0) -> 29.28441108 | P237: =IF(AND($A237>P$103,$A237<=P$100+P$103),OFFSET(Ryhma12!$K310,-P$103-1,0),0) -> 29.52938997 | Q237: =IF(COUNTIF(D$104:D237,D237)=1,D237,"") ->  | R237: =IF(COUNTIF(D$105:D237,D237)=1,1,0) -> 0 | S237: =IF(R237=0,"",MAX(S$104:S236)+1) -> 
A238: 134 | B238: 2019-05-14 | C238: 231.1696115 | D238: 201905 | E238: =IF(AND($A238>E$103,$A238<=E$100+E$103),OFFSET(Ryhma1!K311,-E$103-1,0),0) -> 0 | F238: =IF(AND($A238>F$103,$A238<=F$100+F$103),OFFSET(Ryhma2!K311,-F$103-1,0),0) -> 0 | G238: =IF(AND($A238>G$103,$A238<=G$100+G$103),OFFSET(Ryhma3!$K311,-G$103-1,0),0) -> 0 | H238: =IF(AND($A238>H$103,$A238<=H$100+H$103),OFFSET(Ryhma4!$K311,-H$103-1,0),0) -> 0 | I238: =IF(AND($A238>I$103,$A238<=I$100+I$103),OFFSET(Ryhma5!$K311,-I$103-1,0),0) -> 28.33428416 | J238: =IF(AND($A238>J$103,$A238<=J$100+J$103),OFFSET(Ryhma6!$K311,-J$103-1,0),0) -> 28.48401275 | K238: =IF(AND($A238>K$103,$A238<=K$100+K$103),OFFSET(Ryhma7!$K311,-K$103-1,0),0) -> 28.67350534 | L238: =IF(AND($A238>L$103,$A238<=L$100+L$103),OFFSET(Ryhma8!$K311,-L$103-1,0),0) -> 28.77606143 | M238: =IF(AND($A238>M$103,$A238<=M$100+M$103),OFFSET(Ryhma9!$K311,-M$103-1,0),0) -> 28.9724222 | N238: =IF(AND($A238>N$103,$A238<=N$100+N$103),OFFSET(Ryhma10!$K311,-N$103-1,0),0) -> 29.12552295 | O238: =IF(AND($A238>O$103,$A238<=O$100+O$103),OFFSET(Ryhma11!$K311,-O$103-1,0),0) -> 29.27943273 | P238: =IF(AND($A238>P$103,$A238<=P$100+P$103),OFFSET(Ryhma12!$K311,-P$103-1,0),0) -> 29.52436998 | Q238: =IF(COUNTIF(D$104:D238,D238)=1,D238,"") ->  | R238: =IF(COUNTIF(D$105:D238,D238)=1,1,0) -> 0 | S238: =IF(R238=0,"",MAX(S$104:S237)+1) -> 
A239: 135 | B239: 2019-05-15 | C239: 231.1303127 | D239: 201905 | E239: =IF(AND($A239>E$103,$A239<=E$100+E$103),OFFSET(Ryhma1!K312,-E$103-1,0),0) -> 0 | F239: =IF(AND($A239>F$103,$A239<=F$100+F$103),OFFSET(Ryhma2!K312,-F$103-1,0),0) -> 0 | G239: =IF(AND($A239>G$103,$A239<=G$100+G$103),OFFSET(Ryhma3!$K312,-G$103-1,0),0) -> 0 | H239: =IF(AND($A239>H$103,$A239<=H$100+H$103),OFFSET(Ryhma4!$K312,-H$103-1,0),0) -> 0 | I239: =IF(AND($A239>I$103,$A239<=I$100+I$103),OFFSET(Ryhma5!$K312,-I$103-1,0),0) -> 28.32946733 | J239: =IF(AND($A239>J$103,$A239<=J$100+J$103),OFFSET(Ryhma6!$K312,-J$103-1,0),0) -> 28.47917047 | K239: =IF(AND($A239>K$103,$A239<=K$100+K$103),OFFSET(Ryhma7!$K312,-K$103-1,0),0) -> 28.66863084 | L239: =IF(AND($A239>L$103,$A239<=L$100+L$103),OFFSET(Ryhma8!$K312,-L$103-1,0),0) -> 28.7711695 | M239: =IF(AND($A239>M$103,$A239<=M$100+M$103),OFFSET(Ryhma9!$K312,-M$103-1,0),0) -> 28.96749689 | N239: =IF(AND($A239>N$103,$A239<=N$100+N$103),OFFSET(Ryhma10!$K312,-N$103-1,0),0) -> 29.12057161 | O239: =IF(AND($A239>O$103,$A239<=O$100+O$103),OFFSET(Ryhma11!$K312,-O$103-1,0),0) -> 29.27445523 | P239: =IF(AND($A239>P$103,$A239<=P$100+P$103),OFFSET(Ryhma12!$K312,-P$103-1,0),0) -> 29.51935083 | Q239: =IF(COUNTIF(D$104:D239,D239)=1,D239,"") ->  | R239: =IF(COUNTIF(D$105:D239,D239)=1,1,0) -> 0 | S239: =IF(R239=0,"",MAX(S$104:S238)+1) -> 
A240: 136 | B240: 2019-05-16 | C240: 231.0910206 | D240: 201905 | E240: =IF(AND($A240>E$103,$A240<=E$100+E$103),OFFSET(Ryhma1!K313,-E$103-1,0),0) -> 0 | F240: =IF(AND($A240>F$103,$A240<=F$100+F$103),OFFSET(Ryhma2!K313,-F$103-1,0),0) -> 0 | G240: =IF(AND($A240>G$103,$A240<=G$100+G$103),OFFSET(Ryhma3!$K313,-G$103-1,0),0) -> 0 | H240: =IF(AND($A240>H$103,$A240<=H$100+H$103),OFFSET(Ryhma4!$K313,-H$103-1,0),0) -> 0 | I240: =IF(AND($A240>I$103,$A240<=I$100+I$103),OFFSET(Ryhma5!$K313,-I$103-1,0),0) -> 28.32465132 | J240: =IF(AND($A240>J$103,$A240<=J$100+J$103),OFFSET(Ryhma6!$K313,-J$103-1,0),0) -> 28.47432901 | K240: =IF(AND($A240>K$103,$A240<=K$100+K$103),OFFSET(Ryhma7!$K313,-K$103-1,0),0) -> 28.66375718 | L240: =IF(AND($A240>L$103,$A240<=L$100+L$103),OFFSET(Ryhma8!$K313,-L$103-1,0),0) -> 28.7662784 | M240: =IF(AND($A240>M$103,$A240<=M$100+M$103),OFFSET(Ryhma9!$K313,-M$103-1,0),0) -> 28.96257242 | N240: =IF(AND($A240>N$103,$A240<=N$100+N$103),OFFSET(Ryhma10!$K313,-N$103-1,0),0) -> 29.11562111 | O240: =IF(AND($A240>O$103,$A240<=O$100+O$103),OFFSET(Ryhma11!$K313,-O$103-1,0),0) -> 29.26947857 | P240: =IF(AND($A240>P$103,$A240<=P$100+P$103),OFFSET(Ryhma12!$K313,-P$103-1,0),0) -> 29.51433254 | Q240: =IF(COUNTIF(D$104:D240,D240)=1,D240,"") ->  | R240: =IF(COUNTIF(D$105:D240,D240)=1,1,0) -> 0 | S240: =IF(R240=0,"",MAX(S$104:S239)+1) -> 
A241: 137 | B241: 2019-05-17 | C241: 231.0517351 | D241: 201905 | E241: =IF(AND($A241>E$103,$A241<=E$100+E$103),OFFSET(Ryhma1!K314,-E$103-1,0),0) -> 0 | F241: =IF(AND($A241>F$103,$A241<=F$100+F$103),OFFSET(Ryhma2!K314,-F$103-1,0),0) -> 0 | G241: =IF(AND($A241>G$103,$A241<=G$100+G$103),OFFSET(Ryhma3!$K314,-G$103-1,0),0) -> 0 | H241: =IF(AND($A241>H$103,$A241<=H$100+H$103),OFFSET(Ryhma4!$K314,-H$103-1,0),0) -> 0 | I241: =IF(AND($A241>I$103,$A241<=I$100+I$103),OFFSET(Ryhma5!$K314,-I$103-1,0),0) -> 28.31983613 | J241: =IF(AND($A241>J$103,$A241<=J$100+J$103),OFFSET(Ryhma6!$K314,-J$103-1,0),0) -> 28.46948838 | K241: =IF(AND($A241>K$103,$A241<=K$100+K$103),OFFSET(Ryhma7!$K314,-K$103-1,0),0) -> 28.65888434 | L241: =IF(AND($A241>L$103,$A241<=L$100+L$103),OFFSET(Ryhma8!$K314,-L$103-1,0),0) -> 28.76138813 | M241: =IF(AND($A241>M$103,$A241<=M$100+M$103),OFFSET(Ryhma9!$K314,-M$103-1,0),0) -> 28.95764878 | N241: =IF(AND($A241>N$103,$A241<=N$100+N$103),OFFSET(Ryhma10!$K314,-N$103-1,0),0) -> 29.11067146 | O241: =IF(AND($A241>O$103,$A241<=O$100+O$103),OFFSET(Ryhma11!$K314,-O$103-1,0),0) -> 29.26450276 | P241: =IF(AND($A241>P$103,$A241<=P$100+P$103),OFFSET(Ryhma12!$K314,-P$103-1,0),0) -> 29.50931511 | Q241: =IF(COUNTIF(D$104:D241,D241)=1,D241,"") ->  | R241: =IF(COUNTIF(D$105:D241,D241)=1,1,0) -> 0 | S241: =IF(R241=0,"",MAX(S$104:S240)+1) -> 
A242: 138 | B242: 2019-05-18 | C242: 231.0124563 | D242: 201905 | E242: =IF(AND($A242>E$103,$A242<=E$100+E$103),OFFSET(Ryhma1!K315,-E$103-1,0),0) -> 0 | F242: =IF(AND($A242>F$103,$A242<=F$100+F$103),OFFSET(Ryhma2!K315,-F$103-1,0),0) -> 0 | G242: =IF(AND($A242>G$103,$A242<=G$100+G$103),OFFSET(Ryhma3!$K315,-G$103-1,0),0) -> 0 | H242: =IF(AND($A242>H$103,$A242<=H$100+H$103),OFFSET(Ryhma4!$K315,-H$103-1,0),0) -> 0 | I242: =IF(AND($A242>I$103,$A242<=I$100+I$103),OFFSET(Ryhma5!$K315,-I$103-1,0),0) -> 28.31502176 | J242: =IF(AND($A242>J$103,$A242<=J$100+J$103),OFFSET(Ryhma6!$K315,-J$103-1,0),0) -> 28.46464856 | K242: =IF(AND($A242>K$103,$A242<=K$100+K$103),OFFSET(Ryhma7!$K315,-K$103-1,0),0) -> 28.65401233 | L242: =IF(AND($A242>L$103,$A242<=L$100+L$103),OFFSET(Ryhma8!$K315,-L$103-1,0),0) -> 28.75649869 | M242: =IF(AND($A242>M$103,$A242<=M$100+M$103),OFFSET(Ryhma9!$K315,-M$103-1,0),0) -> 28.95272598 | N242: =IF(AND($A242>N$103,$A242<=N$100+N$103),OFFSET(Ryhma10!$K315,-N$103-1,0),0) -> 29.10572264 | O242: =IF(AND($A242>O$103,$A242<=O$100+O$103),OFFSET(Ryhma11!$K315,-O$103-1,0),0) -> 29.2595278 | P242: =IF(AND($A242>P$103,$A242<=P$100+P$103),OFFSET(Ryhma12!$K315,-P$103-1,0),0) -> 29.50429852 | Q242: =IF(COUNTIF(D$104:D242,D242)=1,D242,"") ->  | R242: =IF(COUNTIF(D$105:D242,D242)=1,1,0) -> 0 | S242: =IF(R242=0,"",MAX(S$104:S241)+1) -> 
A243: 139 | B243: 2019-05-19 | C243: 230.9731842 | D243: 201905 | E243: =IF(AND($A243>E$103,$A243<=E$100+E$103),OFFSET(Ryhma1!K316,-E$103-1,0),0) -> 0 | F243: =IF(AND($A243>F$103,$A243<=F$100+F$103),OFFSET(Ryhma2!K316,-F$103-1,0),0) -> 0 | G243: =IF(AND($A243>G$103,$A243<=G$100+G$103),OFFSET(Ryhma3!$K316,-G$103-1,0),0) -> 0 | H243: =IF(AND($A243>H$103,$A243<=H$100+H$103),OFFSET(Ryhma4!$K316,-H$103-1,0),0) -> 0 | I243: =IF(AND($A243>I$103,$A243<=I$100+I$103),OFFSET(Ryhma5!$K316,-I$103-1,0),0) -> 28.31020821 | J243: =IF(AND($A243>J$103,$A243<=J$100+J$103),OFFSET(Ryhma6!$K316,-J$103-1,0),0) -> 28.45980957 | K243: =IF(AND($A243>K$103,$A243<=K$100+K$103),OFFSET(Ryhma7!$K316,-K$103-1,0),0) -> 28.64914115 | L243: =IF(AND($A243>L$103,$A243<=L$100+L$103),OFFSET(Ryhma8!$K316,-L$103-1,0),0) -> 28.75161009 | M243: =IF(AND($A243>M$103,$A243<=M$100+M$103),OFFSET(Ryhma9!$K316,-M$103-1,0),0) -> 28.94780402 | N243: =IF(AND($A243>N$103,$A243<=N$100+N$103),OFFSET(Ryhma10!$K316,-N$103-1,0),0) -> 29.10077467 | O243: =IF(AND($A243>O$103,$A243<=O$100+O$103),OFFSET(Ryhma11!$K316,-O$103-1,0),0) -> 29.25455368 | P243: =IF(AND($A243>P$103,$A243<=P$100+P$103),OFFSET(Ryhma12!$K316,-P$103-1,0),0) -> 29.49928279 | Q243: =IF(COUNTIF(D$104:D243,D243)=1,D243,"") ->  | R243: =IF(COUNTIF(D$105:D243,D243)=1,1,0) -> 0 | S243: =IF(R243=0,"",MAX(S$104:S242)+1) -> 
A244: 140 | B244: 2019-05-20 | C244: 230.9339187 | D244: 201905 | E244: =IF(AND($A244>E$103,$A244<=E$100+E$103),OFFSET(Ryhma1!K317,-E$103-1,0),0) -> 0 | F244: =IF(AND($A244>F$103,$A244<=F$100+F$103),OFFSET(Ryhma2!K317,-F$103-1,0),0) -> 0 | G244: =IF(AND($A244>G$103,$A244<=G$100+G$103),OFFSET(Ryhma3!$K317,-G$103-1,0),0) -> 0 | H244: =IF(AND($A244>H$103,$A244<=H$100+H$103),OFFSET(Ryhma4!$K317,-H$103-1,0),0) -> 0 | I244: =IF(AND($A244>I$103,$A244<=I$100+I$103),OFFSET(Ryhma5!$K317,-I$103-1,0),0) -> 28.30539547 | J244: =IF(AND($A244>J$103,$A244<=J$100+J$103),OFFSET(Ryhma6!$K317,-J$103-1,0),0) -> 28.45497141 | K244: =IF(AND($A244>K$103,$A244<=K$100+K$103),OFFSET(Ryhma7!$K317,-K$103-1,0),0) -> 28.64427079 | L244: =IF(AND($A244>L$103,$A244<=L$100+L$103),OFFSET(Ryhma8!$K317,-L$103-1,0),0) -> 28.74672231 | M244: =IF(AND($A244>M$103,$A244<=M$100+M$103),OFFSET(Ryhma9!$K317,-M$103-1,0),0) -> 28.94288289 | N244: =IF(AND($A244>N$103,$A244<=N$100+N$103),OFFSET(Ryhma10!$K317,-N$103-1,0),0) -> 29.09582754 | O244: =IF(AND($A244>O$103,$A244<=O$100+O$103),OFFSET(Ryhma11!$K317,-O$103-1,0),0) -> 29.2495804 | P244: =IF(AND($A244>P$103,$A244<=P$100+P$103),OFFSET(Ryhma12!$K317,-P$103-1,0),0) -> 29.49426791 | Q244: =IF(COUNTIF(D$104:D244,D244)=1,D244,"") ->  | R244: =IF(COUNTIF(D$105:D244,D244)=1,1,0) -> 0 | S244: =IF(R244=0,"",MAX(S$104:S243)+1) -> 
A245: 141 | B245: 2019-05-21 | C245: 230.89466 | D245: 201905 | E245: =IF(AND($A245>E$103,$A245<=E$100+E$103),OFFSET(Ryhma1!K318,-E$103-1,0),0) -> 0 | F245: =IF(AND($A245>F$103,$A245<=F$100+F$103),OFFSET(Ryhma2!K318,-F$103-1,0),0) -> 0 | G245: =IF(AND($A245>G$103,$A245<=G$100+G$103),OFFSET(Ryhma3!$K318,-G$103-1,0),0) -> 0 | H245: =IF(AND($A245>H$103,$A245<=H$100+H$103),OFFSET(Ryhma4!$K318,-H$103-1,0),0) -> 0 | I245: =IF(AND($A245>I$103,$A245<=I$100+I$103),OFFSET(Ryhma5!$K318,-I$103-1,0),0) -> 28.30058355 | J245: =IF(AND($A245>J$103,$A245<=J$100+J$103),OFFSET(Ryhma6!$K318,-J$103-1,0),0) -> 28.45013406 | K245: =IF(AND($A245>K$103,$A245<=K$100+K$103),OFFSET(Ryhma7!$K318,-K$103-1,0),0) -> 28.63940127 | L245: =IF(AND($A245>L$103,$A245<=L$100+L$103),OFFSET(Ryhma8!$K318,-L$103-1,0),0) -> 28.74183537 | M245: =IF(AND($A245>M$103,$A245<=M$100+M$103),OFFSET(Ryhma9!$K318,-M$103-1,0),0) -> 28.9379626 | N245: =IF(AND($A245>N$103,$A245<=N$100+N$103),OFFSET(Ryhma10!$K318,-N$103-1,0),0) -> 29.09088125 | O245: =IF(AND($A245>O$103,$A245<=O$100+O$103),OFFSET(Ryhma11!$K318,-O$103-1,0),0) -> 29.24460797 | P245: =IF(AND($A245>P$103,$A245<=P$100+P$103),OFFSET(Ryhma12!$K318,-P$103-1,0),0) -> 29.48925389 | Q245: =IF(COUNTIF(D$104:D245,D245)=1,D245,"") ->  | R245: =IF(COUNTIF(D$105:D245,D245)=1,1,0) -> 0 | S245: =IF(R245=0,"",MAX(S$104:S244)+1) -> 
... 964 more rows

Sheet Rehutiedot
A1: =Päävalinta!$A$1 -> eMulli2 v.1.0 2019
E2: Rehuseosarvot, kasvun tunnusluvut sekä tilakohtaiset suunnitteluarvot
E7: REHUSEOKSEN REHUARVOT | F7: 1 | G7: 2 | H7: 3
E8: Rehuseoksen nimitys | F8: Heikkorehu | G8: Perusrehu | H8: Tehorehu | I8: Ohjeistus rehujen vaikutus kasvuun, laatuluokitukseen ja talouteen
F9: 1 | G9: 2 | H9: 3 | I9: Keltaisella pohjalla tarkasteltavan ryhmän tiedot!
E10: Energia pit Mj/kg ka | F10: 10.9 | G10: 11.6 | H10: 12 | I10: Voit syöttää kolme vaihtoehtoista rehuseosta. Seos valitaan kasvatusryhmissä. | O10: rehuluokka
E11: Kuitupitoisuus NDF | F11: 500 | G11: 400 | H11: 340 | I11: Oletusarvona on aina rehuseos nro yksi. | O11: ="Ryhma"&G20&"!H3" -> Ryhma5!H3
E12: Syönti-indeksi SRIND | F12: 100 | G12: 102 | H12: 123 | I12: Kasvatusryhmän ollessa valittuna korostuu keltaisella valittu rehuseos ja | O12: =INDIRECT(O11) -> 2
E13: Haihtuvat rasvah. VFA | F13: 15 | G13: 9 | H13: 15 | I13: tunnusluvut rotuluokittain. | O13: Keltainen korostus! | S13: rotunumero | T13: kpl | U13: rotuluokat
E14: Rehun hinta snt/Mj | F14: 1.5 | G14: 1.7 | H14: 2.1 | I14: Syöttämällä rehun yksikköhinnan,ohjelma laskee sen kilohinnan. | O14: 0 | P14: 1 | Q14: =" "&kasvatusryhmat!B10& " Rotu: "&R14& " Ryhmän koko:" &T14& " kpl" -> Ay r1 Rotu: 1=AY Ryhmän koko:30 kpl | R14: =VLOOKUP(S14,U$17:V$26,2) -> 1=AY | S14: =kasvatusryhmat!$C10 -> 1 | T14: =kasvatusryhmat!$D10 -> 30
E15: Rehun hinta snt/kg ka | F15: =F14*F10 -> 16.35 | G15: =G10*G14 -> 19.72 | H15: =H14*H10 -> 25.2 | I15: <- Huom! Jos muutat rehuarvoja, muista tarkistaa rehun hinta! | O15: =INDIRECT(O19) -> 1 | P15: 2 | Q15: =" "&kasvatusryhmat!B11& " Rotu: "&R15& " Ryhmän koko:" &T15& " kpl" -> Hol r2 Rotu: 2=HOL Ryhmän koko:30 kpl | R15: 2=HOL | S15: =kasvatusryhmat!$C11 -> 2 | T15: =kasvatusryhmat!$D11 -> 30
F16: =IF(F9=O12,1,0) -> 0 | G16: =IF(G9=O12,1,0) -> 1 | H16: =IF(H9=O12,1,0) -> 0 | O16: Viittaukset | P16: 3 | Q16: =" "&kasvatusryhmat!B12& " Rotu: "&R16& " Ryhmän koko:" &T16& " kpl" -> Ay r3 Rotu: 1=AY Ryhmän koko:30 kpl | R16: 1=AY | S16: =kasvatusryhmat!$C12 -> 1 | T16: =kasvatusryhmat!$D12 -> 30 | X16: 9
O17: ="Ryhma"&G20&"!H5" -> Ryhma5!H5 | P17: 4 | Q17: =" "&kasvatusryhmat!B13& " Rotu: "&R17& " Ryhmän koko:" &T17& " kpl" -> Ay r4 Rotu: 1=AY Ryhmän koko:30 kpl | R17: 1=AY | S17: =kasvatusryhmat!$C13 -> 1 | T17: =kasvatusryhmat!$D13 -> 30 | U17: 0 | V17: Ryhmaa ei ole | X17: 10
O18: ="Ryhma"&G20&"!S6" -> Ryhma5!S6 | P18: 5 | Q18: =" "&kasvatusryhmat!B14& " Rotu: "&R18& " Ryhmän koko:" &T18& " kpl" -> Ay r5 Rotu: 1=AY Ryhmän koko:30 kpl | R18: 1=AY | S18: =kasvatusryhmat!$C14 -> 1 | T18: =kasvatusryhmat!$D14 -> 30 | U18: 1 | V18: 1=AY | X18: 11
O19: ="Ryhma"&G20&"!F3" -> Ryhma5!F3 | P19: 6 | Q19: =" "&kasvatusryhmat!B15& " Rotu: "&R19& " Ryhmän koko:" &T19& " kpl" -> Hol r6 Rotu: 2=HOL Ryhmän koko:30 kpl | R19: 2=HOL | S19: =kasvatusryhmat!$C15 -> 2 | T19: =kasvatusryhmat!$D15 -> 30 | U19: 2 | V19: 2=HOL | X19: SARAKE
E20: KASVASVUN TUNNUSLUVUT KASVATUSRYHMITTÄIN | F20: Kasvatusryhmä: | G20: 5 | O20: ="Ryhma"&G20&"!M8" -> Ryhma5!M8 | P20: 7 | Q20: =" "&kasvatusryhmat!B16& " Rotu: "&R20& " Ryhmän koko:" &T20& " kpl" -> Ay r7 Rotu: 1=AY Ryhmän koko:30 kpl | R20: 1=AY | S20: =kasvatusryhmat!$C16 -> 1 | T20: =kasvatusryhmat!$D16 -> 30 | U20: 3 | V20: 3=AB | X20: 1 | Y20: C19
E21: Eläinkohtaiset kasvuarviot koko kasvatusajalta | F21: maitorotuiset | G21: keskisuuret liharodut | H21: suuret liharodut | I21: Ryhmän rehunkäyttö koko kasvatusaikana. | K21: per eläin | L21: per koko ryhmä | O21: ="Ryhma"&G20&"!K20" -> Ryhma5!K20 | P21: 8 | Q21: =" "&kasvatusryhmat!B17& " Rotu: "&R21& " Ryhmän koko:" &T21& " kpl" -> Hol r8 Rotu: 2=HOL Ryhmän koko:30 kpl | R21: 2=HOL | S21: =kasvatusryhmat!$C17 -> 2 | T21: =kasvatusryhmat!$D17 -> 30 | U21: 4 | V21: 4=HF | X21: 2 | Y21: D19
E22: Päiväkasvu teuraspainona: | F22: =IF(O14>0,IFERROR(IF(O15=1,INDIRECT(O25),""),""),"") ->  | G22: =IF(O14>0,IFERROR(IF(O15=2,INDIRECT(O25),""),""),"") ->  | H22: =IF(O14>0,IFERROR(IF(O15=3,INDIRECT(O25),""),""),"") ->  | I22: Mj:t yhteensä / eläin | K22: =IFERROR(INDIRECT(O17)*K23,0) -> 40411.16728 | L22: =IFERROR(INDIRECT(O17)*L23,0) -> 1164493.177 | P22: 9 | Q22: =" "&kasvatusryhmat!B18& " Rotu: "&R22& " Ryhmän koko:" &T22& " kpl" -> Ay r9 Rotu: 1=AY Ryhmän koko:30 kpl | R22: 1=AY | S22: =kasvatusryhmat!$C18 -> 1 | T22: =kasvatusryhmat!$D18 -> 30 | U22: 5 | V22: 5=CH | X22: 3 | Y22: E19
E23: Päiväkasvu elopainona: | F23: =IFERROR(F22/52%,"") ->  | G23: =IFERROR(G22/55.5%,"") ->  | H23: =IFERROR(H22/INDIRECT(O29),"") ->  | I23: Kuiva-ainekilot yht/ eläin | K23: =INDIRECT(O18) -> 3483.721317 | L23: =INDIRECT(O21)*K23 -> 100387.3428 | O23: ="Ryhma"&G20&"!U7" -> Ryhma5!U7 | P23: 10 | Q23: =" "&kasvatusryhmat!B19& " Rotu: "&R23& " Ryhmän koko:" &T23& " kpl" -> Hf r10 Rotu: 4=HF Ryhmän koko:30 kpl | R23: 4=HF | S23: =kasvatusryhmat!$C19 -> 4 | T23: =kasvatusryhmat!$D19 -> 30 | U23: 6 | V23: 6=LI | X23: 4 | Y23: F19
E24: Koko kasvatusaika tilalla: | F24: =IF(INDIRECT(O26)=1,0,IFERROR(IF(O15=1,INDIRECT(O26),""),"")) -> 371 | G24: =IF(INDIRECT(O26)=1,0,IFERROR(IF(O15=2,INDIRECT(O26),""),"")) ->  | H24: =IF(INDIRECT(O26)=1,0,IFERROR(IF(O15=3,INDIRECT(O26),""),"")) ->  | I24: Ruhopainolisäys/eläin | K24: =INDIRECT(O20) -> 233.98024 | O24: ="Ryhma"&G20&"!B53" -> Ryhma5!B53 | P24: 11 | Q24: =" "&kasvatusryhmat!B20& " Rotu: "&R24& " Ryhmän koko:" &T24& " kpl" -> Li r11 Rotu: 6=LI Ryhmän koko:30 kpl | R24: 6=LI | S24: =kasvatusryhmat!$C20 -> 6 | T24: =kasvatusryhmat!$D20 -> 30 | U24: 7 | V24: 7=SI | X24: 5 | Y24: G19
E25: Lopputeuraspaino: | F25: =IFERROR(IF(O15=1,INDIRECT(O28),""),"") -> 358.78024 | G25: =IFERROR(IF(O15=2,INDIRECT(O28),""),"") ->  | H25: =IFERROR(IF(O15=3,INDIRECT(O28),""),"") ->  | I25: Rehumenekki koko kasvatusaikana | K25: =IFERROR(INDIRECT(O23),0) -> 14.88895523 | O25: ="Ryhma"&G20&"!M9" -> Ryhma5!M9 | P25: 12 | Q25: =" "&kasvatusryhmat!B21& " Rotu: "&R25& " Ryhmän koko:" &T25& " kpl" -> Ay 12 Rotu: 1=AY Ryhmän koko:30 kpl | R25: 1=AY | S25: =kasvatusryhmat!$C21 -> 1 | T25: =kasvatusryhmat!$D21 -> 30 | U25: 8 | V25: 8=BA | X25: 6 | Y25: H19
E26: Alkupaino (elopaino): | F26: =IFERROR(IF(O15=1,INDIRECT(O27),""),"") -> 240 | G26: =IFERROR(IF(O15=2,INDIRECT(O27),""),"") ->  | H26: =IFERROR(IF(O15=3,INDIRECT(O27),""),"") ->  | I26: Laatuluokitus (lihakkuus/rasvaisuus) | K26: =IFERROR(INDIRECT(O24),0) -> 5,3 / 2,7 | O26: ="Ryhma"&G20&"!Q8" -> Ryhma5!Q8 | Q26: =" "&kasvatusryhmat!B22& " Rotu: "&R26& " Ryhmän koko:" &T26& " kpl" -> Hf r13 Rotu: 4=HF Ryhmän koko:30 kpl | R26: 4=HF | S26: =kasvatusryhmat!$C22 -> 4 | T26: =kasvatusryhmat!$D22 -> 30 | X26: 7 | Y26: I19
E27: Ryhmän katetuotto suunnittelukaudella | F27: =IFERROR(IF(O15=1,P31,0),0) -> 4505 | G27: =IFERROR(IF(O15=2,P31,0),0) -> 0 | H27: =IFERROR(IF(O15=3,P31,0),0) -> 0 | I27: Koko karjan tulos suunnittelukaudella | K27: =Tulosennuste!H32 -> 21719.26814 | O27: ="Ryhma"&G20&"!L6" -> Ryhma5!L6 | Q27: =" "&kasvatusryhmat!B23& " Rotu: "&R27& " Ryhmän koko:" &T27& " kpl" -> Hol r14 Rotu: 2=HOL Ryhmän koko:30 kpl | R27: 2=HOL | S27: =kasvatusryhmat!$C23 -> 2 | T27: =kasvatusryhmat!$D23 -> 30 | X27: 8 | Y27: J19
O28: ="Ryhma"&G20&"!M7" -> Ryhma5!M7 | Q28: =" "&kasvatusryhmat!B24& " Rotu: "&R28& " Ryhmän koko:" &T28& " kpl" -> Ay r 15 Rotu: 1=AY Ryhmän koko:30 kpl | R28: 1=AY | S28: =kasvatusryhmat!$C24 -> 1 | T28: =kasvatusryhmat!$D24 -> 30 | X28: 9 | Y28: K19
F29: maitorotuiset | G29: keskisuuret liharodut | H29: suuret liharodut | O29: ="Ryhma"&G20&"!F4" -> Ryhma5!F4 | Q29: =" "&kasvatusryhmat!B25& " Rotu: "&R29& " Ryhmän koko:" &T29& " kpl" -> Hol r16 Rotu: 2=HOL Ryhmän koko:30 kpl | R29: 2=HOL | S29: =kasvatusryhmat!$C25 -> 2 | T29: =kasvatusryhmat!$D25 -> 30 | X29: 10 | Y29: L19
E30: TILAKOHTAISET KORJAUKSET | F30: 1 | G30: 2 | H30: 3 | I30: Huom! | Q30: =" "&kasvatusryhmat!B26& " Rotu: "&R30& " Ryhmän koko:" &T30& " kpl" -> Ay r17 Rotu: 1=AY Ryhmän koko:30 kpl | R30: 1=AY | S30: =kasvatusryhmat!$C26 -> 1 | T30: =kasvatusryhmat!$D26 -> 30 | X30: 11 | Y30: M19
E31: Vuosikuolleisuus | F31: 0.05 | G31: 0.05 | H31: 0.05 | I31: Kuolleisuus oletetaan tasaiseksi koko kasvatusajalle. | O31: ="Ryhma"&G20&"!"& "J83" -> Ryhma5!J83 | P31: =(ROUND(INDIRECT(O31),0)) -> 4505 | Q31: =" "&kasvatusryhmat!B27& " Rotu: "&R31& " Ryhmän koko:" &T31& " kpl" -> Hf r18 Rotu: 4=HF Ryhmän koko:30 kpl | R31: 4=HF | S31: =kasvatusryhmat!$C27 -> 4 | T31: =kasvatusryhmat!$D27 -> 30 | X31: 12 | Y31: N19
E32: Rehun syöntikykykorjaus (oletus 0%) | F32: 0 | G32: 0 | H32: 0 | I32: Positiivisella rehun hyötysuhde on parempi, negatiivisella pienempi. | O32: ="Ryhma"&G20&"!"& "J84" -> Ryhma5!J84 | P32: =IFERROR(ROUND(INDIRECT(O32),2),0) -> 0.93 | Q32: =" "&kasvatusryhmat!B28& " Rotu: "&R32& " Ryhmän koko:" &T32& " kpl" -> Ab r19 Rotu: 3=AB Ryhmän koko:30 kpl | R32: 3=AB | S32: =kasvatusryhmat!$C28 -> 3 | T32: =kasvatusryhmat!$D28 -> 30
E33: Liharotujen kasvukorjaus (keskis 5,618%;isot 11,236%) | F33: 0 | G33: 0.05618 | H33: 0.11236 | I33: Jos kasvu suurempi, rehunkulutus myös kasvaa hieman (eläin suurempi). | O33: ="Ryhma"&G20&"!"&VLOOKUP(G20,X20:Y30,2) -> Ryhma5!G19 | Q33: =" "&kasvatusryhmat!B29& " Rotu: "&R33& " Ryhmän koko:" &T33& " kpl" -> Hol r20 Rotu: 2=HOL Ryhmän koko:30 kpl | R33: 2=HOL | S33: =kasvatusryhmat!$C29 -> 2 | T33: =kasvatusryhmat!$D29 -> 30
E34: Kasvatustulosten kasvukorjaus (kaikki rodut) | F34: 0 | G34: Jos mallin tuottama kasvu poikkeaa tuloksista, tässä vaikutetaan vain kasvuun, ei rehumenekkiin. | Q34: =" "&kasvatusryhmat!B30& " Rotu: "&R34& " Ryhmän koko:" &T34& " kpl" -> Ay r21 Rotu: 1=AY Ryhmän koko:30 kpl | R34: 1=AY | S34: =kasvatusryhmat!$C30 -> 1 | T34: =kasvatusryhmat!$D30 -> 30
E35: Rehun tarjonta (oletus 100%) | F35: 0.95 | G35: =24-F35*24 -> 1.2 | H35: Jos alle 100%, rehun tarjonta on alle 24h. Tämä pienentää eläimen syömää rehun määrää vuorokaudessa. | Q35: =" "&kasvatusryhmat!B31& " Rotu: "&R35& " Ryhmän koko:" &T35& " kpl" -> Hol r22 Rotu: 2=HOL Ryhmän koko:30 kpl | R35: 2=HOL | S35: =kasvatusryhmat!$C31 -> 2 | T35: =kasvatusryhmat!$D31 -> 30
E36: Rehumenekkiero (oletusarvo 0%) | F36: 0 | G36: Mikäli tilan rehunkulutus ei vastaa tuloksia, voit muuttaa sitä kokemusperäisesti tässä ( +/- % ). Tämä ei vaikuta eläinten kasvuun. | Q36: =" "&kasvatusryhmat!B32& " Rotu: "&R36& " Ryhmän koko:" &T36& " kpl" -> Hol r23 Rotu: 2=HOL Ryhmän koko:30 kpl | R36: 2=HOL | S36: =kasvatusryhmat!$C32 -> 2 | T36: =kasvatusryhmat!$D32 -> 30
E37: Rehumenekin suosituslisä (oletus 10%) | F37: =10%+F36 -> 0.1 | G37: Rehunkulutuslisä kaikille rotuluokille. Pohjana laajat kotimaiset karjankasvatustutkimukset. | Q37: =" "&kasvatusryhmat!B33& " Rotu: "&R37& " Ryhmän koko:" &T37& " kpl" -> Rotu: Ryhmaa ei ole Ryhmän koko:0 kpl | R37: Ryhmaa ei ole | S37: =kasvatusryhmat!$C33 -> 0 | T37: =kasvatusryhmat!$D33 -> 0
E41: Rehuhakutaulu | F41: 1 | G41: 2 | H41: 3
O42: ="Ryhma"&G20&"!M7" -> Ryhma5!M7
O43: SARAKE
E44: =" " &H8 -> Tehorehu | O44: 1 | P44: c
P45: D

Sheet kasvatusryhmat
A1: =Päävalinta!$A$1 -> eMulli2 v.1.0 2019 | C1: Kasvatusryhmien suunnittelu | O1: TUNNUSLUKUJEN OSOITTEET | P1: a58 | Q1: m20 | R1: M21 | S1: b53 | T1: s18 | U1: s19 | V1: u19 | W1: j83 | X1: j84 | BJ1: a56 | BK1: a57 | BM1: 54 | BY1: hhh | BZ1: KONTROLLITIEDOT | CB1: Vanha | CD1: =CN1 -> 0 | CE1: Ryhmän suunnittelu | CH1: 3 | CL1: Katelaskelma Nimitys: | CM1: =Päävalinta!I5 -> esimerkkilaskelma | CP1: =CH1 -> 3 | CR1: =CG9 -> Tiedot haettu!
BQ2: aktiivisen ryhmän ryhmäkoko | BR2: =OFFSET(BR2,CF2+7,-54) -> 359.47912 | BS2: kjhg | BV2: Kasvatus- ryhmät | CA2: 1=muutettu = ei | CB2: lähtöarvo | CC2: 17 | CD2: =MATCH(1,CD10:CD33,0) -> 1 | CE2: VALITSE KASVATUSRYHMÄ (ja nimeä): | CF2: 1 | CG2: Ryhmä 18 | CI2: 5 | CL2: =CG9 -> Tiedot haettu! | CM2: =IF(CH1<13,"Ryhmä "&CF2,"Kokokarja") -> Ryhmä 1 | CN2: =IFERROR(INDIRECT(CP4),"") -> 30 | CP2: tulostusehto
BQ3: Rotu (1,2,.. 8) | BS3: kjhg | BT3: sht | BU3: Rotu (1,2,.. 8) | BV3: Ostohinta eur | BW3: a3 | BX3: a4 | BY3: a5 | BZ3: a6 | CA3: a7 | CB3: 1 | CD3: =MATCH(1,CD11:CD34,0) -> 1 | CE3: Rotu ja ryhmäkoko kpl tullessa | CF3: 6 | CG3: 29 | CI3: =IF(CG5>=H6,1,0) -> 1 | CP3: Hakutiedot
BQ4: tp tavoite kg | BU4: tp tavoite kg | BV4: =BV8-F6 -> 43837.52088 | BZ4: rehuseos | CA4: =IF(CF4<>CB4,1,0) -> 0 | CB4: 1 | CD4: 1 | CE4: Rehuseos | CF4: 1 | CG4: =IFERROR(HLOOKUP(CF4,Rehutiedot!F41:H42,2),"") -> 0 | CI4: =IF(CF8>K6,1,0) -> 1 | CP4: ="Ryhma"&CF2&"!K6" -> Ryhma1!K6
BQ5: Ostoikä pv | BU5: Ostoikä pv | BV5: Tulopvm tilalle | BZ5: ostoikä | CA5: =IF(CF5<>CB5,1,0) -> 0 | CB5: 150 | CD5: 1 | CE5: Ostoikä (pv) ja tulopvm (pp.kk.vvv) (min.150pv) | CF5: 150 | CG5: 2019-04-15 | CI5: =IF(CF8<K6,1,0) -> 0 | CP5: ="Ryhma"&CF2&"!B12" -> Ryhma1!B12
D6: Suunnittelukausi: | F6: =Päävalinta!O5 -> 365 | H6: =Päävalinta!M4 -> 2019-01-01 | J6: - | K6: =Päävalinta!O4 -> 2019-12-31 | BQ6: Ryhmäkoko kpl | BU6: Ryhmäkoko kpl | BV6: Ostopaino kg | BZ6: ostohinta | CA6: =IF(CF6<>CB6,1,0) -> 0 | CB6: 250 | CD6: 1 | CE6: Ostohinta (€/eläin) ja ostopaino (kg) | CF6: 250 | CG6: 190 | CI6: =CI3*CI5 -> 0 | CP6: ="Ryhma"&CF2&"!B13" -> Ryhma1!B13
F7: =(K6-H6+1)/(365/12) -> 12 | BM7: KASVATUSPÄIVÄJAKO KAUSIIN | BQ7: 2021-04-01 | BR7: 59 | BS7: 60 | BT7: 61 | BU7: 2021-04-01 | BV7: =BI9-H6+30 -> 1095 | BW7: 64 | BZ7: teuraspaino | CA7: =IF(CF7<>CB7,1,0) -> 0 | CB7: 328 | CD7: 1 | CE7: Teurastavoitepaino(kg): | CF7: 328 | CG7: =IFERROR(ROUND(1/INDIRECT(CH11)*CF7,0),"") -> 631 | CI7: =1-CI6 -> 1 | CP7: tulostusehto
B8: SUUNNITTELUTIEDOT | K8: Kasvatus | Q8: Kasvu ja laatu | T8: Rehut kaudella | W8: Kate/kausi € | BJ8: 62 | BM8: 54 | BN8: 55 | BO8: 56 | BP8: 57 | BQ8: Ostopaino kg | BT8: 61 | BU8: 62 | BV8: =BI9+31-P10 -> 44202.52088 | BW8: 64 | BZ8: ostopaino | CA8: =IF(CG6<>CB8,1,0) -> 0 | CB8: 190 | CD8: 1 | CE8: =IFERROR(CF8-CG5,"") -> 335 | CF8: =IFERROR(VLOOKUP(CG7,INDIRECT(CH27),2)+CG5,"") -> 2020-03-15 | CG8: =IFERROR(IF(CG5=0,"",IF(CF2=13,"","teurasikä: " &CH14& " pv ....20 kk ikä on " &#REF!-CG5+CF5& " pv")),"") ->  | CP8: =IF(CM10<CL11,0,1) -> 1
B9: Kasvatus- ryhmät | C9: Rotu (1,2,.. 8) | D9: Ryhmäkoko kpl | E9: Ostohinta eur | F9: Ostopaino kg | G9: Ostoikä pv | H9: Tulopvm tilalle | I9: Rehuseos | J9: tp tavoite kg | K9: Paino kauden alussa | L9: Kasvatus pvt ennen / kaudella/ jälkeen | M9: Aloituspvm kaudella | N9: Teuraspvm | O9: Koko kasvatus yhteensä pv | P9: Teurasp. kg | Q9: Tp lisäys kg /kausi | R9: Päiväkasvu nto g | S9: Lihakkuus- ja rasvaisuusluokat | T9: Kulutus yht kg ka | U9: ka kg / eläin / pv | V9: Kg ka/ eläin kg | W9: Yht. kaudella | X9: Kate eläin/pv | Y9: Kausi alkaa tästä | Z9: =DATE(YEAR(H6),MONTH(H6),DAY(1)) -> 2019-01-01 | AA9: =EDATE(Z9,1) -> 2019-02-01 | AB9: =EDATE(AA9,1) -> 2019-03-01 | AC9: 2019-04-01 | AD9: 2019-05-01 | AE9: 2019-06-01 | AF9: 2019-07-01 | AG9: 2019-08-01 | AH9: 2019-09-01 | AI9: 2019-10-01 | AJ9: 2019-11-01 | AK9: 2019-12-01 | AL9: 2020-01-01 | AM9: 2020-02-01 | AN9: 2020-03-01 | AO9: 2020-04-01 | AP9: 2020-05-01 | AQ9: 2020-06-01 | AR9: 2020-07-01 | AS9: =EDATE(AR9,1) -> 2020-08-01 | AT9: 2020-09-01 | AU9: 2020-10-01 | AV9: 2020-11-01 | AW9: 2020-12-01 | AX9: 2021-01-01 | AY9: 2021-02-01 | AZ9: 2021-03-01 | BA9: 2021-04-01 | BB9: 2021-05-01 | BC9: 2021-06-01 | BD9: 2021-07-01 | BE9: 2021-08-01 | BF9: 2021-09-01 | BG9: 2021-10-01 | BH9: 2021-11-01 | BI9: 2021-12-01 | BJ9: alkaako viim eka pv | BK9: nolla= onko kasvatus päättynyt kauden alkaessa | BL9: sarake 64: palkin pituus | BM9: Epvt | BN9: K pvt | BO9: jatkuuko kasvatus yli kauden | BP9: L-pvt | BQ9: TARKTULO | BR9: tark lähtö | BS9: siirtymä pv | BT9: TARK KASV PVT | BU9: sar 73: alkaako kesken kakuden | BX9: loppuuko kasvatus kaudella? | BY9: alkaako kasvatus kaudella | BZ9: harmaus- kontrolli -> | CA9: =MAX(CA3:CA8,CA10:CA12) -> 1 | CB9: karja alussa | CC9: karjaostot kaudella | CD9: loppuuko kasvatus kaudella | CE9: myytävä karja | CF9: jäljellä | CG9: Tiedot haettu! | CI9: alkanut tällä kaudella | CJ9: =CF8-CG5 -> 335 | CP9: ="Ryhma"&CF2&"!K19" -> Ryhma1!K19
A10: 1 | B10: Ay r1 | C10: 1 | D10: 30 | E10: 480 | F10: 220 | G10: 160 | H10: 2018-01-20 | I10: 2 | J10: 360 | K10: =Ryhma1!L18 -> 641.698 | L10: =IF(D10=0,"",IFERROR(IF(BM10=0,"o",BM10)& "-"& IF(BN10=0,"o",BN10)& "-"& IF(BP10=0,"o",BP10),"")) -> 346-41-o | M10: =IF(H10=0,0,MAX(H10,H$6)) -> 2019-01-01 | N10: =Ryhma1!D10 -> 2019-02-11 | O10: =N10-H10 -> 387 | P10: =Ryhma1!D22 -> 359.47912 | Q10: =IFERROR(ROUND(INDIRECT("Ryhma"&ROW()-9&"!"&Q$1),0),"") -> 26 | R10: =IFERROR(ROUND(INDIRECT("Ryhma"&ROW()-9&"!"&R$1),0),0) -> 614 | S10: =IFERROR((INDIRECT("Ryhma"&ROW()-9&"!"&S$1)),0) -> 5,3 / 2,7 | T10: =IFERROR((INDIRECT("Ryhma"&ROW()-9&"!"&T$1)),0) -> 496.4017918 | U10: 11.81909028 | V10: 19.24324364 | W10: 1020.206163 | X10: 0.8525384273 | BJ10: =IF(M10=H$6,1,0) -> 1 | BK10: =IF(N10>H$6,1,0) -> 1 | BL10: =(N10-M10)/365*12 -> 1.347945205 | BM10: =IF(BK10=0, N10-H10,IF(N10>H$6,1,0)*(M10-H10)) -> 346 | BN10: =IF(MIN(N10,K$6)-MAX(H10,H$6)>0,MIN(N10,K$6)-MAX(H10,H$6),0)*BK10+IF(BM10>0,0,0) -> 41 | BO10: =IF(N10>K$6,1,0) -> 0 | BP10: =(N10-MAX(K$6,H10)*BO10)*BO10 -> 0 | BQ10: =MAX(M10,M$22) -> 2019-03-10 | BR10: =MIN(N10,K$6) -> 2019-02-11 | BS10: =IF(H10-H$6<0,0,H10-H$6) -> 0 | BT10: =BR10-BQ10 -> -27 | BU10: =IF(BS10>0,1,0) -> 0 | BX10: =IF(P10<=K$6,1,0) -> 1 | BY10: =IF(H10>=H$6,IF(H10>K$6,0,1),0) -> 0 | BZ10: rnimi | CA10: =IF(CG2<>CB10,1,0) -> 1 | CB10: =IF(BY10=0,1,0)* IF(H10>K$6,0,1)*Ryhma1!K$18 -> 28.58021453 | CC10: =BY10*D10 -> 0 | CD10: =IF(N10<K$6,1,0)*IF(N10>H$6,1,0) -> 1 | CE10: =CD10*Ryhma1!K7 -> 28.41202402 | CF10: =Ryhma1!K24*IF(CD10=0,1,0) -> 0 | CL10: =IFERROR(INDIRECT(CP5),"") -> 2018-01-20 | CM10: =IFERROR(INDIRECT(CP6),0) -> 2019-02-11 | CN10: =IFERROR(INDIRECT(CP10),"") -> 28.41202402 | CP10: ="Ryhma"&CF2&"!K7" -> Ryhma1!K7
A11: 2 | B11: Hol r2 | C11: 2 | D11: 30 | E11: 520 | F11: 240 | G11: 170 | H11: 2018-02-24 | I11: 2 | J11: 360 | K11: =Ryhma2!L18 -> 618.998 | L11: 311-60-o | M11: =IF(H11=0,0,MAX(H11,H$6)) -> 2019-01-01 | N11: =Ryhma2!D10 -> 2019-03-02 | O11: =N11-H11 -> 371 | P11: =Ryhma2!D22 -> 359.3928 | Q11: 38 | R11: =IFERROR(ROUND(INDIRECT("Ryhma"&ROW()-9&"!"&R$1),0),0) -> 615 | S11: =IFERROR((INDIRECT("Ryhma"&ROW()-9&"!"&S$1)),0) -> 4,6 / 2,7 | T11: 713.1863436 | U11: 11.6915794 | V11: 19.01128606 | W11: 1361.82687 | X11: 0.7807445852 | BJ11: =IF(M11=H$6,1,0) -> 1 | BK11: 1 | BL11: =(N11-M11)/365*12 -> 1.97260274 | BM11: 311 | BN11: =IF(MIN(N11,K$6)-MAX(H11,H$6)>0,MIN(N11,K$6)-MAX(H11,H$6),0)*BK11+IF(BM11>0,0,0) -> 60 | BO11: 0 | BP11: 0 | BQ11: 2019-03-10 | BR11: 2019-03-02 | BS11: =IF(H11-H$6<0,0,H11-H$6) -> 0 | BT11: =BR11-BQ11 -> -8 | BU11: =IF(BS11>0,1,0) -> 0 | BX11: =IF(N11<=K$6,1,0) -> 1 | BY11: =IF(H11>=H$6,IF(H11>K$6,0,1),0) -> 0 | BZ11: rkoko | CA11: =IF(CG3<>CB11,1,0) -> 1 | CB11: =IF(BY11=0,1,0)* IF(H11>K$6,0,1)*Ryhma2!K$18 -> 28.72113359 | CC11: =BY11*D11 -> 0 | CD11: 1 | CE11: =CD11*Ryhma2!K7 -> 28.47597957 | CF11: =Ryhma2!K24*IF(CD11=0,1,0) -> 0 | CG11: ="Elopaino: "& CG7 & " kg ja teuraspaino: " & CF7 & " kg" -> Elopaino: 631 kg ja teuraspaino: 328 kg | CH11: ="Ryhma"&CF2&"!F4" -> Ryhma1!F4 | CL11: =INDIRECT(CP25) -> 2019-01-01 | CM11: =IF(CL11="","",K6) -> 2019-12-31 | CN11: =IF(CO11=0,0,IFERROR(INDIRECT(CP9),"")) -> 0 | CO11: =INDIRECT("BP" & 9 +CF2) -> 0 | CP11: ="Ryhma"&CF2&"!L5" -> Ryhma1!L5 | CR11: KATETUOTTOKUVION LUVUT
A12: 3 | B12: Ay r3 | C12: 1 | D12: 30 | E12: 470 | F12: 220 | G12: 155 | H12: 2018-03-28 | I12: 2 | J12: 360 | K12: =Ryhma3!L18 -> 561.961 | L12: =IF(D12=0,"",IFERROR(IF(BM12=0,"o",BM12)& "-"& IF(BN12=0,"o",BN12)& "-"& IF(BP12=0,"o",BP12),"")) -> 279-108-o | M12: =IF(H12=0,0,MAX(H12,H$6)) -> 2019-01-01 | N12: =Ryhma3!D10 -> 2019-04-19 | O12: =N12-H12 -> 387 | P12: =Ryhma3!D22 -> 359.47912 | Q12: 67 | R12: 617 | S12: 5,3 / 2,7 | T12: 1239.318884 | U12: 11.36989802 | V12: 18.42595807 | W12: 2786.000453 | X12: 0.8928419843 | BJ12: 1 | BK12: 1 | BL12: 3.550684932 | BM12: 279 | BN12: 108 | BO12: 0 | BP12: 0 | BQ12: 2019-03-10 | BR12: 2019-04-19 | BS12: 0 | BT12: 40 | BU12: 0 | BX12: 1 | BY12: 0 | BZ12: tulopvm | CA12: =IF(CG5<>CB12,1,0) -> 1 | CB12: =IF(BY12=0,1,0)* IF(H12>K$6,0,1)*Ryhma3!K$18 -> 28.85058183 | CC12: 0 | CD12: 1 | CE12: =CD12*Ryhma3!K7 -> 28.41202402 | CF12: =Ryhma3!K24*IF(CD12=0,1,0) -> 0 | CG12: =K6 -> 2019-12-31 | CP12: ="Ryhma"&CF2&"!L16" -> Ryhma1!L16 | CQ12: Myynti | CR12: =ROUND(CN13,0) -> 35584 | CT12: 0
A13: 4 | B13: Ay r4 | C13: 1 | D13: 30 | E13: 490 | F13: 235 | G13: 165 | H13: 2018-05-02 | I13: 2 | J13: 360 | K13: =Ryhma4!L18 -> 534.262 | L13: =IF(D13=0,"",IFERROR(IF(BM13=0,"o",BM13)& "-"& IF(BN13=0,"o",BN13)& "-"& IF(BP13=0,"o",BP13),"")) -> 244-131-o | M13: 2019-01-01 | N13: =Ryhma4!D10 -> 2019-05-12 | O13: 375 | P13: =Ryhma4!D22 -> 359.4136 | Q13: 82 | R13: 618 | S13: 5,3 / 2,7 | T13: 1479.726939 | U13: 11.21005257 | V13: 18.13449528 | W13: 3552.63247 | X13: 0.9370356038 | BJ13: 1 | BK13: 1 | BL13: 4.306849315 | BM13: 244 | BN13: 131 | BO13: 0 | BP13: 0 | BQ13: 2019-03-10 | BR13: 2019-05-12 | BS13: 0 | BT13: 63 | BU13: 0 | BX13: 1 | BY13: 0 | BZ13: onko tyhjä | CA13: =IF(BR2=0,1,0) -> 0 | CB13: =IF(BY13=0,1,0)* IF(H13>K$6,0,1)*Ryhma4!K$18 -> 28.99283398 | CC13: 0 | CD13: 1 | CE13: =CD13*Ryhma4!K7 -> 28.4599772 | CF13: =Ryhma4!K$24*IF(CD13=0,1,0) -> 0 | CG13: =IF(CF13=0,""," Elopaino :"&CG6&" kg -> " & ROUND(INDIRECT(CH35),0) & "kg") ->  | CL13: =IF(CN13=0,"Myynti","Myynti ( laskennallinen " & ROUND((INDIRECT("Ryhma"&CF2&"!K19")),1) & " kpl )") -> Myynti ( laskennallinen 28,4 kpl ) | CM13: =IF(CN13=0,"",ROUND(CN13/(INDIRECT(CP9)),0) & " €/eläin") -> 1252 €/eläin | CN13: =IFERROR(INDIRECT(CP13)*CP8,"") -> 35584.47738 | CP13: ="Ryhma"&CF2&"!I72" -> Ryhma1!I72 | CQ13: =CL14 -> Eu- nautatuet | CR13: =ROUND(CM14,0) -> 551 | CT13: 0
A14: 5 | B14: Ay r5 | C14: 1 | D14: 30 | E14: 520 | F14: 240 | G14: 170 | H14: 2018-06-11 | I14: 2 | J14: 360 | K14: =Ryhma5!L18 -> 490.837 | L14: 204-167-o | M14: 2019-01-01 | N14: =Ryhma5!D10 -> 2019-06-17 | O14: 371 | P14: =Ryhma5!D22 -> 359.3928 | Q14: 104 | R14: 620 | S14: 5,3 / 2,7 | T14: 1840.758446 | U14: 10.95689551 | V14: 17.67282611 | W14: 4505.261024 | X14: 0.9307566645 | BJ14: 1 | BK14: 1 | BL14: 5.490410959 | BM14: 204 | BN14: 167 | BO14: 0 | BP14: 0 | BQ14: 2019-03-10 | BR14: 2019-06-17 | BS14: 0 | BT14: 99 | BU14: 0 | BX14: 1 | BY14: 0 | BZ14: lähtöpvm | CB14: =IF(BY14=0,1,0)* IF(H14>K$6,0,1)*Ryhma5!K$18 -> 29.15626692 | CC14: 0 | CD14: 1 | CE14: =CD14*Ryhma5!K7 -> 28.47597957 | CF14: =Ryhma5!K$24*IF(CD14=0,1,0) -> 0 | CG14: =IF(CF14=0,""," Elopaino: "& IFERROR(IF(CF2=13,0, ROUND(INDIRECT(CH35),0) & " kg-> "& ROUND(INDIRECT(CH19),0)),"")&" kg; teuraspaino " & ROUND(CH36,1)& "kg") ->  | CH14: =CF8-CG5+CF5 -> 485 | CI14: =CF8-CG5 -> 335 | CL14: Eu- nautatuet | CM14: =IFERROR(INDIRECT(CP15)*CP8,"") -> 550.7035789 | CP14: ="Ryhma"&CF2&"!I73" -> Ryhma1!I73 | CQ14: =CL15 -> Kansallinen tuki | CR14: =ROUND(CM15,0) -> 1199 | CS14: 0 | CT14: 1 = AY
A15: 6 | B15: Hol r6 | C15: 2 | D15: 30 | E15: 440 | F15: 210 | G15: 150 | H15: 2018-07-12 | I15: 2 | J15: 360 | K15: =Ryhma6!L18 -> 424.218 | L15: 173-222-o | M15: 2019-01-01 | N15: =Ryhma6!D10 -> 2019-08-11 | O15: 395 | P15: =Ryhma6!D22 -> 359.52436 | Q15: 139 | R15: 623 | S15: 4,6 / 2,7 | T15: 2355.199116 | U15: 10.56143101 | V15: 16.9522937 | W15: 7045.009342 | X15: 1.09588637 | BJ15: 1 | BK15: 1 | BL15: 7.298630137 | BM15: 173 | BN15: 222 | BO15: 0 | BP15: 0 | BQ15: 2019-03-10 | BR15: 2019-08-11 | BS15: 0 | BT15: 154 | BU15: 0 | BX15: 1 | BY15: 0 | BZ15: kausialku | CA15: =IF(CB14<=CB15,1,0) -> 1 | CB15: =IF(BY15=0,1,0)* IF(H15>K$6,0,1)*Ryhma6!K$18 -> 29.28356084 | CC15: 0 | CD15: 1 | CE15: =CD15*Ryhma6!K7 -> 28.38010013 | CF15: =Ryhma6!K$24*IF(CD15=0,1,0) -> 0 | CG15: =IF(CF15=0,""," Elopaino: "& IFERROR(IF(CF2=13,0, ROUND(INDIRECT(CH40),0) & " kg-> "& ROUND(INDIRECT(CH41),0)),"")& " kg ; teuraspaino: " &ROUND(INDIRECT(CH42),0) & " kg") ->  | CH15: ="Ryhma"&CF2&"!B15" -> Ryhma1!B15 | CL15: Kansallinen tuki | CM15: =IFERROR(INDIRECT(CP16)*CP8,"") -> 1198.812853 | CP15: ="Ryhma"&CF2&"!I74" -> Ryhma1!I74 | CQ15: =CL16 -> Hyvinvointikorvaukset | CR15: =ROUND(CM16,0) -> 23 | CS15: 0 | CT15: 2 = HOL
A16: 7 | B16: Ay r7 | C16: 1 | D16: 30 | E16: 480 | F16: 230 | G16: 160 | H16: 2018-08-20 | I16: 2 | J16: 360 | K16: =Ryhma7!L18 -> 395.833 | L16: 134-245-o | M16: 2019-01-01 | N16: =Ryhma7!D10 -> 2019-09-03 | O16: 379 | P16: =Ryhma7!D22 -> 359.4344 | Q16: 154 | R16: 624 | S16: 5,3 / 2,7 | T16: 2555.37731 | U16: 10.38771264 | V16: 16.63643672 | W16: 7928.451467 | X16: 1.113658813 | BJ16: 1 | BK16: 1 | BL16: 8.054794521 | BM16: 134 | BN16: 245 | BO16: 0 | BP16: 0 | BQ16: 2019-03-10 | BR16: 2019-09-03 | BS16: 0 | BT16: 177 | BU16: 0 | BX16: 1 | BY16: 0 | CB16: =IF(BY16=0,1,0)* IF(H16>K$6,0,1)*Ryhma7!K$18 -> 29.44449449 | CC16: 0 | CD16: 1 | CE16: =CD16*Ryhma7!K7 -> 28.44398382 | CF16: =Ryhma7!K$24*IF(CD16=0,1,0) -> 0 | CG16: =IFERROR(" Päiväkasvu yht: " & ROUND(INDIRECT(CH17),0) & "g nto/pv (" & ROUND(INDIRECT(CH24),0)&"g br)","") -> Päiväkasvu yht: 614g nto/pv (1181g br) | CH16: ="Ryhma"&CF2&"!M19" -> Ryhma1!M19 | CI16: Rehut | CL16: Hyvinvointikorvaukset | CM16: =IFERROR(INDIRECT(CP17)*CP8,"") -> 22.71652263 | CN16: =IFERROR(CM16+CM14+CM15,"") -> 1772.232955 | CP16: ="Ryhma"&CF2&"!I75" -> Ryhma1!I75 | CQ16: Eläinhankinnat | CR16: =- ROUND(CM18+CM19,0) -> -33399 | CS16: 0 | CT16: 3 = AB
A17: 8 | B17: Hol r8 | C17: 2 | D17: 30 | E17: 520 | F17: 245 | G17: 168 | H17: 2018-09-10 | I17: 2 | J17: 360 | K17: =Ryhma8!L18 -> 384.634 | L17: 113-255-o | M17: 2019-01-01 | N17: =Ryhma8!D10 -> 2019-09-13 | O17: 368 | P17: =Ryhma8!D22 -> 359.98612 | Q17: 160 | R17: 625 | S17: 4,6 / 2,7 | T17: 2643.246981 | U17: 10.32518352 | V17: 16.5227266 | W17: 8047.917039 | X17: 1.083828428 | BJ17: 1 | BK17: 1 | BL17: 8.383561644 | BM17: 113 | BN17: 255 | BO17: 0 | BP17: 0 | BQ17: 2019-03-10 | BR17: 2019-09-13 | BS17: 0 | BT17: 187 | BU17: 0 | BX17: =IF(N17<=K$6,1,0) -> 1 | BY17: 0 | CB17: =IF(BY17=0,1,0)* IF(H17>K$6,0,1)*Ryhma8!K$18 -> 29.5315171 | CC17: 0 | CD17: 1 | CE17: =CD17*Ryhma8!K7 -> 28.48798725 | CF17: =Ryhma8!K$24*IF(CD17=0,1,0) -> 0 | CG17: =INDIRECT(CH38) -> 244.46656 | CH17: ="Ryhma"&CF2&"!M21" -> Ryhma1!M21 | CI17: =Rehutiedot!F8 -> Heikkorehu | CL17: Tulot yhteensä | CN17: =IFERROR(CN13+CN16,"") -> 37356.71033 | CP17: ="Ryhma"&CF2&"!I76" -> Ryhma1!I76 | CQ17: Rehut ja kuivikkeet | CR17: =-ROUND(CM20,0) -> -2937 | CS17: 0 | CT17: 4 = HF
A18: 9 | B18: Ay r9 | C18: 1 | D18: 30 | E18: 480 | F18: 230 | G18: 162 | H18: 2018-10-20 | I18: 2 | J18: 360 | K18: =Ryhma9!L18 -> 320.331 | L18: 73-306-o | M18: 2019-01-01 | N18: =Ryhma9!D10 -> 2019-11-03 | O18: 379 | P18: =Ryhma9!D22 -> 359.4344 | Q18: 193 | R18: 628 | S18: 5,3 / 2,7 | T18: 3044.26427 | U18: 9.916170261 | V18: 15.78465354 | W18: 10845.68293 | X18: 1.215401616 | BJ18: 1 | BK18: 1 | BL18: 10.06027397 | BM18: 73 | BN18: 306 | BO18: 0 | BP18: 0 | BQ18: 2019-03-10 | BR18: 2019-11-03 | BS18: 0 | BT18: 238 | BU18: 0 | BX18: 1 | BY18: 0 | CB18: =IF(BY18=0,1,0)* IF(H18>K$6,0,1)*Ryhma9!K$18 -> 29.6979866 | CC18: 0 | CD18: 1 | CE18: =CD18*Ryhma9!K7 -> 28.44398382 | CF18: =Ryhma9!K$24*IF(CD18=0,1,0) -> 0 | CG18: 0 | CH18: ="Ryhma"&CF2&"!M7" -> Ryhma1!M7 | CI18: =Rehutiedot!G8 -> Perusrehu | CL18: =Ryhma100b!B13 -> Karjaostot kaudella | CM18: =IFERROR(INDIRECT(CP19)*CP8,0) -> 0 | CP18: ="Ryhma"&CF2&"!I78" -> Ryhma1!I78 | CQ18: Katetuotto | CS18: =ROUND(CN21,0) -> 1020 | CT18: 5 = CH
A19: 10 | B19: Hf r10 | C19: 4 | D19: 30 | E19: 850 | F19: 330 | G19: 155 | H19: 2018-11-20 | I19: 2 | J19: 420 | K19: =Ryhma10!L18 -> 384.786 | L19: 42-296-o | M19: 2019-01-01 | N19: =Ryhma10!D10 -> 2019-10-24 | O19: 338 | P19: =Ryhma10!D22 -> 419.68379 | Q19: 210 | R19: 707 | S19: 7,7 / 3,7 | T19: 3379.764458 | U19: 11.37967831 | V19: 16.09600047 | W19: 9014.235529 | X19: 1.038922337 | BJ19: 1 | BK19: 1 | BL19: 9.731506849 | BM19: 42 | BN19: 296 | BO19: 0 | BP19: 0 | BQ19: 2019-03-10 | BR19: 2019-10-24 | BS19: 0 | BT19: 228 | BU19: 0 | BX19: 1 | BY19: 0 | CB19: =IF(BY19=0,1,0)* IF(H19>K$6,0,1)*Ryhma10!K$18 -> 29.82764563 | CC19: 0 | CD19: 1 | CE19: =CD19*Ryhma10!K7 -> 28.60834292 | CF19: =Ryhma10!K$24*IF(CD19=0,1,0) -> 0 | CG19: =IFERROR(INDIRECT(CH26),"") -> 9.255336047 | CH19: ="Ryhma"&CF2&"!L19" -> Ryhma1!L19 | CI19: =Rehutiedot!H8 -> Tehorehu | CL19: Eläinpääoman muutos (+=vähennys, kulu)) | CM19: =IFERROR(INDIRECT(CP20)*CP8,"")-IFERROR(INDIRECT(CP14)*CP8,"") -> 33399.21398 | CP19: ="Ryhma"&CF2&"!I79" -> Ryhma1!I79 | CR19: =-ROUND(CM23,0) ->  | CT19: 6 = LI
A20: 11 | B20: Li r11 | C20: 6 | D20: 30 | E20: 920 | F20: 350 | G20: 165 | H20: 2018-12-21 | I20: 2 | J20: 460 | K20: =Ryhma11!L18 -> 364.273 | L20: 11-287-o | M20: 2019-01-01 | N20: =Ryhma11!D10 -> 2019-10-15 | O20: 298 | P20: =Ryhma11!D22 -> 459.2436 | Q20: =IFERROR(ROUND(INDIRECT("Ryhma"&ROW()-9&"!"&Q$1),0),"") -> 241 | R20: 836 | S20: 11,3 / 2,5 | T20: 3402.183258 | U20: 11.81313631 | V20: 14.13572414 | W20: 12397.87257 | X20: 1.466237583 | BJ20: 1 | BK20: 1 | BL20: 9.435616438 | BM20: 11 | BN20: 287 | BO20: 0 | BP20: 0 | BQ20: =MAX(M20,M$22) -> 2019-03-10 | BR20: 2019-10-15 | BS20: 0 | BT20: 219 | BU20: 0 | BX20: 1 | BY20: 0 | CB20: =IF(BY20=0,1,0)* IF(H20>K$6,0,1)*Ryhma11!K$18 -> 29.95787074 | CC20: 0 | CD20: 1 | CE20: =CD20*Ryhma11!K7 -> 28.76960848 | CF20: =Ryhma11!K$24*IF(CD20=0,1,0) -> 0 | CG20: koko kasvatusaikana | CH20: ="Ryhma"&CF2&"!s6" -> Ryhma1!s6 | CI20: rotu 1 | CL20: Rehu-ja kuivikekustannukset | CM20: =IFERROR(INDIRECT(CP21)*CP8 +INDIRECT(CP26)*CP8,"") -> 2937.290196 | CN20: =IFERROR(CM18+CM19+CM20,"") -> 36336.50417 | CP20: ="Ryhma"&CF2&"!I80" -> Ryhma1!I80 | CT20: 7 = SI
A21: 12 | B21: Ay 12 | C21: 1 | D21: 30 | E21: 450 | F21: 220 | G21: 162 | H21: 2019-02-09 | I21: 2 | J21: 360 | K21: =Ryhma12!L18 -> 220 | L21: o-325-62 | M21: 2019-02-09 | N21: =Ryhma12!D10 -> 2020-03-02 | O21: 387 | P21: =Ryhma12!D22 -> 321.34856 | Q21: =IFERROR(ROUND(INDIRECT("Ryhma"&ROW()-9&"!"&Q$1),0),"") -> 207 | R21: 637 | S21: 5,3 / 2,7 | T21: 2857.233622 | U21: 8.791488069 | V21: 13.80649192 | W21: 13504.55685 | X21: 1.258002155 | BJ21: 0 | BK21: 1 | BL21: 12.72328767 | BM21: 0 | BN21: 325 | BO21: 1 | BP21: 62 | BQ21: 2019-03-10 | BR21: 2019-12-31 | BS21: 39 | BT21: 296 | BU21: 1 | BX21: 0 | BY21: 1 | CB21: =IF(BY21=0,1,0)* IF(H21>K$6,0,1)*Ryhma12!K$18 -> 0 | CC21: 30 | CD21: 0 | CE21: =CD21*Ryhma12!K7 -> 0 | CF21: =Ryhma12!K$24*IF(CD21=0,1,0) -> 28.66065483 | CG21: =IF(CI$2=12,1,0) -> 0 | CH21: ="Ryhma"&CF2&"!M19" -> Ryhma1!M19 | CI21: rotu 2 | CL21: Katetuotto I | CM21: =IFERROR(INDIRECT(CQ22)*CP8,"") -> 0.8525384273 | CN21: =IFERROR(CN17-CN20,"") -> 1020.206163 | CP21: ="Ryhma"&CF2&"!I81" -> Ryhma1!I81 | CR21: =-ROUND(CM25,0) -> 0 | CT21: 8 = BA
A22: 13 | B22: Hf r13 | C22: 4 | D22: 30 | E22: 850 | F22: 325 | G22: 160 | H22: 2019-03-10 | I22: 2 | J22: 420 | K22: =Ryhma13!L18 -> 325 | L22: o-296-46 | M22: 2019-03-10 | N22: =Ryhma13!D10 -> 2020-02-15 | O22: 342 | P22: =Ryhma13!D22 -> 387.88413 | Q22: =IFERROR(ROUND(INDIRECT("Ryhma"&ROW()-9&"!"&Q$1),0),"") -> 211 | R22: 712 | S22: 7,7 / 3,7 | T22: 3146.501224 | U22: 10.6300717 | V22: 14.92937091 | W22: 10228.66323 | X22: 0.9489646229 | BJ22: 0 | BK22: 1 | BL22: 11.24383562 | BM22: 0 | BN22: 296 | BO22: 1 | BP22: 46 | BQ22: 2019-03-10 | BR22: 2019-12-31 | BS22: 68 | BT22: 296 | BU22: 1 | BX22: 0 | BY22: 1 | BZ22: pvmt | CB22: =IF(BY22=0,1,0)* IF(H22>K$6,0,1)*Ryhma13!K$18 -> 0 | CC22: 30 | CD22: 0 | CE22: =CD22*Ryhma13!K7 -> 0 | CF22: =Ryhma13!K$24*IF(CD22=0,1,0) -> 28.77769557 | CH22: ="Ryhma"&CF2&"!L18" -> Ryhma1!L18 | CI22: rotu 3 | CP22: ="Ryhma"&CF2&"!Q20" -> Ryhma1!Q20 | CQ22: ="Ryhma"&CF2&"!J84" -> Ryhma1!J84
A23: 14 | B23: Hol r14 | C23: 2 | D23: 30 | E23: 500 | F23: 235 | G23: 167 | H23: 2019-04-25 | I23: 2 | J23: 360 | K23: =Ryhma14!L18 -> 235 | L23: o-250-125 | M23: 2019-04-25 | N23: =Ryhma14!D10 -> 2020-05-04 | O23: 375 | P23: =Ryhma14!D22 -> 282.1858 | Q23: 160 | R23: 640 | S23: 4,6 / 2,7 | T23: 2101.410965 | U23: 8.405643861 | V23: 13.13498426 | W23: 11272.69705 | X23: 1.039086116 | BJ23: 0 | BK23: 1 | BL23: 12.32876712 | BM23: 0 | BN23: 250 | BO23: 1 | BP23: 125 | BQ23: 2019-04-25 | BR23: 2019-12-31 | BS23: 114 | BT23: 250 | BU23: 1 | BX23: 0 | BY23: 1 | BZ23: ennen kautta | CA23: =CB23 -> 0 | CB23: =IF(BY23=0,1,0)* IF(H23>K$6,0,1)*Ryhma14!K$18 -> 0 | CC23: 30 | CD23: 0 | CE23: =CD23*Ryhma14!K7 -> 0 | CF23: =Ryhma14!K$24*IF(CD23=0,1,0) -> 28.96432755 | CG23: =CG11 -> Elopaino: 631 kg ja teuraspaino: 328 kg | CH23: ="Ryhma"&CF2&"!M20" -> Ryhma1!M20 | CI23: rotu 4 | CQ23: =-ROUND(CM27,0) -> 0
A24: 15 | B24: Ay r 15 | C24: 1 | D24: 30 | E24: 470 | F24: 230 | G24: 162 | H24: 2019-05-22 | I24: 2 | J24: 360 | K24: =Ryhma15!L18 -> 230 | L24: o-223-156 | M24: 2019-05-22 | N24: =Ryhma15!D10 -> 2020-06-04 | O24: 379 | P24: =Ryhma15!D22 -> 262.81476 | Q24: 143 | R24: 642 | S24: 5,3 / 2,7 | T24: 1810.741558 | U24: 8.119917302 | V24: 12.64354008 | W24: 10547.38087 | X24: 0.9685465357 | BJ24: 0 | BK24: 1 | BL24: 12.46027397 | BM24: 0 | BN24: 223 | BO24: 1 | BP24: 156 | BQ24: 2019-05-22 | BR24: 2019-12-31 | BS24: 141 | BT24: 223 | BU24: 1 | BX24: 0 | BY24: 1 | BZ24: ei tilalla | CA24: =CA23+CB24 -> 0 | CB24: =IF(BY24=0,1,0)* IF(H24>K$6,0,1)*Ryhma15!K$18 -> 0 | CC24: 30 | CD24: 0 | CE24: =CD24*Ryhma15!K7 -> 0 | CF24: =Ryhma15!K$24*IF(CD24=0,1,0) -> 29.07443561 | CG24: 2019-12-31 | CH24: ="Ryhma"&CF2&"!L21" -> Ryhma1!L21 | CI24: rotu 5
A25: 16 | B25: Hol r16 | C25: 2 | D25: 30 | E25: 510 | F25: 245 | G25: 172 | H25: 2019-06-26 | I25: 2 | J25: 360 | K25: =Ryhma16!L18 -> 245 | L25: o-188-180 | M25: 2019-06-26 | N25: =Ryhma16!D10 -> 2020-06-28 | O25: 368 | P25: =Ryhma16!D22 -> 248.29064 | Q25: 121 | R25: 643 | S25: 4,6 / 2,7 | T25: 1511.242119 | U25: 8.038521908 | V25: 12.50090262 | W25: 9068.718603 | X25: 0.8286777857 | BJ25: 0 | BK25: 1 | BL25: 12.09863014 | BM25: 0 | BN25: 188 | BO25: 1 | BP25: 180 | BQ25: 2019-06-26 | BR25: 2019-12-31 | BS25: 176 | BT25: 188 | BU25: 1 | BX25: 0 | BY25: 1 | BZ25: kauden aikana | CA25: =CA24+CB25 -> 0 | CB25: =IF(BY25=0,1,0)* IF(H25>K$6,0,1)*Ryhma16!K$18 -> 0 | CC25: 30 | CD25: 0 | CE25: =CD25*Ryhma16!K7 -> 0 | CF25: =Ryhma16!K$24*IF(CD25=0,1,0) -> 29.2177915 | CH25: ="Ryhma"&CF2&"!B53" -> Ryhma1!B53 | CI25: rotu 6 | CP25: ="Ryhma"&CF2&"!B18" -> Ryhma1!B18 | CQ25: kauden alku
A26: 17 | B26: Ay r17 | C26: 1 | D26: 30 | E26: 480 | F26: 233 | G26: 168 | H26: 2019-08-20 | I26: 2 | J26: 360 | K26: =Ryhma17!L18 -> 233 | L26: o-133-244 | M26: 2019-08-20 | N26: =Ryhma17!D10 -> 2020-08-31 | O26: 377 | P26: =Ryhma17!D22 -> 207.35312 | Q26: 86 | R26: 648 | S26: 5,3 / 2,7 | T26: =IFERROR((INDIRECT("Ryhma"&ROW()-9&"!"&T$1)),0) -> 983.8630893 | U26: 7.397466837 | V26: 11.41463599 | W26: 6649.670182 | X26: 0.6029525815 | BJ26: 0 | BK26: 1 | BL26: 12.39452055 | BM26: 0 | BN26: 133 | BO26: 1 | BP26: 244 | BQ26: 2019-08-20 | BR26: 2019-12-31 | BS26: 231 | BT26: 133 | BU26: 1 | BX26: 0 | BY26: 1 | BZ26: ei tilalla | CA26: =CA25+CB26 -> 0 | CB26: =IF(BY26=0,1,0)* IF(H26>K$6,0,1)*Ryhma17!K$18 -> 0 | CC26: 30 | CD26: 0 | CE26: =CD26*Ryhma17!K7 -> 0 | CF26: =Ryhma17!K$24*IF(CD26=0,1,0) -> 29.44449449 | CH26: ="Ryhma"&CF2&"!S7" -> Ryhma1!S7 | CI26: rotu 7 | CP26: ="Ryhma"&CF2&"!I82" -> Ryhma1!I82
A27: 18 | B27: Hf r18 | C27: 4 | D27: 30 | E27: 870 | F27: 350 | G27: 160 | H27: 2019-09-10 | I27: 2 | J27: 420 | K27: =Ryhma18!L18 -> 350 | L27: o-112-211 | M27: 2019-09-10 | N27: =Ryhma18!D10 -> 2020-07-29 | O27: 323 | P27: =Ryhma18!D22 -> 271.47758 | Q27: 81 | R27: 721 | S27: 7,7 / 3,7 | T27: 1053.155324 | U27: 9.403172535 | V27: 13.04579332 | W27: 4305.670755 | X27: 0.3892621843 | BJ27: 0 | BK27: 1 | BL27: 10.61917808 | BM27: 0 | BN27: 112 | BO27: 1 | BP27: 211 | BQ27: 2019-09-10 | BR27: 2019-12-31 | BS27: 252 | BT27: 112 | BU27: 1 | BX27: 0 | BY27: 1 | BZ27: kauden lopussa | CB27: =IF(BY27=0,1,0)* IF(H27>K$6,0,1)*Ryhma18!K$18 -> 0 | CC27: 30 | CD27: 0 | CE27: =CD27*Ryhma18!K7 -> 0 | CF27: =Ryhma18!K$24*IF(CD27=0,1,0) -> 29.5315171 | CH27: ="Ryhma" & CF2&"!I178:J1178" -> Ryhma1!I178:J1178 | CI27: rotu 8 | CQ27: =-ROUND(CM31,0) -> 0
A28: 19 | B28: Ab r19 | C28: 3 | D28: 30 | E28: 800 | F28: 290 | G28: 155 | H28: 2019-09-20 | I28: 2 | J28: 400 | K28: =Ryhma19!L18 -> 290 | L28: o-102-227 | M28: 2019-09-20 | N28: =Ryhma19!D10 -> 2020-08-14 | O28: 329 | P28: =Ryhma19!D22 -> 236.57541 | Q28: 76 | R28: 741 | S28: 7,6 / 3,6 | T28: 862.7773999 | U28: 8.45860196 | V28: 11.40856492 | W28: 4050.268748 | X28: 0.3656578715 | BJ28: 0 | BK28: 1 | BL28: 10.81643836 | BM28: 0 | BN28: 102 | BO28: 1 | BP28: 227 | BQ28: 2019-09-20 | BR28: 2019-12-31 | BS28: 262 | BT28: 102 | BU28: 1 | BX28: 0 | BY28: 1 | BZ28: kauden jäkeen | CB28: =IF(BY28=0,1,0)* IF(H28>K$6,0,1)*Ryhma19!K$18 -> 0 | CC28: 30 | CD28: 0 | CE28: =CD28*Ryhma19!K7 -> 0 | CF28: =Ryhma19!K$24*IF(CD28=0,1,0) -> 29.57304679 | CG28: Päiväkasvu yht: 614g nto/pv (1181g br)
A29: 20 | B29: Hol r20 | C29: 2 | D29: 30 | E29: 485 | F29: 230 | G29: 162 | H29: 2019-10-20 | I29: 2 | J29: 360 | K29: =Ryhma20!L18 -> 230 | L29: o-72-307 | M29: 2019-10-20 | N29: =Ryhma20!D10 -> 2020-11-02 | O29: 379 | P29: =Ryhma20!D22 -> 166.57212 | Q29: 47 | R29: 652 | S29: 4,6 / 2,7 | T29: 489.1444232 | U29: 6.793672545 | V29: 10.41350536 | W29: 3200.3413 | X29: 0.287710986 | BJ29: 0 | BK29: 1 | BL29: 12.46027397 | BM29: 0 | BN29: 72 | BO29: 1 | BP29: 307 | BQ29: 2019-10-20 | BR29: 2019-12-31 | BS29: 292 | BT29: 72 | BU29: 1 | BX29: 0 | BY29: 1 | BZ29: yhteensä kasvatus pvt | CB29: =IF(BY29=0,1,0)* IF(H29>K$6,0,1)*Ryhma20!K$18 -> 0 | CC29: 30 | CD29: 0 | CE29: =CD29*Ryhma20!K7 -> 0 | CF29: =Ryhma20!K$24*IF(CD29=0,1,0) -> 29.6979866 | CG29: 244.46656 | CH29: ="Ryhma"&CF2&"!U7" -> Ryhma1!U7
A30: 21 | B30: Ay r21 | C30: 1 | D30: 30 | E30: 470 | F30: 225 | G30: 167 | H30: 2019-11-10 | I30: 2 | J30: 360 | K30: =Ryhma21!L18 -> 225 | L30: o-51-332 | M30: 2019-11-10 | N30: =Ryhma21!D10 -> 2020-11-27 | O30: 383 | P30: =Ryhma21!D22 -> 150.35332 | Q30: 33 | R30: 654 | S30: 5,3 / 2,7 | T30: 332.1547437 | U30: 6.512838111 | V30: 9.958671091 | W30: 2281.024196 | X30: 0.2044600139 | BJ30: 0 | BK30: 1 | BL30: 12.59178082 | BM30: 0 | BN30: 51 | BO30: 1 | BP30: 332 | BQ30: 2019-11-10 | BR30: 2019-12-31 | BS30: 313 | BT30: 51 | BU30: 1 | BX30: 0 | BY30: 1 | CB30: =IF(BY30=0,1,0)* IF(H30>K$6,0,1)*Ryhma21!K$18 -> 0 | CC30: 30 | CD30: 0 | CE30: =CD30*Ryhma21!K7 -> 0 | CF30: =Ryhma21!K$24*IF(CD30=0,1,0) -> 29.7857584 | CG30: 0 | CH30: ="Ryhma"&CF2&"!c21" -> Ryhma1!c21
